Workbook

Sheet Data Input Instructions (hidden)
A3: Worksheet ID | B3: Worksheet | C3: Input Data Notes
A4: 1 | B4: Data Current Rates | C4: R2 Service Charge should already be net of RRRP credit
A5: 1 | B5: Data Current Rates | C5: Demand billed RTSR should already be loss adjusted
A6: 2 | B6: Data Proposed Rates | C6: Mapped from Draft Rates file prepared for Claude
A7: 2 | B7: Data Proposed Rates | C7: Row 5 with header name TEXT is precedent to templates; changes to TEXT need to reflected in templates
A8: 2 | B8: Data Proposed Rates | C8: Templates are set up with 2-dimension vlookups so it will accommodate inserted/deleted rows and/or columns
A9: 3 | B9: Data Billing Quantities | C9: Row 4 with header name TEXT is precedent to templates; changes to TEXT need to reflected in templates
A10: 3 | B10: Data Billing Quantities | C10: Templates are set up with 2-dimension vlookups so it will accommodate inserted/deleted rows and/or columns
A11: 4 | B11: Data Pass Through | C11: Changes to Pass Through rates can be manually input on this sheet, which is precedent to the templates
A12: 4 | B12: Data Pass Through | C12: Links to templates from Column A TEXT; any changes in the TEXT of the charge names must be reflected in the templates
A13: 5 | B13: Data BI List | C13: Instruction Sheet for macro to create individual bill impact worksheets
A14: 5 | B14: Data BI List | C14: Need to MANUALLY update Test Year to appear as header on all bill impact worksheets
A15: 6 | B15: Data BI Summary | C15: This replaces the need for cell references in summary sheet, and displays value for totals so rows can be added to templates and worksheets without having to update the summary sheet
B16: Bill Impact Summary | C16: This file has 2 hidden columns needed to link to worksheets; see Col E and F

Sheet Data Current Rates (hidden)
A1: Proposed 2019 Rates
A3: 1 | B3: 2 | C3: 3 | D3: 4 | E3: 5 | H3: 6 | I3: 7 | J3: 8 | K3: 9 | L3: 10 | M3: 11 | N3: 12
A4: Rate Class | B4: Fixed Charge ($/month) | C4: Current Variable Charge ($/kWh or $/kW) | D4: Current Foregone Revenue Riders Fixed ($/month) | E4: Current Volumetric Foregone Revenue Rider | F4: Fixed Charge + Fixed Foregone | G4: Volumetric Charge + Volumetric Foregone | H4: Current Def/VA rate rider Fixed ($/month) | I4: Current Def/VA rate rider Volumetric ($/kWh or $/kW) | J4: Vol VA Rider ($/kWh or $/kW) Non WMP | K4: Current Rate Rider for CBR (Non-WMP Class B) ($/kWh or $/kW) | L4: Current Rate Rider for Disposition of Global Adjustment (Non WMP, Non-RPP, Non-LDC, and Class B) ($/kWh) | M4: Current RTSR-NW ($/kWh or $/kW) | N4: Current RTSR-CONN ($/kWh or $/kW)
A5: Rate as shown on Bill Impact Sheet | B5: Service Charge | C5: Distribution Volumetric Charge | D5: Fixed Foregone Revenue Charge | E5: Volumetric Foregone Revenue Charge | F5: Fixed Service Charge | G5: Dx Volumetric Charge | H5: Fixed Deferral/Variance Account Rider (General) | I5: Volumetric Deferral/Variance Account Rider (General) | J5: Volumetric Deferral/Variance Account Rider (Sub-Account RSVA Wholesale Market Service Charge & RSVA Power) - ST only | K5: Volumetric Deferral/Variance Account Rider (Sub Account CBR) | L5: Volumetric Deferral/Variance Account Rider (Sub-Account Global Adjustment) | M5: Retail Transmission Rate – Network Service Rate | N5: Retail Transmission Rate – Line and Transformation Connection Service Rate
A6: UR | B6: =VLOOKUP($A6,'[1]Data Proposed Rates'!$A:$AX,MATCH(B$5,[1]!ProposedHeader,0),FALSE) -> 28.63 | C6: =VLOOKUP($A6,'[1]Data Proposed Rates'!$A:$AX,MATCH(C$5,[1]!ProposedHeader,0),FALSE) -> 0.0075 | D6: =VLOOKUP($A6,'[1]Data Proposed Rates'!$A:$AX,MATCH(D$5,[1]!ProposedHeader,0),FALSE) -> 1.46 | E6: =VLOOKUP($A6,'[1]Data Proposed Rates'!$A:$AX,MATCH(E$5,[1]!ProposedHeader,0),FALSE) -> 0 | F6: =ROUND(SUM(B6,D6),2) -> 30.09 | G6: =ROUND(SUM(C6,E6),4) -> 0.0075 | H6: =VLOOKUP($A6,'[1]Data Proposed Rates'!$A:$AX,MATCH(H$5,[1]!ProposedHeader,0),FALSE) -> 0.05 | I6: =VLOOKUP($A6,'[1]Data Proposed Rates'!$A:$AX,MATCH(I$5,[1]!ProposedHeader,0),FALSE) -> -0.0008 | J6: =VLOOKUP($A6,'[1]Data Proposed Rates'!$A:$AX,MATCH(J$5,[1]!ProposedHeader,0),FALSE) -> 0 | K6: =VLOOKUP($A6,'[1]Data Proposed Rates'!$A:$AX,MATCH(K$5,[1]!ProposedHeader,0),FALSE) -> 0 | L6: =VLOOKUP($A6,'[1]Data Proposed Rates'!$A:$AX,MATCH(L$5,[1]!ProposedHeader,0),FALSE) -> 0 | M6: =VLOOKUP($A6,'[1]Data Proposed Rates'!$A:$AX,MATCH(M$5,[1]!ProposedHeader,0),FALSE) -> 0.0084 | N6: =VLOOKUP($A6,'[1]Data Proposed Rates'!$A:$AX,MATCH(N$5,[1]!ProposedHeader,0),FALSE) -> 0.0074
A7: R1 | B7: =VLOOKUP($A7,'[1]Data Proposed Rates'!$A:$AX,MATCH(B$5,[1]!ProposedHeader,0),FALSE) -> 38.74 | C7: =VLOOKUP($A7,'[1]Data Proposed Rates'!$A:$AX,MATCH(C$5,[1]!ProposedHeader,0),FALSE) -> 0.0222 | D7: =VLOOKUP($A7,'[1]Data Proposed Rates'!$A:$AX,MATCH(D$5,[1]!ProposedHeader,0),FALSE) -> 1.71 | E7: =VLOOKUP($A7,'[1]Data Proposed Rates'!$A:$AX,MATCH(E$5,[1]!ProposedHeader,0),FALSE) -> 0.0009 | F7: =ROUND(SUM(B7,D7),2) -> 40.45 | G7: =ROUND(SUM(C7,E7),4) -> 0.0231 | H7: =VLOOKUP($A7,'[1]Data Proposed Rates'!$A:$AX,MATCH(H$5,[1]!ProposedHeader,0),FALSE) -> 0.04 | I7: =VLOOKUP($A7,'[1]Data Proposed Rates'!$A:$AX,MATCH(I$5,[1]!ProposedHeader,0),FALSE) -> -0.0008 | J7: =VLOOKUP($A7,'[1]Data Proposed Rates'!$A:$AX,MATCH(J$5,[1]!ProposedHeader,0),FALSE) -> 0 | K7: =VLOOKUP($A7,'[1]Data Proposed Rates'!$A:$AX,MATCH(K$5,[1]!ProposedHeader,0),FALSE) -> 0 | L7: =VLOOKUP($A7,'[1]Data Proposed Rates'!$A:$AX,MATCH(L$5,[1]!ProposedHeader,0),FALSE) -> 0 | M7: =VLOOKUP($A7,'[1]Data Proposed Rates'!$A:$AX,MATCH(M$5,[1]!ProposedHeader,0),FALSE) -> 0.0078 | N7: =VLOOKUP($A7,'[1]Data Proposed Rates'!$A:$AX,MATCH(N$5,[1]!ProposedHeader,0),FALSE) -> 0.007
A8: R2 | B8: =VLOOKUP($A8,'[1]Data Proposed Rates'!$A:$AX,MATCH(B$5,[1]!ProposedHeader,0),FALSE) -> 31.35 | C8: =VLOOKUP($A8,'[1]Data Proposed Rates'!$A:$AX,MATCH(C$5,[1]!ProposedHeader,0),FALSE) -> 0.0356 | D8: =VLOOKUP($A8,'[1]Data Proposed Rates'!$A:$AX,MATCH(D$5,[1]!ProposedHeader,0),FALSE) -> 4.37 | E8: =VLOOKUP($A8,'[1]Data Proposed Rates'!$A:$AX,MATCH(E$5,[1]!ProposedHeader,0),FALSE) -> 0.0011 | F8: 35.72 | G8: 0.0367 | H8: =VLOOKUP($A8,'[1]Data Proposed Rates'!$A:$AX,MATCH(H$5,[1]!ProposedHeader,0),FALSE) -> -0.03 | I8: =VLOOKUP($A8,'[1]Data Proposed Rates'!$A:$AX,MATCH(I$5,[1]!ProposedHeader,0),FALSE) -> -0.0008 | J8: =VLOOKUP($A8,'[1]Data Proposed Rates'!$A:$AX,MATCH(J$5,[1]!ProposedHeader,0),FALSE) -> 0 | K8: =VLOOKUP($A8,'[1]Data Proposed Rates'!$A:$AX,MATCH(K$5,[1]!ProposedHeader,0),FALSE) -> 0 | L8: =VLOOKUP($A8,'[1]Data Proposed Rates'!$A:$AX,MATCH(L$5,[1]!ProposedHeader,0),FALSE) -> 0 | M8: =VLOOKUP($A8,'[1]Data Proposed Rates'!$A:$AX,MATCH(M$5,[1]!ProposedHeader,0),FALSE) -> 0.0073 | N8: =VLOOKUP($A8,'[1]Data Proposed Rates'!$A:$AX,MATCH(N$5,[1]!ProposedHeader,0),FALSE) -> 0.0066
A9: Seasonal | B9: =VLOOKUP($A9,'[1]Data Proposed Rates'!$A:$AX,MATCH(B$5,[1]!ProposedHeader,0),FALSE) -> 39.04 | C9: =VLOOKUP($A9,'[1]Data Proposed Rates'!$A:$AX,MATCH(C$5,[1]!ProposedHeader,0),FALSE) -> 0.069 | D9: =VLOOKUP($A9,'[1]Data Proposed Rates'!$A:$AX,MATCH(D$5,[1]!ProposedHeader,0),FALSE) -> 1.13 | E9: =VLOOKUP($A9,'[1]Data Proposed Rates'!$A:$AX,MATCH(E$5,[1]!ProposedHeader,0),FALSE) -> 0.005 | F9: 40.17 | G9: 0.074 | H9: =VLOOKUP($A9,'[1]Data Proposed Rates'!$A:$AX,MATCH(H$5,[1]!ProposedHeader,0),FALSE) -> 0.03 | I9: =VLOOKUP($A9,'[1]Data Proposed Rates'!$A:$AX,MATCH(I$5,[1]!ProposedHeader,0),FALSE) -> -0.0009 | J9: =VLOOKUP($A9,'[1]Data Proposed Rates'!$A:$AX,MATCH(J$5,[1]!ProposedHeader,0),FALSE) -> 0 | K9: =VLOOKUP($A9,'[1]Data Proposed Rates'!$A:$AX,MATCH(K$5,[1]!ProposedHeader,0),FALSE) -> 0 | L9: =VLOOKUP($A9,'[1]Data Proposed Rates'!$A:$AX,MATCH(L$5,[1]!ProposedHeader,0),FALSE) -> 0 | M9: =VLOOKUP($A9,'[1]Data Proposed Rates'!$A:$AX,MATCH(M$5,[1]!ProposedHeader,0),FALSE) -> 0.0061 | N9: =VLOOKUP($A9,'[1]Data Proposed Rates'!$A:$AX,MATCH(N$5,[1]!ProposedHeader,0),FALSE) -> 0.0059
A10: GSe | B10: =VLOOKUP($A10,'[1]Data Proposed Rates'!$A:$AX,MATCH(B$5,[1]!ProposedHeader,0),FALSE) -> 31.14 | C10: =VLOOKUP($A10,'[1]Data Proposed Rates'!$A:$AX,MATCH(C$5,[1]!ProposedHeader,0),FALSE) -> 0.06 | D10: =VLOOKUP($A10,'[1]Data Proposed Rates'!$A:$AX,MATCH(D$5,[1]!ProposedHeader,0),FALSE) -> 2.34 | E10: =VLOOKUP($A10,'[1]Data Proposed Rates'!$A:$AX,MATCH(E$5,[1]!ProposedHeader,0),FALSE) -> 0.0022 | F10: 33.48 | G10: 0.0622 | H10: =VLOOKUP($A10,'[1]Data Proposed Rates'!$A:$AX,MATCH(H$5,[1]!ProposedHeader,0),FALSE) -> 0.03 | I10: =VLOOKUP($A10,'[1]Data Proposed Rates'!$A:$AX,MATCH(I$5,[1]!ProposedHeader,0),FALSE) -> -0.0008 | J10: =VLOOKUP($A10,'[1]Data Proposed Rates'!$A:$AX,MATCH(J$5,[1]!ProposedHeader,0),FALSE) -> 0 | K10: =VLOOKUP($A10,'[1]Data Proposed Rates'!$A:$AX,MATCH(K$5,[1]!ProposedHeader,0),FALSE) -> 0 | L10: =VLOOKUP($A10,'[1]Data Proposed Rates'!$A:$AX,MATCH(L$5,[1]!ProposedHeader,0),FALSE) -> 0 | M10: =VLOOKUP($A10,'[1]Data Proposed Rates'!$A:$AX,MATCH(M$5,[1]!ProposedHeader,0),FALSE) -> 0.0061 | N10: =VLOOKUP($A10,'[1]Data Proposed Rates'!$A:$AX,MATCH(N$5,[1]!ProposedHeader,0),FALSE) -> 0.0054
A11: UGe | B11: =VLOOKUP($A11,'[1]Data Proposed Rates'!$A:$AX,MATCH(B$5,[1]!ProposedHeader,0),FALSE) -> 24.4 | C11: =VLOOKUP($A11,'[1]Data Proposed Rates'!$A:$AX,MATCH(C$5,[1]!ProposedHeader,0),FALSE) -> 0.0286 | D11: =VLOOKUP($A11,'[1]Data Proposed Rates'!$A:$AX,MATCH(D$5,[1]!ProposedHeader,0),FALSE) -> 0.65 | E11: =VLOOKUP($A11,'[1]Data Proposed Rates'!$A:$AX,MATCH(E$5,[1]!ProposedHeader,0),FALSE) -> 0.0015 | F11: 25.05 | G11: 0.0301 | H11: =VLOOKUP($A11,'[1]Data Proposed Rates'!$A:$AX,MATCH(H$5,[1]!ProposedHeader,0),FALSE) -> 0.05 | I11: =VLOOKUP($A11,'[1]Data Proposed Rates'!$A:$AX,MATCH(I$5,[1]!ProposedHeader,0),FALSE) -> -0.0008 | J11: =VLOOKUP($A11,'[1]Data Proposed Rates'!$A:$AX,MATCH(J$5,[1]!ProposedHeader,0),FALSE) -> 0 | K11: =VLOOKUP($A11,'[1]Data Proposed Rates'!$A:$AX,MATCH(K$5,[1]!ProposedHeader,0),FALSE) -> 0 | L11: =VLOOKUP($A11,'[1]Data Proposed Rates'!$A:$AX,MATCH(L$5,[1]!ProposedHeader,0),FALSE) -> 0 | M11: =VLOOKUP($A11,'[1]Data Proposed Rates'!$A:$AX,MATCH(M$5,[1]!ProposedHeader,0),FALSE) -> 0.0066 | N11: =VLOOKUP($A11,'[1]Data Proposed Rates'!$A:$AX,MATCH(N$5,[1]!ProposedHeader,0),FALSE) -> 0.0055
A12: St Lgt | B12: =VLOOKUP($A12,'[1]Data Proposed Rates'!$A:$AX,MATCH(B$5,[1]!ProposedHeader,0),FALSE) -> 3.32 | C12: =VLOOKUP($A12,'[1]Data Proposed Rates'!$A:$AX,MATCH(C$5,[1]!ProposedHeader,0),FALSE) -> 0.1007 | D12: =VLOOKUP($A12,'[1]Data Proposed Rates'!$A:$AX,MATCH(D$5,[1]!ProposedHeader,0),FALSE) -> -0.76 | E12: =VLOOKUP($A12,'[1]Data Proposed Rates'!$A:$AX,MATCH(E$5,[1]!ProposedHeader,0),FALSE) -> 0.0053 | F12: 2.56 | G12: 0.106 | H12: =VLOOKUP($A12,'[1]Data Proposed Rates'!$A:$AX,MATCH(H$5,[1]!ProposedHeader,0),FALSE) -> 0.03 | I12: =VLOOKUP($A12,'[1]Data Proposed Rates'!$A:$AX,MATCH(I$5,[1]!ProposedHeader,0),FALSE) -> -0.0009 | J12: =VLOOKUP($A12,'[1]Data Proposed Rates'!$A:$AX,MATCH(J$5,[1]!ProposedHeader,0),FALSE) -> 0 | K12: =VLOOKUP($A12,'[1]Data Proposed Rates'!$A:$AX,MATCH(K$5,[1]!ProposedHeader,0),FALSE) -> 0 | L12: =VLOOKUP($A12,'[1]Data Proposed Rates'!$A:$AX,MATCH(L$5,[1]!ProposedHeader,0),FALSE) -> 0 | M12: =VLOOKUP($A12,'[1]Data Proposed Rates'!$A:$AX,MATCH(M$5,[1]!ProposedHeader,0),FALSE) -> 0.0051 | N12: =VLOOKUP($A12,'[1]Data Proposed Rates'!$A:$AX,MATCH(N$5,[1]!ProposedHeader,0),FALSE) -> 0.0035
A13: Sen Lgt | B13: =VLOOKUP($A13,'[1]Data Proposed Rates'!$A:$AX,MATCH(B$5,[1]!ProposedHeader,0),FALSE) -> 2.52 | C13: =VLOOKUP($A13,'[1]Data Proposed Rates'!$A:$AX,MATCH(C$5,[1]!ProposedHeader,0),FALSE) -> 0.1366 | D13: =VLOOKUP($A13,'[1]Data Proposed Rates'!$A:$AX,MATCH(D$5,[1]!ProposedHeader,0),FALSE) -> -0.19 | E13: =VLOOKUP($A13,'[1]Data Proposed Rates'!$A:$AX,MATCH(E$5,[1]!ProposedHeader,0),FALSE) -> 0.0123 | F13: 2.33 | G13: 0.1489 | H13: =VLOOKUP($A13,'[1]Data Proposed Rates'!$A:$AX,MATCH(H$5,[1]!ProposedHeader,0),FALSE) -> 0.02 | I13: =VLOOKUP($A13,'[1]Data Proposed Rates'!$A:$AX,MATCH(I$5,[1]!ProposedHeader,0),FALSE) -> -0.0013 | J13: =VLOOKUP($A13,'[1]Data Proposed Rates'!$A:$AX,MATCH(J$5,[1]!ProposedHeader,0),FALSE) -> 0 | K13: =VLOOKUP($A13,'[1]Data Proposed Rates'!$A:$AX,MATCH(K$5,[1]!ProposedHeader,0),FALSE) -> 0 | L13: =VLOOKUP($A13,'[1]Data Proposed Rates'!$A:$AX,MATCH(L$5,[1]!ProposedHeader,0),FALSE) -> 0 | M13: =VLOOKUP($A13,'[1]Data Proposed Rates'!$A:$AX,MATCH(M$5,[1]!ProposedHeader,0),FALSE) -> 0.0051 | N13: =VLOOKUP($A13,'[1]Data Proposed Rates'!$A:$AX,MATCH(N$5,[1]!ProposedHeader,0),FALSE) -> 0.0036
A14: USL | B14: =VLOOKUP($A14,'[1]Data Proposed Rates'!$A:$AX,MATCH(B$5,[1]!ProposedHeader,0),FALSE) -> 37.99 | C14: =VLOOKUP($A14,'[1]Data Proposed Rates'!$A:$AX,MATCH(C$5,[1]!ProposedHeader,0),FALSE) -> 0.0254 | D14: =VLOOKUP($A14,'[1]Data Proposed Rates'!$A:$AX,MATCH(D$5,[1]!ProposedHeader,0),FALSE) -> 1.66 | E14: =VLOOKUP($A14,'[1]Data Proposed Rates'!$A:$AX,MATCH(E$5,[1]!ProposedHeader,0),FALSE) -> -0.0028 | F14: 39.65 | G14: 0.0226 | H14: =VLOOKUP($A14,'[1]Data Proposed Rates'!$A:$AX,MATCH(H$5,[1]!ProposedHeader,0),FALSE) -> 0.01 | I14: =VLOOKUP($A14,'[1]Data Proposed Rates'!$A:$AX,MATCH(I$5,[1]!ProposedHeader,0),FALSE) -> -0.0008 | J14: =VLOOKUP($A14,'[1]Data Proposed Rates'!$A:$AX,MATCH(J$5,[1]!ProposedHeader,0),FALSE) -> 0 | K14: =VLOOKUP($A14,'[1]Data Proposed Rates'!$A:$AX,MATCH(K$5,[1]!ProposedHeader,0),FALSE) -> 0 | L14: =VLOOKUP($A14,'[1]Data Proposed Rates'!$A:$AX,MATCH(L$5,[1]!ProposedHeader,0),FALSE) -> 0 | M14: =VLOOKUP($A14,'[1]Data Proposed Rates'!$A:$AX,MATCH(M$5,[1]!ProposedHeader,0),FALSE) -> 0.0051 | N14: =VLOOKUP($A14,'[1]Data Proposed Rates'!$A:$AX,MATCH(N$5,[1]!ProposedHeader,0),FALSE) -> 0.0044
A15: GSd | B15: =VLOOKUP($A15,'[1]Data Proposed Rates'!$A:$AX,MATCH(B$5,[1]!ProposedHeader,0),FALSE) -> 104.18 | C15: =VLOOKUP($A15,'[1]Data Proposed Rates'!$A:$AX,MATCH(C$5,[1]!ProposedHeader,0),FALSE) -> 17.2259 | D15: =VLOOKUP($A15,'[1]Data Proposed Rates'!$A:$AX,MATCH(D$5,[1]!ProposedHeader,0),FALSE) -> 10.78 | E15: =VLOOKUP($A15,'[1]Data Proposed Rates'!$A:$AX,MATCH(E$5,[1]!ProposedHeader,0),FALSE) -> 0.7293 | F15: 114.96 | G15: 17.9552 | H15: =VLOOKUP($A15,'[1]Data Proposed Rates'!$A:$AX,MATCH(H$5,[1]!ProposedHeader,0),FALSE) -> -0.05 | I15: =VLOOKUP($A15,'[1]Data Proposed Rates'!$A:$AX,MATCH(I$5,[1]!ProposedHeader,0),FALSE) -> -0.2655 | J15: =VLOOKUP($A15,'[1]Data Proposed Rates'!$A:$AX,MATCH(J$5,[1]!ProposedHeader,0),FALSE) -> 0 | K15: =VLOOKUP($A15,'[1]Data Proposed Rates'!$A:$AX,MATCH(K$5,[1]!ProposedHeader,0),FALSE) -> 0 | L15: =VLOOKUP($A15,'[1]Data Proposed Rates'!$A:$AX,MATCH(L$5,[1]!ProposedHeader,0),FALSE) -> -0.0067 | M15: =VLOOKUP($A15,'[1]Data Proposed Rates'!$A:$AX,MATCH(M$5,[1]!ProposedHeader,0),FALSE) -> 1.9327 | N15: =VLOOKUP($A15,'[1]Data Proposed Rates'!$A:$AX,MATCH(N$5,[1]!ProposedHeader,0),FALSE) -> 1.6437
A16: UGd | B16: =VLOOKUP($A16,'[1]Data Proposed Rates'!$A:$AX,MATCH(B$5,[1]!ProposedHeader,0),FALSE) -> 96.99 | C16: =VLOOKUP($A16,'[1]Data Proposed Rates'!$A:$AX,MATCH(C$5,[1]!ProposedHeader,0),FALSE) -> 9.9137 | D16: =VLOOKUP($A16,'[1]Data Proposed Rates'!$A:$AX,MATCH(D$5,[1]!ProposedHeader,0),FALSE) -> 1.95 | E16: =VLOOKUP($A16,'[1]Data Proposed Rates'!$A:$AX,MATCH(E$5,[1]!ProposedHeader,0),FALSE) -> 0.4817 | F16: 98.94 | G16: 10.3954 | H16: =VLOOKUP($A16,'[1]Data Proposed Rates'!$A:$AX,MATCH(H$5,[1]!ProposedHeader,0),FALSE) -> 0.06 | I16: =VLOOKUP($A16,'[1]Data Proposed Rates'!$A:$AX,MATCH(I$5,[1]!ProposedHeader,0),FALSE) -> -0.3072 | J16: =VLOOKUP($A16,'[1]Data Proposed Rates'!$A:$AX,MATCH(J$5,[1]!ProposedHeader,0),FALSE) -> 0 | K16: =VLOOKUP($A16,'[1]Data Proposed Rates'!$A:$AX,MATCH(K$5,[1]!ProposedHeader,0),FALSE) -> 0 | L16: =VLOOKUP($A16,'[1]Data Proposed Rates'!$A:$AX,MATCH(L$5,[1]!ProposedHeader,0),FALSE) -> -0.0067 | M16: =VLOOKUP($A16,'[1]Data Proposed Rates'!$A:$AX,MATCH(M$5,[1]!ProposedHeader,0),FALSE) -> 2.4771 | N16: =VLOOKUP($A16,'[1]Data Proposed Rates'!$A:$AX,MATCH(N$5,[1]!ProposedHeader,0),FALSE) -> 2.0887
A17: Dgen | B17: =VLOOKUP($A17,'[1]Data Proposed Rates'!$A:$AX,MATCH(B$5,[1]!ProposedHeader,0),FALSE) -> 165.97 | C17: =VLOOKUP($A17,'[1]Data Proposed Rates'!$A:$AX,MATCH(C$5,[1]!ProposedHeader,0),FALSE) -> 7.5625 | D17: =VLOOKUP($A17,'[1]Data Proposed Rates'!$A:$AX,MATCH(D$5,[1]!ProposedHeader,0),FALSE) -> 13.93 | E17: =VLOOKUP($A17,'[1]Data Proposed Rates'!$A:$AX,MATCH(E$5,[1]!ProposedHeader,0),FALSE) -> 0.2453 | F17: 179.9 | G17: 7.8078 | H17: =VLOOKUP($A17,'[1]Data Proposed Rates'!$A:$AX,MATCH(H$5,[1]!ProposedHeader,0),FALSE) -> 0.05 | I17: =VLOOKUP($A17,'[1]Data Proposed Rates'!$A:$AX,MATCH(I$5,[1]!ProposedHeader,0),FALSE) -> -0.1097 | J17: =VLOOKUP($A17,'[1]Data Proposed Rates'!$A:$AX,MATCH(J$5,[1]!ProposedHeader,0),FALSE) -> 0 | K17: =VLOOKUP($A17,'[1]Data Proposed Rates'!$A:$AX,MATCH(K$5,[1]!ProposedHeader,0),FALSE) -> 0 | L17: =VLOOKUP($A17,'[1]Data Proposed Rates'!$A:$AX,MATCH(L$5,[1]!ProposedHeader,0),FALSE) -> -0.0067 | M17: =VLOOKUP($A17,'[1]Data Proposed Rates'!$A:$AX,MATCH(M$5,[1]!ProposedHeader,0),FALSE) -> 0.9395 | N17: =VLOOKUP($A17,'[1]Data Proposed Rates'!$A:$AX,MATCH(N$5,[1]!ProposedHeader,0),FALSE) -> 0.8007
A18: ST | B18: =VLOOKUP($A18,'[1]Data Proposed Rates'!$A:$AX,MATCH(B$5,[1]!ProposedHeader,0),FALSE) -> 1183.48 | C18: =VLOOKUP($A18,'[1]Data Proposed Rates'!$A:$AX,MATCH(C$5,[1]!ProposedHeader,0),FALSE) -> 1.3521 | D18: =VLOOKUP($A18,'[1]Data Proposed Rates'!$A:$AX,MATCH(D$5,[1]!ProposedHeader,0),FALSE) -> -65.89355023 | E18: =VLOOKUP($A18,'[1]Data Proposed Rates'!$A:$AX,MATCH(E$5,[1]!ProposedHeader,0),FALSE) -> 0.09127551918 | F18: 1117.59 | G18: 1.4434 | H18: =VLOOKUP($A18,'[1]Data Proposed Rates'!$A:$AX,MATCH(H$5,[1]!ProposedHeader,0),FALSE) -> 13.07 | I18: =VLOOKUP($A18,'[1]Data Proposed Rates'!$A:$AX,MATCH(I$5,[1]!ProposedHeader,0),FALSE) -> 0.8959 | J18: =VLOOKUP($A18,'[1]Data Proposed Rates'!$A:$AX,MATCH(J$5,[1]!ProposedHeader,0),FALSE) -> 0 | K18: =VLOOKUP($A18,'[1]Data Proposed Rates'!$A:$AX,MATCH(K$5,[1]!ProposedHeader,0),FALSE) -> 0 | L18: =VLOOKUP($A18,'[1]Data Proposed Rates'!$A:$AX,MATCH(L$5,[1]!ProposedHeader,0),FALSE) -> 0 | M18: =VLOOKUP($A18,'[1]Data Proposed Rates'!$A:$AX,MATCH(M$5,[1]!ProposedHeader,0),FALSE) -> 3.4034 | N18: =VLOOKUP($A18,'[1]Data Proposed Rates'!$A:$AX,MATCH(N$5,[1]!ProposedHeader,0),FALSE) -> 2.8571

Sheet Data Proposed Rates (hidden)
A1: Proposed 2020 Rates
A3: 1 | B3: 2 | C3: 3 | D3: 4 | E3: 5 | H3: 6 | I3: 7 | J3: 8 | K3: 9 | L3: 10 | M3: 11 | N3: 12
A4: Rate Class | B4: Proposed Fixed Charge ($/month) | C4: Proposed Variable Charge ($/kWh or $/kW) | D4: Proposed Foregone Revenue Charge Fixed ($/month) | E4: Proposed Volumetric Foregone Revenue Charge | F4: Fixed Charge + Fixed Foregone | G4: Volumetric Charge + Volumetric Foregone | H4: Proposed Def/VA rate rider Fixed ($/month) | I4: Proposed Def/VA rate rider Volumetric($/kWh or $/kW) | J4: Vol VA Rider ($/kWh or $/kW) Non WMP | K4: Proposed Rate Rider for CBR (Non-WMP Class B) ($/kWh or $/kW) | L4: Proposed Rate Rider for Disposition of Global Adjustment (Non WMP, Non-RPP, Non-LDC, and Class B) ($/kWh) | M4: Proposed RTSR-NW ($/kWh or $/kW) | N4: Proposed RTSR-CONN ($/kWh or $/kW)
A5: Rate as shown on Bill Impact Sheet | B5: Service Charge | C5: Distribution Volumetric Charge | D5: Fixed Foregone Revenue Charge | E5: Volumetric Foregone Revenue Charge | F5: Fixed Service Charge | G5: Dx Volumetric Charge | H5: Fixed Deferral/Variance Account Rider (General) | I5: Volumetric Deferral/Variance Account Rider (General) | J5: Volumetric Deferral/Variance Account Rider (Sub-Account RSVA Wholesale Market Service Charge & RSVA Power) - ST only | K5: Volumetric Deferral/Variance Account Rider (Sub Account CBR) | L5: Volumetric Deferral/Variance Account Rider (Sub-Account Global Adjustment) | M5: Retail Transmission Rate – Network Service Rate | N5: Retail Transmission Rate – Line and Transformation Connection Service Rate
A6: Rounding Factor | B6: 2 | C6: 4 | D6: 2 | E6: 4 | H6: 2 | I6: 4 | K6: 4 | L6: 4 | M6: 4 | N6: 4
A7: UR | B7: =ROUND(VLOOKUP($A7,'[2]Proposed Rates'!$A:$AY,MATCH(B$5,'[2]Proposed Rates'!$2:$2,0),FALSE),B$6) -> 31.91 | C7: =ROUND(VLOOKUP($A7,'[2]Proposed Rates'!$A:$AY,MATCH(C$5,'[2]Proposed Rates'!$2:$2,0),FALSE),C$6) -> 0.0038 | D7: =ROUND(VLOOKUP($A7,'[2]Proposed Rates'!$A:$AY,MATCH(D$5,'[2]Proposed Rates'!$2:$2,0),FALSE),D$6) -> 1.45 | E7: =ROUND(VLOOKUP($A7,'[2]Proposed Rates'!$A:$AY,MATCH(E$5,'[2]Proposed Rates'!$2:$2,0),FALSE),E$6) -> 0 | F7: =ROUND(SUM(B7,D7),2) -> 33.36 | G7: =ROUND(SUM(C7,E7),4) -> 0.0038 | H7: =ROUND(VLOOKUP($A7,'[2]Proposed Rates'!$A:$AY,MATCH(H$5,'[2]Proposed Rates'!$2:$2,0),FALSE),H$6) -> 0.05 | I7: =ROUND(VLOOKUP($A7,'[2]Proposed Rates'!$A:$AY,MATCH(I$5,'[2]Proposed Rates'!$2:$2,0),FALSE),I$6) -> -0.0008 | K7: =ROUND(VLOOKUP($A7,'[2]Proposed Rates'!$A:$AY,MATCH(K$5,'[2]Proposed Rates'!$2:$2,0),FALSE),K$6) -> 0 | M7: =ROUND(VLOOKUP($A7,'[3]Proposed Rates'!$A:$AY,MATCH(M$5,'[3]Proposed Rates'!$2:$2,0),FALSE),M$6) -> 0.0087 | N7: =ROUND(VLOOKUP($A7,'[3]Proposed Rates'!$A:$AY,MATCH(N$5,'[3]Proposed Rates'!$2:$2,0),FALSE),N$6) -> 0.0076
A8: R1 | B8: =ROUND(VLOOKUP($A8,'[2]Proposed Rates'!$A:$AY,MATCH(B$5,'[2]Proposed Rates'!$2:$2,0),FALSE),B$6) -> 43.36 | C8: =ROUND(VLOOKUP($A8,'[2]Proposed Rates'!$A:$AY,MATCH(C$5,'[2]Proposed Rates'!$2:$2,0),FALSE),C$6) -> 0.0181 | D8: =ROUND(VLOOKUP($A8,'[2]Proposed Rates'!$A:$AY,MATCH(D$5,'[2]Proposed Rates'!$2:$2,0),FALSE),D$6) -> 1.69 | E8: =ROUND(VLOOKUP($A8,'[2]Proposed Rates'!$A:$AY,MATCH(E$5,'[2]Proposed Rates'!$2:$2,0),FALSE),E$6) -> 0.0009 | F8: =ROUND(SUM(B8,D8),2) -> 45.05 | G8: =ROUND(SUM(C8,E8),4) -> 0.019 | H8: =ROUND(VLOOKUP($A8,'[2]Proposed Rates'!$A:$AY,MATCH(H$5,'[2]Proposed Rates'!$2:$2,0),FALSE),H$6) -> 0.04 | I8: =ROUND(VLOOKUP($A8,'[2]Proposed Rates'!$A:$AY,MATCH(I$5,'[2]Proposed Rates'!$2:$2,0),FALSE),I$6) -> -0.0008 | K8: =ROUND(VLOOKUP($A8,'[2]Proposed Rates'!$A:$AY,MATCH(K$5,'[2]Proposed Rates'!$2:$2,0),FALSE),K$6) -> 0 | M8: =ROUND(VLOOKUP($A8,'[3]Proposed Rates'!$A:$AY,MATCH(M$5,'[3]Proposed Rates'!$2:$2,0),FALSE),M$6) -> 0.008 | N8: =ROUND(VLOOKUP($A8,'[3]Proposed Rates'!$A:$AY,MATCH(N$5,'[3]Proposed Rates'!$2:$2,0),FALSE),N$6) -> 0.0072
A9: R2 | B9: =ROUND(VLOOKUP($A9,'[2]Proposed Rates'!$A:$AY,MATCH(B$5,'[2]Proposed Rates'!$2:$2,0),FALSE),B$6)-'Data Pass Through'!C4 -> 41.19 | C9: =ROUND(VLOOKUP($A9,'[2]Proposed Rates'!$A:$AY,MATCH(C$5,'[2]Proposed Rates'!$2:$2,0),FALSE),C$6) -> 0.0291 | D9: =ROUND(VLOOKUP($A9,'[2]Proposed Rates'!$A:$AY,MATCH(D$5,'[2]Proposed Rates'!$2:$2,0),FALSE),D$6) -> 4.35 | E9: =ROUND(VLOOKUP($A9,'[2]Proposed Rates'!$A:$AY,MATCH(E$5,'[2]Proposed Rates'!$2:$2,0),FALSE),E$6) -> 0.0011 | F9: 45.54 | G9: 0.0302 | H9: =ROUND(VLOOKUP($A9,'[2]Proposed Rates'!$A:$AY,MATCH(H$5,'[2]Proposed Rates'!$2:$2,0),FALSE),H$6) -> -0.03 | I9: =ROUND(VLOOKUP($A9,'[2]Proposed Rates'!$A:$AY,MATCH(I$5,'[2]Proposed Rates'!$2:$2,0),FALSE),I$6) -> -0.0008 | K9: =ROUND(VLOOKUP($A9,'[2]Proposed Rates'!$A:$AY,MATCH(K$5,'[2]Proposed Rates'!$2:$2,0),FALSE),K$6) -> 0 | M9: =ROUND(VLOOKUP($A9,'[3]Proposed Rates'!$A:$AY,MATCH(M$5,'[3]Proposed Rates'!$2:$2,0),FALSE),M$6) -> 0.0075 | N9: =ROUND(VLOOKUP($A9,'[3]Proposed Rates'!$A:$AY,MATCH(N$5,'[3]Proposed Rates'!$2:$2,0),FALSE),N$6) -> 0.0067
A10: Seasonal | B10: =ROUND(VLOOKUP($A10,'[2]Proposed Rates'!$A:$AY,MATCH(B$5,'[2]Proposed Rates'!$2:$2,0),FALSE),B$6) -> 44.39 | C10: =ROUND(VLOOKUP($A10,'[2]Proposed Rates'!$A:$AY,MATCH(C$5,'[2]Proposed Rates'!$2:$2,0),FALSE),C$6) -> 0.0565 | D10: =ROUND(VLOOKUP($A10,'[2]Proposed Rates'!$A:$AY,MATCH(D$5,'[2]Proposed Rates'!$2:$2,0),FALSE),D$6) -> 1.13 | E10: =ROUND(VLOOKUP($A10,'[2]Proposed Rates'!$A:$AY,MATCH(E$5,'[2]Proposed Rates'!$2:$2,0),FALSE),E$6) -> 0.0048 | F10: 45.52 | G10: =ROUND(SUM(C10,E10),4) -> 0.0613 | H10: =ROUND(VLOOKUP($A10,'[2]Proposed Rates'!$A:$AY,MATCH(H$5,'[2]Proposed Rates'!$2:$2,0),FALSE),H$6) -> 0.03 | I10: =ROUND(VLOOKUP($A10,'[2]Proposed Rates'!$A:$AY,MATCH(I$5,'[2]Proposed Rates'!$2:$2,0),FALSE),I$6) -> -0.0009 | K10: =ROUND(VLOOKUP($A10,'[2]Proposed Rates'!$A:$AY,MATCH(K$5,'[2]Proposed Rates'!$2:$2,0),FALSE),K$6) -> 0 | M10: =ROUND(VLOOKUP($A10,'[3]Proposed Rates'!$A:$AY,MATCH(M$5,'[3]Proposed Rates'!$2:$2,0),FALSE),M$6) -> 0.0063 | N10: =ROUND(VLOOKUP($A10,'[3]Proposed Rates'!$A:$AY,MATCH(N$5,'[3]Proposed Rates'!$2:$2,0),FALSE),N$6) -> 0.006
A11: GSe | B11: =ROUND(VLOOKUP($A11,'[2]Proposed Rates'!$A:$AY,MATCH(B$5,'[2]Proposed Rates'!$2:$2,0),FALSE),B$6) -> 31.51 | C11: =ROUND(VLOOKUP($A11,'[2]Proposed Rates'!$A:$AY,MATCH(C$5,'[2]Proposed Rates'!$2:$2,0),FALSE),C$6) -> 0.0616 | D11: =ROUND(VLOOKUP($A11,'[2]Proposed Rates'!$A:$AY,MATCH(D$5,'[2]Proposed Rates'!$2:$2,0),FALSE),D$6) -> 2.34 | E11: =ROUND(VLOOKUP($A11,'[2]Proposed Rates'!$A:$AY,MATCH(E$5,'[2]Proposed Rates'!$2:$2,0),FALSE),E$6) -> 0.0022 | F11: 33.85 | G11: 0.0638 | H11: =ROUND(VLOOKUP($A11,'[2]Proposed Rates'!$A:$AY,MATCH(H$5,'[2]Proposed Rates'!$2:$2,0),FALSE),H$6) -> 0.03 | I11: =ROUND(VLOOKUP($A11,'[2]Proposed Rates'!$A:$AY,MATCH(I$5,'[2]Proposed Rates'!$2:$2,0),FALSE),I$6) -> -0.0008 | K11: =ROUND(VLOOKUP($A11,'[2]Proposed Rates'!$A:$AY,MATCH(K$5,'[2]Proposed Rates'!$2:$2,0),FALSE),K$6) -> 0 | M11: =ROUND(VLOOKUP($A11,'[3]Proposed Rates'!$A:$AY,MATCH(M$5,'[3]Proposed Rates'!$2:$2,0),FALSE),M$6) -> 0.0063 | N11: =ROUND(VLOOKUP($A11,'[3]Proposed Rates'!$A:$AY,MATCH(N$5,'[3]Proposed Rates'!$2:$2,0),FALSE),N$6) -> 0.0055
A12: UGe | B12: =ROUND(VLOOKUP($A12,'[2]Proposed Rates'!$A:$AY,MATCH(B$5,'[2]Proposed Rates'!$2:$2,0),FALSE),B$6) -> 24.76 | C12: =ROUND(VLOOKUP($A12,'[2]Proposed Rates'!$A:$AY,MATCH(C$5,'[2]Proposed Rates'!$2:$2,0),FALSE),C$6) -> 0.0293 | D12: =ROUND(VLOOKUP($A12,'[2]Proposed Rates'!$A:$AY,MATCH(D$5,'[2]Proposed Rates'!$2:$2,0),FALSE),D$6) -> 0.65 | E12: =ROUND(VLOOKUP($A12,'[2]Proposed Rates'!$A:$AY,MATCH(E$5,'[2]Proposed Rates'!$2:$2,0),FALSE),E$6) -> 0.0014 | F12: 25.41 | G12: 0.0307 | H12: =ROUND(VLOOKUP($A12,'[2]Proposed Rates'!$A:$AY,MATCH(H$5,'[2]Proposed Rates'!$2:$2,0),FALSE),H$6) -> 0.05 | I12: =ROUND(VLOOKUP($A12,'[2]Proposed Rates'!$A:$AY,MATCH(I$5,'[2]Proposed Rates'!$2:$2,0),FALSE),I$6) -> -0.0008 | K12: =ROUND(VLOOKUP($A12,'[2]Proposed Rates'!$A:$AY,MATCH(K$5,'[2]Proposed Rates'!$2:$2,0),FALSE),K$6) -> 0 | M12: =ROUND(VLOOKUP($A12,'[3]Proposed Rates'!$A:$AY,MATCH(M$5,'[3]Proposed Rates'!$2:$2,0),FALSE),M$6) -> 0.0068 | N12: =ROUND(VLOOKUP($A12,'[3]Proposed Rates'!$A:$AY,MATCH(N$5,'[3]Proposed Rates'!$2:$2,0),FALSE),N$6) -> 0.0056
A13: St Lgt | B13: =ROUND(VLOOKUP($A13,'[2]Proposed Rates'!$A:$AY,MATCH(B$5,'[2]Proposed Rates'!$2:$2,0),FALSE),B$6) -> 3.38 | C13: =ROUND(VLOOKUP($A13,'[2]Proposed Rates'!$A:$AY,MATCH(C$5,'[2]Proposed Rates'!$2:$2,0),FALSE),C$6) -> 0.103 | D13: =ROUND(VLOOKUP($A13,'[2]Proposed Rates'!$A:$AY,MATCH(D$5,'[2]Proposed Rates'!$2:$2,0),FALSE),D$6) -> -0.75 | E13: =ROUND(VLOOKUP($A13,'[2]Proposed Rates'!$A:$AY,MATCH(E$5,'[2]Proposed Rates'!$2:$2,0),FALSE),E$6) -> 0.0051 | F13: 2.63 | G13: 0.1081 | H13: =ROUND(VLOOKUP($A13,'[2]Proposed Rates'!$A:$AY,MATCH(H$5,'[2]Proposed Rates'!$2:$2,0),FALSE),H$6) -> 0.03 | I13: =ROUND(VLOOKUP($A13,'[2]Proposed Rates'!$A:$AY,MATCH(I$5,'[2]Proposed Rates'!$2:$2,0),FALSE),I$6) -> -0.0009 | K13: =ROUND(VLOOKUP($A13,'[2]Proposed Rates'!$A:$AY,MATCH(K$5,'[2]Proposed Rates'!$2:$2,0),FALSE),K$6) -> 0 | M13: =ROUND(VLOOKUP($A13,'[3]Proposed Rates'!$A:$AY,MATCH(M$5,'[3]Proposed Rates'!$2:$2,0),FALSE),M$6) -> 0.0052 | N13: =ROUND(VLOOKUP($A13,'[3]Proposed Rates'!$A:$AY,MATCH(N$5,'[3]Proposed Rates'!$2:$2,0),FALSE),N$6) -> 0.0036
A14: Sen Lgt | B14: =ROUND(VLOOKUP($A14,'[2]Proposed Rates'!$A:$AY,MATCH(B$5,'[2]Proposed Rates'!$2:$2,0),FALSE),B$6) -> 2.64 | C14: =ROUND(VLOOKUP($A14,'[2]Proposed Rates'!$A:$AY,MATCH(C$5,'[2]Proposed Rates'!$2:$2,0),FALSE),C$6) -> 0.1435 | D14: =ROUND(VLOOKUP($A14,'[2]Proposed Rates'!$A:$AY,MATCH(D$5,'[2]Proposed Rates'!$2:$2,0),FALSE),D$6) -> -0.19 | E14: =ROUND(VLOOKUP($A14,'[2]Proposed Rates'!$A:$AY,MATCH(E$5,'[2]Proposed Rates'!$2:$2,0),FALSE),E$6) -> 0.0124 | F14: 2.45 | G14: 0.1559 | H14: =ROUND(VLOOKUP($A14,'[2]Proposed Rates'!$A:$AY,MATCH(H$5,'[2]Proposed Rates'!$2:$2,0),FALSE),H$6) -> 0.02 | I14: =ROUND(VLOOKUP($A14,'[2]Proposed Rates'!$A:$AY,MATCH(I$5,'[2]Proposed Rates'!$2:$2,0),FALSE),I$6) -> -0.0013 | K14: =ROUND(VLOOKUP($A14,'[2]Proposed Rates'!$A:$AY,MATCH(K$5,'[2]Proposed Rates'!$2:$2,0),FALSE),K$6) -> 0 | M14: =ROUND(VLOOKUP($A14,'[3]Proposed Rates'!$A:$AY,MATCH(M$5,'[3]Proposed Rates'!$2:$2,0),FALSE),M$6) -> 0.0053 | N14: =ROUND(VLOOKUP($A14,'[3]Proposed Rates'!$A:$AY,MATCH(N$5,'[3]Proposed Rates'!$2:$2,0),FALSE),N$6) -> 0.0037
A15: USL | B15: =ROUND(VLOOKUP($A15,'[2]Proposed Rates'!$A:$AY,MATCH(B$5,'[2]Proposed Rates'!$2:$2,0),FALSE),B$6) -> 36.15 | C15: =ROUND(VLOOKUP($A15,'[2]Proposed Rates'!$A:$AY,MATCH(C$5,'[2]Proposed Rates'!$2:$2,0),FALSE),C$6) -> 0.0241 | D15: =ROUND(VLOOKUP($A15,'[2]Proposed Rates'!$A:$AY,MATCH(D$5,'[2]Proposed Rates'!$2:$2,0),FALSE),D$6) -> 1.65 | E15: =ROUND(VLOOKUP($A15,'[2]Proposed Rates'!$A:$AY,MATCH(E$5,'[2]Proposed Rates'!$2:$2,0),FALSE),E$6) -> -0.0028 | F15: 37.8 | G15: 0.0213 | H15: =ROUND(VLOOKUP($A15,'[2]Proposed Rates'!$A:$AY,MATCH(H$5,'[2]Proposed Rates'!$2:$2,0),FALSE),H$6) -> 0.01 | I15: =ROUND(VLOOKUP($A15,'[2]Proposed Rates'!$A:$AY,MATCH(I$5,'[2]Proposed Rates'!$2:$2,0),FALSE),I$6) -> -0.0008 | K15: =ROUND(VLOOKUP($A15,'[2]Proposed Rates'!$A:$AY,MATCH(K$5,'[2]Proposed Rates'!$2:$2,0),FALSE),K$6) -> 0 | M15: =ROUND(VLOOKUP($A15,'[3]Proposed Rates'!$A:$AY,MATCH(M$5,'[3]Proposed Rates'!$2:$2,0),FALSE),M$6) -> 0.0053 | N15: =ROUND(VLOOKUP($A15,'[3]Proposed Rates'!$A:$AY,MATCH(N$5,'[3]Proposed Rates'!$2:$2,0),FALSE),N$6) -> 0.0045
A16: GSd | B16: =ROUND(VLOOKUP($A16,'[2]Proposed Rates'!$A:$AY,MATCH(B$5,'[2]Proposed Rates'!$2:$2,0),FALSE),B$6) -> 105.21 | C16: =ROUND(VLOOKUP($A16,'[2]Proposed Rates'!$A:$AY,MATCH(C$5,'[2]Proposed Rates'!$2:$2,0),FALSE),C$6) -> 17.6289 | D16: =ROUND(VLOOKUP($A16,'[2]Proposed Rates'!$A:$AY,MATCH(D$5,'[2]Proposed Rates'!$2:$2,0),FALSE),D$6) -> 10.69 | E16: =ROUND(VLOOKUP($A16,'[2]Proposed Rates'!$A:$AY,MATCH(E$5,'[2]Proposed Rates'!$2:$2,0),FALSE),E$6) -> 0.7265 | F16: 115.9 | G16: 18.3554 | H16: =ROUND(VLOOKUP($A16,'[2]Proposed Rates'!$A:$AY,MATCH(H$5,'[2]Proposed Rates'!$2:$2,0),FALSE),H$6) -> -0.05 | I16: =ROUND(VLOOKUP($A16,'[2]Proposed Rates'!$A:$AY,MATCH(I$5,'[2]Proposed Rates'!$2:$2,0),FALSE),I$6) -> -0.2655 | K16: =ROUND(VLOOKUP($A16,'[2]Proposed Rates'!$A:$AY,MATCH(K$5,'[2]Proposed Rates'!$2:$2,0),FALSE),K$6) -> 0 | L16: =ROUND(VLOOKUP($A16,'[2]Proposed Rates'!$A:$AY,MATCH(L$5,'[2]Proposed Rates'!$2:$2,0),FALSE),L$6) -> -0.0067 | M16: =ROUND(VLOOKUP($A16,'[3]Proposed Rates'!$A:$AY,MATCH(M$5,'[3]Proposed Rates'!$2:$2,0),FALSE)*VLOOKUP($A16,'Data Billing Quantities'!$A:$B,2,FALSE),M$6) -> 1.9952 | N16: =ROUND(VLOOKUP($A16,'[3]Proposed Rates'!$A:$AY,MATCH(N$5,'[3]Proposed Rates'!$2:$2,0),FALSE)*VLOOKUP($A16,'Data Billing Quantities'!$A:$B,2,FALSE),N$6) -> 1.6799
A17: UGd | B17: =ROUND(VLOOKUP($A17,'[2]Proposed Rates'!$A:$AY,MATCH(B$5,'[2]Proposed Rates'!$2:$2,0),FALSE),B$6) -> 97.68 | C17: =ROUND(VLOOKUP($A17,'[2]Proposed Rates'!$A:$AY,MATCH(C$5,'[2]Proposed Rates'!$2:$2,0),FALSE),C$6) -> 10.1512 | D17: =ROUND(VLOOKUP($A17,'[2]Proposed Rates'!$A:$AY,MATCH(D$5,'[2]Proposed Rates'!$2:$2,0),FALSE),D$6) -> 1.94 | E17: =ROUND(VLOOKUP($A17,'[2]Proposed Rates'!$A:$AY,MATCH(E$5,'[2]Proposed Rates'!$2:$2,0),FALSE),E$6) -> 0.4674 | F17: 99.62 | G17: 10.6186 | H17: =ROUND(VLOOKUP($A17,'[2]Proposed Rates'!$A:$AY,MATCH(H$5,'[2]Proposed Rates'!$2:$2,0),FALSE),H$6) -> 0.06 | I17: =ROUND(VLOOKUP($A17,'[2]Proposed Rates'!$A:$AY,MATCH(I$5,'[2]Proposed Rates'!$2:$2,0),FALSE),I$6) -> -0.3072 | K17: =ROUND(VLOOKUP($A17,'[2]Proposed Rates'!$A:$AY,MATCH(K$5,'[2]Proposed Rates'!$2:$2,0),FALSE),K$6) -> 0 | L17: =ROUND(VLOOKUP($A17,'[2]Proposed Rates'!$A:$AY,MATCH(L$5,'[2]Proposed Rates'!$2:$2,0),FALSE),L$6) -> -0.0067 | M17: =ROUND(VLOOKUP($A17,'[3]Proposed Rates'!$A:$AY,MATCH(M$5,'[3]Proposed Rates'!$2:$2,0),FALSE)*VLOOKUP($A17,'Data Billing Quantities'!$A:$B,2,FALSE),M$6) -> 2.5572 | N17: =ROUND(VLOOKUP($A17,'[3]Proposed Rates'!$A:$AY,MATCH(N$5,'[3]Proposed Rates'!$2:$2,0),FALSE)*VLOOKUP($A17,'Data Billing Quantities'!$A:$B,2,FALSE),N$6) -> 2.1345
A18: Dgen | B18: =ROUND(VLOOKUP($A18,'[2]Proposed Rates'!$A:$AY,MATCH(B$5,'[2]Proposed Rates'!$2:$2,0),FALSE),B$6) -> 192.28 | C18: =ROUND(VLOOKUP($A18,'[2]Proposed Rates'!$A:$AY,MATCH(C$5,'[2]Proposed Rates'!$2:$2,0),FALSE),C$6) -> 9.2057 | D18: =ROUND(VLOOKUP($A18,'[2]Proposed Rates'!$A:$AY,MATCH(D$5,'[2]Proposed Rates'!$2:$2,0),FALSE),D$6) -> 12.69 | E18: =ROUND(VLOOKUP($A18,'[2]Proposed Rates'!$A:$AY,MATCH(E$5,'[2]Proposed Rates'!$2:$2,0),FALSE),E$6) -> 0.2421 | F18: 204.97 | G18: 9.4478 | H18: =ROUND(VLOOKUP($A18,'[2]Proposed Rates'!$A:$AY,MATCH(H$5,'[2]Proposed Rates'!$2:$2,0),FALSE),H$6) -> 0.05 | I18: =ROUND(VLOOKUP($A18,'[2]Proposed Rates'!$A:$AY,MATCH(I$5,'[2]Proposed Rates'!$2:$2,0),FALSE),I$6) -> -0.1097 | K18: =ROUND(VLOOKUP($A18,'[2]Proposed Rates'!$A:$AY,MATCH(K$5,'[2]Proposed Rates'!$2:$2,0),FALSE),K$6) -> 0 | L18: =ROUND(VLOOKUP($A18,'[2]Proposed Rates'!$A:$AY,MATCH(L$5,'[2]Proposed Rates'!$2:$2,0),FALSE),L$6) -> -0.0067 | M18: =ROUND(VLOOKUP($A18,'[3]Proposed Rates'!$A:$AY,MATCH(M$5,'[3]Proposed Rates'!$2:$2,0),FALSE)*VLOOKUP($A18,'Data Billing Quantities'!$A:$B,2,FALSE),M$6) -> 0.9699 | N18: =ROUND(VLOOKUP($A18,'[3]Proposed Rates'!$A:$AY,MATCH(N$5,'[3]Proposed Rates'!$2:$2,0),FALSE)*VLOOKUP($A18,'Data Billing Quantities'!$A:$B,2,FALSE),N$6) -> 0.8183
A19: ST | B19: =ROUND(SUM('[3]Proposed Rates'!$B$16:$B$17),B$6) -> 1206.73 | C19: =ROUND(VLOOKUP("Common Line",'[3]Proposed Rates'!$A:$H,8,FALSE),C$6) -> 1.3857 | D19: =SUM('[3]Proposed Rates'!$I$16:$I$17) -> -65.66860283 | E19: ='[3]Proposed Rates'!$J$18 -> 0.09205903174 | F19: 1141.06 | G19: 1.4778 | H19: =ROUND(VLOOKUP($A19,'[3]Proposed Rates'!$A:$AY,MATCH(H$5,'[3]Proposed Rates'!$2:$2,0),FALSE),H$6) -> 13.07 | I19: =ROUND(VLOOKUP($A19,'[3]Proposed Rates'!$A:$AY,MATCH(I$5,'[3]Proposed Rates'!$2:$2,0),FALSE),I$6) -> 0.8959 | M19: =ROUND(VLOOKUP($A19,'[3]Proposed Rates'!$A:$AY,MATCH(M$5,'[3]Proposed Rates'!$2:$2,0),FALSE)*VLOOKUP($A19,'Data Billing Quantities'!$A:$B,2,FALSE),M$6) -> 3.5135 | N19: =ROUND(VLOOKUP($A19,'[3]Proposed Rates'!$A:$AY,MATCH(N$5,'[3]Proposed Rates'!$2:$2,0),FALSE)*VLOOKUP($A19,'Data Billing Quantities'!$A:$B,2,FALSE),N$6) -> 2.9199

Sheet Data Billing Quantities (hidden)
A1: Rate Class-Specific Billing Quantities (Applied to Current and Proposed Bill)
E3: Consumption (kWh) | I3: Peak (kW) | M3: TOU Split
A4: Rate Class | B4: Loss Factor | C4: Charge Determinant | D4: Commodity Threshold | E4: Low kWh | F4: Typical kWh | G4: Average kWh | H4: High kWh | I4: Low kW | J4: Typical kW | K4: Average kW | L4: High kW | M4: TOU-Off Peak | N4: TOU-Mid Peak | O4: TOU-On Peak
A5: UR | B5: 1.057 | C5: kWh | D5: 600 | E5: 350 | F5: 750 | G5: =VLOOKUP(A5,[4]Sheet1!$A$9:$I$22,8,FALSE) -> 755 | H5: 1400 | M5: 0.65 | N5: 0.17 | O5: 0.18
A6: R1 | B6: 1.076 | C6: kWh | D6: 600 | E6: 400 | F6: 750 | G6: =VLOOKUP(A6,[4]Sheet1!$A$10:$I$22,8,FALSE) -> 920 | H6: 1800 | M6: 0.65 | N6: 0.17 | O6: 0.18
A7: R2 | B7: 1.105 | C7: kWh | D7: 600 | E7: 450 | F7: 750 | G7: =VLOOKUP(A7,[4]Sheet1!$A$10:$I$22,8,FALSE) -> 1152 | H7: 2300 | M7: 0.65 | N7: 0.17 | O7: 0.18
A8: Seasonal | B8: 1.104 | C8: kWh | D8: 600 | E8: 50 | G8: =VLOOKUP(A8,[4]Sheet1!$A$10:$I$22,8,FALSE) -> 352 | H8: 1000 | M8: 0.65 | N8: 0.17 | O8: 0.18
A9: GSe | B9: 1.096 | C9: kWh | D9: 750 | E9: 1000 | F9: 2000 | G9: =VLOOKUP(A9,[4]Sheet1!$A$10:$I$22,8,FALSE) -> 1982 | H9: 15000 | M9: 0.65 | N9: 0.17 | O9: 0.18
A10: UGe | B10: 1.067 | C10: kWh | D10: 750 | E10: 1000 | F10: 2000 | G10: =VLOOKUP(A10,[4]Sheet1!$A$10:$I$22,8,FALSE) -> 2759 | H10: 15000 | M10: 0.65 | N10: 0.17 | O10: 0.18
A11: St Lgt | B11: 1.092 | C11: kWh | D11: 750 | E11: 100 | G11: =VLOOKUP(A11,[4]Sheet1!$A$10:$I$22,8,FALSE) -> 517 | H11: 2000
A12: Sen Lgt | B12: 1.092 | C12: kWh | D12: 750 | E12: 20 | G12: =VLOOKUP(A12,[4]Sheet1!$A$10:$I$22,8,FALSE) -> 71 | H12: 200
A13: USL | B13: 1.092 | C13: kWh | D13: 750 | E13: 100 | G13: =VLOOKUP(A13,[4]Sheet1!$A$10:$I$22,8,FALSE) -> 364 | H13: 1000
A14: GSd | B14: 1.061 | C14: kW | D14: 0 | E14: 15000 | G14: =VLOOKUP(A14,[4]Sheet1!$A$10:$I$22,8,FALSE) -> 36104 | H14: 175000 | I14: 60 | J14: 117 | K14: =VLOOKUP(A14,[4]Sheet1!$A$10:$I$22,9,FALSE) -> 124 | L14: 500
A15: UGd | B15: 1.05 | C15: kW | D15: 0 | E15: 15000 | G15: =VLOOKUP(A15,[4]Sheet1!$A$10:$I$22,8,FALSE) -> 50525 | H15: 175000 | I15: 60 | J15: 117 | K15: =VLOOKUP(A15,[4]Sheet1!$A$10:$I$22,9,FALSE) -> 135 | L15: 500
A16: Dgen | B16: 1.061 | C16: kW | D16: 0 | E16: 300 | G16: =VLOOKUP(A16,[4]Sheet1!$A$10:$I$22,8,FALSE) -> 1328 | H16: 5000 | I16: 10 | J16: 15 | K16: =VLOOKUP(A16,[4]Sheet1!$A$10:$I$22,9,FALSE) -> 13 | L16: 100
A17: ST | B17: 1.034 | C17: kW | D17: 0 | E17: 200000 | G17: =VLOOKUP(A17,[4]Sheet1!$A$10:$I$22,8,FALSE) -> 1601036 | H17: 4000000 | I17: 500 | J17: 117 | K17: =VLOOKUP(A17,[4]Sheet1!$A$10:$I$22,9,FALSE) -> 3091 | L17: 10000

Sheet Data Pass Through (hidden)
A1: 3. Pass Through Charges
B2: Current Bill | C2: Proposed Bill
A3: Effective Date | B3: 2019-05-01 | C3: 2019-05-01 | D3: TOU % | E3: Notes
A4: R2 Credit | B4: 60.5 | C4: 60.5
A5: Energy (Non-RPP)* | B5: =12.3/100 -> 0.123 | C5: =12.3/100 -> 0.123 | E5: *Average HOEP plus average GA used to approximate Non-RPP Energy Charges (IESO Monthly Market Report Jun 2019)
A6: Energy First Tier | B6: 0.077 | C6: 0.077 | E6: Effective May 1 2019
A7: Energy Second Tier | B7: 0.089 | C7: 0.089 | E7: Effective May 1 2019
A8: TOU-Off Peak | B8: 0.065 | C8: 0.065 | D8: 0.65 | E8: Effective May 1 2019
A9: TOU-Mid Peak | B9: 0.094 | C9: 0.094 | D9: 0.17 | E9: Effective May 1 2019
A10: TOU-On Peak | B10: 0.134 | C10: 0.134 | D10: 0.18 | E10: Effective May 1 2019
A11: Wholesale Market Service Rate (WMS) - not including CBR | B11: 0.003 | C11: 0.003 | E11: Effective May 1 2017, 0.0036 WMSC broken up between WMSC and CBR
A12: Capacity Based Recovery (CBR) - Applicable for Class B Customers | B12: 0.0004 | C12: 0.0004 | E12: Effective May 1 2017, 0.0036 WMSC broken up between WMSC and CBR
A13: Rural Rate Protection Charge | B13: 0.0005 | C13: 0.0005 | E13: RRRP charge reduced from $0.0021/kWh to $0.0003/kWh effective July 1, 2017; reduced to 0.0005 effective jan 1 2019
A14: Ontario Electricity Support Program Charge | B14: 0 | C14: 0 | E14: OESP charge removed for all rate classes effective May 1, 2017. ROW HIDDEN IN BILL IMPACT FILE
A15: Standard Supply Service – Administration Charge (if applicable) | B15: 0.25 | C15: 0.25
A16: Fair Hydro Plan - Distribution Rate Protection Savings* | B16: =IF('Bill Impact Summary'!L6="TOU",0,IF('Bill Impact Summary'!L6="TOU (DRP applied)",B17,"error")) -> 36.86 | C16: =IF('Bill Impact Summary'!L6="TOU",0,IF('Bill Impact Summary'!L6="TOU (DRP applied)",C17,"error")) -> 36.86 | E16: Highlighted cells are FORMULAS; do not overwrite with hard-entered values. Input DRP limit values in row 17 below
A17: DRP limit (applied when selected from Bill Impact Summary) | B17: 36.86 | C17: 36.86 | E17: Make change to FHP DRP limit here, but to apply DRP, must do in Bill Impact Summary sheet cell L6
A18: Smart Metering Entity Charge | B18: 0.57 | C18: 0.57 | E18: Change from 0.79 to 0.57 effective March 1 2018; only for metered energy-billed (UR, R1, R2, SEA, GSE, UGE)
A19: Debt Retirement Charge (DRC) | B19: 0 | C19: 0 | E19: DRC removed from all rate classes Apr 1 2018 ROW HIDDEN IN BILL IMPACT FILE
A21: Customer Attributes - Assumptions
A22: ST customers are assumed to be WMP Class B; exclude NonWMP rider and Standard Supply Service

Sheet Data BI List (hidden)
A1: Template Name | B1: Bill Impact Worksheet Name | C1: Bill Impact Header
A2: BI Template_Energy | B2: BI_UR_Low | C2: 2020 Bill Impacts (Low Consumption Level) - UR
A3: BI Template_Energy | B3: BI_UR_Typical | C3: 2020 Bill Impacts (Typical Consumption Level) - UR
A4: BI Template_Energy | B4: BI_UR_Avg | C4: 2020 Bill Impacts (Average Consumption Level) - UR
A5: BI Template_Energy | B5: BI_UR_High | C5: 2020 Bill Impacts (High Consumption Level) - UR
A6: BI Template_Energy | B6: BI_R1_Low | C6: 2020 Bill Impacts (Low Consumption Level) - R1
A7: BI Template_Energy | B7: BI_R1_Typical | C7: 2020 Bill Impacts (Typical Consumption Level) - R1
A8: BI Template_Energy | B8: BI_R1_Avg | C8: 2020 Bill Impacts (Average Consumption Level) - R1
A9: BI Template_Energy | B9: BI_R1_High | C9: 2020 Bill Impacts (High Consumption Level) - R1
A10: BI Template_Energy | B10: BI_R2_Low | C10: 2020 Bill Impacts (Low Consumption Level) - R2
A11: BI Template_Energy | B11: BI_R2_Typical | C11: 2020 Bill Impacts (Typical Consumption Level) - R2
A12: BI Template_Energy | B12: BI_R2_Avg | C12: 2020 Bill Impacts (Average Consumption Level) - R2
A13: BI Template_Energy | B13: BI_R2_High | C13: 2020 Bill Impacts (High Consumption Level) - R2
A14: BI Template_Energy | B14: BI_Seas_Low | C14: 2020 Bill Impacts (Low Consumption Level) - Seasonal
A15: BI Template_Energy | B15: BI_Seas_Typical | C15: 2020 Bill Impacts (Typical Consumption Level) - Seasonal
A16: BI Template_Energy | B16: BI_Seas_Avg | C16: 2020 Bill Impacts (Average Consumption Level) - Seasonal
A17: BI Template_Energy | B17: BI_Seas_High | C17: 2020 Bill Impacts (High Consumption Level) - Seasonal
A18: BI Template_Energy | B18: BI_GSe_Low | C18: 2020 Bill Impacts (Low Consumption Level) - GSe
A19: BI Template_Energy | B19: BI_GSe_Typical | C19: 2020 Bill Impacts (Typical Consumption Level) - GSe
A20: BI Template_Energy | B20: BI_GSe_Avg | C20: 2020 Bill Impacts (Average Consumption Level) - GSe
A21: BI Template_Energy | B21: BI_GSe_High | C21: 2020 Bill Impacts (High Consumption Level) - GSe
A22: BI Template_Energy | B22: BI_UGe_Low | C22: 2020 Bill Impacts (Low Consumption Level) - UGe
A23: BI Template_Energy | B23: BI_UGe_Typical | C23: 2020 Bill Impacts (Typical Consumption Level) - UGe
A24: BI Template_Energy | B24: BI_UGe_Avg | C24: 2020 Bill Impacts (Average Consumption Level) - UGe
A25: BI Template_Energy | B25: BI_UGe_High | C25: 2020 Bill Impacts (High Consumption Level) - UGe
A26: BI Template_Demand | B26: BI_GSd_Low | C26: 2020 Bill Impacts (Low Consumption Level) - GSd
A27: BI Template_Demand | B27: BI_GSd_Avg | C27: 2020 Bill Impacts (Average Consumption Level) - GSd
A28: BI Template_Demand | B28: BI_GSd_High | C28: 2020 Bill Impacts (High Consumption Level) - GSd
A29: BI Template_Demand | B29: BI_UGd_Low | C29: 2020 Bill Impacts (Low Consumption Level) - UGd
A30: BI Template_Demand | B30: BI_UGd_Avg | C30: 2020 Bill Impacts (Average Consumption Level) - UGd
A31: BI Template_Demand | B31: BI_UGd_High | C31: 2020 Bill Impacts (High Consumption Level) - UGd
A32: BI Template_EnergyUNM | B32: BI_StLgt_Low | C32: 2020 Bill Impacts (Low Consumption Level) - St Lgt
A33: BI Template_EnergyUNM | B33: BI_StLgt_Avg | C33: 2020 Bill Impacts (Average Consumption Level) - St Lgt
A34: BI Template_EnergyUNM | B34: BI_StLgt_High | C34: 2020 Bill Impacts (High Consumption Level) - St Lgt
A35: BI Template_EnergyUNM | B35: BI_SenLgt_Low | C35: 2020 Bill Impacts (Low Consumption Level) - Sen Lgt
A36: BI Template_EnergyUNM | B36: BI_SenLgt_Avg | C36: 2020 Bill Impacts (Average Consumption Level) - Sen Lgt
A37: BI Template_EnergyUNM | B37: BI_SenLgt_High | C37: 2020 Bill Impacts (High Consumption Level) - Sen Lgt
A38: BI Template_EnergyUNM | B38: BI_USL_Low | C38: 2020 Bill Impacts (Low Consumption Level) - USL
A39: BI Template_EnergyUNM | B39: BI_USL_Avg | C39: 2020 Bill Impacts (Average Consumption Level) - USL
A40: BI Template_EnergyUNM | B40: BI_USL_High | C40: 2020 Bill Impacts (High Consumption Level) - USL
A41: BI Template_Demand | B41: BI_Dgen_Low | C41: 2020 Bill Impacts (Low Consumption Level) - Dgen
A42: BI Template_Demand | B42: BI_Dgen_Avg | C42: 2020 Bill Impacts (Average Consumption Level) - Dgen
A43: BI Template_Demand | B43: BI_Dgen_High | C43: 2020 Bill Impacts (High Consumption Level) - Dgen
A44: BI Template_Demand | B44: BI_ST_Low | C44: 2020 Bill Impacts (Low Consumption Level) - ST
A45: BI Template_Demand | B45: BI_ST_Avg | C45: 2020 Bill Impacts (Average Consumption Level) - ST
A46: BI Template_Demand | B46: BI_ST_High | C46: 2020 Bill Impacts (High Consumption Level) - ST

Sheet Data BI Summary (hidden)
A2: Summary Column | B2: Current Total Bill | C2: Change in DX Bill ($) | D2: Change in DX Bill (%) | E2: Change in Total Bill ($) | F2: Change in Total Bill (%)
A3: BI Template_Energy | B3: Total Amount on TOU | C3: Sub-Total: Distribution (excluding pass through) | D3: Sub-Total: Distribution (excluding pass through) | E3: Total Amount on TOU | F3: Total Amount on TOU
A4: BI Template_EnergyUNM | B4: Total Amount on Two-Tier RPP | C4: Sub-Total: Distribution (excluding pass through) | D4: Sub-Total: Distribution (excluding pass through) | E4: Total Amount on Two-Tier RPP | F4: Total Amount on Two-Tier RPP
A5: BI Template_Demand | B5: Total Amount | C5: Sub-Total: Distribution | D5: Sub-Total: Distribution | E5: Total Amount | F5: Total Amount

Sheet Bill Impact Summary (hidden)
A1: Rate Class | B1: Consumption Level | C1: Monthly Consumption (kWh) | D1: Monthly Peak (kW) | E1: BI Worksheet | F1: Template | G1: Current Total Bill | H1: Change in DX Bill ($) | I1: Change in DX Bill (%) | J1: Change in Total Bill ($) | K1: Change in Total Bill (%) | L1: Commodity Price Used | O1: List for Data Validation of cell L6; do not remove
A2: UR | B2: Low | C2: =VLOOKUP(A$2,'Data Billing Quantities'!A:P,MATCH(B2&" kWh",'Data Billing Quantities'!$4:$4,0),FALSE) -> 350 | E2: BI_UR_Low | F2: BI Template_Energy | G2: =VLOOKUP(VLOOKUP($F2,'Data BI Summary'!$A:$F,MATCH(G$1,'Data BI Summary'!$2:$2,0),FALSE),INDIRECT("'"&$E2&"'!"&"$A:$K"),4,FALSE) -> 74.61131738 | H2: =VLOOKUP(VLOOKUP($F2,'Data BI Summary'!$A:$F,MATCH(H$1,'Data BI Summary'!$2:$2,0),FALSE),INDIRECT("'"&$E2&"'!"&"$A:$K"),8,FALSE) -> 1.975 | I2: =VLOOKUP(VLOOKUP($F2,'Data BI Summary'!$A:$F,MATCH(I$1,'Data BI Summary'!$2:$2,0),FALSE),INDIRECT("'"&$E2&"'!"&"$A:$K"),9,FALSE) -> 0.06079729106 | J2: =VLOOKUP(VLOOKUP($F2,'Data BI Summary'!$A:$F,MATCH(J$1,'Data BI Summary'!$2:$2,0),FALSE),INDIRECT("'"&$E2&"'!"&"$A:$K"),8,FALSE) -> 2.26797375 | K2: =VLOOKUP(VLOOKUP($F2,'Data BI Summary'!$A:$F,MATCH(K$1,'Data BI Summary'!$2:$2,0),FALSE),INDIRECT("'"&$E2&"'!"&"$A:$K"),9,FALSE) -> 0.03039718142 | L2: TOU
B3: Typical | C3: =VLOOKUP(A$2,'Data Billing Quantities'!A:P,MATCH(B3&" kWh",'Data Billing Quantities'!$4:$4,0),FALSE) -> 750 | E3: BI_UR_Typical | F3: BI Template_Energy | G3: =VLOOKUP(VLOOKUP($F3,'Data BI Summary'!$A:$F,MATCH(G$1,'Data BI Summary'!$2:$2,0),FALSE),INDIRECT("'"&$E3&"'!"&"$A:$K"),4,FALSE) -> 122.7293944 | H3: =VLOOKUP(VLOOKUP($F3,'Data BI Summary'!$A:$F,MATCH(H$1,'Data BI Summary'!$2:$2,0),FALSE),INDIRECT("'"&$E3&"'!"&"$A:$K"),8,FALSE) -> 0.495 | I3: =VLOOKUP(VLOOKUP($F3,'Data BI Summary'!$A:$F,MATCH(I$1,'Data BI Summary'!$2:$2,0),FALSE),INDIRECT("'"&$E3&"'!"&"$A:$K"),9,FALSE) -> 0.01407649652 | J3: =VLOOKUP(VLOOKUP($F3,'Data BI Summary'!$A:$F,MATCH(J$1,'Data BI Summary'!$2:$2,0),FALSE),INDIRECT("'"&$E3&"'!"&"$A:$K"),8,FALSE) -> 0.93594375 | K3: =VLOOKUP(VLOOKUP($F3,'Data BI Summary'!$A:$F,MATCH(K$1,'Data BI Summary'!$2:$2,0),FALSE),INDIRECT("'"&$E3&"'!"&"$A:$K"),9,FALSE) -> 0.007626076498
B4: Average | C4: =VLOOKUP(A$2,'Data Billing Quantities'!A:P,MATCH(B4&" kWh",'Data Billing Quantities'!$4:$4,0),FALSE) -> 755 | E4: BI_UR_Avg | F4: BI Template_Energy | G4: =VLOOKUP(VLOOKUP($F4,'Data BI Summary'!$A:$F,MATCH(G$1,'Data BI Summary'!$2:$2,0),FALSE),INDIRECT("'"&$E4&"'!"&"$A:$K"),4,FALSE) -> 123.3308703 | H4: =VLOOKUP(VLOOKUP($F4,'Data BI Summary'!$A:$F,MATCH(H$1,'Data BI Summary'!$2:$2,0),FALSE),INDIRECT("'"&$E4&"'!"&"$A:$K"),8,FALSE) -> 0.4765 | I4: =VLOOKUP(VLOOKUP($F4,'Data BI Summary'!$A:$F,MATCH(I$1,'Data BI Summary'!$2:$2,0),FALSE),INDIRECT("'"&$E4&"'!"&"$A:$K"),9,FALSE) -> 0.0135375087 | J4: =VLOOKUP(VLOOKUP($F4,'Data BI Summary'!$A:$F,MATCH(J$1,'Data BI Summary'!$2:$2,0),FALSE),INDIRECT("'"&$E4&"'!"&"$A:$K"),8,FALSE) -> 0.919293375 | K4: =VLOOKUP(VLOOKUP($F4,'Data BI Summary'!$A:$F,MATCH(K$1,'Data BI Summary'!$2:$2,0),FALSE),INDIRECT("'"&$E4&"'!"&"$A:$K"),9,FALSE) -> 0.007453878923
B5: High | C5: =VLOOKUP(A$2,'Data Billing Quantities'!A:P,MATCH(B5&" kWh",'Data Billing Quantities'!$4:$4,0),FALSE) -> 1400 | E5: BI_UR_High | F5: BI Template_Energy | G5: =VLOOKUP(VLOOKUP($F5,'Data BI Summary'!$A:$F,MATCH(G$1,'Data BI Summary'!$2:$2,0),FALSE),INDIRECT("'"&$E5&"'!"&"$A:$K"),4,FALSE) -> 200.9212695 | H5: =VLOOKUP(VLOOKUP($F5,'Data BI Summary'!$A:$F,MATCH(H$1,'Data BI Summary'!$2:$2,0),FALSE),INDIRECT("'"&$E5&"'!"&"$A:$K"),8,FALSE) -> -1.91 | I5: =VLOOKUP(VLOOKUP($F5,'Data BI Summary'!$A:$F,MATCH(I$1,'Data BI Summary'!$2:$2,0),FALSE),INDIRECT("'"&$E5&"'!"&"$A:$K"),9,FALSE) -> -0.04832995951 | J5: =VLOOKUP(VLOOKUP($F5,'Data BI Summary'!$A:$F,MATCH(J$1,'Data BI Summary'!$2:$2,0),FALSE),INDIRECT("'"&$E5&"'!"&"$A:$K"),8,FALSE) -> -1.228605 | K5: =VLOOKUP(VLOOKUP($F5,'Data BI Summary'!$A:$F,MATCH(K$1,'Data BI Summary'!$2:$2,0),FALSE),INDIRECT("'"&$E5&"'!"&"$A:$K"),9,FALSE) -> -0.00611485784
A6: R1 | B6: Low | C6: =VLOOKUP(A$6,'Data Billing Quantities'!A:P,MATCH(B6&" kWh",'Data Billing Quantities'!$4:$4,0),FALSE) -> 400 | E6: BI_R1_Low | F6: BI Template_Energy | G6: =VLOOKUP(VLOOKUP($F6,'Data BI Summary'!$A:$F,MATCH(G$1,'Data BI Summary'!$2:$2,0),FALSE),INDIRECT("'"&$E6&"'!"&"$A:$K"),4,FALSE) -> 84.936516 | H6: =VLOOKUP(VLOOKUP($F6,'Data BI Summary'!$A:$F,MATCH(H$1,'Data BI Summary'!$2:$2,0),FALSE),INDIRECT("'"&$E6&"'!"&"$A:$K"),8,FALSE) -> 0 | I6: =VLOOKUP(VLOOKUP($F6,'Data BI Summary'!$A:$F,MATCH(I$1,'Data BI Summary'!$2:$2,0),FALSE),INDIRECT("'"&$E6&"'!"&"$A:$K"),9,FALSE) -> 0 | J6: =VLOOKUP(VLOOKUP($F6,'Data BI Summary'!$A:$F,MATCH(J$1,'Data BI Summary'!$2:$2,0),FALSE),INDIRECT("'"&$E6&"'!"&"$A:$K"),8,FALSE) -> 0.180768 | K6: =VLOOKUP(VLOOKUP($F6,'Data BI Summary'!$A:$F,MATCH(K$1,'Data BI Summary'!$2:$2,0),FALSE),INDIRECT("'"&$E6&"'!"&"$A:$K"),9,FALSE) -> 0.002128271897 | L6: TOU (DRP applied) | O6: TOU
B7: Typical | C7: =VLOOKUP(A$6,'Data Billing Quantities'!A:P,MATCH(B7&" kWh",'Data Billing Quantities'!$4:$4,0),FALSE) -> 750 | E7: BI_R1_Typical | F7: BI Template_Energy | G7: =VLOOKUP(VLOOKUP($F7,'Data BI Summary'!$A:$F,MATCH(G$1,'Data BI Summary'!$2:$2,0),FALSE),INDIRECT("'"&$E7&"'!"&"$A:$K"),4,FALSE) -> 124.6007175 | H7: =VLOOKUP(VLOOKUP($F7,'Data BI Summary'!$A:$F,MATCH(H$1,'Data BI Summary'!$2:$2,0),FALSE),INDIRECT("'"&$E7&"'!"&"$A:$K"),8,FALSE) -> 0 | I7: =VLOOKUP(VLOOKUP($F7,'Data BI Summary'!$A:$F,MATCH(I$1,'Data BI Summary'!$2:$2,0),FALSE),INDIRECT("'"&$E7&"'!"&"$A:$K"),9,FALSE) -> 0 | J7: =VLOOKUP(VLOOKUP($F7,'Data BI Summary'!$A:$F,MATCH(J$1,'Data BI Summary'!$2:$2,0),FALSE),INDIRECT("'"&$E7&"'!"&"$A:$K"),8,FALSE) -> 0.33894 | K7: =VLOOKUP(VLOOKUP($F7,'Data BI Summary'!$A:$F,MATCH(K$1,'Data BI Summary'!$2:$2,0),FALSE),INDIRECT("'"&$E7&"'!"&"$A:$K"),9,FALSE) -> 0.002720209055 | O7: TOU (DRP applied)
B8: Average | C8: =VLOOKUP(A$6,'Data Billing Quantities'!A:P,MATCH(B8&" kWh",'Data Billing Quantities'!$4:$4,0),FALSE) -> 920 | E8: BI_R1_Avg | F8: BI Template_Energy | G8: =VLOOKUP(VLOOKUP($F8,'Data BI Summary'!$A:$F,MATCH(G$1,'Data BI Summary'!$2:$2,0),FALSE),INDIRECT("'"&$E8&"'!"&"$A:$K"),4,FALSE) -> 143.8661868 | H8: =VLOOKUP(VLOOKUP($F8,'Data BI Summary'!$A:$F,MATCH(H$1,'Data BI Summary'!$2:$2,0),FALSE),INDIRECT("'"&$E8&"'!"&"$A:$K"),8,FALSE) -> 0 | I8: =VLOOKUP(VLOOKUP($F8,'Data BI Summary'!$A:$F,MATCH(I$1,'Data BI Summary'!$2:$2,0),FALSE),INDIRECT("'"&$E8&"'!"&"$A:$K"),9,FALSE) -> 0 | J8: =VLOOKUP(VLOOKUP($F8,'Data BI Summary'!$A:$F,MATCH(J$1,'Data BI Summary'!$2:$2,0),FALSE),INDIRECT("'"&$E8&"'!"&"$A:$K"),8,FALSE) -> 0.4157664 | K8: =VLOOKUP(VLOOKUP($F8,'Data BI Summary'!$A:$F,MATCH(K$1,'Data BI Summary'!$2:$2,0),FALSE),INDIRECT("'"&$E8&"'!"&"$A:$K"),9,FALSE) -> 0.002889952179
B9: High | C9: =VLOOKUP(A$6,'Data Billing Quantities'!A:P,MATCH(B9&" kWh",'Data Billing Quantities'!$4:$4,0),FALSE) -> 1800 | E9: BI_R1_High | F9: BI Template_Energy | G9: =VLOOKUP(VLOOKUP($F9,'Data BI Summary'!$A:$F,MATCH(G$1,'Data BI Summary'!$2:$2,0),FALSE),INDIRECT("'"&$E9&"'!"&"$A:$K"),4,FALSE) -> 243.593322 | H9: =VLOOKUP(VLOOKUP($F9,'Data BI Summary'!$A:$F,MATCH(H$1,'Data BI Summary'!$2:$2,0),FALSE),INDIRECT("'"&$E9&"'!"&"$A:$K"),8,FALSE) -> 0 | I9: =VLOOKUP(VLOOKUP($F9,'Data BI Summary'!$A:$F,MATCH(I$1,'Data BI Summary'!$2:$2,0),FALSE),INDIRECT("'"&$E9&"'!"&"$A:$K"),9,FALSE) -> 0 | J9: =VLOOKUP(VLOOKUP($F9,'Data BI Summary'!$A:$F,MATCH(J$1,'Data BI Summary'!$2:$2,0),FALSE),INDIRECT("'"&$E9&"'!"&"$A:$K"),8,FALSE) -> 0.813456 | K9: =VLOOKUP(VLOOKUP($F9,'Data BI Summary'!$A:$F,MATCH(K$1,'Data BI Summary'!$2:$2,0),FALSE),INDIRECT("'"&$E9&"'!"&"$A:$K"),9,FALSE) -> 0.00333940189
A10: R2 | B10: Low | C10: =VLOOKUP(A$10,'Data Billing Quantities'!A:P,MATCH(B10&" kWh",'Data Billing Quantities'!$4:$4,0),FALSE) -> 450 | E10: BI_R2_Low | F10: BI Template_Energy | G10: =VLOOKUP(VLOOKUP($F10,'Data BI Summary'!$A:$F,MATCH(G$1,'Data BI Summary'!$2:$2,0),FALSE),INDIRECT("'"&$E10&"'!"&"$A:$K"),4,FALSE) -> 91.44406687 | H10: =VLOOKUP(VLOOKUP($F10,'Data BI Summary'!$A:$F,MATCH(H$1,'Data BI Summary'!$2:$2,0),FALSE),INDIRECT("'"&$E10&"'!"&"$A:$K"),8,FALSE) -> 0 | I10: =VLOOKUP(VLOOKUP($F10,'Data BI Summary'!$A:$F,MATCH(I$1,'Data BI Summary'!$2:$2,0),FALSE),INDIRECT("'"&$E10&"'!"&"$A:$K"),9,FALSE) -> 0 | J10: =VLOOKUP(VLOOKUP($F10,'Data BI Summary'!$A:$F,MATCH(J$1,'Data BI Summary'!$2:$2,0),FALSE),INDIRECT("'"&$E10&"'!"&"$A:$K"),8,FALSE) -> 0.15663375 | K10: =VLOOKUP(VLOOKUP($F10,'Data BI Summary'!$A:$F,MATCH(K$1,'Data BI Summary'!$2:$2,0),FALSE),INDIRECT("'"&$E10&"'!"&"$A:$K"),9,FALSE) -> 0.001712891337 | L10: =L6 -> TOU (DRP applied)
B11: Typical | C11: =VLOOKUP(A$10,'Data Billing Quantities'!A:P,MATCH(B11&" kWh",'Data Billing Quantities'!$4:$4,0),FALSE) -> 750 | E11: BI_R2_Typical | F11: BI Template_Energy | G11: =VLOOKUP(VLOOKUP($F11,'Data BI Summary'!$A:$F,MATCH(G$1,'Data BI Summary'!$2:$2,0),FALSE),INDIRECT("'"&$E11&"'!"&"$A:$K"),4,FALSE) -> 126.0517781 | H11: =VLOOKUP(VLOOKUP($F11,'Data BI Summary'!$A:$F,MATCH(H$1,'Data BI Summary'!$2:$2,0),FALSE),INDIRECT("'"&$E11&"'!"&"$A:$K"),8,FALSE) -> 0 | I11: =VLOOKUP(VLOOKUP($F11,'Data BI Summary'!$A:$F,MATCH(I$1,'Data BI Summary'!$2:$2,0),FALSE),INDIRECT("'"&$E11&"'!"&"$A:$K"),9,FALSE) -> 0 | J11: =VLOOKUP(VLOOKUP($F11,'Data BI Summary'!$A:$F,MATCH(J$1,'Data BI Summary'!$2:$2,0),FALSE),INDIRECT("'"&$E11&"'!"&"$A:$K"),8,FALSE) -> 0.26105625 | K11: =VLOOKUP(VLOOKUP($F11,'Data BI Summary'!$A:$F,MATCH(K$1,'Data BI Summary'!$2:$2,0),FALSE),INDIRECT("'"&$E11&"'!"&"$A:$K"),9,FALSE) -> 0.002071023939
B12: Average | C12: =VLOOKUP(A$10,'Data Billing Quantities'!A:P,MATCH(B12&" kWh",'Data Billing Quantities'!$4:$4,0),FALSE) -> 1152 | E12: BI_R2_Avg | F12: BI Template_Energy | G12: =VLOOKUP(VLOOKUP($F12,'Data BI Summary'!$A:$F,MATCH(G$1,'Data BI Summary'!$2:$2,0),FALSE),INDIRECT("'"&$E12&"'!"&"$A:$K"),4,FALSE) -> 172.4261112 | H12: =VLOOKUP(VLOOKUP($F12,'Data BI Summary'!$A:$F,MATCH(H$1,'Data BI Summary'!$2:$2,0),FALSE),INDIRECT("'"&$E12&"'!"&"$A:$K"),8,FALSE) -> 0 | I12: =VLOOKUP(VLOOKUP($F12,'Data BI Summary'!$A:$F,MATCH(I$1,'Data BI Summary'!$2:$2,0),FALSE),INDIRECT("'"&$E12&"'!"&"$A:$K"),9,FALSE) -> 0 | J12: =VLOOKUP(VLOOKUP($F12,'Data BI Summary'!$A:$F,MATCH(J$1,'Data BI Summary'!$2:$2,0),FALSE),INDIRECT("'"&$E12&"'!"&"$A:$K"),8,FALSE) -> 0.4009824 | K12: =VLOOKUP(VLOOKUP($F12,'Data BI Summary'!$A:$F,MATCH(K$1,'Data BI Summary'!$2:$2,0),FALSE),INDIRECT("'"&$E12&"'!"&"$A:$K"),9,FALSE) -> 0.002325531772
B13: High | C13: =VLOOKUP(A$10,'Data Billing Quantities'!A:P,MATCH(B13&" kWh",'Data Billing Quantities'!$4:$4,0),FALSE) -> 2300 | E13: BI_R2_High | F13: BI Template_Energy | G13: =VLOOKUP(VLOOKUP($F13,'Data BI Summary'!$A:$F,MATCH(G$1,'Data BI Summary'!$2:$2,0),FALSE),INDIRECT("'"&$E13&"'!"&"$A:$K"),4,FALSE) -> 304.8582862 | H13: =VLOOKUP(VLOOKUP($F13,'Data BI Summary'!$A:$F,MATCH(H$1,'Data BI Summary'!$2:$2,0),FALSE),INDIRECT("'"&$E13&"'!"&"$A:$K"),8,FALSE) -> 0 | I13: =VLOOKUP(VLOOKUP($F13,'Data BI Summary'!$A:$F,MATCH(I$1,'Data BI Summary'!$2:$2,0),FALSE),INDIRECT("'"&$E13&"'!"&"$A:$K"),9,FALSE) -> 0 | J13: =VLOOKUP(VLOOKUP($F13,'Data BI Summary'!$A:$F,MATCH(J$1,'Data BI Summary'!$2:$2,0),FALSE),INDIRECT("'"&$E13&"'!"&"$A:$K"),8,FALSE) -> 0.8005725 | K13: =VLOOKUP(VLOOKUP($F13,'Data BI Summary'!$A:$F,MATCH(K$1,'Data BI Summary'!$2:$2,0),FALSE),INDIRECT("'"&$E13&"'!"&"$A:$K"),9,FALSE) -> 0.002626048023
A14: Seasonal | B14: Low | C14: =VLOOKUP(A$14,'Data Billing Quantities'!A:P,MATCH(B14&" kWh",'Data Billing Quantities'!$4:$4,0),FALSE) -> 50 | E14: BI_Seas_Low | F14: BI Template_Energy | G14: =VLOOKUP(VLOOKUP($F14,'Data BI Summary'!$A:$F,MATCH(G$1,'Data BI Summary'!$2:$2,0),FALSE),INDIRECT("'"&$E14&"'!"&"$A:$K"),4,FALSE) -> 52.60332 | H14: =VLOOKUP(VLOOKUP($F14,'Data BI Summary'!$A:$F,MATCH(H$1,'Data BI Summary'!$2:$2,0),FALSE),INDIRECT("'"&$E14&"'!"&"$A:$K"),8,FALSE) -> 4.715 | I14: =VLOOKUP(VLOOKUP($F14,'Data BI Summary'!$A:$F,MATCH(I$1,'Data BI Summary'!$2:$2,0),FALSE),INDIRECT("'"&$E14&"'!"&"$A:$K"),9,FALSE) -> 0.1075133964 | J14: =VLOOKUP(VLOOKUP($F14,'Data BI Summary'!$A:$F,MATCH(J$1,'Data BI Summary'!$2:$2,0),FALSE),INDIRECT("'"&$E14&"'!"&"$A:$K"),8,FALSE) -> 4.968138 | K14: =VLOOKUP(VLOOKUP($F14,'Data BI Summary'!$A:$F,MATCH(K$1,'Data BI Summary'!$2:$2,0),FALSE),INDIRECT("'"&$E14&"'!"&"$A:$K"),9,FALSE) -> 0.09444533159 | L14: TOU
B15: Average | C15: =VLOOKUP(A$14,'Data Billing Quantities'!A:P,MATCH(B15&" kWh",'Data Billing Quantities'!$4:$4,0),FALSE) -> 352 | E15: BI_Seas_Avg | F15: BI Template_Energy | G15: =VLOOKUP(VLOOKUP($F15,'Data BI Summary'!$A:$F,MATCH(G$1,'Data BI Summary'!$2:$2,0),FALSE),INDIRECT("'"&$E15&"'!"&"$A:$K"),4,FALSE) -> 110.1785328 | H15: =VLOOKUP(VLOOKUP($F15,'Data BI Summary'!$A:$F,MATCH(H$1,'Data BI Summary'!$2:$2,0),FALSE),INDIRECT("'"&$E15&"'!"&"$A:$K"),8,FALSE) -> 0.8796 | I15: =VLOOKUP(VLOOKUP($F15,'Data BI Summary'!$A:$F,MATCH(I$1,'Data BI Summary'!$2:$2,0),FALSE),INDIRECT("'"&$E15&"'!"&"$A:$K"),9,FALSE) -> 0.0133411799 | J15: =VLOOKUP(VLOOKUP($F15,'Data BI Summary'!$A:$F,MATCH(J$1,'Data BI Summary'!$2:$2,0),FALSE),INDIRECT("'"&$E15&"'!"&"$A:$K"),8,FALSE) -> 1.04599152 | K15: =VLOOKUP(VLOOKUP($F15,'Data BI Summary'!$A:$F,MATCH(K$1,'Data BI Summary'!$2:$2,0),FALSE),INDIRECT("'"&$E15&"'!"&"$A:$K"),9,FALSE) -> 0.009493605455
B16: High | C16: =VLOOKUP(A$14,'Data Billing Quantities'!A:P,MATCH(B16&" kWh",'Data Billing Quantities'!$4:$4,0),FALSE) -> 1000 | E16: BI_Seas_High | F16: BI Template_Energy | G16: =VLOOKUP(VLOOKUP($F16,'Data BI Summary'!$A:$F,MATCH(G$1,'Data BI Summary'!$2:$2,0),FALSE),INDIRECT("'"&$E16&"'!"&"$A:$K"),4,FALSE) -> 233.7174 | H16: =VLOOKUP(VLOOKUP($F16,'Data BI Summary'!$A:$F,MATCH(H$1,'Data BI Summary'!$2:$2,0),FALSE),INDIRECT("'"&$E16&"'!"&"$A:$K"),8,FALSE) -> -7.35 | I16: =VLOOKUP(VLOOKUP($F16,'Data BI Summary'!$A:$F,MATCH(I$1,'Data BI Summary'!$2:$2,0),FALSE),INDIRECT("'"&$E16&"'!"&"$A:$K"),9,FALSE) -> -0.06487202118 | J16: =VLOOKUP(VLOOKUP($F16,'Data BI Summary'!$A:$F,MATCH(J$1,'Data BI Summary'!$2:$2,0),FALSE),INDIRECT("'"&$E16&"'!"&"$A:$K"),8,FALSE) -> -7.36974 | K16: =VLOOKUP(VLOOKUP($F16,'Data BI Summary'!$A:$F,MATCH(K$1,'Data BI Summary'!$2:$2,0),FALSE),INDIRECT("'"&$E16&"'!"&"$A:$K"),9,FALSE) -> -0.03153269718
A17: GSe | B17: Low | C17: =VLOOKUP(A$17,'Data Billing Quantities'!A:P,MATCH(B17&" kWh",'Data Billing Quantities'!$4:$4,0),FALSE) -> 1000 | E17: BI_GSe_Low | F17: BI Template_Energy | G17: =VLOOKUP(VLOOKUP($F17,'Data BI Summary'!$A:$F,MATCH(G$1,'Data BI Summary'!$2:$2,0),FALSE),INDIRECT("'"&$E17&"'!"&"$A:$K"),4,FALSE) -> 213.0072 | H17: =VLOOKUP(VLOOKUP($F17,'Data BI Summary'!$A:$F,MATCH(H$1,'Data BI Summary'!$2:$2,0),FALSE),INDIRECT("'"&$E17&"'!"&"$A:$K"),8,FALSE) -> 1.97 | I17: =VLOOKUP(VLOOKUP($F17,'Data BI Summary'!$A:$F,MATCH(I$1,'Data BI Summary'!$2:$2,0),FALSE),INDIRECT("'"&$E17&"'!"&"$A:$K"),9,FALSE) -> 0.02075650616 | J17: =VLOOKUP(VLOOKUP($F17,'Data BI Summary'!$A:$F,MATCH(J$1,'Data BI Summary'!$2:$2,0),FALSE),INDIRECT("'"&$E17&"'!"&"$A:$K"),8,FALSE) -> 2.41374 | K17: =VLOOKUP(VLOOKUP($F17,'Data BI Summary'!$A:$F,MATCH(K$1,'Data BI Summary'!$2:$2,0),FALSE),INDIRECT("'"&$E17&"'!"&"$A:$K"),9,FALSE) -> 0.01133172963 | L17: TOU
B18: Typical | C18: =VLOOKUP(A$17,'Data Billing Quantities'!A:P,MATCH(B18&" kWh",'Data Billing Quantities'!$4:$4,0),FALSE) -> 2000 | E18: BI_GSe_Typical | F18: BI Template_Energy | G18: =VLOOKUP(VLOOKUP($F18,'Data BI Summary'!$A:$F,MATCH(G$1,'Data BI Summary'!$2:$2,0),FALSE),INDIRECT("'"&$E18&"'!"&"$A:$K"),4,FALSE) -> 389.9679 | H18: =VLOOKUP(VLOOKUP($F18,'Data BI Summary'!$A:$F,MATCH(H$1,'Data BI Summary'!$2:$2,0),FALSE),INDIRECT("'"&$E18&"'!"&"$A:$K"),8,FALSE) -> 3.57 | I18: =VLOOKUP(VLOOKUP($F18,'Data BI Summary'!$A:$F,MATCH(I$1,'Data BI Summary'!$2:$2,0),FALSE),INDIRECT("'"&$E18&"'!"&"$A:$K"),9,FALSE) -> 0.02283922974 | J18: =VLOOKUP(VLOOKUP($F18,'Data BI Summary'!$A:$F,MATCH(J$1,'Data BI Summary'!$2:$2,0),FALSE),INDIRECT("'"&$E18&"'!"&"$A:$K"),8,FALSE) -> 4.43898 | K18: =VLOOKUP(VLOOKUP($F18,'Data BI Summary'!$A:$F,MATCH(K$1,'Data BI Summary'!$2:$2,0),FALSE),INDIRECT("'"&$E18&"'!"&"$A:$K"),9,FALSE) -> 0.0113829369
B19: Average | C19: =VLOOKUP(A$17,'Data Billing Quantities'!A:P,MATCH(B19&" kWh",'Data Billing Quantities'!$4:$4,0),FALSE) -> 1982 | E19: BI_GSe_Avg | F19: BI Template_Energy | G19: =VLOOKUP(VLOOKUP($F19,'Data BI Summary'!$A:$F,MATCH(G$1,'Data BI Summary'!$2:$2,0),FALSE),INDIRECT("'"&$E19&"'!"&"$A:$K"),4,FALSE) -> 386.7826074 | H19: =VLOOKUP(VLOOKUP($F19,'Data BI Summary'!$A:$F,MATCH(H$1,'Data BI Summary'!$2:$2,0),FALSE),INDIRECT("'"&$E19&"'!"&"$A:$K"),8,FALSE) -> 3.5412 | I19: =VLOOKUP(VLOOKUP($F19,'Data BI Summary'!$A:$F,MATCH(I$1,'Data BI Summary'!$2:$2,0),FALSE),INDIRECT("'"&$E19&"'!"&"$A:$K"),9,FALSE) -> 0.02281630465 | J19: =VLOOKUP(VLOOKUP($F19,'Data BI Summary'!$A:$F,MATCH(J$1,'Data BI Summary'!$2:$2,0),FALSE),INDIRECT("'"&$E19&"'!"&"$A:$K"),8,FALSE) -> 4.40252568 | K19: =VLOOKUP(VLOOKUP($F19,'Data BI Summary'!$A:$F,MATCH(K$1,'Data BI Summary'!$2:$2,0),FALSE),INDIRECT("'"&$E19&"'!"&"$A:$K"),9,FALSE) -> 0.01138242929
B20: High | C20: =VLOOKUP(A$17,'Data Billing Quantities'!A:P,MATCH(B20&" kWh",'Data Billing Quantities'!$4:$4,0),FALSE) -> 15000 | E20: BI_GSe_High | F20: BI Template_Energy | G20: =VLOOKUP(VLOOKUP($F20,'Data BI Summary'!$A:$F,MATCH(G$1,'Data BI Summary'!$2:$2,0),FALSE),INDIRECT("'"&$E20&"'!"&"$A:$K"),4,FALSE) -> 2690.457 | H20: =VLOOKUP(VLOOKUP($F20,'Data BI Summary'!$A:$F,MATCH(H$1,'Data BI Summary'!$2:$2,0),FALSE),INDIRECT("'"&$E20&"'!"&"$A:$K"),8,FALSE) -> 24.37 | I20: =VLOOKUP(VLOOKUP($F20,'Data BI Summary'!$A:$F,MATCH(I$1,'Data BI Summary'!$2:$2,0),FALSE),INDIRECT("'"&$E20&"'!"&"$A:$K"),9,FALSE) -> 0.0255314245 | J20: =VLOOKUP(VLOOKUP($F20,'Data BI Summary'!$A:$F,MATCH(J$1,'Data BI Summary'!$2:$2,0),FALSE),INDIRECT("'"&$E20&"'!"&"$A:$K"),8,FALSE) -> 30.7671 | K20: =VLOOKUP(VLOOKUP($F20,'Data BI Summary'!$A:$F,MATCH(K$1,'Data BI Summary'!$2:$2,0),FALSE),INDIRECT("'"&$E20&"'!"&"$A:$K"),9,FALSE) -> 0.01143564086
A21: UGe | B21: Low | C21: =VLOOKUP(A$21,'Data Billing Quantities'!A:P,MATCH(B21&" kWh",'Data Billing Quantities'!$4:$4,0),FALSE) -> 1000 | E21: BI_UGe_Low | F21: BI Template_Energy | G21: =VLOOKUP(VLOOKUP($F21,'Data BI Summary'!$A:$F,MATCH(G$1,'Data BI Summary'!$2:$2,0),FALSE),INDIRECT("'"&$E21&"'!"&"$A:$K"),4,FALSE) -> 168.1674225 | H21: =VLOOKUP(VLOOKUP($F21,'Data BI Summary'!$A:$F,MATCH(H$1,'Data BI Summary'!$2:$2,0),FALSE),INDIRECT("'"&$E21&"'!"&"$A:$K"),8,FALSE) -> 0.96 | I21: =VLOOKUP(VLOOKUP($F21,'Data BI Summary'!$A:$F,MATCH(I$1,'Data BI Summary'!$2:$2,0),FALSE),INDIRECT("'"&$E21&"'!"&"$A:$K"),9,FALSE) -> 0.01764705882 | J21: =VLOOKUP(VLOOKUP($F21,'Data BI Summary'!$A:$F,MATCH(J$1,'Data BI Summary'!$2:$2,0),FALSE),INDIRECT("'"&$E21&"'!"&"$A:$K"),8,FALSE) -> 1.344105 | K21: =VLOOKUP(VLOOKUP($F21,'Data BI Summary'!$A:$F,MATCH(K$1,'Data BI Summary'!$2:$2,0),FALSE),INDIRECT("'"&$E21&"'!"&"$A:$K"),9,FALSE) -> 0.007992659815 | L21: TOU
B22: Typical | C22: =VLOOKUP(A$21,'Data Billing Quantities'!A:P,MATCH(B22&" kWh",'Data Billing Quantities'!$4:$4,0),FALSE) -> 2000 | E22: BI_UGe_Typical | F22: BI Template_Energy | G22: =VLOOKUP(VLOOKUP($F22,'Data BI Summary'!$A:$F,MATCH(G$1,'Data BI Summary'!$2:$2,0),FALSE),INDIRECT("'"&$E22&"'!"&"$A:$K"),4,FALSE) -> 309.118845 | H22: =VLOOKUP(VLOOKUP($F22,'Data BI Summary'!$A:$F,MATCH(H$1,'Data BI Summary'!$2:$2,0),FALSE),INDIRECT("'"&$E22&"'!"&"$A:$K"),8,FALSE) -> 1.56 | I22: =VLOOKUP(VLOOKUP($F22,'Data BI Summary'!$A:$F,MATCH(I$1,'Data BI Summary'!$2:$2,0),FALSE),INDIRECT("'"&$E22&"'!"&"$A:$K"),9,FALSE) -> 0.01863799283 | J22: =VLOOKUP(VLOOKUP($F22,'Data BI Summary'!$A:$F,MATCH(J$1,'Data BI Summary'!$2:$2,0),FALSE),INDIRECT("'"&$E22&"'!"&"$A:$K"),8,FALSE) -> 2.31021 | K22: =VLOOKUP(VLOOKUP($F22,'Data BI Summary'!$A:$F,MATCH(K$1,'Data BI Summary'!$2:$2,0),FALSE),INDIRECT("'"&$E22&"'!"&"$A:$K"),9,FALSE) -> 0.007473533359
B23: Average | C23: =VLOOKUP(A$21,'Data Billing Quantities'!A:P,MATCH(B23&" kWh",'Data Billing Quantities'!$4:$4,0),FALSE) -> 2759 | E23: BI_UGe_Avg | F23: BI Template_Energy | G23: =VLOOKUP(VLOOKUP($F23,'Data BI Summary'!$A:$F,MATCH(G$1,'Data BI Summary'!$2:$2,0),FALSE),INDIRECT("'"&$E23&"'!"&"$A:$K"),4,FALSE) -> 416.1009747 | H23: =VLOOKUP(VLOOKUP($F23,'Data BI Summary'!$A:$F,MATCH(H$1,'Data BI Summary'!$2:$2,0),FALSE),INDIRECT("'"&$E23&"'!"&"$A:$K"),8,FALSE) -> 2.0154 | I23: =VLOOKUP(VLOOKUP($F23,'Data BI Summary'!$A:$F,MATCH(I$1,'Data BI Summary'!$2:$2,0),FALSE),INDIRECT("'"&$E23&"'!"&"$A:$K"),9,FALSE) -> 0.01902420928 | J23: =VLOOKUP(VLOOKUP($F23,'Data BI Summary'!$A:$F,MATCH(J$1,'Data BI Summary'!$2:$2,0),FALSE),INDIRECT("'"&$E23&"'!"&"$A:$K"),8,FALSE) -> 3.043483695 | K23: =VLOOKUP(VLOOKUP($F23,'Data BI Summary'!$A:$F,MATCH(K$1,'Data BI Summary'!$2:$2,0),FALSE),INDIRECT("'"&$E23&"'!"&"$A:$K"),9,FALSE) -> 0.007314291194
B24: High | C24: =VLOOKUP(A$21,'Data Billing Quantities'!A:P,MATCH(B24&" kWh",'Data Billing Quantities'!$4:$4,0),FALSE) -> 15000 | E24: BI_UGe_High | F24: BI Template_Energy | G24: =VLOOKUP(VLOOKUP($F24,'Data BI Summary'!$A:$F,MATCH(G$1,'Data BI Summary'!$2:$2,0),FALSE),INDIRECT("'"&$E24&"'!"&"$A:$K"),4,FALSE) -> 2141.487337 | H24: =VLOOKUP(VLOOKUP($F24,'Data BI Summary'!$A:$F,MATCH(H$1,'Data BI Summary'!$2:$2,0),FALSE),INDIRECT("'"&$E24&"'!"&"$A:$K"),8,FALSE) -> 9.36 | I24: =VLOOKUP(VLOOKUP($F24,'Data BI Summary'!$A:$F,MATCH(I$1,'Data BI Summary'!$2:$2,0),FALSE),INDIRECT("'"&$E24&"'!"&"$A:$K"),9,FALSE) -> 0.02014636246 | J24: =VLOOKUP(VLOOKUP($F24,'Data BI Summary'!$A:$F,MATCH(J$1,'Data BI Summary'!$2:$2,0),FALSE),INDIRECT("'"&$E24&"'!"&"$A:$K"),8,FALSE) -> 14.869575 | K24: =VLOOKUP(VLOOKUP($F24,'Data BI Summary'!$A:$F,MATCH(K$1,'Data BI Summary'!$2:$2,0),FALSE),INDIRECT("'"&$E24&"'!"&"$A:$K"),9,FALSE) -> 0.006943573627
A25: GSd | B25: Low | C25: =VLOOKUP(A$25,'Data Billing Quantities'!A:P,MATCH(B25&" kWh",'Data Billing Quantities'!$4:$4,0),FALSE) -> 15000 | D25: =VLOOKUP(A$25,'Data Billing Quantities'!A:P,MATCH(B25&" kW",'Data Billing Quantities'!$4:$4,0),FALSE) -> 60 | E25: BI_GSd_Low | F25: BI Template_Demand | G25: =VLOOKUP(VLOOKUP($F25,'Data BI Summary'!$A:$F,MATCH(G$1,'Data BI Summary'!$2:$2,0),FALSE),INDIRECT("'"&$E25&"'!"&"$A:$K"),4,FALSE) -> 3740.570635 | H25: =VLOOKUP(VLOOKUP($F25,'Data BI Summary'!$A:$F,MATCH(H$1,'Data BI Summary'!$2:$2,0),FALSE),INDIRECT("'"&$E25&"'!"&"$A:$K"),8,FALSE) -> 24.952 | I25: =VLOOKUP(VLOOKUP($F25,'Data BI Summary'!$A:$F,MATCH(I$1,'Data BI Summary'!$2:$2,0),FALSE),INDIRECT("'"&$E25&"'!"&"$A:$K"),9,FALSE) -> 0.02319407469 | J25: =VLOOKUP(VLOOKUP($F25,'Data BI Summary'!$A:$F,MATCH(J$1,'Data BI Summary'!$2:$2,0),FALSE),INDIRECT("'"&$E25&"'!"&"$A:$K"),8,FALSE) -> 34.88762 | K25: =VLOOKUP(VLOOKUP($F25,'Data BI Summary'!$A:$F,MATCH(K$1,'Data BI Summary'!$2:$2,0),FALSE),INDIRECT("'"&$E25&"'!"&"$A:$K"),9,FALSE) -> 0.009326817591 | L25: Non-RPP
B26: Average | C26: =VLOOKUP(A$25,'Data Billing Quantities'!A:P,MATCH(B26&" kWh",'Data Billing Quantities'!$4:$4,0),FALSE) -> 36104 | D26: =VLOOKUP(A$25,'Data Billing Quantities'!A:P,MATCH(B26&" kW",'Data Billing Quantities'!$4:$4,0),FALSE) -> 124 | E26: BI_GSd_Avg | F26: BI Template_Demand | G26: =VLOOKUP(VLOOKUP($F26,'Data BI Summary'!$A:$F,MATCH(G$1,'Data BI Summary'!$2:$2,0),FALSE),INDIRECT("'"&$E26&"'!"&"$A:$K"),4,FALSE) -> 8329.608159 | H26: =VLOOKUP(VLOOKUP($F26,'Data BI Summary'!$A:$F,MATCH(H$1,'Data BI Summary'!$2:$2,0),FALSE),INDIRECT("'"&$E26&"'!"&"$A:$K"),8,FALSE) -> 50.5648 | I26: =VLOOKUP(VLOOKUP($F26,'Data BI Summary'!$A:$F,MATCH(I$1,'Data BI Summary'!$2:$2,0),FALSE),INDIRECT("'"&$E26&"'!"&"$A:$K"),9,FALSE) -> 0.02446838574 | J26: =VLOOKUP(VLOOKUP($F26,'Data BI Summary'!$A:$F,MATCH(J$1,'Data BI Summary'!$2:$2,0),FALSE),INDIRECT("'"&$E26&"'!"&"$A:$K"),8,FALSE) -> 70.968068 | K26: =VLOOKUP(VLOOKUP($F26,'Data BI Summary'!$A:$F,MATCH(K$1,'Data BI Summary'!$2:$2,0),FALSE),INDIRECT("'"&$E26&"'!"&"$A:$K"),9,FALSE) -> 0.008519976768
B27: High | C27: =VLOOKUP(A$25,'Data Billing Quantities'!A:P,MATCH(B27&" kWh",'Data Billing Quantities'!$4:$4,0),FALSE) -> 175000 | D27: =VLOOKUP(A$25,'Data Billing Quantities'!A:P,MATCH(B27&" kW",'Data Billing Quantities'!$4:$4,0),FALSE) -> 500 | E27: BI_GSd_High | F27: BI Template_Demand | G27: =VLOOKUP(VLOOKUP($F27,'Data BI Summary'!$A:$F,MATCH(G$1,'Data BI Summary'!$2:$2,0),FALSE),INDIRECT("'"&$E27&"'!"&"$A:$K"),4,FALSE) -> 37445.79027 | H27: =VLOOKUP(VLOOKUP($F27,'Data BI Summary'!$A:$F,MATCH(H$1,'Data BI Summary'!$2:$2,0),FALSE),INDIRECT("'"&$E27&"'!"&"$A:$K"),8,FALSE) -> 201.04 | I27: =VLOOKUP(VLOOKUP($F27,'Data BI Summary'!$A:$F,MATCH(I$1,'Data BI Summary'!$2:$2,0),FALSE),INDIRECT("'"&$E27&"'!"&"$A:$K"),9,FALSE) -> 0.02581652597 | J27: =VLOOKUP(VLOOKUP($F27,'Data BI Summary'!$A:$F,MATCH(J$1,'Data BI Summary'!$2:$2,0),FALSE),INDIRECT("'"&$E27&"'!"&"$A:$K"),8,FALSE) -> 282.9407 | K27: =VLOOKUP(VLOOKUP($F27,'Data BI Summary'!$A:$F,MATCH(K$1,'Data BI Summary'!$2:$2,0),FALSE),INDIRECT("'"&$E27&"'!"&"$A:$K"),9,FALSE) -> 0.007556008243
A28: UGd | B28: Low | C28: =VLOOKUP(A$28,'Data Billing Quantities'!A:P,MATCH(B28&" kWh",'Data Billing Quantities'!$4:$4,0),FALSE) -> 15000 | D28: =VLOOKUP(A$28,'Data Billing Quantities'!A:P,MATCH(B28&" kW",'Data Billing Quantities'!$4:$4,0),FALSE) -> 60 | E28: BI_UGd_Low | F28: BI Template_Demand | G28: =VLOOKUP(VLOOKUP($F28,'Data BI Summary'!$A:$F,MATCH(G$1,'Data BI Summary'!$2:$2,0),FALSE),INDIRECT("'"&$E28&"'!"&"$A:$K"),4,FALSE) -> 3250.63145 | H28: =VLOOKUP(VLOOKUP($F28,'Data BI Summary'!$A:$F,MATCH(H$1,'Data BI Summary'!$2:$2,0),FALSE),INDIRECT("'"&$E28&"'!"&"$A:$K"),8,FALSE) -> 14.072 | I28: =VLOOKUP(VLOOKUP($F28,'Data BI Summary'!$A:$F,MATCH(I$1,'Data BI Summary'!$2:$2,0),FALSE),INDIRECT("'"&$E28&"'!"&"$A:$K"),9,FALSE) -> 0.02330603917 | J28: =VLOOKUP(VLOOKUP($F28,'Data BI Summary'!$A:$F,MATCH(J$1,'Data BI Summary'!$2:$2,0),FALSE),INDIRECT("'"&$E28&"'!"&"$A:$K"),8,FALSE) -> 24.43738 | K28: =VLOOKUP(VLOOKUP($F28,'Data BI Summary'!$A:$F,MATCH(K$1,'Data BI Summary'!$2:$2,0),FALSE),INDIRECT("'"&$E28&"'!"&"$A:$K"),9,FALSE) -> 0.007517733208 | L28: Non-RPP
B29: Average | C29: =VLOOKUP(A$28,'Data Billing Quantities'!A:P,MATCH(B29&" kWh",'Data Billing Quantities'!$4:$4,0),FALSE) -> 50525 | D29: =VLOOKUP(A$28,'Data Billing Quantities'!A:P,MATCH(B29&" kW",'Data Billing Quantities'!$4:$4,0),FALSE) -> 135 | E29: BI_UGd_Avg | F29: BI Template_Demand | G29: =VLOOKUP(VLOOKUP($F29,'Data BI Summary'!$A:$F,MATCH(G$1,'Data BI Summary'!$2:$2,0),FALSE),INDIRECT("'"&$E29&"'!"&"$A:$K"),4,FALSE) -> 9572.485521 | H29: =VLOOKUP(VLOOKUP($F29,'Data BI Summary'!$A:$F,MATCH(H$1,'Data BI Summary'!$2:$2,0),FALSE),INDIRECT("'"&$E29&"'!"&"$A:$K"),8,FALSE) -> 30.812 | I29: =VLOOKUP(VLOOKUP($F29,'Data BI Summary'!$A:$F,MATCH(I$1,'Data BI Summary'!$2:$2,0),FALSE),INDIRECT("'"&$E29&"'!"&"$A:$K"),9,FALSE) -> 0.02745214562 | J29: =VLOOKUP(VLOOKUP($F29,'Data BI Summary'!$A:$F,MATCH(J$1,'Data BI Summary'!$2:$2,0),FALSE),INDIRECT("'"&$E29&"'!"&"$A:$K"),8,FALSE) -> 54.023605 | K29: =VLOOKUP(VLOOKUP($F29,'Data BI Summary'!$A:$F,MATCH(K$1,'Data BI Summary'!$2:$2,0),FALSE),INDIRECT("'"&$E29&"'!"&"$A:$K"),9,FALSE) -> 0.005643634026
B30: High | C30: =VLOOKUP(A$28,'Data Billing Quantities'!A:P,MATCH(B30&" kWh",'Data Billing Quantities'!$4:$4,0),FALSE) -> 175000 | D30: =VLOOKUP(A$28,'Data Billing Quantities'!A:P,MATCH(B30&" kW",'Data Billing Quantities'!$4:$4,0),FALSE) -> 500 | E30: BI_UGd_High | F30: BI Template_Demand | G30: =VLOOKUP(VLOOKUP($F30,'Data BI Summary'!$A:$F,MATCH(G$1,'Data BI Summary'!$2:$2,0),FALSE),INDIRECT("'"&$E30&"'!"&"$A:$K"),4,FALSE) -> 33415.93625 | H30: =VLOOKUP(VLOOKUP($F30,'Data BI Summary'!$A:$F,MATCH(H$1,'Data BI Summary'!$2:$2,0),FALSE),INDIRECT("'"&$E30&"'!"&"$A:$K"),8,FALSE) -> 112.28 | I30: =VLOOKUP(VLOOKUP($F30,'Data BI Summary'!$A:$F,MATCH(I$1,'Data BI Summary'!$2:$2,0),FALSE),INDIRECT("'"&$E30&"'!"&"$A:$K"),9,FALSE) -> 0.02827784214 | J30: =VLOOKUP(VLOOKUP($F30,'Data BI Summary'!$A:$F,MATCH(J$1,'Data BI Summary'!$2:$2,0),FALSE),INDIRECT("'"&$E30&"'!"&"$A:$K"),8,FALSE) -> 198.0099 | K30: =VLOOKUP(VLOOKUP($F30,'Data BI Summary'!$A:$F,MATCH(K$1,'Data BI Summary'!$2:$2,0),FALSE),INDIRECT("'"&$E30&"'!"&"$A:$K"),9,FALSE) -> 0.005925612813
A31: St Lgt | B31: Low | C31: =VLOOKUP(A$31,'Data Billing Quantities'!A:P,MATCH(B31&" kWh",'Data Billing Quantities'!$4:$4,0),FALSE) -> 100 | E31: BI_StLgt_Low | F31: BI Template_EnergyUNM | G31: =VLOOKUP(VLOOKUP($F31,'Data BI Summary'!$A:$F,MATCH(G$1,'Data BI Summary'!$2:$2,0),FALSE),INDIRECT("'"&$E31&"'!"&"$A:$K"),4,FALSE) -> 24.87807 | H31: =VLOOKUP(VLOOKUP($F31,'Data BI Summary'!$A:$F,MATCH(H$1,'Data BI Summary'!$2:$2,0),FALSE),INDIRECT("'"&$E31&"'!"&"$A:$K"),8,FALSE) -> 0.28 | I31: =VLOOKUP(VLOOKUP($F31,'Data BI Summary'!$A:$F,MATCH(I$1,'Data BI Summary'!$2:$2,0),FALSE),INDIRECT("'"&$E31&"'!"&"$A:$K"),9,FALSE) -> 0.0213740458 | J31: =VLOOKUP(VLOOKUP($F31,'Data BI Summary'!$A:$F,MATCH(J$1,'Data BI Summary'!$2:$2,0),FALSE),INDIRECT("'"&$E31&"'!"&"$A:$K"),8,FALSE) -> 0.316932 | K31: =VLOOKUP(VLOOKUP($F31,'Data BI Summary'!$A:$F,MATCH(K$1,'Data BI Summary'!$2:$2,0),FALSE),INDIRECT("'"&$E31&"'!"&"$A:$K"),9,FALSE) -> 0.01273941266 | L31: Two-tier RPP
B32: Average | C32: =VLOOKUP(A$31,'Data Billing Quantities'!A:P,MATCH(B32&" kWh",'Data Billing Quantities'!$4:$4,0),FALSE) -> 517 | E32: BI_StLgt_Avg | F32: BI Template_EnergyUNM | G32: =VLOOKUP(VLOOKUP($F32,'Data BI Summary'!$A:$F,MATCH(G$1,'Data BI Summary'!$2:$2,0),FALSE),INDIRECT("'"&$E32&"'!"&"$A:$K"),4,FALSE) -> 113.6889369 | H32: =VLOOKUP(VLOOKUP($F32,'Data BI Summary'!$A:$F,MATCH(H$1,'Data BI Summary'!$2:$2,0),FALSE),INDIRECT("'"&$E32&"'!"&"$A:$K"),8,FALSE) -> 1.1557 | I32: =VLOOKUP(VLOOKUP($F32,'Data BI Summary'!$A:$F,MATCH(I$1,'Data BI Summary'!$2:$2,0),FALSE),INDIRECT("'"&$E32&"'!"&"$A:$K"),9,FALSE) -> 0.02030154567 | J32: =VLOOKUP(VLOOKUP($F32,'Data BI Summary'!$A:$F,MATCH(J$1,'Data BI Summary'!$2:$2,0),FALSE),INDIRECT("'"&$E32&"'!"&"$A:$K"),8,FALSE) -> 1.33204344 | K32: =VLOOKUP(VLOOKUP($F32,'Data BI Summary'!$A:$F,MATCH(K$1,'Data BI Summary'!$2:$2,0),FALSE),INDIRECT("'"&$E32&"'!"&"$A:$K"),9,FALSE) -> 0.01171656167
B33: High | C33: =VLOOKUP(A$31,'Data Billing Quantities'!A:P,MATCH(B33&" kWh",'Data Billing Quantities'!$4:$4,0),FALSE) -> 2000 | E33: BI_StLgt_High | F33: BI Template_EnergyUNM | G33: =VLOOKUP(VLOOKUP($F33,'Data BI Summary'!$A:$F,MATCH(G$1,'Data BI Summary'!$2:$2,0),FALSE),INDIRECT("'"&$E33&"'!"&"$A:$K"),4,FALSE) -> 447.6003 | H33: =VLOOKUP(VLOOKUP($F33,'Data BI Summary'!$A:$F,MATCH(H$1,'Data BI Summary'!$2:$2,0),FALSE),INDIRECT("'"&$E33&"'!"&"$A:$K"),8,FALSE) -> 4.27 | I33: =VLOOKUP(VLOOKUP($F33,'Data BI Summary'!$A:$F,MATCH(I$1,'Data BI Summary'!$2:$2,0),FALSE),INDIRECT("'"&$E33&"'!"&"$A:$K"),9,FALSE) -> 0.02006673246 | J33: =VLOOKUP(VLOOKUP($F33,'Data BI Summary'!$A:$F,MATCH(J$1,'Data BI Summary'!$2:$2,0),FALSE),INDIRECT("'"&$E33&"'!"&"$A:$K"),8,FALSE) -> 4.94214 | K33: =VLOOKUP(VLOOKUP($F33,'Data BI Summary'!$A:$F,MATCH(K$1,'Data BI Summary'!$2:$2,0),FALSE),INDIRECT("'"&$E33&"'!"&"$A:$K"),9,FALSE) -> 0.01104141351
A34: Sen Lgt | B34: Low | C34: =VLOOKUP(A$34,'Data Billing Quantities'!A:P,MATCH(B34&" kWh",'Data Billing Quantities'!$4:$4,0),FALSE) -> 20 | E34: BI_SenLgt_Low | F34: BI Template_EnergyUNM | G34: =VLOOKUP(VLOOKUP($F34,'Data BI Summary'!$A:$F,MATCH(G$1,'Data BI Summary'!$2:$2,0),FALSE),INDIRECT("'"&$E34&"'!"&"$A:$K"),4,FALSE) -> 8.4828072 | H34: =VLOOKUP(VLOOKUP($F34,'Data BI Summary'!$A:$F,MATCH(H$1,'Data BI Summary'!$2:$2,0),FALSE),INDIRECT("'"&$E34&"'!"&"$A:$K"),8,FALSE) -> 0.26 | I34: =VLOOKUP(VLOOKUP($F34,'Data BI Summary'!$A:$F,MATCH(I$1,'Data BI Summary'!$2:$2,0),FALSE),INDIRECT("'"&$E34&"'!"&"$A:$K"),9,FALSE) -> 0.04903809883 | J34: =VLOOKUP(VLOOKUP($F34,'Data BI Summary'!$A:$F,MATCH(J$1,'Data BI Summary'!$2:$2,0),FALSE),INDIRECT("'"&$E34&"'!"&"$A:$K"),8,FALSE) -> 0.2798796 | K34: =VLOOKUP(VLOOKUP($F34,'Data BI Summary'!$A:$F,MATCH(K$1,'Data BI Summary'!$2:$2,0),FALSE),INDIRECT("'"&$E34&"'!"&"$A:$K"),9,FALSE) -> 0.03299374764 | L34: Two-tier RPP
B35: Average | C35: =VLOOKUP(A$34,'Data Billing Quantities'!A:P,MATCH(B35&" kWh",'Data Billing Quantities'!$4:$4,0),FALSE) -> 71 | E35: BI_SenLgt_Avg | F35: BI Template_EnergyUNM | G35: =VLOOKUP(VLOOKUP($F35,'Data BI Summary'!$A:$F,MATCH(G$1,'Data BI Summary'!$2:$2,0),FALSE),INDIRECT("'"&$E35&"'!"&"$A:$K"),4,FALSE) -> 21.62629056 | H35: =VLOOKUP(VLOOKUP($F35,'Data BI Summary'!$A:$F,MATCH(H$1,'Data BI Summary'!$2:$2,0),FALSE),INDIRECT("'"&$E35&"'!"&"$A:$K"),8,FALSE) -> 0.617 | I35: =VLOOKUP(VLOOKUP($F35,'Data BI Summary'!$A:$F,MATCH(I$1,'Data BI Summary'!$2:$2,0),FALSE),INDIRECT("'"&$E35&"'!"&"$A:$K"),9,FALSE) -> 0.04809191245 | J35: =VLOOKUP(VLOOKUP($F35,'Data BI Summary'!$A:$F,MATCH(J$1,'Data BI Summary'!$2:$2,0),FALSE),INDIRECT("'"&$E35&"'!"&"$A:$K"),8,FALSE) -> 0.67227258 | K35: =VLOOKUP(VLOOKUP($F35,'Data BI Summary'!$A:$F,MATCH(K$1,'Data BI Summary'!$2:$2,0),FALSE),INDIRECT("'"&$E35&"'!"&"$A:$K"),9,FALSE) -> 0.03108589419
B36: High | C36: =VLOOKUP(A$34,'Data Billing Quantities'!A:P,MATCH(B36&" kWh",'Data Billing Quantities'!$4:$4,0),FALSE) -> 200 | E36: BI_SenLgt_High | F36: BI Template_EnergyUNM | G36: =VLOOKUP(VLOOKUP($F36,'Data BI Summary'!$A:$F,MATCH(G$1,'Data BI Summary'!$2:$2,0),FALSE),INDIRECT("'"&$E36&"'!"&"$A:$K"),4,FALSE) -> 54.871572 | H36: =VLOOKUP(VLOOKUP($F36,'Data BI Summary'!$A:$F,MATCH(H$1,'Data BI Summary'!$2:$2,0),FALSE),INDIRECT("'"&$E36&"'!"&"$A:$K"),8,FALSE) -> 1.52 | I36: =VLOOKUP(VLOOKUP($F36,'Data BI Summary'!$A:$F,MATCH(I$1,'Data BI Summary'!$2:$2,0),FALSE),INDIRECT("'"&$E36&"'!"&"$A:$K"),9,FALSE) -> 0.04769375588 | J36: =VLOOKUP(VLOOKUP($F36,'Data BI Summary'!$A:$F,MATCH(J$1,'Data BI Summary'!$2:$2,0),FALSE),INDIRECT("'"&$E36&"'!"&"$A:$K"),8,FALSE) -> 1.664796 | K36: =VLOOKUP(VLOOKUP($F36,'Data BI Summary'!$A:$F,MATCH(K$1,'Data BI Summary'!$2:$2,0),FALSE),INDIRECT("'"&$E36&"'!"&"$A:$K"),9,FALSE) -> 0.03033986342
A37: USL | B37: Low | C37: =VLOOKUP(A$37,'Data Billing Quantities'!A:P,MATCH(B37&" kWh",'Data Billing Quantities'!$4:$4,0),FALSE) -> 100 | E37: BI_USL_Low | F37: BI Template_EnergyUNM | G37: =VLOOKUP(VLOOKUP($F37,'Data BI Summary'!$A:$F,MATCH(G$1,'Data BI Summary'!$2:$2,0),FALSE),INDIRECT("'"&$E37&"'!"&"$A:$K"),4,FALSE) -> 55.158264 | H37: =VLOOKUP(VLOOKUP($F37,'Data BI Summary'!$A:$F,MATCH(H$1,'Data BI Summary'!$2:$2,0),FALSE),INDIRECT("'"&$E37&"'!"&"$A:$K"),8,FALSE) -> -1.98 | I37: =VLOOKUP(VLOOKUP($F37,'Data BI Summary'!$A:$F,MATCH(I$1,'Data BI Summary'!$2:$2,0),FALSE),INDIRECT("'"&$E37&"'!"&"$A:$K"),9,FALSE) -> -0.04732313576 | J37: =VLOOKUP(VLOOKUP($F37,'Data BI Summary'!$A:$F,MATCH(J$1,'Data BI Summary'!$2:$2,0),FALSE),INDIRECT("'"&$E37&"'!"&"$A:$K"),8,FALSE) -> -2.044602 | K37: =VLOOKUP(VLOOKUP($F37,'Data BI Summary'!$A:$F,MATCH(K$1,'Data BI Summary'!$2:$2,0),FALSE),INDIRECT("'"&$E37&"'!"&"$A:$K"),9,FALSE) -> -0.03706791787 | L37: Two-tier RPP
B38: Average | C38: =VLOOKUP(A$37,'Data Billing Quantities'!A:P,MATCH(B38&" kWh",'Data Billing Quantities'!$4:$4,0),FALSE) -> 364 | E38: BI_USL_Avg | F38: BI Template_EnergyUNM | G38: =VLOOKUP(VLOOKUP($F38,'Data BI Summary'!$A:$F,MATCH(G$1,'Data BI Summary'!$2:$2,0),FALSE),INDIRECT("'"&$E38&"'!"&"$A:$K"),4,FALSE) -> 88.56552096 | H38: =VLOOKUP(VLOOKUP($F38,'Data BI Summary'!$A:$F,MATCH(H$1,'Data BI Summary'!$2:$2,0),FALSE),INDIRECT("'"&$E38&"'!"&"$A:$K"),8,FALSE) -> -2.3232 | I38: =VLOOKUP(VLOOKUP($F38,'Data BI Summary'!$A:$F,MATCH(I$1,'Data BI Summary'!$2:$2,0),FALSE),INDIRECT("'"&$E38&"'!"&"$A:$K"),9,FALSE) -> -0.04881164487 | J38: =VLOOKUP(VLOOKUP($F38,'Data BI Summary'!$A:$F,MATCH(J$1,'Data BI Summary'!$2:$2,0),FALSE),INDIRECT("'"&$E38&"'!"&"$A:$K"),8,FALSE) -> -2.31415128 | K38: =VLOOKUP(VLOOKUP($F38,'Data BI Summary'!$A:$F,MATCH(K$1,'Data BI Summary'!$2:$2,0),FALSE),INDIRECT("'"&$E38&"'!"&"$A:$K"),9,FALSE) -> -0.02612925724
B39: High | C39: =VLOOKUP(A$37,'Data Billing Quantities'!A:P,MATCH(B39&" kWh",'Data Billing Quantities'!$4:$4,0),FALSE) -> 1000 | E39: BI_USL_High | F39: BI Template_EnergyUNM | G39: =VLOOKUP(VLOOKUP($F39,'Data BI Summary'!$A:$F,MATCH(G$1,'Data BI Summary'!$2:$2,0),FALSE),INDIRECT("'"&$E39&"'!"&"$A:$K"),4,FALSE) -> 173.35584 | H39: =VLOOKUP(VLOOKUP($F39,'Data BI Summary'!$A:$F,MATCH(H$1,'Data BI Summary'!$2:$2,0),FALSE),INDIRECT("'"&$E39&"'!"&"$A:$K"),8,FALSE) -> -3.15 | I39: =VLOOKUP(VLOOKUP($F39,'Data BI Summary'!$A:$F,MATCH(I$1,'Data BI Summary'!$2:$2,0),FALSE),INDIRECT("'"&$E39&"'!"&"$A:$K"),9,FALSE) -> -0.05125284738 | J39: =VLOOKUP(VLOOKUP($F39,'Data BI Summary'!$A:$F,MATCH(J$1,'Data BI Summary'!$2:$2,0),FALSE),INDIRECT("'"&$E39&"'!"&"$A:$K"),8,FALSE) -> -2.96352 | K39: =VLOOKUP(VLOOKUP($F39,'Data BI Summary'!$A:$F,MATCH(K$1,'Data BI Summary'!$2:$2,0),FALSE),INDIRECT("'"&$E39&"'!"&"$A:$K"),9,FALSE) -> -0.01709501105
A40: DGen | B40: Low | C40: =VLOOKUP(A$40,'Data Billing Quantities'!A:P,MATCH($B40&" kWh",'Data Billing Quantities'!$4:$4,0),FALSE) -> 300 | D40: =VLOOKUP(A$40,'Data Billing Quantities'!A:P,MATCH($B40&" kW",'Data Billing Quantities'!$4:$4,0),FALSE) -> 10 | E40: BI_Dgen_Low | F40: BI Template_Demand | G40: =VLOOKUP(VLOOKUP($F40,'Data BI Summary'!$A:$F,MATCH(G$1,'Data BI Summary'!$2:$2,0),FALSE),INDIRECT("'"&$E40&"'!"&"$A:$K"),4,FALSE) -> 353.6507551 | H40: =VLOOKUP(VLOOKUP($F40,'Data BI Summary'!$A:$F,MATCH(H$1,'Data BI Summary'!$2:$2,0),FALSE),INDIRECT("'"&$E40&"'!"&"$A:$K"),8,FALSE) -> 41.47 | I40: =VLOOKUP(VLOOKUP($F40,'Data BI Summary'!$A:$F,MATCH(I$1,'Data BI Summary'!$2:$2,0),FALSE),INDIRECT("'"&$E40&"'!"&"$A:$K"),9,FALSE) -> 0.1626778492 | J40: =VLOOKUP(VLOOKUP($F40,'Data BI Summary'!$A:$F,MATCH(J$1,'Data BI Summary'!$2:$2,0),FALSE),INDIRECT("'"&$E40&"'!"&"$A:$K"),8,FALSE) -> 47.4035 | K40: =VLOOKUP(VLOOKUP($F40,'Data BI Summary'!$A:$F,MATCH(K$1,'Data BI Summary'!$2:$2,0),FALSE),INDIRECT("'"&$E40&"'!"&"$A:$K"),9,FALSE) -> 0.134040432 | L40: Non-RPP
B41: Average | C41: =VLOOKUP(A$40,'Data Billing Quantities'!A:P,MATCH($B41&" kWh",'Data Billing Quantities'!$4:$4,0),FALSE) -> 1328 | D41: =VLOOKUP(A$40,'Data Billing Quantities'!A:P,MATCH($B41&" kW",'Data Billing Quantities'!$4:$4,0),FALSE) -> 13 | E41: BI_Dgen_Avg | F41: BI Template_Demand | G41: =VLOOKUP(VLOOKUP($F41,'Data BI Summary'!$A:$F,MATCH(G$1,'Data BI Summary'!$2:$2,0),FALSE),INDIRECT("'"&$E41&"'!"&"$A:$K"),4,FALSE) -> 534.2678592 | H41: =VLOOKUP(VLOOKUP($F41,'Data BI Summary'!$A:$F,MATCH(H$1,'Data BI Summary'!$2:$2,0),FALSE),INDIRECT("'"&$E41&"'!"&"$A:$K"),8,FALSE) -> 46.39 | I41: =VLOOKUP(VLOOKUP($F41,'Data BI Summary'!$A:$F,MATCH(I$1,'Data BI Summary'!$2:$2,0),FALSE),INDIRECT("'"&$E41&"'!"&"$A:$K"),9,FALSE) -> 0.1711001864 | J41: =VLOOKUP(VLOOKUP($F41,'Data BI Summary'!$A:$F,MATCH(J$1,'Data BI Summary'!$2:$2,0),FALSE),INDIRECT("'"&$E41&"'!"&"$A:$K"),8,FALSE) -> 53.12582 | K41: =VLOOKUP(VLOOKUP($F41,'Data BI Summary'!$A:$F,MATCH(K$1,'Data BI Summary'!$2:$2,0),FALSE),INDIRECT("'"&$E41&"'!"&"$A:$K"),9,FALSE) -> 0.09943667598
B42: High | C42: =VLOOKUP(A$40,'Data Billing Quantities'!A:P,MATCH($B42&" kWh",'Data Billing Quantities'!$4:$4,0),FALSE) -> 5000 | D42: =VLOOKUP(A$40,'Data Billing Quantities'!A:P,MATCH($B42&" kW",'Data Billing Quantities'!$4:$4,0),FALSE) -> 100 | E42: BI_Dgen_High | F42: BI Template_Demand | G42: =VLOOKUP(VLOOKUP($F42,'Data BI Summary'!$A:$F,MATCH(G$1,'Data BI Summary'!$2:$2,0),FALSE),INDIRECT("'"&$E42&"'!"&"$A:$K"),4,FALSE) -> 1993.019985 | H42: =VLOOKUP(VLOOKUP($F42,'Data BI Summary'!$A:$F,MATCH(H$1,'Data BI Summary'!$2:$2,0),FALSE),INDIRECT("'"&$E42&"'!"&"$A:$K"),8,FALSE) -> 189.07 | I42: =VLOOKUP(VLOOKUP($F42,'Data BI Summary'!$A:$F,MATCH(I$1,'Data BI Summary'!$2:$2,0),FALSE),INDIRECT("'"&$E42&"'!"&"$A:$K"),9,FALSE) -> 0.2063497261 | J42: =VLOOKUP(VLOOKUP($F42,'Data BI Summary'!$A:$F,MATCH(J$1,'Data BI Summary'!$2:$2,0),FALSE),INDIRECT("'"&$E42&"'!"&"$A:$K"),8,FALSE) -> 219.0731 | K42: =VLOOKUP(VLOOKUP($F42,'Data BI Summary'!$A:$F,MATCH(K$1,'Data BI Summary'!$2:$2,0),FALSE),INDIRECT("'"&$E42&"'!"&"$A:$K"),9,FALSE) -> 0.1099201722
A43: ST | B43: Low | C43: =VLOOKUP(A$43,'Data Billing Quantities'!A:P,MATCH($B43&" kWh",'Data Billing Quantities'!$4:$4,0),FALSE) -> 200000 | D43: =VLOOKUP(A$43,'Data Billing Quantities'!A:P,MATCH($B43&" kW",'Data Billing Quantities'!$4:$4,0),FALSE) -> 500 | E43: BI_ST_Low | F43: BI Template_Demand | G43: =VLOOKUP(VLOOKUP($F43,'Data BI Summary'!$A:$F,MATCH(G$1,'Data BI Summary'!$2:$2,0),FALSE),INDIRECT("'"&$E43&"'!"&"$A:$K"),4,FALSE) -> 35791.29706 | H43: =VLOOKUP(VLOOKUP($F43,'Data BI Summary'!$A:$F,MATCH(H$1,'Data BI Summary'!$2:$2,0),FALSE),INDIRECT("'"&$E43&"'!"&"$A:$K"),8,FALSE) -> 40.66670368 | I43: =VLOOKUP(VLOOKUP($F43,'Data BI Summary'!$A:$F,MATCH(I$1,'Data BI Summary'!$2:$2,0),FALSE),INDIRECT("'"&$E43&"'!"&"$A:$K"),9,FALSE) -> 0.01767891408 | J43: =VLOOKUP(VLOOKUP($F43,'Data BI Summary'!$A:$F,MATCH(J$1,'Data BI Summary'!$2:$2,0),FALSE),INDIRECT("'"&$E43&"'!"&"$A:$K"),8,FALSE) -> 143.6418752 | K43: =VLOOKUP(VLOOKUP($F43,'Data BI Summary'!$A:$F,MATCH(K$1,'Data BI Summary'!$2:$2,0),FALSE),INDIRECT("'"&$E43&"'!"&"$A:$K"),9,FALSE) -> 0.004013318515 | L43: Non-RPP
B44: Average | C44: =VLOOKUP(A$43,'Data Billing Quantities'!A:P,MATCH($B44&" kWh",'Data Billing Quantities'!$4:$4,0),FALSE) -> 1601036 | D44: =VLOOKUP(A$43,'Data Billing Quantities'!A:P,MATCH($B44&" kW",'Data Billing Quantities'!$4:$4,0),FALSE) -> 3091 | E44: BI_ST_Avg | F44: BI Template_Demand | G44: =VLOOKUP(VLOOKUP($F44,'Data BI Summary'!$A:$F,MATCH(G$1,'Data BI Summary'!$2:$2,0),FALSE),INDIRECT("'"&$E44&"'!"&"$A:$K"),4,FALSE) -> 268705.0853 | H44: =VLOOKUP(VLOOKUP($F44,'Data BI Summary'!$A:$F,MATCH(H$1,'Data BI Summary'!$2:$2,0),FALSE),INDIRECT("'"&$E44&"'!"&"$A:$K"),8,FALSE) -> 129.7543847 | I44: =VLOOKUP(VLOOKUP($F44,'Data BI Summary'!$A:$F,MATCH(I$1,'Data BI Summary'!$2:$2,0),FALSE),INDIRECT("'"&$E44&"'!"&"$A:$K"),9,FALSE) -> 0.01551834032 | J44: =VLOOKUP(VLOOKUP($F44,'Data BI Summary'!$A:$F,MATCH(J$1,'Data BI Summary'!$2:$2,0),FALSE),INDIRECT("'"&$E44&"'!"&"$A:$K"),8,FALSE) -> 750.5327617 | K44: =VLOOKUP(VLOOKUP($F44,'Data BI Summary'!$A:$F,MATCH(K$1,'Data BI Summary'!$2:$2,0),FALSE),INDIRECT("'"&$E44&"'!"&"$A:$K"),9,FALSE) -> 0.002793146847
B45: High | C45: =VLOOKUP(A$43,'Data Billing Quantities'!A:P,MATCH($B45&" kWh",'Data Billing Quantities'!$4:$4,0),FALSE) -> 4000000 | D45: =VLOOKUP(A$43,'Data Billing Quantities'!A:P,MATCH($B45&" kW",'Data Billing Quantities'!$4:$4,0),FALSE) -> 10000 | E45: BI_ST_High | F45: BI Template_Demand | G45: =VLOOKUP(VLOOKUP($F45,'Data BI Summary'!$A:$F,MATCH(G$1,'Data BI Summary'!$2:$2,0),FALSE),INDIRECT("'"&$E45&"'!"&"$A:$K"),4,FALSE) -> 691545.3797 | H45: =VLOOKUP(VLOOKUP($F45,'Data BI Summary'!$A:$F,MATCH(H$1,'Data BI Summary'!$2:$2,0),FALSE),INDIRECT("'"&$E45&"'!"&"$A:$K"),8,FALSE) -> 367.310073 | I45: =VLOOKUP(VLOOKUP($F45,'Data BI Summary'!$A:$F,MATCH(I$1,'Data BI Summary'!$2:$2,0),FALSE),INDIRECT("'"&$E45&"'!"&"$A:$K"),9,FALSE) -> 0.0149779353 | J45: =VLOOKUP(VLOOKUP($F45,'Data BI Summary'!$A:$F,MATCH(J$1,'Data BI Summary'!$2:$2,0),FALSE),INDIRECT("'"&$E45&"'!"&"$A:$K"),8,FALSE) -> 2368.830382 | K45: =VLOOKUP(VLOOKUP($F45,'Data BI Summary'!$A:$F,MATCH(K$1,'Data BI Summary'!$2:$2,0),FALSE),INDIRECT("'"&$E45&"'!"&"$A:$K"),9,FALSE) -> 0.003425415674

Sheet BI Template_Energy (hidden)
A1: 2020 Bill Impacts (Average Consumption Level) - R1
A3: Rate Class | B3: =RIGHT(A1,LEN(A1)-FIND("- ",A1,1)-1) -> R1
A4: Monthly Consumption (kWh) | B4: =IF(COUNTIF(A1,"*Low*")>0,VLOOKUP(B3,'Data Billing Quantities'!$A:$Z,MATCH("Low kWh",'Data Billing Quantities'!4:4,0),FALSE),IF(COUNTIF(A1,"*Typical*")>0,VLOOKUP(B3,'Data Billing Quantities'!$A:$Z,MATCH("Typical kWh",'Data Billing Quantities'!4:4,0),FALSE),IF(COUNTIF(A1,"*Average*")>0,VLOOKUP(B3,'Data Billing Quantities'!$A:$Z,MATCH("Average kWh",'Data Billing Quantities'!4:4,0),FALSE),IF(COUNTIF(A1,"*High*")>0,VLOOKUP(B3,'Data Billing Quantities'!$A:$Z,MATCH("High kWh",'Data Billing Quantities'!4:4,0),FALSE),"error")))) -> 920
A5: Peak (kW) | B5: =IF(COUNTIF(A1,"*Low*")>0,VLOOKUP(B3,'Data Billing Quantities'!$A:$Z,MATCH("Low kW",'Data Billing Quantities'!4:4,0),FALSE),IF(COUNTIF(A1,"*Typical*")>0,VLOOKUP(B3,'Data Billing Quantities'!$A:$Z,MATCH("Typical kW",'Data Billing Quantities'!4:4,0),FALSE),IF(COUNTIF(A1,"*Average*")>0,VLOOKUP(B3,'Data Billing Quantities'!$A:$Z,MATCH("Average kW",'Data Billing Quantities'!4:4,0),FALSE),IF(COUNTIF(A1,"*High*")>0,VLOOKUP(B3,'Data Billing Quantities'!$A:$Z,MATCH("High kW",'Data Billing Quantities'!4:4,0),FALSE),"error")))) -> 0
A6: Loss factor | B6: =VLOOKUP(B3,'Data Billing Quantities'!A:D,MATCH(A6,'Data Billing Quantities'!4:4,0),FALSE) -> 1.076
A7: Commodity Threshold | B7: =VLOOKUP(B3,'Data Billing Quantities'!A:D,MATCH(A7,'Data Billing Quantities'!4:4,0),FALSE) -> 600
A8: Monthly Consumption (kWh) - Uplifted | B8: =B4*B6 -> 989.92
A9: Charge determinant | B9: =VLOOKUP(B3,'Data Billing Quantities'!A:D,MATCH(A9,'Data Billing Quantities'!4:4,0),FALSE) -> kWh
B11: Volume | C11: Current Rate ($) | D11: Current Charge ($) | E11: Volume | F11: Proposed Rate ($) | G11: Proposed Charge ($) | H11: Change ($) | I11: Change (%) | J11: % of Total Bill on RPP | K11: % of Total Bill on TOU
A12: Energy First Tier | B12: =IF(B4>B7,B7,B4) -> 600 | C12: =VLOOKUP($A12,'Data Pass Through'!$A:$D,2,FALSE) -> 0.077 | D12: =B12*C12 -> 46.2 | E12: =B12 -> 600 | F12: =VLOOKUP($A12,'Data Pass Through'!$A:$D,3,FALSE) -> 0.077 | G12: =E12*F12 -> 46.2 | H12: =G12-D12 -> 0 | I12: =IF(ISERROR(H12/ABS(D12)),"N/A",(H12/ABS(D12))) -> 0 | J12: =G12/$G$48 -> 0.3216507067
A13: Energy Second Tier | B13: =IF(B4>B7,(B4)-B7,0) -> 320 | C13: =VLOOKUP($A13,'Data Pass Through'!$A:$D,2,FALSE) -> 0.089 | D13: =B13*C13 -> 28.48 | E13: =B13 -> 320 | F13: =VLOOKUP($A13,'Data Pass Through'!$A:$D,3,FALSE) -> 0.089 | G13: =E13*F13 -> 28.48 | H13: 0 | I13: 0 | J13: =G13/$G$48 -> 0.1982816478
A14: Sub-Total: Energy (RPP Tiered) | D14: =SUM(D12:D13) -> 74.68 | G14: =SUM(G12:G13) -> 74.68 | H14: 0 | I14: 0 | J14: =G14/$G$48 -> 0.5199323545
A15: TOU-Off Peak | B15: =B$4*VLOOKUP($B$3,'Data Billing Quantities'!$A:$O,MATCH('BI Template_Energy'!$A15,'Data Billing Quantities'!$4:$4,0),FALSE) -> 598 | C15: =VLOOKUP($A15,'Data Pass Through'!$A:$D,2,FALSE) -> 0.065 | D15: =B15*C15 -> 38.87 | E15: 598 | F15: =VLOOKUP($A15,'Data Pass Through'!$A:$D,3,FALSE) -> 0.065 | G15: =E15*F15 -> 38.87 | H15: 0 | I15: 0 | K15: =G15/$G$53 -> 0.2694030621
A16: TOU-Mid Peak | B16: =B$4*VLOOKUP($B$3,'Data Billing Quantities'!$A:$O,MATCH('BI Template_Energy'!$A16,'Data Billing Quantities'!$4:$4,0),FALSE) -> 156.4 | C16: =VLOOKUP($A16,'Data Pass Through'!$A:$D,2,FALSE) -> 0.094 | D16: =B16*C16 -> 14.7016 | E16: 156.4 | F16: =VLOOKUP($A16,'Data Pass Through'!$A:$D,3,FALSE) -> 0.094 | G16: =E16*F16 -> 14.7016 | H16: 0 | I16: 0 | K16: 0.1018949333
A17: TOU-On Peak | B17: =B$4*VLOOKUP($B$3,'Data Billing Quantities'!$A:$O,MATCH('BI Template_Energy'!$A17,'Data Billing Quantities'!$4:$4,0),FALSE) -> 165.6 | C17: =VLOOKUP($A17,'Data Pass Through'!$A:$D,2,FALSE) -> 0.134 | D17: =B17*C17 -> 22.1904 | E17: 165.6 | F17: =VLOOKUP($A17,'Data Pass Through'!$A:$D,3,FALSE) -> 0.134 | G17: =E17*F17 -> 22.1904 | H17: 0 | I17: 0 | K17: 0.1537988605
A18: Sub-Total: Energy (RPP TOU) | D18: =SUM(D15:D17) -> 75.762 | G18: =SUM(G15:G17) -> 75.762 | H18: 0 | I18: 0 | J18: =G18/$G$48 -> 0.5274653862 | K18: 0.525096856
A19: Service Charge | B19: 1 | C19: =VLOOKUP($B$3,'Data Current Rates'!$A:$BA,MATCH('BI Template_Energy'!$A19,CurrentHeader,0),FALSE) -> 38.74 | D19: =B19*C19 -> 38.74 | E19: 1 | F19: =VLOOKUP($B$3,'Data Proposed Rates'!$A:$BA,MATCH('BI Template_Energy'!$A19,ProposedHeader,0),FALSE) -> 43.36 | G19: =E19*F19 -> 43.36 | H19: 4.62 | I19: 0.1192565823 | J19: 0.3018782391 | K19: 0.3005226852
A20: Fixed Foregone Revenue Charge | B20: 1 | C20: =VLOOKUP($B$3,'Data Current Rates'!$A:$BA,MATCH('BI Template_Energy'!$A20,CurrentHeader,0),FALSE) -> 1.71 | D20: =B20*C20 -> 1.71 | E20: =B20 -> 1 | F20: =VLOOKUP($B$3,'Data Proposed Rates'!$A:$BA,MATCH('BI Template_Energy'!$A20,ProposedHeader,0),FALSE) -> 1.69 | G20: =E20*F20 -> 1.69 | H20: =G20-D20 -> -0.02 | I20: =IF(ISERROR(H20/ABS(D20)),"N/A",(H20/ABS(D20))) -> -0.01169590643 | J20: =G20/$G$48 -> 0.0117660107 | K20: =G20/$G$53 -> 0.01171317661
A21: Fixed Deferral/Variance Account Rider (General) | B21: 1 | C21: =VLOOKUP($B$3,'Data Current Rates'!$A:$BA,MATCH('BI Template_Energy'!$A21,CurrentHeader,0),FALSE) -> 0.04 | D21: 0.04 | E21: 1 | F21: =VLOOKUP($B$3,'Data Proposed Rates'!$A:$BA,MATCH('BI Template_Energy'!$A21,ProposedHeader,0),FALSE) -> 0.04 | G21: 0.04 | H21: 0 | I21: 0 | J21: 0.0002784854604 | K21: 0.0002772349494
A22: Distribution Volumetric Charge | B22: =IF($B$9="kWh",$B$4,$B$5) -> 920 | C22: =VLOOKUP($B$3,'Data Current Rates'!$A:$BA,MATCH('BI Template_Energy'!$A22,CurrentHeader,0),FALSE) -> 0.0222 | D22: 20.424 | E22: 920 | F22: =VLOOKUP($B$3,'Data Proposed Rates'!$A:$BA,MATCH('BI Template_Energy'!$A22,ProposedHeader,0),FALSE) -> 0.0181 | G22: 16.652 | H22: -3.772 | I22: -0.1846846847 | J22: 0.1159334972 | K22: 0.1154129095
A23: Volumetric Foregone Revenue Charge | B23: =IF($B$9="kWh",$B$4,$B$5) -> 920 | C23: =VLOOKUP($B$3,'Data Current Rates'!$A:$BA,MATCH('BI Template_Energy'!$A23,CurrentHeader,0),FALSE) -> 0.0009 | D23: =B23*C23 -> 0.828 | E23: =B23 -> 920 | F23: =VLOOKUP($B$3,'Data Proposed Rates'!$A:$BA,MATCH('BI Template_Energy'!$A23,ProposedHeader,0),FALSE) -> 0.0009 | G23: =E23*F23 -> 0.828 | H23: =G23-D23 -> 0 | I23: =IF(ISERROR(H23/ABS(D23)),"N/A",(H23/ABS(D23))) -> 0 | J23: =G23/$G$48 -> 0.00576464903 | K23: =G23/$G$53 -> 0.005738763453
A24: Volumetric Deferral/Variance Account Rider (General) | B24: =IF($B$9="kWh",$B$4,$B$5) -> 920 | C24: =VLOOKUP($B$3,'Data Current Rates'!$A:$BA,MATCH('BI Template_Energy'!$A24,CurrentHeader,0),FALSE) -> -0.0008 | D24: -0.736 | E24: 920 | F24: =VLOOKUP($B$3,'Data Proposed Rates'!$A:$BA,MATCH('BI Template_Energy'!$A24,ProposedHeader,0),FALSE) -> -0.0008 | G24: -0.736 | H24: 0 | I24: 0 | J24: -0.005124132471 | K24: -0.00510112307
A25: Volumetric Deferral/Variance Account Rider (Sub Account CBR) | B25: 920 | C25: =VLOOKUP($B$3,'Data Current Rates'!$A:$BA,MATCH('BI Template_Energy'!$A25,CurrentHeader,0),FALSE) -> 0 | D25: 0 | E25: 920 | F25: =VLOOKUP($B$3,'Data Proposed Rates'!$A:$BA,MATCH('BI Template_Energy'!$A25,ProposedHeader,0),FALSE) -> 0 | G25: 0 | H25: 0 | I25: N/A | J25: 0 | K25: 0
A26: Fair Hydro Plan - Distribution Rate Protection Savings* | D26: =IF(AND(B3<>"R1",B3<>"R2"),0,IF(VLOOKUP($A26,'Data Pass Through'!$A:$D,2,FALSE)=0,0,IF(SUM(D19:D20,D22:D23)<VLOOKUP($A26,'Data Pass Through'!$A:$D,2,FALSE),0,VLOOKUP($A26,'Data Pass Through'!$A:$D,2,FALSE)-SUM(D19:D20,D22:D23)))) -> -24.842 | G26: =IF(AND(B3<>"R1",B3<>"R2"),0,IF(VLOOKUP($A26,'Data Pass Through'!$A:$D,2,FALSE)=0,0,IF(SUM(G19:G20,G22:G23)<VLOOKUP($A26,'Data Pass Through'!$A:$D,2,FALSE),0,VLOOKUP($A26,'Data Pass Through'!$A:$D,2,FALSE)-SUM(G19:G20,G22:G23)))) -> -25.67 | H26: -0.828 | I26: -0.03333064971 | J26: -0.1787180442 | K26: -0.1779155288
A27: Sub-Total: Distribution (excluding pass through) | D27: =SUM(INDIRECT("D19:D"&ROW()-1)) -> 36.164 | G27: =SUM(INDIRECT("g19:g"&ROW()-1)) -> 36.164 | H27: =G27-D27 -> 0 | I27: =IF(ISERROR(H27/ABS(D27)),"N/A",(H27/ABS(D27))) -> 0 | J27: 0.2517787047 | K27: 0.2506481178
A28: Smart Metering Entity Charge | B28: 1 | C28: =VLOOKUP($A28,'Data Pass Through'!$A:$D,2,FALSE) -> 0.57 | D28: =B28*C28 -> 0.57 | E28: 1 | F28: =VLOOKUP($A28,'Data Pass Through'!$A:$D,3,FALSE) -> 0.57 | G28: =E28*F28 -> 0.57 | H28: 0 | I28: 0 | J28: 0.003968417811 | K28: 0.003950598029
A29: Line Losses on Cost of Power (based on two-tier RPP prices) | B29: =B8-B4 -> 69.92 | C29: =IF(B4>B7,C13,C12) -> 0.089 | D29: =B29*C29 -> 6.22288 | E29: 69.92 | F29: =IF(B4>B7,F13,F12) -> 0.089 | G29: =E29*F29 -> 6.22288 | H29: 0 | I29: 0 | J29: 0.04332454004 | K29: 0.04312999555
A30: Line Losses on Cost of Power (based on TOU prices) | B30: =B8-B4 -> 69.92 | C30: =VLOOKUP($B$3,'Data Billing Quantities'!$A:$O,MATCH('BI Template_Energy'!$A15,'Data Billing Quantities'!$4:$4,0),FALSE)*C15+VLOOKUP($B$3,'Data Billing Quantities'!$A:$O,MATCH('BI Template_Energy'!$A16,'Data Billing Quantities'!$4:$4,0),FALSE)*C16+VLOOKUP($B$3,'Data Billing Quantities'!$A:$O,MATCH('BI Template_Energy'!$A17,'Data Billing Quantities'!$4:$4,0),FALSE)*C17 -> 0.08235 | D30: =B30*C30 -> 5.757912 | E30: 69.92 | F30: =VLOOKUP($B$3,'Data Billing Quantities'!$A:$O,MATCH('BI Template_Energy'!$A15,'Data Billing Quantities'!$4:$4,0),FALSE)*F15+VLOOKUP($B$3,'Data Billing Quantities'!$A:$O,MATCH('BI Template_Energy'!$A16,'Data Billing Quantities'!$4:$4,0),FALSE)*F16+VLOOKUP($B$3,'Data Billing Quantities'!$A:$O,MATCH('BI Template_Energy'!$A17,'Data Billing Quantities'!$4:$4,0),FALSE)*F17 -> 0.08235 | G30: =E30*F30 -> 5.757912 | H30: 0 | I30: 0 | J30: 0.04008736935 | K30: 0.03990736105
A31: Sub-Total: Distribution (based on two-tier RPP prices) | D31: =SUM(D27,D28:D29) -> 42.95688 | G31: =SUM(G27,G28:G29) -> 42.95688 | H31: 0 | I31: 0 | J31: 0.2990716626 | K31: 0.2977287114
A32: Sub-Total: Distribution (based on TOU prices) | D32: =SUM(D27,D28,D30) -> 42.491912 | G32: =SUM(G27,G28,G30) -> 42.491912 | H32: 0 | I32: 0 | J32: 0.2958344919 | K32: 0.2945060769
A33: Retail Transmission Rate – Network Service Rate | B33: =B8 -> 989.92 | C33: =VLOOKUP($B$3,'Data Current Rates'!$A:$BA,MATCH('BI Template_Energy'!$A33,CurrentHeader,0),FALSE) -> 0.0078 | D33: =B33*C33 -> 7.721376 | E33: 989.92 | F33: =VLOOKUP($B$3,'Data Proposed Rates'!$A:$BA,MATCH('BI Template_Energy'!$A33,ProposedHeader,0),FALSE) -> 0.008 | G33: =E33*F33 -> 7.91936 | H33: =G33-D33 -> 0.197984 | I33: 0.02564102564 | J33: 0.05513566539 | K33: 0.05488808423
A34: Retail Transmission Rate – Line and Transformation Connection Service Rate | B34: =B8 -> 989.92 | C34: =VLOOKUP($B$3,'Data Current Rates'!$A:$BA,MATCH('BI Template_Energy'!$A34,CurrentHeader,0),FALSE) -> 0.007 | D34: =B34*C34 -> 6.92944 | E34: 989.92 | F34: =VLOOKUP($B$3,'Data Proposed Rates'!$A:$BA,MATCH('BI Template_Energy'!$A34,ProposedHeader,0),FALSE) -> 0.0072 | G34: =E34*F34 -> 7.127424 | H34: =G34-D34 -> 0.197984 | I34: 0.02857142857 | J34: 0.04962209885 | K34: 0.04939927581
A35: Sub-Total: Retail Transmission | D35: =SUM(D33:D34) -> 14.650816 | G35: =SUM(G33:G34) -> 15.046784 | H35: =G35-D35 -> 0.395968 | I35: 0.02702702703 | J35: 0.1047577642 | K35: 0.10428736
A36: Sub-Total: Delivery (based on two-tier RPP prices) | D36: =D31+D35 -> 57.607696 | G36: =G31+G35 -> 58.003664 | H36: =G36-D36 -> 0.395968 | I36: 0.006873526065 | J36: 0.4038294268 | K36: 0.4020160714
A37: Sub-Total: Delivery (based on TOU prices) | D37: =D32+D35 -> 57.142728 | G37: =G32+G35 -> 57.538696 | H37: =G37-D37 -> 0.395968 | I37: 0.006929455661 | J37: 0.4005922561 | K37: 0.3987934369
A38: Wholesale Market Service Rate (WMS) - not including CBR | B38: =B8 -> 989.92 | C38: =VLOOKUP($A38,'Data Pass Through'!$A:$D,2,FALSE) -> 0.003 | D38: =B38*C38 -> 2.96976 | E38: =$B$8 -> 989.92 | F38: =VLOOKUP($A38,'Data Pass Through'!$A:$D,3,FALSE) -> 0.003 | G38: =E38*F38 -> 2.96976 | H38: 0 | I38: 0 | J38: 0.02067587452 | K38: 0.02058303159
A39: Capacity Based Recovery (CBR) - Applicable for Class B Customers | B39: =B8 -> 989.92 | C39: =VLOOKUP($A39,'Data Pass Through'!$A:$D,2,FALSE) -> 0.0004 | D39: =B39*C39 -> 0.395968 | E39: =$B$8 -> 989.92 | F39: =VLOOKUP($A39,'Data Pass Through'!$A:$D,3,FALSE) -> 0.0004 | G39: =E39*F39 -> 0.395968 | H39: =G39-D39 -> 0 | I39: =IF(ISERROR(H39/ABS(D39)),"N/A",(H39/ABS(D39))) -> 0 | J39: 0.002756783269 | K39: 0.002744404211
A40: Rural Rate Protection Charge | B40: =B8 -> 989.92 | C40: =VLOOKUP($A40,'Data Pass Through'!$A:$D,2,FALSE) -> 0.0005 | D40: 0.49496 | E40: 989.92 | F40: =VLOOKUP($A40,'Data Pass Through'!$A:$D,3,FALSE) -> 0.0005 | G40: 0.49496 | H40: 0 | I40: 0 | J40: 0.003445979087 | K40: 0.003430505264
A41: Standard Supply Service – Administration Charge (if applicable) | B41: 1 | C41: =VLOOKUP($A41,'Data Pass Through'!$A:$D,2,FALSE) -> 0.25 | D41: =B41*C41 -> 0.25 | E41: 1 | F41: =VLOOKUP($A41,'Data Pass Through'!$A:$D,3,FALSE) -> 0.25 | G41: 0.25 | H41: 0 | I41: 0 | J41: 0.001740534127 | K41: 0.001732718434
A42: Sub-Total: Regulatory | D42: =SUM(D38:D41) -> 4.110688 | G42: =SUM(G38:G41) -> 4.110688 | H42: 0 | I42: 0 | J42: 0.028619171 | K42: 0.0284906595
A43: Debt Retirement Charge (DRC) | B43: =B4 -> 920 | C43: =VLOOKUP($A43,'Data Pass Through'!$A:$D,2,FALSE) -> 0 | D43: =B43*C43 -> 0 | E43: 920 | F43: =VLOOKUP($A43,'Data Pass Through'!$A:$D,3,FALSE) -> 0 | G43: =E43*F43 -> 0 | H43: 0 | I43: N/A | J43: 0 | K43: 0
A44: Total Electricty Charge on Two-Tier RPP | D44: =SUM(D14,D27,D28,D29,D35,D42,D43) -> 136.398384 | G44: =SUM(G14,G27,G28,G29,G35,G42,G43) -> 136.794352 | H44: 0.395968 | I44: 0.002903025596 | J44: 0.9523809524
A45: HST | C45: 0.13 | D45: =D44*C45 -> 17.73178992 | F45: =C45 -> 0.13 | G45: =G44*F45 -> 17.78326576 | H45: 0.05147584 | I45: 0.002903025596 | J45: 0.1238095238
A46: Total Electricity Charge on Two-Tier RPP (including HST) | D46: =SUM(D44:D45) -> 154.1301739 | G46: =SUM(G44:G45) -> 154.5776178 | H46: 0.44744384 | I46: 0.002903025596 | J46: 1.076190476
A47: Ontario Rebate for Electricity Consumers (OREC) | C47: -0.08 | D47: =D44*C47 -> -10.91187072 | F47: =C47 -> -0.08 | G47: =G44*F47 -> -10.94354816 | H47: -0.03167744 | I47: -0.002903025596 | J47: -0.07619047619
A48: Total Amount on Two-Tier RPP | D48: =SUM(D46:D47) -> 143.2183032 | G48: =SUM(G46:G47) -> 143.6340696 | H48: 0.4157664 | I48: 0.002903025596 | J48: 1
A49: Total Electricty Charge on TOU (before HST) | D49: =SUM(D18,D27,D28,D30,D35,D42,D43) -> 137.015416 | G49: =SUM(G18,G27,G28,G30,G35,G42,G43) -> 137.411384 | H49: 0.395968 | I49: 0.002889952179 | K49: =G49/$G$53 -> 0.9523809524
A50: HST | C50: 0.13 | D50: =D49*C50 -> 17.81200408 | F50: =C50 -> 0.13 | G50: =G49*F50 -> 17.86347992 | H50: 0.05147584 | I50: 0.002889952179 | K50: =G50/$G$53 -> 0.1238095238
A51: Total Electricity Charge on TOU (including HST) | D51: =SUM(D49:D50) -> 154.8274201 | G51: =SUM(G49:G50) -> 155.2748639 | H51: 0.44744384 | I51: 0.002889952179 | K51: =G51/$G$53 -> 1.076190476
A52: Ontario Rebate for Electricity Consumers (OREC) | C52: -0.08 | D52: =D49*C52 -> -10.96123328 | F52: =C52 -> -0.08 | G52: =G49*F52 -> -10.99291072 | H52: -0.03167744 | I52: -0.002889952179 | K52: =G52/$G$53 -> -0.07619047619
A53: Total Amount on TOU | D53: =SUM(D51:D52) -> 143.8661868 | G53: =SUM(G51:G52) -> 144.2819532 | H53: 0.4157664 | I53: 0.002889952179 | K53: =G53/$G$53 -> 1
A54: * Distribution rate protection applies to R1 and R2 customers

Sheet BI Template_EnergyUNM (hidden)
A1: 2020 Bill Impacts (Average Consumption Level) - USL
A3: Rate Class | B3: =RIGHT(A1,LEN(A1)-FIND("- ",A1,1)-1) -> USL
A4: Monthly Consumption (kWh) | B4: =IF(COUNTIF(A1,"*Low*")>0,VLOOKUP(B3,'Data Billing Quantities'!$A:$Z,MATCH("Low kWh",'Data Billing Quantities'!4:4,0),FALSE),IF(COUNTIF(A1,"*Typical*")>0,VLOOKUP(B3,'Data Billing Quantities'!$A:$Z,MATCH("Typical kWh",'Data Billing Quantities'!4:4,0),FALSE),IF(COUNTIF(A1,"*Average*")>0,VLOOKUP(B3,'Data Billing Quantities'!$A:$Z,MATCH("Average kWh",'Data Billing Quantities'!4:4,0),FALSE),IF(COUNTIF(A1,"*High*")>0,VLOOKUP(B3,'Data Billing Quantities'!$A:$Z,MATCH("High kWh",'Data Billing Quantities'!4:4,0),FALSE),"error")))) -> 364
A5: Peak (kW) | B5: =IF(COUNTIF(A1,"*Low*")>0,VLOOKUP(B3,'Data Billing Quantities'!$A:$Z,MATCH("Low kW",'Data Billing Quantities'!4:4,0),FALSE),IF(COUNTIF(A1,"*Typical*")>0,VLOOKUP(B3,'Data Billing Quantities'!$A:$Z,MATCH("Typical kW",'Data Billing Quantities'!4:4,0),FALSE),IF(COUNTIF(A1,"*Average*")>0,VLOOKUP(B3,'Data Billing Quantities'!$A:$Z,MATCH("Average kW",'Data Billing Quantities'!4:4,0),FALSE),IF(COUNTIF(A1,"*High*")>0,VLOOKUP(B3,'Data Billing Quantities'!$A:$Z,MATCH("High kW",'Data Billing Quantities'!4:4,0),FALSE),"error")))) -> 0
A6: Loss factor | B6: =VLOOKUP(B3,'Data Billing Quantities'!A:D,MATCH(A6,'Data Billing Quantities'!4:4,0),FALSE) -> 1.092
A7: Commodity Threshold | B7: =VLOOKUP(B3,'Data Billing Quantities'!A:D,MATCH(A7,'Data Billing Quantities'!4:4,0),FALSE) -> 750
A8: Monthly Consumption (kWh) - Uplifted | B8: =B4*B6 -> 397.488
A9: Charge determinant | B9: =VLOOKUP(B3,'Data Billing Quantities'!A:D,MATCH(A9,'Data Billing Quantities'!4:4,0),FALSE) -> kWh
B11: Volume | C11: Current Rate ($) | D11: Current Charge ($) | E11: Volume | F11: Proposed Rate ($) | G11: Proposed Charge ($) | H11: Change ($) | I11: Change (%) | J11: % of Total Bill on RPP
A12: Energy First Tier | B12: =IF(B4>B7,B7,B4) -> 364 | C12: =VLOOKUP($A12,'Data Pass Through'!$A:$D,2,FALSE) -> 0.077 | D12: =B12*C12 -> 28.028 | E12: =B12 -> 364 | F12: =VLOOKUP($A12,'Data Pass Through'!$A:$D,3,FALSE) -> 0.077 | G12: =E12*F12 -> 28.028 | H12: =G12-D12 -> 0 | I12: =IF(ISERROR(H12/ABS(D12)),"N/A",(H12/ABS(D12))) -> 0 | J12: =G12/$G$41 -> 0.3249571584
A13: Energy Second Tier | B13: =IF(B4>B7,(B4)-B7,0) -> 0 | C13: =VLOOKUP($A13,'Data Pass Through'!$A:$D,2,FALSE) -> 0.089 | D13: =B13*C13 -> 0 | E13: =B13 -> 0 | F13: =VLOOKUP($A13,'Data Pass Through'!$A:$D,3,FALSE) -> 0.089 | G13: =E13*F13 -> 0 | H13: 0 | I13: N/A | J13: 0
A14: Sub-Total: Energy (RPP Tiered) | D14: =SUM(D12:D13) -> 28.028 | G14: =SUM(G12:G13) -> 28.028 | H14: 0 | I14: 0 | J14: 0.3249571584
A15: Service Charge | B15: 1 | C15: =VLOOKUP($B$3,'Data Current Rates'!$A:$BA,MATCH('BI Template_EnergyUNM'!$A15,CurrentHeader,0),FALSE) -> 37.99 | D15: =B15*C15 -> 37.99 | E15: 1 | F15: =VLOOKUP($B$3,'Data Proposed Rates'!$A:$BA,MATCH('BI Template_EnergyUNM'!$A15,ProposedHeader,0),FALSE) -> 36.15 | G15: =E15*F15 -> 36.15 | H15: -1.84 | I15: -0.04843379837 | J15: 0.419123779
A16: Fixed Foregone Revenue Charge | B16: 1 | C16: =VLOOKUP($B$3,'Data Current Rates'!$A:$BA,MATCH('BI Template_EnergyUNM'!$A16,CurrentHeader,0),FALSE) -> 1.66 | D16: =B16*C16 -> 1.66 | E16: =B16 -> 1 | F16: =VLOOKUP($B$3,'Data Proposed Rates'!$A:$BA,MATCH('BI Template_EnergyUNM'!$A16,ProposedHeader,0),FALSE) -> 1.65 | G16: =E16*F16 -> 1.65 | H16: =G16-D16 -> -0.01 | I16: =IF(ISERROR(H16/ABS(D16)),"N/A",(H16/ABS(D16))) -> -0.006024096386 | J16: =G16/$G$41 -> 0.01913013099
A17: Fixed Deferral/Variance Account Rider (General) | B17: 1 | C17: =VLOOKUP($B$3,'Data Current Rates'!$A:$BA,MATCH('BI Template_EnergyUNM'!$A17,CurrentHeader,0),FALSE) -> 0.01 | D17: 0.01 | E17: 1 | F17: =VLOOKUP($B$3,'Data Proposed Rates'!$A:$BA,MATCH('BI Template_EnergyUNM'!$A17,ProposedHeader,0),FALSE) -> 0.01 | G17: 0.01 | H17: 0 | I17: 0 | J17: 0.0001159401878
A18: Distribution Volumetric Charge | B18: =IF($B$9="kWh",$B$4,$B$5) -> 364 | C18: =VLOOKUP($B$3,'Data Current Rates'!$A:$BA,MATCH('BI Template_EnergyUNM'!$A18,CurrentHeader,0),FALSE) -> 0.0254 | D18: 9.2456 | E18: 364 | F18: =VLOOKUP($B$3,'Data Proposed Rates'!$A:$BA,MATCH('BI Template_EnergyUNM'!$A18,ProposedHeader,0),FALSE) -> 0.0241 | G18: 8.7724 | H18: -0.4732 | I18: -0.05118110236 | J18: 0.1017073704
A19: Volumetric Foregone Revenue Charge | B19: =IF($B$9="kWh",$B$4,$B$5) -> 364 | C19: =VLOOKUP($B$3,'Data Current Rates'!$A:$BA,MATCH('BI Template_EnergyUNM'!$A19,CurrentHeader,0),FALSE) -> -0.0028 | D19: =B19*C19 -> -1.0192 | E19: =B19 -> 364 | F19: =VLOOKUP($B$3,'Data Proposed Rates'!$A:$BA,MATCH('BI Template_EnergyUNM'!$A19,ProposedHeader,0),FALSE) -> -0.0028 | G19: =E19*F19 -> -1.0192 | H19: =G19-D19 -> 0 | I19: =IF(ISERROR(H19/ABS(D19)),"N/A",(H19/ABS(D19))) -> 0 | J19: =G19/$G$41 -> -0.01181662394
A20: Volumetric Deferral/Variance Account Rider (General) | B20: =IF($B$9="kWh",$B$4,$B$5) -> 364 | C20: =VLOOKUP($B$3,'Data Current Rates'!$A:$BA,MATCH('BI Template_EnergyUNM'!$A20,CurrentHeader,0),FALSE) -> -0.0008 | D20: -0.2912 | E20: 364 | F20: =VLOOKUP($B$3,'Data Proposed Rates'!$A:$BA,MATCH('BI Template_EnergyUNM'!$A20,ProposedHeader,0),FALSE) -> -0.0008 | G20: -0.2912 | H20: 0 | I20: 0 | J20: -0.003376178269
A21: Volumetric Deferral/Variance Account Rider (Sub Account CBR) | B21: 364 | C21: =VLOOKUP($B$3,'Data Current Rates'!$A:$BA,MATCH('BI Template_EnergyUNM'!$A21,CurrentHeader,0),FALSE) -> 0 | D21: 0 | E21: 364 | F21: =VLOOKUP($B$3,'Data Proposed Rates'!$A:$BA,MATCH('BI Template_EnergyUNM'!$A21,ProposedHeader,0),FALSE) -> 0 | G21: 0 | H21: 0 | I21: N/A | J21: 0
A22: Volumetric Deferral/Variance Account Rider (Sub-Account Global Adjustment) | B22: 364 | C22: =VLOOKUP($B$3,'Data Current Rates'!$A:$BA,MATCH('BI Template_EnergyUNM'!$A22,CurrentHeader,0),FALSE) -> 0 | D22: 0 | E22: 364 | F22: =VLOOKUP($B$3,'Data Proposed Rates'!$A:$BA,MATCH('BI Template_EnergyUNM'!$A22,ProposedHeader,0),FALSE) -> 0 | G22: 0 | H22: 0 | I22: N/A | J22: 0
A23: Sub-Total: Distribution (excluding pass through) | D23: =SUM(INDIRECT("D15:D"&ROW()-1)) -> 47.5952 | G23: =SUM(INDIRECT("g15:g"&ROW()-1)) -> 45.272 | H23: =G23-D23 -> -2.3232 | I23: -0.04881164487 | J23: 0.5248844183
A24: Smart Metering Entity Charge | B24: 1 | C24: =VLOOKUP($A24,'Data Pass Through'!$A:$D,2,FALSE) -> 0.57 | D24: =B24*C24 -> 0.57 | E24: 1 | F24: =VLOOKUP($A24,'Data Pass Through'!$A:$D,3,FALSE) -> 0.57 | G24: =E24*F24 -> 0.57 | H24: 0 | I24: 0 | J24: 0.006608590705
A25: Line Losses on Cost of Power (based on two-tier RPP prices) | B25: =B8-B4 -> 33.488 | C25: =IF(B4>B7,C13,C12) -> 0.077 | D25: =B25*C25 -> 2.578576 | E25: 33.488 | F25: =IF(B4>B7,F13,F12) -> 0.077 | G25: =E25*F25 -> 2.578576 | H25: 0 | I25: 0 | J25: 0.02989605857
A26: Sub-Total: Distribution (based on two-tier RPP prices) | D26: =SUM(D23,D24:D25) -> 50.743776 | G26: =SUM(G23,G24:G25) -> 48.420576 | H26: -2.3232 | I26: -0.04578295474 | J26: 0.5613890676
A27: Retail Transmission Rate – Network Service Rate | B27: =B8 -> 397.488 | C27: =VLOOKUP($B$3,'Data Current Rates'!$A:$BA,MATCH('BI Template_EnergyUNM'!$A27,CurrentHeader,0),FALSE) -> 0.0051 | D27: =B27*C27 -> 2.0271888 | E27: 397.488 | F27: =VLOOKUP($B$3,'Data Proposed Rates'!$A:$BA,MATCH('BI Template_EnergyUNM'!$A27,ProposedHeader,0),FALSE) -> 0.0053 | G27: =E27*F27 -> 2.1066864 | H27: =G27-D27 -> 0.0794976 | I27: 0.03921568627 | J27: 0.02442496169
A28: Retail Transmission Rate – Line and Transformation Connection Service Rate | B28: =B8 -> 397.488 | C28: =VLOOKUP($B$3,'Data Current Rates'!$A:$BA,MATCH('BI Template_EnergyUNM'!$A28,CurrentHeader,0),FALSE) -> 0.0044 | D28: =B28*C28 -> 1.7489472 | E28: 397.488 | F28: =VLOOKUP($B$3,'Data Proposed Rates'!$A:$BA,MATCH('BI Template_EnergyUNM'!$A28,ProposedHeader,0),FALSE) -> 0.0045 | G28: =E28*F28 -> 1.788696 | H28: =G28-D28 -> 0.0397488 | I28: 0.02272727273 | J28: 0.02073817502
A29: Sub-Total: Retail Transmission | D29: =SUM(D27:D28) -> 3.776136 | G29: =SUM(G27:G28) -> 3.8953824 | H29: =G29-D29 -> 0.1192464 | I29: 0.03157894737 | J29: 0.04516313671
A30: Sub-Total: Delivery (based on two-tier RPP prices) | D30: =D26+D29 -> 54.519912 | G30: =G26+G29 -> 52.3159584 | H30: =G30-D30 -> -2.2039536 | I30: -0.0404247461 | J30: 0.6065522043
A31: Wholesale Market Service Rate (WMS) - not including CBR | B31: =B8 -> 397.488 | C31: =VLOOKUP($A31,'Data Pass Through'!$A:$D,2,FALSE) -> 0.003 | D31: =B31*C31 -> 1.192464 | E31: =$B$8 -> 397.488 | F31: =VLOOKUP($A31,'Data Pass Through'!$A:$D,3,FALSE) -> 0.003 | G31: =E31*F31 -> 1.192464 | H31: =G31-D31 -> 0 | I31: 0 | J31: 0.01382545001
A32: Capacity Based Recovery (CBR) - Applicable for Class B Customers | B32: =B8 -> 397.488 | C32: =VLOOKUP($A32,'Data Pass Through'!$A:$D,2,FALSE) -> 0.0004 | D32: =B32*C32 -> 0.1589952 | E32: =$B$8 -> 397.488 | F32: =VLOOKUP($A32,'Data Pass Through'!$A:$D,3,FALSE) -> 0.0004 | G32: =E32*F32 -> 0.1589952 | H32: 0 | I32: 0 | J32: 0.001843393335
A33: Rural Rate Protection Charge | B33: =B8 -> 397.488 | C33: =VLOOKUP($A33,'Data Pass Through'!$A:$D,2,FALSE) -> 0.0005 | D33: 0.198744 | E33: 397.488 | F33: =VLOOKUP($A33,'Data Pass Through'!$A:$D,3,FALSE) -> 0.0005 | G33: 0.198744 | H33: 0 | I33: 0 | J33: 0.002304241669
A34: Standard Supply Service – Administration Charge (if applicable) | B34: 1 | C34: =VLOOKUP($A34,'Data Pass Through'!$A:$D,2,FALSE) -> 0.25 | D34: =B34*C34 -> 0.25 | E34: 1 | F34: =VLOOKUP($A34,'Data Pass Through'!$A:$D,3,FALSE) -> 0.25 | G34: 0.25 | H34: 0 | I34: 0 | J34: 0.002898504695
A35: Sub-Total: Regulatory | D35: =SUM(D31:D34) -> 1.8002032 | G35: =SUM(G31:G34) -> 1.8002032 | H35: 0 | I35: 0 | J35: 0.02087158971
A36: Debt Retirement Charge (DRC) | B36: =B4 -> 364 | C36: =VLOOKUP($A36,'Data Pass Through'!$A:$D,2,FALSE) -> 0 | D36: =B36*C36 -> 0 | E36: 364 | F36: =VLOOKUP($A36,'Data Pass Through'!$A:$D,3,FALSE) -> 0 | G36: =E36*F36 -> 0 | H36: 0 | I36: N/A | J36: 0
A37: Total Electricty Charge on Two-Tier RPP | D37: =SUM(D14,D23,D24,D25,D29,D35,D36) -> 84.3481152 | G37: =SUM(G14,G23,G24,G25,G29,G35,G36) -> 82.1441616 | H37: -2.2039536 | I37: -0.02612925724 | J37: 0.9523809524
A38: HST | C38: 0.13 | D38: =D37*C38 -> 10.96525498 | F38: =C38 -> 0.13 | G38: =G37*F38 -> 10.67874101 | H38: -0.286513968 | I38: -0.02612925724 | J38: 0.1238095238
A39: Total Electricity Charge on Two-Tier RPP (including HST) | D39: =SUM(D37:D38) -> 95.31337018 | G39: =SUM(G37:G38) -> 92.82290261 | H39: -2.490467568 | I39: -0.02612925724 | J39: 1.076190476
A40: Ontario Rebate for Electricity Consumers (OREC) | C40: -0.08 | D40: =D37*C40 -> -6.747849216 | F40: =C40 -> -0.08 | G40: =G37*F40 -> -6.571532928 | H40: 0.176316288 | I40: 0.02612925724 | J40: -0.07619047619
A41: Total Amount on Two-Tier RPP | D41: =SUM(D39:D40) -> 88.56552096 | G41: =SUM(G39:G40) -> 86.25136968 | H41: -2.31415128 | I41: -0.02612925724 | J41: 1

Sheet BI Template_Demand (hidden)
A1: 2020 Bill Impacts (Average Consumption Level) - GSd
A3: Rate Class | B3: =RIGHT(A1,LEN(A1)-FIND("- ",A1,1)-1) -> GSd
A4: Monthly Consumption (kWh) | B4: =IF(COUNTIF(A1,"*Low*")>0,VLOOKUP(B3,'Data Billing Quantities'!$A:$Z,MATCH("Low kWh",'Data Billing Quantities'!4:4,0),FALSE),IF(COUNTIF(A1,"*Typical*")>0,VLOOKUP(B3,'Data Billing Quantities'!$A:$Z,MATCH("Typical kWh",'Data Billing Quantities'!4:4,0),FALSE),IF(COUNTIF(A1,"*Average*")>0,VLOOKUP(B3,'Data Billing Quantities'!$A:$Z,MATCH("Average kWh",'Data Billing Quantities'!4:4,0),FALSE),IF(COUNTIF(A1,"*High*")>0,VLOOKUP(B3,'Data Billing Quantities'!$A:$Z,MATCH("High kWh",'Data Billing Quantities'!4:4,0),FALSE),"error")))) -> 36104
A5: Peak (kW) | B5: =IF(COUNTIF(A1,"*Low*")>0,VLOOKUP(B3,'Data Billing Quantities'!$A:$Z,MATCH("Low kW",'Data Billing Quantities'!4:4,0),FALSE),IF(COUNTIF(A1,"*Typical*")>0,VLOOKUP(B3,'Data Billing Quantities'!$A:$Z,MATCH("Typical kW",'Data Billing Quantities'!4:4,0),FALSE),IF(COUNTIF(A1,"*Average*")>0,VLOOKUP(B3,'Data Billing Quantities'!$A:$Z,MATCH("Average kW",'Data Billing Quantities'!4:4,0),FALSE),IF(COUNTIF(A1,"*High*")>0,VLOOKUP(B3,'Data Billing Quantities'!$A:$Z,MATCH("High kW",'Data Billing Quantities'!4:4,0),FALSE),"error")))) -> 124
A6: Loss factor | B6: =VLOOKUP(B3,'Data Billing Quantities'!A:D,MATCH(A6,'Data Billing Quantities'!4:4,0),FALSE) -> 1.061
A7: Load factor | B7: =B4/(B5*730) -> 0.3988510826
A8: Monthly Consumption (kWh) - Uplifted | B8: =B4*B6 -> 38306.344
A9: Charge determinant | B9: =VLOOKUP(B3,'Data Billing Quantities'!A:D,MATCH(A9,'Data Billing Quantities'!4:4,0),FALSE) -> kW
B11: Volume | C11: Current Rate ($) | D11: Current Charge ($) | E11: Volume | F11: Proposed Rate ($) | G11: Proposed Charge ($) | H11: Change ($) | I11: Change (%) | J11: % of Total Bill
A12: Energy (Non-RPP)* | B12: =B8 -> 38306.344 | C12: =VLOOKUP($A12,'Data Pass Through'!A:E,2,FALSE) -> 0.123 | D12: =B12*C12 -> 4711.680312 | E12: =B8 -> 38306.344 | F12: =VLOOKUP($A12,'Data Pass Through'!A:E,3,FALSE) -> 0.123 | G12: =E12*F12 -> 4711.680312 | H12: =G12-D12 -> 0 | I12: =IF(ISERROR(H12/ABS(D12)),"N/A",(H12/ABS(D12))) -> 0 | J12: =G12/$G$36 -> 0.5608758477
A13: Service Charge | B13: 1 | C13: =VLOOKUP($B$3,'Data Current Rates'!$A:$BA,MATCH($A13,CurrentHeader,0),FALSE) -> 104.18 | D13: =B13*C13 -> 104.18 | E13: =B13 -> 1 | F13: =VLOOKUP($B$3,'Data Proposed Rates'!$A:$BA,MATCH($A13,ProposedHeader,0),FALSE) -> 105.21 | G13: =E13*F13 -> 105.21 | H13: 1.03 | I13: 0.009886734498 | J13: 0.01252414086
A14: Fixed Foregone Revenue Charge | B14: 1 | C14: =VLOOKUP($B$3,'Data Current Rates'!$A:$BA,MATCH($A14,CurrentHeader,0),FALSE) -> 10.78 | D14: =B14*C14 -> 10.78 | E14: =B14 -> 1 | F14: =VLOOKUP($B$3,'Data Proposed Rates'!$A:$BA,MATCH($A14,ProposedHeader,0),FALSE) -> 10.69 | G14: =E14*F14 -> 10.69 | H14: =G14-D14 -> -0.09 | I14: =IF(ISERROR(H14/ABS(D14)),"N/A",(H14/ABS(D14))) -> -0.008348794063 | J14: =G14/$G$36 -> 0.001272531754
A15: Fixed Deferral/Variance Account Rider (General) | B15: 1 | C15: =VLOOKUP($B$3,'Data Current Rates'!$A:$BA,MATCH($A15,CurrentHeader,0),FALSE) -> -0.05 | D15: =B15*C15 -> -0.05 | E15: 1 | F15: =VLOOKUP($B$3,'Data Proposed Rates'!$A:$BA,MATCH($A15,ProposedHeader,0),FALSE) -> -0.05 | G15: =E15*F15 -> -0.05 | H15: 0 | I15: 0 | J15: -5.951972657e-06
A16: Distribution Volumetric Charge | B16: =IF($B$9="kWh",$B$4,$B$5) -> 124 | C16: =VLOOKUP($B$3,'Data Current Rates'!$A:$BA,MATCH($A16,CurrentHeader,0),FALSE) -> 17.2259 | D16: 2136.0116 | E16: =$B$5 -> 124 | F16: =VLOOKUP($B$3,'Data Proposed Rates'!$A:$BA,MATCH($A16,ProposedHeader,0),FALSE) -> 17.6289 | G16: 2185.9836 | H16: 49.972 | I16: =IF(ISERROR(H16/ABS(D16)),"N/A",(H16/ABS(D16))) -> 0.02339500403 | J16: 0.2602182923
A17: Volumetric Foregone Revenue Charge | B17: =IF($B$9="kWh",$B$4,$B$5) -> 124 | C17: =VLOOKUP($B$3,'Data Current Rates'!$A:$BA,MATCH($A17,CurrentHeader,0),FALSE) -> 0.7293 | D17: =B17*C17 -> 90.4332 | E17: =$B$5 -> 124 | F17: =VLOOKUP($B$3,'Data Proposed Rates'!$A:$BA,MATCH($A17,ProposedHeader,0),FALSE) -> 0.7265 | G17: =E17*F17 -> 90.086 | H17: =G17-D17 -> -0.3472 | I17: =IF(ISERROR(H17/ABS(D17)),"N/A",(H17/ABS(D17))) -> -0.003839297957 | J17: =G17/$G$36 -> 0.01072378817
A18: Volumetric Deferral/Variance Account Rider (General) | B18: =IF($B$9="kWh",$B$4,$B$5) -> 124 | C18: =VLOOKUP($B$3,'Data Current Rates'!$A:$BA,MATCH($A18,CurrentHeader,0),FALSE) -> -0.2655 | D18: -32.922 | E18: =$B$5 -> 124 | F18: =VLOOKUP($B$3,'Data Proposed Rates'!$A:$BA,MATCH($A18,ProposedHeader,0),FALSE) -> -0.2655 | G18: -32.922 | H18: 0 | I18: =IF(ISERROR(H18/ABS(D18)),"N/A",(H18/ABS(D18))) -> 0 | J18: -0.003919016876
A19: Volumetric Deferral/Variance Account Rider (Sub Account CBR) | B19: 124 | C19: =VLOOKUP($B$3,'Data Current Rates'!$A:$BA,MATCH($A19,CurrentHeader,0),FALSE) -> 0 | D19: 0 | E19: 124 | F19: =VLOOKUP($B$3,'Data Proposed Rates'!$A:$BA,MATCH($A19,ProposedHeader,0),FALSE) -> 0 | G19: 0 | H19: 0 | I19: N/A | J19: 0
A20: Volumetric Deferral/Variance Account Rider (Sub-Account Global Adjustment) | B20: =B4 -> 36104 | C20: =VLOOKUP($B$3,'Data Current Rates'!$A:$BA,MATCH($A20,CurrentHeader,0),FALSE) -> -0.0067 | D20: -241.8968 | E20: =B4 -> 36104 | F20: =VLOOKUP($B$3,'Data Proposed Rates'!$A:$BA,MATCH($A20,ProposedHeader,0),FALSE) -> -0.0067 | G20: -241.8968 | H20: =G20-D20 -> 0 | I20: =IF(ISERROR(H20/ABS(D20)),"N/A",(H20/ABS(D20))) -> 0 | J20: -0.02879526279
A21: Sub-Total: Distribution | D21: =SUM(INDIRECT("D13:D"&ROW()-1)) -> 2066.536 | G21: =SUM(INDIRECT("g13:g"&ROW()-1)) -> 2117.1008 | H21: 50.5648 | I21: 0.02446838574 | J21: 0.2520185215
A22: Retail Transmission Rate – Network Service Rate | B22: =B5 -> 124 | C22: =VLOOKUP($B$3,'Data Current Rates'!$A:$BA,MATCH($A22,CurrentHeader,0),FALSE) -> 1.9327 | D22: =B22*C22 -> 239.6548 | E22: 124 | F22: =VLOOKUP($B$3,'Data Proposed Rates'!$A:$BA,MATCH($A22,ProposedHeader,0),FALSE) -> 1.9952 | G22: =E22*F22 -> 247.4048 | H22: 7.75 | I22: 0.03233817975 | J22: 0.02945093209
A23: Retail Transmission Rate – Line and Transformation Connection Service Rate | B23: =B5 -> 124 | C23: =VLOOKUP($B$3,'Data Current Rates'!$A:$BA,MATCH($A23,CurrentHeader,0),FALSE) -> 1.6437 | D23: =B23*C23 -> 203.8188 | E23: 124 | F23: =VLOOKUP($B$3,'Data Proposed Rates'!$A:$BA,MATCH($A23,ProposedHeader,0),FALSE) -> 1.6799 | G23: =E23*F23 -> 208.3076 | H23: 4.4888 | I23: 0.0220234836 | J23: 0.02479682279
A24: Sub-Total: Retail Transmission | D24: =SUM(D22:D23) -> 443.4736 | G24: =SUM(G22:G23) -> 455.7124 | H24: 12.2388 | I24: 0.02759758416 | J24: 0.05424775488
A25: Sub-Total: Delivery | D25: =D21+D24 -> 2510.0096 | G25: =G21+G24 -> 2572.8132 | H25: 62.8036 | I25: 0.02502125888 | J25: 0.3062662763
A26: Wholesale Market Service Rate (WMS) - not including CBR | B26: =$B$8 -> 38306.344 | C26: =VLOOKUP($A26,'Data Pass Through'!$A:$D,2,FALSE) -> 0.003 | D26: =B26*C26 -> 114.919032 | E26: =$B$8 -> 38306.344 | F26: =VLOOKUP($A26,'Data Pass Through'!$A:$D,3,FALSE) -> 0.003 | G26: =E26*F26 -> 114.919032 | H26: 0 | I26: 0 | J26: 0.01367989872
A27: Capacity Based Recovery (CBR) - Applicable for Class B Customers | B27: =$B$8 -> 38306.344 | C27: =VLOOKUP($A27,'Data Pass Through'!$A:$D,2,FALSE) -> 0.0004 | D27: =B27*C27 -> 15.3225376 | E27: =$B$8 -> 38306.344 | F27: =VLOOKUP($A27,'Data Pass Through'!$A:$D,3,FALSE) -> 0.0004 | G27: =E27*F27 -> 15.3225376 | H27: =G27-D27 -> 0 | I27: 0 | J27: 0.001823986496
A28: Rural Rate Protection Charge | B28: =$B$8 -> 38306.344 | C28: =VLOOKUP($A28,'Data Pass Through'!$A:$D,2,FALSE) -> 0.0005 | D28: =B28*C28 -> 19.153172 | E28: =$B$8 -> 38306.344 | F28: =VLOOKUP($A28,'Data Pass Through'!$A:$D,3,FALSE) -> 0.0005 | G28: =E28*F28 -> 19.153172 | H28: =G28-D28 -> 0 | I28: 0 | J28: 0.002279983121
A29: Standard Supply Service – Administration Charge (if applicable) | B29: 1 | C29: =VLOOKUP($A29,'Data Pass Through'!$A:$D,2,FALSE) -> 0.25 | D29: =B29*C29 -> 0.25 | E29: 1 | F29: =VLOOKUP($A29,'Data Pass Through'!$A:$D,3,FALSE) -> 0.25 | G29: =E29*F29 -> 0.25 | H29: 0 | I29: 0 | J29: 2.975986328e-05
A30: Sub-Total: Regulatory | D30: =SUM(D26:D29) -> 149.6447416 | G30: =SUM(G26:G29) -> 149.6447416 | H30: 0 | I30: 0 | J30: 0.0178136282
A31: Debt Retirement Charge (DRC) | B31: =B4 -> 36104 | C31: =VLOOKUP($A31,'Data Pass Through'!$A:$D,2,FALSE) -> 0 | D31: =B31*C31 -> 0 | E31: =B4 -> 36104 | F31: =VLOOKUP($A31,'Data Pass Through'!$A:$D,3,FALSE) -> 0 | G31: =E31*F31 -> 0 | H31: 0 | I31: N/A | J31: 0
A32: Total Electricity Charge (before HST) | D32: =SUM(D12,D21,D24,D30,D31) -> 7371.334654 | G32: =SUM(G12,G21,G24,G30,G31) -> 7434.138254 | H32: 62.8036 | I32: 0.008519976768 | J32: 0.8849557522
A33: HST | C33: 0.13 | D33: =D32*C33 -> 958.273505 | F33: =C33 -> 0.13 | G33: =G32*F33 -> 966.437973 | H33: 8.164468 | I33: 0.008519976768 | J33: 0.1150442478
A34: Total Electricity Charge (including HST) | D34: =SUM(D32:D33) -> 8329.608159 | G34: =SUM(G32:G33) -> 8400.576227 | H34: 70.968068 | I34: 0.008519976768 | J34: 1
A35: Ontario Rebate for Electricity Consumers (OREC) | C35: 0 | D35: =D32*C35 -> 0 | F35: =C35 -> 0 | G35: =G32*F35 -> 0 | H35: 0 | I35: N/A | J35: 0
A36: Total Amount | D36: =SUM(D34:D35) -> 8329.608159 | G36: =SUM(G34:G35) -> 8400.576227 | H36: 70.968068 | I36: 0.008519976768 | J36: 1
A37: =VLOOKUP($A12,'Data Pass Through'!A:E,5,FALSE) -> *Average HOEP plus average GA used to approximate Non-RPP Energy Charges (IESO Monthly Market Report Jun 2019)

Sheet BI_UR_Low
A1: 2020 Bill Impacts (Low Consumption Level) - UR
A3: Rate Class | B3: =RIGHT(A1,LEN(A1)-FIND("- ",A1,1)-1) -> UR
A4: Monthly Consumption (kWh) | B4: =IF(COUNTIF(A1,"*Low*")>0,VLOOKUP(B3,'Data Billing Quantities'!$A:$Z,MATCH("Low kWh",'Data Billing Quantities'!4:4,0),FALSE),IF(COUNTIF(A1,"*Typical*")>0,VLOOKUP(B3,'Data Billing Quantities'!$A:$Z,MATCH("Typical kWh",'Data Billing Quantities'!4:4,0),FALSE),IF(COUNTIF(A1,"*Average*")>0,VLOOKUP(B3,'Data Billing Quantities'!$A:$Z,MATCH("Average kWh",'Data Billing Quantities'!4:4,0),FALSE),IF(COUNTIF(A1,"*High*")>0,VLOOKUP(B3,'Data Billing Quantities'!$A:$Z,MATCH("High kWh",'Data Billing Quantities'!4:4,0),FALSE),"error")))) -> 350
A5: Peak (kW) | B5: =IF(COUNTIF(A1,"*Low*")>0,VLOOKUP(B3,'Data Billing Quantities'!$A:$Z,MATCH("Low kW",'Data Billing Quantities'!4:4,0),FALSE),IF(COUNTIF(A1,"*Typical*")>0,VLOOKUP(B3,'Data Billing Quantities'!$A:$Z,MATCH("Typical kW",'Data Billing Quantities'!4:4,0),FALSE),IF(COUNTIF(A1,"*Average*")>0,VLOOKUP(B3,'Data Billing Quantities'!$A:$Z,MATCH("Average kW",'Data Billing Quantities'!4:4,0),FALSE),IF(COUNTIF(A1,"*High*")>0,VLOOKUP(B3,'Data Billing Quantities'!$A:$Z,MATCH("High kW",'Data Billing Quantities'!4:4,0),FALSE),"error")))) -> 0
A6: Loss factor | B6: =VLOOKUP(B3,'Data Billing Quantities'!A:D,MATCH(A6,'Data Billing Quantities'!4:4,0),FALSE) -> 1.057
A7: Commodity Threshold | B7: =VLOOKUP(B3,'Data Billing Quantities'!A:D,MATCH(A7,'Data Billing Quantities'!4:4,0),FALSE) -> 600
A8: Monthly Consumption (kWh) - Uplifted | B8: =B4*B6 -> 369.95
A9: Charge determinant | B9: =VLOOKUP(B3,'Data Billing Quantities'!A:D,MATCH(A9,'Data Billing Quantities'!4:4,0),FALSE) -> kWh
B11: Volume | C11: Current Rate ($) | D11: Current Charge ($) | E11: Volume | F11: Proposed Rate ($) | G11: Proposed Charge ($) | H11: Change ($) | I11: Change (%) | J11: % of Total Bill on RPP | K11: % of Total Bill on TOU
A12: Energy First Tier | B12: =IF(B4>B7,B7,B4) -> 350 | C12: =VLOOKUP($A12,'Data Pass Through'!$A:$D,2,FALSE) -> 0.077 | D12: =B12*C12 -> 26.95 | E12: =B12 -> 350 | F12: =VLOOKUP($A12,'Data Pass Through'!$A:$D,3,FALSE) -> 0.077 | G12: =E12*F12 -> 26.95 | H12: =G12-D12 -> 0 | I12: =IF(ISERROR(H12/ABS(D12)),"N/A",(H12/ABS(D12))) -> 0 | J12: =G12/$G$48 -> 0.3602888337
A13: Energy Second Tier | B13: =IF(B4>B7,(B4)-B7,0) -> 0 | C13: =VLOOKUP($A13,'Data Pass Through'!$A:$D,2,FALSE) -> 0.089 | D13: =B13*C13 -> 0 | E13: =B13 -> 0 | F13: =VLOOKUP($A13,'Data Pass Through'!$A:$D,3,FALSE) -> 0.089 | G13: =E13*F13 -> 0 | H13: 0 | I13: N/A | J13: =G13/$G$48 -> 0
A14: Sub-Total: Energy (RPP Tiered) | D14: =SUM(D12:D13) -> 26.95 | G14: =SUM(G12:G13) -> 26.95 | H14: 0 | I14: 0 | J14: =G14/$G$48 -> 0.3602888337
A15: TOU-Off Peak | B15: =B$4*VLOOKUP($B$3,'Data Billing Quantities'!$A:$O,MATCH(BI_UR_Low!$A15,'Data Billing Quantities'!$4:$4,0),FALSE) -> 227.5 | C15: =VLOOKUP($A15,'Data Pass Through'!$A:$D,2,FALSE) -> 0.065 | D15: =B15*C15 -> 14.7875 | E15: 227.5 | F15: =VLOOKUP($A15,'Data Pass Through'!$A:$D,3,FALSE) -> 0.065 | G15: =E15*F15 -> 14.7875 | H15: 0 | I15: 0 | K15: =G15/$G$53 -> 0.1923469869
A16: TOU-Mid Peak | B16: =B$4*VLOOKUP($B$3,'Data Billing Quantities'!$A:$O,MATCH(BI_UR_Low!$A16,'Data Billing Quantities'!$4:$4,0),FALSE) -> 59.5 | C16: =VLOOKUP($A16,'Data Pass Through'!$A:$D,2,FALSE) -> 0.094 | D16: =B16*C16 -> 5.593 | E16: 59.5 | F16: =VLOOKUP($A16,'Data Pass Through'!$A:$D,3,FALSE) -> 0.094 | G16: =E16*F16 -> 5.593 | H16: 0 | I16: 0 | K16: 0.07275041065
A17: TOU-On Peak | B17: =B$4*VLOOKUP($B$3,'Data Billing Quantities'!$A:$O,MATCH(BI_UR_Low!$A17,'Data Billing Quantities'!$4:$4,0),FALSE) -> 63 | C17: =VLOOKUP($A17,'Data Pass Through'!$A:$D,2,FALSE) -> 0.134 | D17: =B17*C17 -> 8.442 | E17: 63 | F17: =VLOOKUP($A17,'Data Pass Through'!$A:$D,3,FALSE) -> 0.134 | G17: =E17*F17 -> 8.442 | H17: 0 | I17: 0 | K17: 0.1098085047
A18: Sub-Total: Energy (RPP TOU) | D18: =SUM(D15:D17) -> 28.8225 | G18: =SUM(G15:G17) -> 28.8225 | H18: 0 | I18: 0 | J18: =G18/$G$48 -> 0.3853218891 | K18: 0.3749059022
A19: Service Charge | B19: 1 | C19: =VLOOKUP($B$3,'Data Current Rates'!$A:$BA,MATCH(BI_UR_Low!$A19,CurrentHeader,0),FALSE) -> 28.63 | D19: =B19*C19 -> 28.63 | E19: 1 | F19: =VLOOKUP($B$3,'Data Proposed Rates'!$A:$BA,MATCH(BI_UR_Low!$A19,ProposedHeader,0),FALSE) -> 31.91 | G19: =E19*F19 -> 31.91 | H19: 3.28 | I19: 0.1145651415 | J19: 0.4265980217 | K19: 0.4150662621
A20: Fixed Foregone Revenue Charge | B20: 1 | C20: =VLOOKUP($B$3,'Data Current Rates'!$A:$BA,MATCH(BI_UR_Low!$A20,CurrentHeader,0),FALSE) -> 1.46 | D20: 1.46 | E20: 1 | F20: =VLOOKUP($B$3,'Data Proposed Rates'!$A:$BA,MATCH(BI_UR_Low!$A20,ProposedHeader,0),FALSE) -> 1.45 | G20: 1.45 | H20: -0.01 | I20: -0.006849315068 | J20: 0.01938474245 | K20: 0.01886073582
A21: Fixed Deferral/Variance Account Rider (General) | B21: 1 | C21: =VLOOKUP($B$3,'Data Current Rates'!$A:$BA,MATCH(BI_UR_Low!$A21,CurrentHeader,0),FALSE) -> 0.05 | D21: 0.05 | E21: 1 | F21: =VLOOKUP($B$3,'Data Proposed Rates'!$A:$BA,MATCH(BI_UR_Low!$A21,ProposedHeader,0),FALSE) -> 0.05 | G21: 0.05 | H21: 0 | I21: 0 | J21: 0.0006684393947 | K21: 0.0006503702007
A22: Distribution Volumetric Charge | B22: =IF($B$9="kWh",$B$4,$B$5) -> 350 | C22: =VLOOKUP($B$3,'Data Current Rates'!$A:$BA,MATCH(BI_UR_Low!$A22,CurrentHeader,0),FALSE) -> 0.0075 | D22: 2.625 | E22: 350 | F22: =VLOOKUP($B$3,'Data Proposed Rates'!$A:$BA,MATCH(BI_UR_Low!$A22,ProposedHeader,0),FALSE) -> 0.0038 | G22: 1.33 | H22: -1.295 | I22: -0.4933333333 | J22: 0.0177804879 | K22: 0.01729984734
A23: Volumetric Foregone Revenue Charge | B23: =IF($B$9="kWh",$B$4,$B$5) -> 350 | C23: =VLOOKUP($B$3,'Data Current Rates'!$A:$BA,MATCH(BI_UR_Low!$A23,CurrentHeader,0),FALSE) -> 0 | D23: 0 | E23: 350 | F23: =VLOOKUP($B$3,'Data Proposed Rates'!$A:$BA,MATCH(BI_UR_Low!$A23,ProposedHeader,0),FALSE) -> 0 | G23: 0 | H23: 0 | I23: N/A | J23: 0 | K23: 0
A24: Volumetric Deferral/Variance Account Rider (General) | B24: =IF($B$9="kWh",$B$4,$B$5) -> 350 | C24: =VLOOKUP($B$3,'Data Current Rates'!$A:$BA,MATCH(BI_UR_Low!$A24,CurrentHeader,0),FALSE) -> -0.0008 | D24: -0.28 | E24: 350 | F24: =VLOOKUP($B$3,'Data Proposed Rates'!$A:$BA,MATCH(BI_UR_Low!$A24,ProposedHeader,0),FALSE) -> -0.0008 | G24: -0.28 | H24: 0 | I24: 0 | J24: -0.00374326061 | K24: -0.003642073124
A25: Volumetric Deferral/Variance Account Rider (Sub Account CBR) | B25: 350 | C25: =VLOOKUP($B$3,'Data Current Rates'!$A:$BA,MATCH(BI_UR_Low!$A25,CurrentHeader,0),FALSE) -> 0 | D25: 0 | E25: 350 | F25: =VLOOKUP($B$3,'Data Proposed Rates'!$A:$BA,MATCH(BI_UR_Low!$A25,ProposedHeader,0),FALSE) -> 0 | G25: 0 | H25: 0 | I25: N/A | J25: 0 | K25: 0
A26: Fair Hydro Plan - Distribution Rate Protection Savings* | D26: =IF(AND(B3<>"R1",B3<>"R2"),0,IF(VLOOKUP($A26,'Data Pass Through'!$A:$D,2,FALSE)=0,0,IF(SUM(D19:D20,D22:D23)<VLOOKUP($A26,'Data Pass Through'!$A:$D,2,FALSE),0,VLOOKUP($A26,'Data Pass Through'!$A:$D,2,FALSE)-SUM(D19:D20,D22:D23)))) -> 0 | G26: =IF(AND(B3<>"R1",B3<>"R2"),0,IF(VLOOKUP($A26,'Data Pass Through'!$A:$D,2,FALSE)=0,0,IF(SUM(G19:G20,G22:G23)<VLOOKUP($A26,'Data Pass Through'!$A:$D,2,FALSE),0,VLOOKUP($A26,'Data Pass Through'!$A:$D,2,FALSE)-SUM(G19:G20,G22:G23)))) -> 0 | H26: 0 | I26: N/A | J26: 0 | K26: 0
A27: Sub-Total: Distribution (excluding pass through) | D27: =SUM(INDIRECT("D19:D"&ROW()-1)) -> 32.485 | G27: =SUM(INDIRECT("g19:g"&ROW()-1)) -> 34.46 | H27: =G27-D27 -> 1.975 | I27: 0.06079729106 | J27: 0.4606884308 | K27: 0.4482351423
A28: Smart Metering Entity Charge | B28: 1 | C28: =VLOOKUP($A28,'Data Pass Through'!$A:$D,2,FALSE) -> 0.57 | D28: =B28*C28 -> 0.57 | E28: 1 | F28: =VLOOKUP($A28,'Data Pass Through'!$A:$D,3,FALSE) -> 0.57 | G28: =E28*F28 -> 0.57 | H28: 0 | I28: 0 | J28: 0.007620209099 | K28: 0.007414220288
A29: Line Losses on Cost of Power (based on two-tier RPP prices) | B29: =B8-B4 -> 19.95 | C29: =IF(B4>B7,C13,C12) -> 0.077 | D29: =B29*C29 -> 1.53615 | E29: 19.95 | F29: =IF(B4>B7,F13,F12) -> 0.077 | G29: =E29*F29 -> 1.53615 | H29: 0 | I29: 0 | J29: 0.02053646352 | K29: 0.01998132368
A30: Line Losses on Cost of Power (based on TOU prices) | B30: =B8-B4 -> 19.95 | C30: =VLOOKUP($B$3,'Data Billing Quantities'!$A:$O,MATCH(BI_UR_Low!$A15,'Data Billing Quantities'!$4:$4,0),FALSE)*C15+VLOOKUP($B$3,'Data Billing Quantities'!$A:$O,MATCH(BI_UR_Low!$A16,'Data Billing Quantities'!$4:$4,0),FALSE)*C16+VLOOKUP($B$3,'Data Billing Quantities'!$A:$O,MATCH(BI_UR_Low!$A17,'Data Billing Quantities'!$4:$4,0),FALSE)*C17 -> 0.08235 | D30: =B30*C30 -> 1.6428825 | E30: 19.95 | F30: =VLOOKUP($B$3,'Data Billing Quantities'!$A:$O,MATCH(BI_UR_Low!$A15,'Data Billing Quantities'!$4:$4,0),FALSE)*F15+VLOOKUP($B$3,'Data Billing Quantities'!$A:$O,MATCH(BI_UR_Low!$A16,'Data Billing Quantities'!$4:$4,0),FALSE)*F16+VLOOKUP($B$3,'Data Billing Quantities'!$A:$O,MATCH(BI_UR_Low!$A17,'Data Billing Quantities'!$4:$4,0),FALSE)*F17 -> 0.08235 | G30: =E30*F30 -> 1.6428825 | H30: 0 | I30: 0 | J30: 0.02196334768 | K30: 0.02136963643
A31: Sub-Total: Distribution (based on two-tier RPP prices) | D31: =SUM(D27,D28:D29) -> 34.59115 | G31: =SUM(G27,G28:G29) -> 36.56615 | H31: 1.975 | I31: 0.05709552877 | J31: 0.4888451034 | K31: 0.4756306863
A32: Sub-Total: Distribution (based on TOU prices) | D32: =SUM(D27,D28,D30) -> 34.6978825 | G32: =SUM(G27,G28,G30) -> 36.6728825 | H32: 1.975 | I32: 0.05691989994 | J32: 0.4902719876 | K32: 0.477018999
A33: Retail Transmission Rate – Network Service Rate | B33: =B8 -> 369.95 | C33: =VLOOKUP($B$3,'Data Current Rates'!$A:$BA,MATCH(BI_UR_Low!$A33,CurrentHeader,0),FALSE) -> 0.0084 | D33: =B33*C33 -> 3.10758 | E33: 369.95 | F33: =VLOOKUP($B$3,'Data Proposed Rates'!$A:$BA,MATCH(BI_UR_Low!$A33,ProposedHeader,0),FALSE) -> 0.0087 | G33: =E33*F33 -> 3.218565 | H33: =G33-D33 -> 0.110985 | I33: 0.03571428571 | J33: 0.04302831281 | K33: 0.0418651753
A34: Retail Transmission Rate – Line and Transformation Connection Service Rate | B34: =B8 -> 369.95 | C34: =VLOOKUP($B$3,'Data Current Rates'!$A:$BA,MATCH(BI_UR_Low!$A34,CurrentHeader,0),FALSE) -> 0.0074 | D34: =B34*C34 -> 2.73763 | E34: 369.95 | F34: =VLOOKUP($B$3,'Data Proposed Rates'!$A:$BA,MATCH(BI_UR_Low!$A34,ProposedHeader,0),FALSE) -> 0.0076 | G34: =E34*F34 -> 2.81162 | H34: =G34-D34 -> 0.07399 | I34: 0.02702702703 | J34: 0.03758795142 | K34: 0.03657187727
A35: Sub-Total: Retail Transmission | D35: =SUM(D33:D34) -> 5.84521 | G35: =SUM(G33:G34) -> 6.030185 | H35: =G35-D35 -> 0.184975 | I35: 0.03164556962 | J35: 0.08061626422 | K35: 0.07843705258
A36: Sub-Total: Delivery (based on two-tier RPP prices) | D36: =D31+D35 -> 40.43636 | G36: =G31+G35 -> 42.596335 | H36: =G36-D36 -> 2.159975 | I36: 0.05341665274 | J36: 0.5694613677 | K36: 0.5540677389
A37: Sub-Total: Delivery (based on TOU prices) | D37: =D32+D35 -> 40.5430925 | G37: =G32+G35 -> 42.7030675 | H37: =G37-D37 -> 2.159975 | I37: 0.0532760297 | J37: 0.5708882518 | K37: 0.5554560516
A38: Wholesale Market Service Rate (WMS) - not including CBR | B38: =B8 -> 369.95 | C38: =VLOOKUP($A38,'Data Pass Through'!$A:$D,2,FALSE) -> 0.003 | D38: =B38*C38 -> 1.10985 | E38: =$B$8 -> 369.95 | F38: =VLOOKUP($A38,'Data Pass Through'!$A:$D,3,FALSE) -> 0.003 | G38: =E38*F38 -> 1.10985 | H38: 0 | I38: 0 | J38: 0.01483734924 | K38: 0.01443626735
A39: Capacity Based Recovery (CBR) - Applicable for Class B Customers | B39: =B8 -> 369.95 | C39: =VLOOKUP($A39,'Data Pass Through'!$A:$D,2,FALSE) -> 0.0004 | D39: =B39*C39 -> 0.14798 | E39: =$B$8 -> 369.95 | F39: =VLOOKUP($A39,'Data Pass Through'!$A:$D,3,FALSE) -> 0.0004 | G39: =E39*F39 -> 0.14798 | H39: 0 | I39: 0 | J39: 0.001978313232 | K39: 0.001924835646
A40: Rural Rate Protection Charge | B40: =B8 -> 369.95 | C40: =VLOOKUP($A40,'Data Pass Through'!$A:$D,2,FALSE) -> 0.0005 | D40: 0.184975 | E40: 369.95 | F40: =VLOOKUP($A40,'Data Pass Through'!$A:$D,3,FALSE) -> 0.0005 | G40: 0.184975 | H40: 0 | I40: 0 | J40: 0.002472891541 | K40: 0.002406044558
A41: Standard Supply Service – Administration Charge (if applicable) | B41: 1 | C41: =VLOOKUP($A41,'Data Pass Through'!$A:$D,2,FALSE) -> 0.25 | D41: =B41*C41 -> 0.25 | E41: 1 | F41: =VLOOKUP($A41,'Data Pass Through'!$A:$D,3,FALSE) -> 0.25 | G41: 0.25 | H41: 0 | I41: 0 | J41: 0.003342196973 | K41: 0.003251851004
A42: Sub-Total: Regulatory | D42: =SUM(D38:D41) -> 1.692805 | G42: =SUM(G38:G41) -> 1.692805 | H42: 0 | I42: 0 | J42: 0.02263075099 | K42: 0.02201899855
A43: Debt Retirement Charge (DRC) | B43: =B4 -> 350 | C43: =VLOOKUP($A43,'Data Pass Through'!$A:$D,2,FALSE) -> 0 | D43: =B43*C43 -> 0 | E43: 350 | F43: =VLOOKUP($A43,'Data Pass Through'!$A:$D,3,FALSE) -> 0 | G43: =E43*F43 -> 0 | H43: 0 | I43: N/A | J43: 0 | K43: 0
A44: Total Electricty Charge on Two-Tier RPP | D44: =SUM(D14,D27,D28,D29,D35,D42,D43) -> 69.079165 | G44: =SUM(G14,G27,G28,G29,G35,G42,G43) -> 71.23914 | H44: 2.159975 | I44: 0.03126811101 | J44: 0.9523809524
A45: HST | C45: 0.13 | D45: =D44*C45 -> 8.98029145 | F45: =C45 -> 0.13 | G45: =G44*F45 -> 9.2610882 | H45: 0.28079675 | I45: 0.03126811101 | J45: 0.1238095238
A46: Total Electricity Charge on Two-Tier RPP (including HST) | D46: =SUM(D44:D45) -> 78.05945645 | G46: =SUM(G44:G45) -> 80.5002282 | H46: 2.44077175 | I46: 0.03126811101 | J46: 1.076190476
A47: Ontario Rebate for Electricity Consumers (OREC) | C47: -0.08 | D47: =D44*C47 -> -5.5263332 | F47: =C47 -> -0.08 | G47: =G44*F47 -> -5.6991312 | H47: -0.172798 | I47: -0.03126811101 | J47: -0.07619047619
A48: Total Amount on Two-Tier RPP | D48: =SUM(D46:D47) -> 72.53312325 | G48: =SUM(G46:G47) -> 74.801097 | H48: 2.26797375 | I48: 0.03126811101 | J48: 1
A49: Total Electricty Charge on TOU (before HST) | D49: =SUM(D18,D27,D28,D30,D35,D42,D43) -> 71.0583975 | G49: =SUM(G18,G27,G28,G30,G35,G42,G43) -> 73.2183725 | H49: 2.159975 | I49: 0.03039718142 | K49: =G49/$G$53 -> 0.9523809524
A50: HST | C50: 0.13 | D50: =D49*C50 -> 9.237591675 | F50: =C50 -> 0.13 | G50: =G49*F50 -> 9.518388425 | H50: 0.28079675 | I50: 0.03039718142 | K50: =G50/$G$53 -> 0.1238095238
A51: Total Electricity Charge on TOU (including HST) | D51: =SUM(D49:D50) -> 80.29598918 | G51: =SUM(G49:G50) -> 82.73676093 | H51: 2.44077175 | I51: 0.03039718142 | K51: =G51/$G$53 -> 1.076190476
A52: Ontario Rebate for Electricity Consumers (OREC) | C52: -0.08 | D52: =D49*C52 -> -5.6846718 | F52: =C52 -> -0.08 | G52: =G49*F52 -> -5.8574698 | H52: -0.172798 | I52: -0.03039718142 | K52: =G52/$G$53 -> -0.07619047619
A53: Total Amount on TOU | D53: =SUM(D51:D52) -> 74.61131738 | G53: =SUM(G51:G52) -> 76.87929113 | H53: 2.26797375 | I53: 0.03039718142 | K53: =G53/$G$53 -> 1
A54: * Distribution rate protection applies to R1 and R2 customers

Sheet BI_UR_Typical
A1: 2020 Bill Impacts (Typical Consumption Level) - UR
A3: Rate Class | B3: =RIGHT(A1,LEN(A1)-FIND("- ",A1,1)-1) -> UR
A4: Monthly Consumption (kWh) | B4: =IF(COUNTIF(A1,"*Low*")>0,VLOOKUP(B3,'Data Billing Quantities'!$A:$Z,MATCH("Low kWh",'Data Billing Quantities'!4:4,0),FALSE),IF(COUNTIF(A1,"*Typical*")>0,VLOOKUP(B3,'Data Billing Quantities'!$A:$Z,MATCH("Typical kWh",'Data Billing Quantities'!4:4,0),FALSE),IF(COUNTIF(A1,"*Average*")>0,VLOOKUP(B3,'Data Billing Quantities'!$A:$Z,MATCH("Average kWh",'Data Billing Quantities'!4:4,0),FALSE),IF(COUNTIF(A1,"*High*")>0,VLOOKUP(B3,'Data Billing Quantities'!$A:$Z,MATCH("High kWh",'Data Billing Quantities'!4:4,0),FALSE),"error")))) -> 750
A5: Peak (kW) | B5: =IF(COUNTIF(A1,"*Low*")>0,VLOOKUP(B3,'Data Billing Quantities'!$A:$Z,MATCH("Low kW",'Data Billing Quantities'!4:4,0),FALSE),IF(COUNTIF(A1,"*Typical*")>0,VLOOKUP(B3,'Data Billing Quantities'!$A:$Z,MATCH("Typical kW",'Data Billing Quantities'!4:4,0),FALSE),IF(COUNTIF(A1,"*Average*")>0,VLOOKUP(B3,'Data Billing Quantities'!$A:$Z,MATCH("Average kW",'Data Billing Quantities'!4:4,0),FALSE),IF(COUNTIF(A1,"*High*")>0,VLOOKUP(B3,'Data Billing Quantities'!$A:$Z,MATCH("High kW",'Data Billing Quantities'!4:4,0),FALSE),"error")))) -> 0
A6: Loss factor | B6: =VLOOKUP(B3,'Data Billing Quantities'!A:D,MATCH(A6,'Data Billing Quantities'!4:4,0),FALSE) -> 1.057
A7: Commodity Threshold | B7: =VLOOKUP(B3,'Data Billing Quantities'!A:D,MATCH(A7,'Data Billing Quantities'!4:4,0),FALSE) -> 600
A8: Monthly Consumption (kWh) - Uplifted | B8: =B4*B6 -> 792.75
A9: Charge determinant | B9: =VLOOKUP(B3,'Data Billing Quantities'!A:D,MATCH(A9,'Data Billing Quantities'!4:4,0),FALSE) -> kWh
B11: Volume | C11: Current Rate ($) | D11: Current Charge ($) | E11: Volume | F11: Proposed Rate ($) | G11: Proposed Charge ($) | H11: Change ($) | I11: Change (%) | J11: % of Total Bill on RPP | K11: % of Total Bill on TOU
A12: Energy First Tier | B12: =IF(B4>B7,B7,B4) -> 600 | C12: =VLOOKUP($A12,'Data Pass Through'!$A:$D,2,FALSE) -> 0.077 | D12: =B12*C12 -> 46.2 | E12: =B12 -> 600 | F12: =VLOOKUP($A12,'Data Pass Through'!$A:$D,3,FALSE) -> 0.077 | G12: =E12*F12 -> 46.2 | H12: =G12-D12 -> 0 | I12: =IF(ISERROR(H12/ABS(D12)),"N/A",(H12/ABS(D12))) -> 0 | J12: =G12/$G$48 -> 0.3798070408
A13: Energy Second Tier | B13: =IF(B4>B7,(B4)-B7,0) -> 150 | C13: =VLOOKUP($A13,'Data Pass Through'!$A:$D,2,FALSE) -> 0.089 | D13: =B13*C13 -> 13.35 | E13: =B13 -> 150 | F13: =VLOOKUP($A13,'Data Pass Through'!$A:$D,3,FALSE) -> 0.089 | G13: =E13*F13 -> 13.35 | H13: 0 | I13: 0 | J13: =G13/$G$48 -> 0.1097494371
A14: Sub-Total: Energy (RPP Tiered) | D14: =SUM(D12:D13) -> 59.55 | G14: =SUM(G12:G13) -> 59.55 | H14: 0 | I14: 0 | J14: =G14/$G$48 -> 0.4895564779
A15: TOU-Off Peak | B15: =B$4*VLOOKUP($B$3,'Data Billing Quantities'!$A:$O,MATCH(BI_UR_Typical!$A15,'Data Billing Quantities'!$4:$4,0),FALSE) -> 487.5 | C15: =VLOOKUP($A15,'Data Pass Through'!$A:$D,2,FALSE) -> 0.065 | D15: =B15*C15 -> 31.6875 | E15: 487.5 | F15: =VLOOKUP($A15,'Data Pass Through'!$A:$D,3,FALSE) -> 0.065 | G15: =E15*F15 -> 31.6875 | H15: 0 | I15: 0 | K15: =G15/$G$53 -> 0.2562359064
A16: TOU-Mid Peak | B16: =B$4*VLOOKUP($B$3,'Data Billing Quantities'!$A:$O,MATCH(BI_UR_Typical!$A16,'Data Billing Quantities'!$4:$4,0),FALSE) -> 127.5 | C16: =VLOOKUP($A16,'Data Pass Through'!$A:$D,2,FALSE) -> 0.094 | D16: =B16*C16 -> 11.985 | E16: 127.5 | F16: =VLOOKUP($A16,'Data Pass Through'!$A:$D,3,FALSE) -> 0.094 | G16: =E16*F16 -> 11.985 | H16: 0 | I16: 0 | K16: 0.09691478778
A17: TOU-On Peak | B17: =B$4*VLOOKUP($B$3,'Data Billing Quantities'!$A:$O,MATCH(BI_UR_Typical!$A17,'Data Billing Quantities'!$4:$4,0),FALSE) -> 135 | C17: =VLOOKUP($A17,'Data Pass Through'!$A:$D,2,FALSE) -> 0.134 | D17: =B17*C17 -> 18.09 | E17: 135 | F17: =VLOOKUP($A17,'Data Pass Through'!$A:$D,3,FALSE) -> 0.134 | G17: =E17*F17 -> 18.09 | H17: 0 | I17: 0 | K17: 0.1462818949
A18: Sub-Total: Energy (RPP TOU) | D18: =SUM(D15:D17) -> 61.7625 | G18: =SUM(G15:G17) -> 61.7625 | H18: 0 | I18: 0 | J18: =G18/$G$48 -> 0.5077452891 | K18: 0.4994325891
A19: Service Charge | B19: 1 | C19: =VLOOKUP($B$3,'Data Current Rates'!$A:$BA,MATCH(BI_UR_Typical!$A19,CurrentHeader,0),FALSE) -> 28.63 | D19: =B19*C19 -> 28.63 | E19: 1 | F19: =VLOOKUP($B$3,'Data Proposed Rates'!$A:$BA,MATCH(BI_UR_Typical!$A19,ProposedHeader,0),FALSE) -> 31.91 | G19: =E19*F19 -> 31.91 | H19: 3.28 | I19: 0.1145651415 | J19: 0.2623299279 | K19: 0.2580351171
A20: Fixed Foregone Revenue Charge | B20: 1 | C20: =VLOOKUP($B$3,'Data Current Rates'!$A:$BA,MATCH(BI_UR_Typical!$A20,CurrentHeader,0),FALSE) -> 1.46 | D20: 1.46 | E20: 1 | F20: =VLOOKUP($B$3,'Data Proposed Rates'!$A:$BA,MATCH(BI_UR_Typical!$A20,ProposedHeader,0),FALSE) -> 1.45 | G20: 1.45 | H20: -0.01 | I20: -0.006849315068 | J20: 0.01192035085 | K20: 0.01172519335
A21: Fixed Deferral/Variance Account Rider (General) | B21: 1 | C21: =VLOOKUP($B$3,'Data Current Rates'!$A:$BA,MATCH(BI_UR_Typical!$A21,CurrentHeader,0),FALSE) -> 0.05 | D21: 0.05 | E21: 1 | F21: =VLOOKUP($B$3,'Data Proposed Rates'!$A:$BA,MATCH(BI_UR_Typical!$A21,ProposedHeader,0),FALSE) -> 0.05 | G21: 0.05 | H21: 0 | I21: 0 | J21: 0.0004110465809 | K21: 0.000404317012
A22: Distribution Volumetric Charge | B22: =IF($B$9="kWh",$B$4,$B$5) -> 750 | C22: =VLOOKUP($B$3,'Data Current Rates'!$A:$BA,MATCH(BI_UR_Typical!$A22,CurrentHeader,0),FALSE) -> 0.0075 | D22: 5.625 | E22: 750 | F22: =VLOOKUP($B$3,'Data Proposed Rates'!$A:$BA,MATCH(BI_UR_Typical!$A22,ProposedHeader,0),FALSE) -> 0.0038 | G22: 2.85 | H22: -2.775 | I22: -0.4933333333 | J22: 0.02342965511 | K22: 0.02304606968
A23: Volumetric Foregone Revenue Charge | B23: =IF($B$9="kWh",$B$4,$B$5) -> 750 | C23: =VLOOKUP($B$3,'Data Current Rates'!$A:$BA,MATCH(BI_UR_Typical!$A23,CurrentHeader,0),FALSE) -> 0 | D23: 0 | E23: 750 | F23: =VLOOKUP($B$3,'Data Proposed Rates'!$A:$BA,MATCH(BI_UR_Typical!$A23,ProposedHeader,0),FALSE) -> 0 | G23: 0 | H23: 0 | I23: N/A | J23: 0 | K23: 0
A24: Volumetric Deferral/Variance Account Rider (General) | B24: =IF($B$9="kWh",$B$4,$B$5) -> 750 | C24: =VLOOKUP($B$3,'Data Current Rates'!$A:$BA,MATCH(BI_UR_Typical!$A24,CurrentHeader,0),FALSE) -> -0.0008 | D24: -0.6 | E24: 750 | F24: =VLOOKUP($B$3,'Data Proposed Rates'!$A:$BA,MATCH(BI_UR_Typical!$A24,ProposedHeader,0),FALSE) -> -0.0008 | G24: -0.6 | H24: 0 | I24: 0 | J24: -0.004932558971 | K24: -0.004851804144
A25: Volumetric Deferral/Variance Account Rider (Sub Account CBR) | B25: 750 | C25: =VLOOKUP($B$3,'Data Current Rates'!$A:$BA,MATCH(BI_UR_Typical!$A25,CurrentHeader,0),FALSE) -> 0 | D25: 0 | E25: 750 | F25: =VLOOKUP($B$3,'Data Proposed Rates'!$A:$BA,MATCH(BI_UR_Typical!$A25,ProposedHeader,0),FALSE) -> 0 | G25: 0 | H25: 0 | I25: N/A | J25: 0 | K25: 0
A26: Fair Hydro Plan - Distribution Rate Protection Savings* | D26: =IF(AND(B3<>"R1",B3<>"R2"),0,IF(VLOOKUP($A26,'Data Pass Through'!$A:$D,2,FALSE)=0,0,IF(SUM(D19:D20,D22:D23)<VLOOKUP($A26,'Data Pass Through'!$A:$D,2,FALSE),0,VLOOKUP($A26,'Data Pass Through'!$A:$D,2,FALSE)-SUM(D19:D20,D22:D23)))) -> 0 | G26: =IF(AND(B3<>"R1",B3<>"R2"),0,IF(VLOOKUP($A26,'Data Pass Through'!$A:$D,2,FALSE)=0,0,IF(SUM(G19:G20,G22:G23)<VLOOKUP($A26,'Data Pass Through'!$A:$D,2,FALSE),0,VLOOKUP($A26,'Data Pass Through'!$A:$D,2,FALSE)-SUM(G19:G20,G22:G23)))) -> 0 | H26: 0 | I26: N/A | J26: 0 | K26: 0
A27: Sub-Total: Distribution (excluding pass through) | D27: =SUM(INDIRECT("D19:D"&ROW()-1)) -> 35.165 | G27: =SUM(INDIRECT("g19:g"&ROW()-1)) -> 35.66 | H27: =G27-D27 -> 0.495 | I27: 0.01407649652 | J27: 0.2931584215 | K27: 0.288358893
A28: Smart Metering Entity Charge | B28: 1 | C28: =VLOOKUP($A28,'Data Pass Through'!$A:$D,2,FALSE) -> 0.57 | D28: =B28*C28 -> 0.57 | E28: 1 | F28: =VLOOKUP($A28,'Data Pass Through'!$A:$D,3,FALSE) -> 0.57 | G28: =E28*F28 -> 0.57 | H28: 0 | I28: 0 | J28: 0.004685931022 | K28: 0.004609213937
A29: Line Losses on Cost of Power (based on two-tier RPP prices) | B29: =B8-B4 -> 42.75 | C29: =IF(B4>B7,C13,C12) -> 0.089 | D29: =B29*C29 -> 3.80475 | E29: 42.75 | F29: =IF(B4>B7,F13,F12) -> 0.089 | G29: =E29*F29 -> 3.80475 | H29: 0 | I29: 0 | J29: 0.03127858957 | K29: 0.03076650303
A30: Line Losses on Cost of Power (based on TOU prices) | B30: =B8-B4 -> 42.75 | C30: =VLOOKUP($B$3,'Data Billing Quantities'!$A:$O,MATCH(BI_UR_Typical!$A15,'Data Billing Quantities'!$4:$4,0),FALSE)*C15+VLOOKUP($B$3,'Data Billing Quantities'!$A:$O,MATCH(BI_UR_Typical!$A16,'Data Billing Quantities'!$4:$4,0),FALSE)*C16+VLOOKUP($B$3,'Data Billing Quantities'!$A:$O,MATCH(BI_UR_Typical!$A17,'Data Billing Quantities'!$4:$4,0),FALSE)*C17 -> 0.08235 | D30: =B30*C30 -> 3.5204625 | E30: 42.75 | F30: =VLOOKUP($B$3,'Data Billing Quantities'!$A:$O,MATCH(BI_UR_Typical!$A15,'Data Billing Quantities'!$4:$4,0),FALSE)*F15+VLOOKUP($B$3,'Data Billing Quantities'!$A:$O,MATCH(BI_UR_Typical!$A16,'Data Billing Quantities'!$4:$4,0),FALSE)*F16+VLOOKUP($B$3,'Data Billing Quantities'!$A:$O,MATCH(BI_UR_Typical!$A17,'Data Billing Quantities'!$4:$4,0),FALSE)*F17 -> 0.08235 | G30: =E30*F30 -> 3.5204625 | H30: 0 | I30: 0 | J30: 0.02894148148 | K30: 0.02846765758
A31: Sub-Total: Distribution (based on two-tier RPP prices) | D31: =SUM(D27,D28:D29) -> 39.53975 | G31: =SUM(G27,G28:G29) -> 40.03475 | H31: 0.495 | I31: 0.01251904729 | J31: 0.3291229421 | K31: 0.3237346099
A32: Sub-Total: Distribution (based on TOU prices) | D32: =SUM(D27,D28,D30) -> 39.2554625 | G32: =SUM(G27,G28,G30) -> 39.7504625 | H32: 0.495 | I32: 0.01260971005 | J32: 0.326785834 | K32: 0.3214357645
A33: Retail Transmission Rate – Network Service Rate | B33: =B8 -> 792.75 | C33: =VLOOKUP($B$3,'Data Current Rates'!$A:$BA,MATCH(BI_UR_Typical!$A33,CurrentHeader,0),FALSE) -> 0.0084 | D33: =B33*C33 -> 6.6591 | E33: 792.75 | F33: =VLOOKUP($B$3,'Data Proposed Rates'!$A:$BA,MATCH(BI_UR_Typical!$A33,ProposedHeader,0),FALSE) -> 0.0087 | G33: =E33*F33 -> 6.896925 | H33: =G33-D33 -> 0.237825 | I33: 0.03571428571 | J33: 0.0566991488 | K33: 0.05577088216
A34: Retail Transmission Rate – Line and Transformation Connection Service Rate | B34: =B8 -> 792.75 | C34: =VLOOKUP($B$3,'Data Current Rates'!$A:$BA,MATCH(BI_UR_Typical!$A34,CurrentHeader,0),FALSE) -> 0.0074 | D34: =B34*C34 -> 5.86635 | E34: 792.75 | F34: =VLOOKUP($B$3,'Data Proposed Rates'!$A:$BA,MATCH(BI_UR_Typical!$A34,ProposedHeader,0),FALSE) -> 0.0076 | G34: =E34*F34 -> 6.0249 | H34: =G34-D34 -> 0.15855 | I34: 0.02702702703 | J34: 0.04953029091 | K34: 0.04871939131
A35: Sub-Total: Retail Transmission | D35: =SUM(D33:D34) -> 12.52545 | G35: =SUM(G33:G34) -> 12.921825 | H35: =G35-D35 -> 0.396375 | I35: 0.03164556962 | J35: 0.1062294397 | K35: 0.1044902735
A36: Sub-Total: Delivery (based on two-tier RPP prices) | D36: =D31+D35 -> 52.0652 | G36: =G31+G35 -> 52.956575 | H36: =G36-D36 -> 0.891375 | I36: 0.01712036062 | J36: 0.4353523818 | K36: 0.4282248834
A37: Sub-Total: Delivery (based on TOU prices) | D37: =D32+D35 -> 51.7809125 | G37: =G32+G35 -> 52.6722875 | H37: =G37-D37 -> 0.891375 | I37: 0.01721435481 | J37: 0.4330152737 | K37: 0.425926038
A38: Wholesale Market Service Rate (WMS) - not including CBR | B38: =B8 -> 792.75 | C38: =VLOOKUP($A38,'Data Pass Through'!$A:$D,2,FALSE) -> 0.003 | D38: =B38*C38 -> 2.37825 | E38: =$B$8 -> 792.75 | F38: =VLOOKUP($A38,'Data Pass Through'!$A:$D,3,FALSE) -> 0.003 | G38: =E38*F38 -> 2.37825 | H38: 0 | I38: 0 | J38: 0.01955143062 | K38: 0.01923133868
A39: Capacity Based Recovery (CBR) - Applicable for Class B Customers | B39: =B8 -> 792.75 | C39: =VLOOKUP($A39,'Data Pass Through'!$A:$D,2,FALSE) -> 0.0004 | D39: =B39*C39 -> 0.3171 | E39: =$B$8 -> 792.75 | F39: =VLOOKUP($A39,'Data Pass Through'!$A:$D,3,FALSE) -> 0.0004 | G39: =E39*F39 -> 0.3171 | H39: 0 | I39: 0 | J39: 0.002606857416 | K39: 0.00256417849
A40: Rural Rate Protection Charge | B40: =B8 -> 792.75 | C40: =VLOOKUP($A40,'Data Pass Through'!$A:$D,2,FALSE) -> 0.0005 | D40: 0.396375 | E40: 792.75 | F40: =VLOOKUP($A40,'Data Pass Through'!$A:$D,3,FALSE) -> 0.0005 | G40: 0.396375 | H40: 0 | I40: 0 | J40: 0.00325857177 | K40: 0.003205223113
A41: Standard Supply Service – Administration Charge (if applicable) | B41: 1 | C41: =VLOOKUP($A41,'Data Pass Through'!$A:$D,2,FALSE) -> 0.25 | D41: =B41*C41 -> 0.25 | E41: 1 | F41: =VLOOKUP($A41,'Data Pass Through'!$A:$D,3,FALSE) -> 0.25 | G41: 0.25 | H41: 0 | I41: 0 | J41: 0.002055232905 | K41: 0.00202158506
A42: Sub-Total: Regulatory | D42: =SUM(D38:D41) -> 3.341725 | G42: =SUM(G38:G41) -> 3.341725 | H42: 0 | I42: 0 | J42: 0.02747209271 | K42: 0.02702232534
A43: Debt Retirement Charge (DRC) | B43: =B4 -> 750 | C43: =VLOOKUP($A43,'Data Pass Through'!$A:$D,2,FALSE) -> 0 | D43: =B43*C43 -> 0 | E43: 750 | F43: =VLOOKUP($A43,'Data Pass Through'!$A:$D,3,FALSE) -> 0 | G43: =E43*F43 -> 0 | H43: 0 | I43: N/A | J43: 0 | K43: 0
A44: Total Electricty Charge on Two-Tier RPP | D44: =SUM(D14,D27,D28,D29,D35,D42,D43) -> 114.956925 | G44: =SUM(G14,G27,G28,G29,G35,G42,G43) -> 115.8483 | H44: 0.891375 | I44: 0.007753991332 | J44: 0.9523809524
A45: HST | C45: 0.13 | D45: =D44*C45 -> 14.94440025 | F45: =C45 -> 0.13 | G45: =G44*F45 -> 15.060279 | H45: 0.11587875 | I45: 0.007753991332 | J45: 0.1238095238
A46: Total Electricity Charge on Two-Tier RPP (including HST) | D46: =SUM(D44:D45) -> 129.9013252 | G46: =SUM(G44:G45) -> 130.908579 | H46: 1.00725375 | I46: 0.007753991332 | J46: 1.076190476
A47: Ontario Rebate for Electricity Consumers (OREC) | C47: -0.08 | D47: =D44*C47 -> -9.196554 | F47: =C47 -> -0.08 | G47: =G44*F47 -> -9.267864 | H47: -0.07131 | I47: -0.007753991332 | J47: -0.07619047619
A48: Total Amount on Two-Tier RPP | D48: =SUM(D46:D47) -> 120.7047712 | G48: =SUM(G46:G47) -> 121.640715 | H48: 0.93594375 | I48: 0.007753991332 | J48: 1
A49: Total Electricty Charge on TOU (before HST) | D49: =SUM(D18,D27,D28,D30,D35,D42,D43) -> 116.8851375 | G49: =SUM(G18,G27,G28,G30,G35,G42,G43) -> 117.7765125 | H49: 0.891375 | I49: 0.007626076498 | K49: =G49/$G$53 -> 0.9523809524
A50: HST | C50: 0.13 | D50: =D49*C50 -> 15.19506787 | F50: =C50 -> 0.13 | G50: =G49*F50 -> 15.31094662 | H50: 0.11587875 | I50: 0.007626076498 | K50: =G50/$G$53 -> 0.1238095238
A51: Total Electricity Charge on TOU (including HST) | D51: =SUM(D49:D50) -> 132.0802054 | G51: =SUM(G49:G50) -> 133.0874591 | H51: 1.00725375 | I51: 0.007626076498 | K51: =G51/$G$53 -> 1.076190476
A52: Ontario Rebate for Electricity Consumers (OREC) | C52: -0.08 | D52: =D49*C52 -> -9.350811 | F52: =C52 -> -0.08 | G52: =G49*F52 -> -9.422121 | H52: -0.07131 | I52: -0.007626076498 | K52: =G52/$G$53 -> -0.07619047619
A53: Total Amount on TOU | D53: =SUM(D51:D52) -> 122.7293944 | G53: =SUM(G51:G52) -> 123.6653381 | H53: 0.93594375 | I53: 0.007626076498 | K53: =G53/$G$53 -> 1
A54: * Distribution rate protection applies to R1 and R2 customers

Sheet BI_UR_Avg
A1: 2020 Bill Impacts (Average Consumption Level) - UR
A3: Rate Class | B3: =RIGHT(A1,LEN(A1)-FIND("- ",A1,1)-1) -> UR
A4: Monthly Consumption (kWh) | B4: =IF(COUNTIF(A1,"*Low*")>0,VLOOKUP(B3,'Data Billing Quantities'!$A:$Z,MATCH("Low kWh",'Data Billing Quantities'!4:4,0),FALSE),IF(COUNTIF(A1,"*Typical*")>0,VLOOKUP(B3,'Data Billing Quantities'!$A:$Z,MATCH("Typical kWh",'Data Billing Quantities'!4:4,0),FALSE),IF(COUNTIF(A1,"*Average*")>0,VLOOKUP(B3,'Data Billing Quantities'!$A:$Z,MATCH("Average kWh",'Data Billing Quantities'!4:4,0),FALSE),IF(COUNTIF(A1,"*High*")>0,VLOOKUP(B3,'Data Billing Quantities'!$A:$Z,MATCH("High kWh",'Data Billing Quantities'!4:4,0),FALSE),"error")))) -> 755
A5: Peak (kW) | B5: =IF(COUNTIF(A1,"*Low*")>0,VLOOKUP(B3,'Data Billing Quantities'!$A:$Z,MATCH("Low kW",'Data Billing Quantities'!4:4,0),FALSE),IF(COUNTIF(A1,"*Typical*")>0,VLOOKUP(B3,'Data Billing Quantities'!$A:$Z,MATCH("Typical kW",'Data Billing Quantities'!4:4,0),FALSE),IF(COUNTIF(A1,"*Average*")>0,VLOOKUP(B3,'Data Billing Quantities'!$A:$Z,MATCH("Average kW",'Data Billing Quantities'!4:4,0),FALSE),IF(COUNTIF(A1,"*High*")>0,VLOOKUP(B3,'Data Billing Quantities'!$A:$Z,MATCH("High kW",'Data Billing Quantities'!4:4,0),FALSE),"error")))) -> 0
A6: Loss factor | B6: =VLOOKUP(B3,'Data Billing Quantities'!A:D,MATCH(A6,'Data Billing Quantities'!4:4,0),FALSE) -> 1.057
A7: Commodity Threshold | B7: =VLOOKUP(B3,'Data Billing Quantities'!A:D,MATCH(A7,'Data Billing Quantities'!4:4,0),FALSE) -> 600
A8: Monthly Consumption (kWh) - Uplifted | B8: =B4*B6 -> 798.035
A9: Charge determinant | B9: =VLOOKUP(B3,'Data Billing Quantities'!A:D,MATCH(A9,'Data Billing Quantities'!4:4,0),FALSE) -> kWh
B11: Volume | C11: Current Rate ($) | D11: Current Charge ($) | E11: Volume | F11: Proposed Rate ($) | G11: Proposed Charge ($) | H11: Change ($) | I11: Change (%) | J11: % of Total Bill on RPP | K11: % of Total Bill on TOU
A12: Energy First Tier | B12: =IF(B4>B7,B7,B4) -> 600 | C12: =VLOOKUP($A12,'Data Pass Through'!$A:$D,2,FALSE) -> 0.077 | D12: =B12*C12 -> 46.2 | E12: =B12 -> 600 | F12: =VLOOKUP($A12,'Data Pass Through'!$A:$D,3,FALSE) -> 0.077 | G12: =E12*F12 -> 46.2 | H12: =G12-D12 -> 0 | I12: =IF(ISERROR(H12/ABS(D12)),"N/A",(H12/ABS(D12))) -> 0 | J12: =G12/$G$48 -> 0.3778756487
A13: Energy Second Tier | B13: =IF(B4>B7,(B4)-B7,0) -> 155 | C13: =VLOOKUP($A13,'Data Pass Through'!$A:$D,2,FALSE) -> 0.089 | D13: =B13*C13 -> 13.795 | E13: =B13 -> 155 | F13: =VLOOKUP($A13,'Data Pass Through'!$A:$D,3,FALSE) -> 0.089 | G13: =E13*F13 -> 13.795 | H13: 0 | I13: 0 | J13: =G13/$G$48 -> 0.1128310514
A14: Sub-Total: Energy (RPP Tiered) | D14: =SUM(D12:D13) -> 59.995 | G14: =SUM(G12:G13) -> 59.995 | H14: 0 | I14: 0 | J14: =G14/$G$48 -> 0.4907067001
A15: TOU-Off Peak | B15: =B$4*VLOOKUP($B$3,'Data Billing Quantities'!$A:$O,MATCH(BI_UR_Avg!$A15,'Data Billing Quantities'!$4:$4,0),FALSE) -> 490.75 | C15: =VLOOKUP($A15,'Data Pass Through'!$A:$D,2,FALSE) -> 0.065 | D15: =B15*C15 -> 31.89875 | E15: 490.75 | F15: =VLOOKUP($A15,'Data Pass Through'!$A:$D,3,FALSE) -> 0.065 | G15: =E15*F15 -> 31.89875 | H15: 0 | I15: 0 | K15: =G15/$G$53 -> 0.256730044
A16: TOU-Mid Peak | B16: =B$4*VLOOKUP($B$3,'Data Billing Quantities'!$A:$O,MATCH(BI_UR_Avg!$A16,'Data Billing Quantities'!$4:$4,0),FALSE) -> 128.35 | C16: =VLOOKUP($A16,'Data Pass Through'!$A:$D,2,FALSE) -> 0.094 | D16: =B16*C16 -> 12.0649 | E16: 128.35 | F16: =VLOOKUP($A16,'Data Pass Through'!$A:$D,3,FALSE) -> 0.094 | G16: =E16*F16 -> 12.0649 | H16: 0 | I16: 0 | K16: 0.09710168292
A17: TOU-On Peak | B17: =B$4*VLOOKUP($B$3,'Data Billing Quantities'!$A:$O,MATCH(BI_UR_Avg!$A17,'Data Billing Quantities'!$4:$4,0),FALSE) -> 135.9 | C17: =VLOOKUP($A17,'Data Pass Through'!$A:$D,2,FALSE) -> 0.134 | D17: =B17*C17 -> 18.2106 | E17: 135.9 | F17: =VLOOKUP($A17,'Data Pass Through'!$A:$D,3,FALSE) -> 0.134 | G17: =E17*F17 -> 18.2106 | H17: 0 | I17: 0 | K17: 0.146563992
A18: Sub-Total: Energy (RPP TOU) | D18: =SUM(D15:D17) -> 62.17425 | G18: =SUM(G15:G17) -> 62.17425 | H18: 0 | I18: 0 | J18: =G18/$G$48 -> 0.5085310617 | K18: 0.5003957189
A19: Service Charge | B19: 1 | C19: =VLOOKUP($B$3,'Data Current Rates'!$A:$BA,MATCH(BI_UR_Avg!$A19,CurrentHeader,0),FALSE) -> 28.63 | D19: =B19*C19 -> 28.63 | E19: 1 | F19: =VLOOKUP($B$3,'Data Proposed Rates'!$A:$BA,MATCH(BI_UR_Avg!$A19,ProposedHeader,0),FALSE) -> 31.91 | G19: =E19*F19 -> 31.91 | H19: 3.28 | I19: 0.1145651415 | J19: 0.2609959297 | K19: 0.2568205872
A20: Fixed Foregone Revenue Charge | B20: 1 | C20: =VLOOKUP($B$3,'Data Current Rates'!$A:$BA,MATCH(BI_UR_Avg!$A20,CurrentHeader,0),FALSE) -> 1.46 | D20: 1.46 | E20: 1 | F20: =VLOOKUP($B$3,'Data Proposed Rates'!$A:$BA,MATCH(BI_UR_Avg!$A20,ProposedHeader,0),FALSE) -> 1.45 | G20: 1.45 | H20: -0.01 | I20: -0.006849315068 | J20: 0.01185973356 | K20: 0.01167000474
A21: Fixed Deferral/Variance Account Rider (General) | B21: 1 | C21: =VLOOKUP($B$3,'Data Current Rates'!$A:$BA,MATCH(BI_UR_Avg!$A21,CurrentHeader,0),FALSE) -> 0.05 | D21: 0.05 | E21: 1 | F21: =VLOOKUP($B$3,'Data Proposed Rates'!$A:$BA,MATCH(BI_UR_Avg!$A21,ProposedHeader,0),FALSE) -> 0.05 | G21: 0.05 | H21: 0 | I21: 0 | J21: 0.0004089563298 | K21: 0.0004024139567
A22: Distribution Volumetric Charge | B22: =IF($B$9="kWh",$B$4,$B$5) -> 755 | C22: =VLOOKUP($B$3,'Data Current Rates'!$A:$BA,MATCH(BI_UR_Avg!$A22,CurrentHeader,0),FALSE) -> 0.0075 | D22: 5.6625 | E22: 755 | F22: =VLOOKUP($B$3,'Data Proposed Rates'!$A:$BA,MATCH(BI_UR_Avg!$A22,ProposedHeader,0),FALSE) -> 0.0038 | G22: 2.869 | H22: -2.7935 | I22: -0.4933333333 | J22: 0.0234659142 | K22: 0.02309051284
A23: Volumetric Foregone Revenue Charge | B23: =IF($B$9="kWh",$B$4,$B$5) -> 755 | C23: =VLOOKUP($B$3,'Data Current Rates'!$A:$BA,MATCH(BI_UR_Avg!$A23,CurrentHeader,0),FALSE) -> 0 | D23: 0 | E23: 755 | F23: =VLOOKUP($B$3,'Data Proposed Rates'!$A:$BA,MATCH(BI_UR_Avg!$A23,ProposedHeader,0),FALSE) -> 0 | G23: 0 | H23: 0 | I23: N/A | J23: 0 | K23: 0
A24: Volumetric Deferral/Variance Account Rider (General) | B24: =IF($B$9="kWh",$B$4,$B$5) -> 755 | C24: =VLOOKUP($B$3,'Data Current Rates'!$A:$BA,MATCH(BI_UR_Avg!$A24,CurrentHeader,0),FALSE) -> -0.0008 | D24: -0.604 | E24: 755 | F24: =VLOOKUP($B$3,'Data Proposed Rates'!$A:$BA,MATCH(BI_UR_Avg!$A24,ProposedHeader,0),FALSE) -> -0.0008 | G24: -0.604 | H24: 0 | I24: 0 | J24: -0.004940192464 | K24: -0.004861160597
A25: Volumetric Deferral/Variance Account Rider (Sub Account CBR) | B25: 755 | C25: =VLOOKUP($B$3,'Data Current Rates'!$A:$BA,MATCH(BI_UR_Avg!$A25,CurrentHeader,0),FALSE) -> 0 | D25: 0 | E25: 755 | F25: =VLOOKUP($B$3,'Data Proposed Rates'!$A:$BA,MATCH(BI_UR_Avg!$A25,ProposedHeader,0),FALSE) -> 0 | G25: 0 | H25: 0 | I25: N/A | J25: 0 | K25: 0
A26: Fair Hydro Plan - Distribution Rate Protection Savings* | D26: =IF(AND(B3<>"R1",B3<>"R2"),0,IF(VLOOKUP($A26,'Data Pass Through'!$A:$D,2,FALSE)=0,0,IF(SUM(D19:D20,D22:D23)<VLOOKUP($A26,'Data Pass Through'!$A:$D,2,FALSE),0,VLOOKUP($A26,'Data Pass Through'!$A:$D,2,FALSE)-SUM(D19:D20,D22:D23)))) -> 0 | G26: =IF(AND(B3<>"R1",B3<>"R2"),0,IF(VLOOKUP($A26,'Data Pass Through'!$A:$D,2,FALSE)=0,0,IF(SUM(G19:G20,G22:G23)<VLOOKUP($A26,'Data Pass Through'!$A:$D,2,FALSE),0,VLOOKUP($A26,'Data Pass Through'!$A:$D,2,FALSE)-SUM(G19:G20,G22:G23)))) -> 0 | H26: 0 | I26: N/A | J26: 0 | K26: 0
A27: Sub-Total: Distribution (excluding pass through) | D27: =SUM(INDIRECT("D19:D"&ROW()-1)) -> 35.1985 | G27: =SUM(INDIRECT("g19:g"&ROW()-1)) -> 35.675 | H27: =G27-D27 -> 0.4765 | I27: 0.0135375087 | J27: 0.2917903413 | K27: 0.2871223581
A28: Smart Metering Entity Charge | B28: 1 | C28: =VLOOKUP($A28,'Data Pass Through'!$A:$D,2,FALSE) -> 0.57 | D28: =B28*C28 -> 0.57 | E28: 1 | F28: =VLOOKUP($A28,'Data Pass Through'!$A:$D,3,FALSE) -> 0.57 | G28: =E28*F28 -> 0.57 | H28: 0 | I28: 0 | J28: 0.004662102159 | K28: 0.004587519106
A29: Line Losses on Cost of Power (based on two-tier RPP prices) | B29: =B8-B4 -> 43.035 | C29: =IF(B4>B7,C13,C12) -> 0.089 | D29: =B29*C29 -> 3.830115 | E29: 43.035 | F29: =IF(B4>B7,F13,F12) -> 0.089 | G29: =E29*F29 -> 3.830115 | H29: 0 | I29: 0 | J29: 0.03132699546 | K29: 0.03082583464
A30: Line Losses on Cost of Power (based on TOU prices) | B30: =B8-B4 -> 43.035 | C30: =VLOOKUP($B$3,'Data Billing Quantities'!$A:$O,MATCH(BI_UR_Avg!$A15,'Data Billing Quantities'!$4:$4,0),FALSE)*C15+VLOOKUP($B$3,'Data Billing Quantities'!$A:$O,MATCH(BI_UR_Avg!$A16,'Data Billing Quantities'!$4:$4,0),FALSE)*C16+VLOOKUP($B$3,'Data Billing Quantities'!$A:$O,MATCH(BI_UR_Avg!$A17,'Data Billing Quantities'!$4:$4,0),FALSE)*C17 -> 0.08235 | D30: =B30*C30 -> 3.54393225 | E30: 43.035 | F30: =VLOOKUP($B$3,'Data Billing Quantities'!$A:$O,MATCH(BI_UR_Avg!$A15,'Data Billing Quantities'!$4:$4,0),FALSE)*F15+VLOOKUP($B$3,'Data Billing Quantities'!$A:$O,MATCH(BI_UR_Avg!$A16,'Data Billing Quantities'!$4:$4,0),FALSE)*F16+VLOOKUP($B$3,'Data Billing Quantities'!$A:$O,MATCH(BI_UR_Avg!$A17,'Data Billing Quantities'!$4:$4,0),FALSE)*F17 -> 0.08235 | G30: =E30*F30 -> 3.54393225 | H30: 0 | I30: 0 | J30: 0.02898627052 | K30: 0.02852255598
A31: Sub-Total: Distribution (based on two-tier RPP prices) | D31: =SUM(D27,D28:D29) -> 39.598615 | G31: =SUM(G27,G28:G29) -> 40.075115 | H31: 0.4765 | I31: 0.01203324914 | J31: 0.3277794389 | K31: 0.3225357118
A32: Sub-Total: Distribution (based on TOU prices) | D32: =SUM(D27,D28,D30) -> 39.31243225 | G32: =SUM(G27,G28,G30) -> 39.78893225 | H32: 0.4765 | I32: 0.0121208476 | J32: 0.325438714 | K32: 0.3202324332
A33: Retail Transmission Rate – Network Service Rate | B33: =B8 -> 798.035 | C33: =VLOOKUP($B$3,'Data Current Rates'!$A:$BA,MATCH(BI_UR_Avg!$A33,CurrentHeader,0),FALSE) -> 0.0084 | D33: =B33*C33 -> 6.703494 | E33: 798.035 | F33: =VLOOKUP($B$3,'Data Proposed Rates'!$A:$BA,MATCH(BI_UR_Avg!$A33,ProposedHeader,0),FALSE) -> 0.0087 | G33: =E33*F33 -> 6.9429045 | H33: =G33-D33 -> 0.2394105 | I33: 0.03571428571 | J33: 0.05678689485 | K33: 0.05587843342
A34: Retail Transmission Rate – Line and Transformation Connection Service Rate | B34: =B8 -> 798.035 | C34: =VLOOKUP($B$3,'Data Current Rates'!$A:$BA,MATCH(BI_UR_Avg!$A34,CurrentHeader,0),FALSE) -> 0.0074 | D34: =B34*C34 -> 5.905459 | E34: 798.035 | F34: =VLOOKUP($B$3,'Data Proposed Rates'!$A:$BA,MATCH(BI_UR_Avg!$A34,ProposedHeader,0),FALSE) -> 0.0076 | G34: =E34*F34 -> 6.065066 | H34: =G34-D34 -> 0.159607 | I34: 0.02702702703 | J34: 0.04960694262 | K34: 0.04881334413
A35: Sub-Total: Retail Transmission | D35: =SUM(D33:D34) -> 12.608953 | G35: =SUM(G33:G34) -> 13.0079705 | H35: =G35-D35 -> 0.3990175 | I35: 0.03164556962 | J35: 0.1063938375 | K35: 0.1046917776
A36: Sub-Total: Delivery (based on two-tier RPP prices) | D36: =D31+D35 -> 52.207568 | G36: =G31+G35 -> 53.0830855 | H36: =G36-D36 -> 0.8755175 | I36: 0.01676993458 | J36: 0.4341732764 | K36: 0.4272274894
A37: Sub-Total: Delivery (based on TOU prices) | D37: =D32+D35 -> 51.92138525 | G37: =G32+G35 -> 52.79690275 | H37: =G37-D37 -> 0.8755175 | I37: 0.0168623679 | J37: 0.4318325514 | K37: 0.4249242107
A38: Wholesale Market Service Rate (WMS) - not including CBR | B38: =B8 -> 798.035 | C38: =VLOOKUP($A38,'Data Pass Through'!$A:$D,2,FALSE) -> 0.003 | D38: =B38*C38 -> 2.394105 | E38: =$B$8 -> 798.035 | F38: =VLOOKUP($A38,'Data Pass Through'!$A:$D,3,FALSE) -> 0.003 | G38: =E38*F38 -> 2.394105 | H38: 0 | I38: 0 | J38: 0.01958168788 | K38: 0.01926842532
A39: Capacity Based Recovery (CBR) - Applicable for Class B Customers | B39: =B8 -> 798.035 | C39: =VLOOKUP($A39,'Data Pass Through'!$A:$D,2,FALSE) -> 0.0004 | D39: =B39*C39 -> 0.319214 | E39: =$B$8 -> 798.035 | F39: =VLOOKUP($A39,'Data Pass Through'!$A:$D,3,FALSE) -> 0.0004 | G39: =E39*F39 -> 0.319214 | H39: 0 | I39: 0 | J39: 0.002610891717 | K39: 0.002569123375
A40: Rural Rate Protection Charge | B40: =B8 -> 798.035 | C40: =VLOOKUP($A40,'Data Pass Through'!$A:$D,2,FALSE) -> 0.0005 | D40: 0.3990175 | E40: 798.035 | F40: =VLOOKUP($A40,'Data Pass Through'!$A:$D,3,FALSE) -> 0.0005 | G40: 0.3990175 | H40: 0 | I40: 0 | J40: 0.003263614646 | K40: 0.003211404219
A41: Standard Supply Service – Administration Charge (if applicable) | B41: 1 | C41: =VLOOKUP($A41,'Data Pass Through'!$A:$D,2,FALSE) -> 0.25 | D41: =B41*C41 -> 0.25 | E41: 1 | F41: =VLOOKUP($A41,'Data Pass Through'!$A:$D,3,FALSE) -> 0.25 | G41: 0.25 | H41: 0 | I41: 0 | J41: 0.002044781649 | K41: 0.002012069783
A42: Sub-Total: Regulatory | D42: =SUM(D38:D41) -> 3.3623365 | G42: =SUM(G38:G41) -> 3.3623365 | H42: 0 | I42: 0 | J42: 0.02750097589 | K42: 0.02706102269
A43: Debt Retirement Charge (DRC) | B43: =B4 -> 755 | C43: =VLOOKUP($A43,'Data Pass Through'!$A:$D,2,FALSE) -> 0 | D43: =B43*C43 -> 0 | E43: 755 | F43: =VLOOKUP($A43,'Data Pass Through'!$A:$D,3,FALSE) -> 0 | G43: =E43*F43 -> 0 | H43: 0 | I43: N/A | J43: 0 | K43: 0
A44: Total Electricty Charge on Two-Tier RPP | D44: =SUM(D14,D27,D28,D29,D35,D42,D43) -> 115.5649045 | G44: =SUM(G14,G27,G28,G29,G35,G42,G43) -> 116.440422 | H44: 0.8755175 | I44: 0.00757598082 | J44: 0.9523809524
A45: HST | C45: 0.13 | D45: =D44*C45 -> 15.02343758 | F45: =C45 -> 0.13 | G45: =G44*F45 -> 15.13725486 | H45: 0.113817275 | I45: 0.00757598082 | J45: 0.1238095238
A46: Total Electricity Charge on Two-Tier RPP (including HST) | D46: =SUM(D44:D45) -> 130.5883421 | G46: =SUM(G44:G45) -> 131.5776769 | H46: 0.989334775 | I46: 0.00757598082 | J46: 1.076190476
A47: Ontario Rebate for Electricity Consumers (OREC) | C47: -0.08 | D47: =D44*C47 -> -9.24519236 | F47: =C47 -> -0.08 | G47: =G44*F47 -> -9.31523376 | H47: -0.0700414 | I47: -0.00757598082 | J47: -0.07619047619
A48: Total Amount on Two-Tier RPP | D48: =SUM(D46:D47) -> 121.3431497 | G48: =SUM(G46:G47) -> 122.2624431 | H48: 0.919293375 | I48: 0.00757598082 | J48: 1
A49: Total Electricty Charge on TOU (before HST) | D49: =SUM(D18,D27,D28,D30,D35,D42,D43) -> 117.4579717 | G49: =SUM(G18,G27,G28,G30,G35,G42,G43) -> 118.3334892 | H49: 0.8755175 | I49: 0.007453878923 | K49: =G49/$G$53 -> 0.9523809524
A50: HST | C50: 0.13 | D50: =D49*C50 -> 15.26953633 | F50: =C50 -> 0.13 | G50: =G49*F50 -> 15.3833536 | H50: 0.113817275 | I50: 0.007453878923 | K50: =G50/$G$53 -> 0.1238095238
A51: Total Electricity Charge on TOU (including HST) | D51: =SUM(D49:D50) -> 132.7275081 | G51: =SUM(G49:G50) -> 133.7168429 | H51: 0.989334775 | I51: 0.007453878923 | K51: =G51/$G$53 -> 1.076190476
A52: Ontario Rebate for Electricity Consumers (OREC) | C52: -0.08 | D52: =D49*C52 -> -9.39663774 | F52: =C52 -> -0.08 | G52: =G49*F52 -> -9.46667914 | H52: -0.0700414 | I52: -0.007453878923 | K52: =G52/$G$53 -> -0.07619047619
A53: Total Amount on TOU | D53: =SUM(D51:D52) -> 123.3308703 | G53: =SUM(G51:G52) -> 124.2501637 | H53: 0.919293375 | I53: 0.007453878923 | K53: =G53/$G$53 -> 1
A54: * Distribution rate protection applies to R1 and R2 customers

Sheet BI_UR_High
A1: 2020 Bill Impacts (High Consumption Level) - UR
A3: Rate Class | B3: =RIGHT(A1,LEN(A1)-FIND("- ",A1,1)-1) -> UR
A4: Monthly Consumption (kWh) | B4: =IF(COUNTIF(A1,"*Low*")>0,VLOOKUP(B3,'Data Billing Quantities'!$A:$Z,MATCH("Low kWh",'Data Billing Quantities'!4:4,0),FALSE),IF(COUNTIF(A1,"*Typical*")>0,VLOOKUP(B3,'Data Billing Quantities'!$A:$Z,MATCH("Typical kWh",'Data Billing Quantities'!4:4,0),FALSE),IF(COUNTIF(A1,"*Average*")>0,VLOOKUP(B3,'Data Billing Quantities'!$A:$Z,MATCH("Average kWh",'Data Billing Quantities'!4:4,0),FALSE),IF(COUNTIF(A1,"*High*")>0,VLOOKUP(B3,'Data Billing Quantities'!$A:$Z,MATCH("High kWh",'Data Billing Quantities'!4:4,0),FALSE),"error")))) -> 1400
A5: Peak (kW) | B5: =IF(COUNTIF(A1,"*Low*")>0,VLOOKUP(B3,'Data Billing Quantities'!$A:$Z,MATCH("Low kW",'Data Billing Quantities'!4:4,0),FALSE),IF(COUNTIF(A1,"*Typical*")>0,VLOOKUP(B3,'Data Billing Quantities'!$A:$Z,MATCH("Typical kW",'Data Billing Quantities'!4:4,0),FALSE),IF(COUNTIF(A1,"*Average*")>0,VLOOKUP(B3,'Data Billing Quantities'!$A:$Z,MATCH("Average kW",'Data Billing Quantities'!4:4,0),FALSE),IF(COUNTIF(A1,"*High*")>0,VLOOKUP(B3,'Data Billing Quantities'!$A:$Z,MATCH("High kW",'Data Billing Quantities'!4:4,0),FALSE),"error")))) -> 0
A6: Loss factor | B6: =VLOOKUP(B3,'Data Billing Quantities'!A:D,MATCH(A6,'Data Billing Quantities'!4:4,0),FALSE) -> 1.057
A7: Commodity Threshold | B7: =VLOOKUP(B3,'Data Billing Quantities'!A:D,MATCH(A7,'Data Billing Quantities'!4:4,0),FALSE) -> 600
A8: Monthly Consumption (kWh) - Uplifted | B8: =B4*B6 -> 1479.8
A9: Charge determinant | B9: =VLOOKUP(B3,'Data Billing Quantities'!A:D,MATCH(A9,'Data Billing Quantities'!4:4,0),FALSE) -> kWh
B11: Volume | C11: Current Rate ($) | D11: Current Charge ($) | E11: Volume | F11: Proposed Rate ($) | G11: Proposed Charge ($) | H11: Change ($) | I11: Change (%) | J11: % of Total Bill on RPP | K11: % of Total Bill on TOU
A12: Energy First Tier | B12: =IF(B4>B7,B7,B4) -> 600 | C12: =VLOOKUP($A12,'Data Pass Through'!$A:$D,2,FALSE) -> 0.077 | D12: =B12*C12 -> 46.2 | E12: =B12 -> 600 | F12: =VLOOKUP($A12,'Data Pass Through'!$A:$D,3,FALSE) -> 0.077 | G12: =E12*F12 -> 46.2 | H12: =G12-D12 -> 0 | I12: =IF(ISERROR(H12/ABS(D12)),"N/A",(H12/ABS(D12))) -> 0 | J12: =G12/$G$48 -> 0.2281871732
A13: Energy Second Tier | B13: =IF(B4>B7,(B4)-B7,0) -> 800 | C13: =VLOOKUP($A13,'Data Pass Through'!$A:$D,2,FALSE) -> 0.089 | D13: =B13*C13 -> 71.2 | E13: =B13 -> 800 | F13: =VLOOKUP($A13,'Data Pass Through'!$A:$D,3,FALSE) -> 0.089 | G13: =E13*F13 -> 71.2 | H13: 0 | I13: 0 | J13: =G13/$G$48 -> 0.3516650808
A14: Sub-Total: Energy (RPP Tiered) | D14: =SUM(D12:D13) -> 117.4 | G14: =SUM(G12:G13) -> 117.4 | H14: 0 | I14: 0 | J14: =G14/$G$48 -> 0.579852254
A15: TOU-Off Peak | B15: =B$4*VLOOKUP($B$3,'Data Billing Quantities'!$A:$O,MATCH(BI_UR_High!$A15,'Data Billing Quantities'!$4:$4,0),FALSE) -> 910 | C15: =VLOOKUP($A15,'Data Pass Through'!$A:$D,2,FALSE) -> 0.065 | D15: =B15*C15 -> 59.15 | E15: 910 | F15: =VLOOKUP($A15,'Data Pass Through'!$A:$D,3,FALSE) -> 0.065 | G15: =E15*F15 -> 59.15 | H15: 0 | I15: 0 | K15: =G15/$G$53 -> 0.2962051718
A16: TOU-Mid Peak | B16: =B$4*VLOOKUP($B$3,'Data Billing Quantities'!$A:$O,MATCH(BI_UR_High!$A16,'Data Billing Quantities'!$4:$4,0),FALSE) -> 238 | C16: =VLOOKUP($A16,'Data Pass Through'!$A:$D,2,FALSE) -> 0.094 | D16: =B16*C16 -> 22.372 | E16: 238 | F16: =VLOOKUP($A16,'Data Pass Through'!$A:$D,3,FALSE) -> 0.094 | G16: =E16*F16 -> 22.372 | H16: 0 | I16: 0 | K16: 0.1120321573
A17: TOU-On Peak | B17: =B$4*VLOOKUP($B$3,'Data Billing Quantities'!$A:$O,MATCH(BI_UR_High!$A17,'Data Billing Quantities'!$4:$4,0),FALSE) -> 252 | C17: =VLOOKUP($A17,'Data Pass Through'!$A:$D,2,FALSE) -> 0.134 | D17: =B17*C17 -> 33.768 | E17: 252 | F17: =VLOOKUP($A17,'Data Pass Through'!$A:$D,3,FALSE) -> 0.134 | G17: =E17*F17 -> 33.768 | H17: 0 | I17: 0 | K17: 0.1690998519
A18: Sub-Total: Energy (RPP TOU) | D18: =SUM(D15:D17) -> 115.29 | G18: =SUM(G15:G17) -> 115.29 | H18: 0 | I18: 0 | J18: =G18/$G$48 -> 0.5694307186 | K18: 0.5773371811
A19: Service Charge | B19: 1 | C19: =VLOOKUP($B$3,'Data Current Rates'!$A:$BA,MATCH(BI_UR_High!$A19,CurrentHeader,0),FALSE) -> 28.63 | D19: =B19*C19 -> 28.63 | E19: 1 | F19: =VLOOKUP($B$3,'Data Proposed Rates'!$A:$BA,MATCH(BI_UR_High!$A19,ProposedHeader,0),FALSE) -> 31.91 | G19: =E19*F19 -> 31.91 | H19: 3.28 | I19: 0.1145651415 | J19: 0.1576072012 | K19: 0.1597955542
A20: Fixed Foregone Revenue Charge | B20: 1 | C20: =VLOOKUP($B$3,'Data Current Rates'!$A:$BA,MATCH(BI_UR_High!$A20,CurrentHeader,0),FALSE) -> 1.46 | D20: 1.46 | E20: 1 | F20: =VLOOKUP($B$3,'Data Proposed Rates'!$A:$BA,MATCH(BI_UR_High!$A20,ProposedHeader,0),FALSE) -> 1.45 | G20: 1.45 | H20: -0.01 | I20: -0.006849315068 | J20: 0.00716171864 | K20: 0.007261158058
A21: Fixed Deferral/Variance Account Rider (General) | B21: 1 | C21: =VLOOKUP($B$3,'Data Current Rates'!$A:$BA,MATCH(BI_UR_High!$A21,CurrentHeader,0),FALSE) -> 0.05 | D21: 0.05 | E21: 1 | F21: =VLOOKUP($B$3,'Data Proposed Rates'!$A:$BA,MATCH(BI_UR_High!$A21,ProposedHeader,0),FALSE) -> 0.05 | G21: 0.05 | H21: 0 | I21: 0 | J21: 0.0002469558152 | K21: 0.0002503847606
A22: Distribution Volumetric Charge | B22: =IF($B$9="kWh",$B$4,$B$5) -> 1400 | C22: =VLOOKUP($B$3,'Data Current Rates'!$A:$BA,MATCH(BI_UR_High!$A22,CurrentHeader,0),FALSE) -> 0.0075 | D22: 10.5 | E22: 1400 | F22: =VLOOKUP($B$3,'Data Proposed Rates'!$A:$BA,MATCH(BI_UR_High!$A22,ProposedHeader,0),FALSE) -> 0.0038 | G22: 5.32 | H22: -5.18 | I22: -0.4933333333 | J22: 0.02627609874 | K22: 0.02664093853
A23: Volumetric Foregone Revenue Charge | B23: =IF($B$9="kWh",$B$4,$B$5) -> 1400 | C23: =VLOOKUP($B$3,'Data Current Rates'!$A:$BA,MATCH(BI_UR_High!$A23,CurrentHeader,0),FALSE) -> 0 | D23: 0 | E23: 1400 | F23: =VLOOKUP($B$3,'Data Proposed Rates'!$A:$BA,MATCH(BI_UR_High!$A23,ProposedHeader,0),FALSE) -> 0 | G23: 0 | H23: 0 | I23: N/A | J23: 0 | K23: 0
A24: Volumetric Deferral/Variance Account Rider (General) | B24: =IF($B$9="kWh",$B$4,$B$5) -> 1400 | C24: =VLOOKUP($B$3,'Data Current Rates'!$A:$BA,MATCH(BI_UR_High!$A24,CurrentHeader,0),FALSE) -> -0.0008 | D24: -1.12 | E24: 1400 | F24: =VLOOKUP($B$3,'Data Proposed Rates'!$A:$BA,MATCH(BI_UR_High!$A24,ProposedHeader,0),FALSE) -> -0.0008 | G24: -1.12 | H24: 0 | I24: 0 | J24: -0.00553181026 | K24: -0.005608618638
A25: Volumetric Deferral/Variance Account Rider (Sub Account CBR) | B25: 1400 | C25: =VLOOKUP($B$3,'Data Current Rates'!$A:$BA,MATCH(BI_UR_High!$A25,CurrentHeader,0),FALSE) -> 0 | D25: 0 | E25: 1400 | F25: =VLOOKUP($B$3,'Data Proposed Rates'!$A:$BA,MATCH(BI_UR_High!$A25,ProposedHeader,0),FALSE) -> 0 | G25: 0 | H25: 0 | I25: N/A | J25: 0 | K25: 0
A26: Fair Hydro Plan - Distribution Rate Protection Savings* | D26: =IF(AND(B3<>"R1",B3<>"R2"),0,IF(VLOOKUP($A26,'Data Pass Through'!$A:$D,2,FALSE)=0,0,IF(SUM(D19:D20,D22:D23)<VLOOKUP($A26,'Data Pass Through'!$A:$D,2,FALSE),0,VLOOKUP($A26,'Data Pass Through'!$A:$D,2,FALSE)-SUM(D19:D20,D22:D23)))) -> 0 | G26: =IF(AND(B3<>"R1",B3<>"R2"),0,IF(VLOOKUP($A26,'Data Pass Through'!$A:$D,2,FALSE)=0,0,IF(SUM(G19:G20,G22:G23)<VLOOKUP($A26,'Data Pass Through'!$A:$D,2,FALSE),0,VLOOKUP($A26,'Data Pass Through'!$A:$D,2,FALSE)-SUM(G19:G20,G22:G23)))) -> 0 | H26: 0 | I26: N/A | J26: 0 | K26: 0
A27: Sub-Total: Distribution (excluding pass through) | D27: =SUM(INDIRECT("D19:D"&ROW()-1)) -> 39.52 | G27: =SUM(INDIRECT("g19:g"&ROW()-1)) -> 37.61 | H27: =G27-D27 -> -1.91 | I27: -0.04832995951 | J27: 0.1857601642 | K27: 0.1883394169
A28: Smart Metering Entity Charge | B28: 1 | C28: =VLOOKUP($A28,'Data Pass Through'!$A:$D,2,FALSE) -> 0.57 | D28: =B28*C28 -> 0.57 | E28: 1 | F28: =VLOOKUP($A28,'Data Pass Through'!$A:$D,3,FALSE) -> 0.57 | G28: =E28*F28 -> 0.57 | H28: 0 | I28: 0 | J28: 0.002815296293 | K28: 0.002854386271
A29: Line Losses on Cost of Power (based on two-tier RPP prices) | B29: =B8-B4 -> 79.8 | C29: =IF(B4>B7,C13,C12) -> 0.089 | D29: =B29*C29 -> 7.1022 | E29: 79.8 | F29: =IF(B4>B7,F13,F12) -> 0.089 | G29: =E29*F29 -> 7.1022 | H29: 0 | I29: 0 | J29: 0.03507859181 | K29: 0.03556565294
A30: Line Losses on Cost of Power (based on TOU prices) | B30: =B8-B4 -> 79.8 | C30: =VLOOKUP($B$3,'Data Billing Quantities'!$A:$O,MATCH(BI_UR_High!$A15,'Data Billing Quantities'!$4:$4,0),FALSE)*C15+VLOOKUP($B$3,'Data Billing Quantities'!$A:$O,MATCH(BI_UR_High!$A16,'Data Billing Quantities'!$4:$4,0),FALSE)*C16+VLOOKUP($B$3,'Data Billing Quantities'!$A:$O,MATCH(BI_UR_High!$A17,'Data Billing Quantities'!$4:$4,0),FALSE)*C17 -> 0.08235 | D30: =B30*C30 -> 6.57153 | E30: 79.8 | F30: =VLOOKUP($B$3,'Data Billing Quantities'!$A:$O,MATCH(BI_UR_High!$A15,'Data Billing Quantities'!$4:$4,0),FALSE)*F15+VLOOKUP($B$3,'Data Billing Quantities'!$A:$O,MATCH(BI_UR_High!$A16,'Data Billing Quantities'!$4:$4,0),FALSE)*F16+VLOOKUP($B$3,'Data Billing Quantities'!$A:$O,MATCH(BI_UR_High!$A17,'Data Billing Quantities'!$4:$4,0),FALSE)*F17 -> 0.08235 | G30: =E30*F30 -> 6.57153 | H30: 0 | I30: 0 | J30: 0.03245755096 | K30: 0.03290821932
A31: Sub-Total: Distribution (based on two-tier RPP prices) | D31: =SUM(D27,D28:D29) -> 47.1922 | G31: =SUM(G27,G28:G29) -> 45.2822 | H31: -1.91 | I31: -0.04047278999 | J31: 0.2236540523 | K31: 0.2267594562
A32: Sub-Total: Distribution (based on TOU prices) | D32: =SUM(D27,D28,D30) -> 46.66153 | G32: =SUM(G27,G28,G30) -> 44.75153 | H32: -1.91 | I32: -0.04093307699 | J32: 0.2210330114 | K32: 0.2241020225
A33: Retail Transmission Rate – Network Service Rate | B33: =B8 -> 1479.8 | C33: =VLOOKUP($B$3,'Data Current Rates'!$A:$BA,MATCH(BI_UR_High!$A33,CurrentHeader,0),FALSE) -> 0.0084 | D33: =B33*C33 -> 12.43032 | E33: 1479.8 | F33: =VLOOKUP($B$3,'Data Proposed Rates'!$A:$BA,MATCH(BI_UR_High!$A33,ProposedHeader,0),FALSE) -> 0.0087 | G33: =E33*F33 -> 12.87426 | H33: =G33-D33 -> 0.44394 | I33: 0.03571428571 | J33: 0.06358746746 | K33: 0.06447037017
A34: Retail Transmission Rate – Line and Transformation Connection Service Rate | B34: =B8 -> 1479.8 | C34: =VLOOKUP($B$3,'Data Current Rates'!$A:$BA,MATCH(BI_UR_High!$A34,CurrentHeader,0),FALSE) -> 0.0074 | D34: =B34*C34 -> 10.95052 | E34: 1479.8 | F34: =VLOOKUP($B$3,'Data Proposed Rates'!$A:$BA,MATCH(BI_UR_High!$A34,ProposedHeader,0),FALSE) -> 0.0076 | G34: =E34*F34 -> 11.24648 | H34: =G34-D34 -> 0.29596 | I34: 0.02702702703 | J34: 0.05554767273 | K34: 0.05631894405
A35: Sub-Total: Retail Transmission | D35: =SUM(D33:D34) -> 23.38084 | G35: =SUM(G33:G34) -> 24.12074 | H35: =G35-D35 -> 0.7399 | I35: 0.03164556962 | J35: 0.1191351402 | K35: 0.1207893142
A36: Sub-Total: Delivery (based on two-tier RPP prices) | D36: =D31+D35 -> 70.57304 | G36: =G31+G35 -> 69.40294 | H36: =G36-D36 -> -1.1701 | I36: -0.01657998578 | J36: 0.3427891925 | K36: 0.3475487704
A37: Sub-Total: Delivery (based on TOU prices) | D37: =D32+D35 -> 70.04237 | G37: =G32+G35 -> 68.87227 | H37: =G37-D37 -> -1.1701 | I37: -0.01670560262 | J37: 0.3401681516 | K37: 0.3448913368
A38: Wholesale Market Service Rate (WMS) - not including CBR | B38: =B8 -> 1479.8 | C38: =VLOOKUP($A38,'Data Pass Through'!$A:$D,2,FALSE) -> 0.003 | D38: =B38*C38 -> 4.4394 | E38: =$B$8 -> 1479.8 | F38: =VLOOKUP($A38,'Data Pass Through'!$A:$D,3,FALSE) -> 0.003 | G38: =E38*F38 -> 4.4394 | H38: 0 | I38: 0 | J38: 0.02192671292 | K38: 0.02223116213
A39: Capacity Based Recovery (CBR) - Applicable for Class B Customers | B39: =B8 -> 1479.8 | C39: =VLOOKUP($A39,'Data Pass Through'!$A:$D,2,FALSE) -> 0.0004 | D39: =B39*C39 -> 0.59192 | E39: =$B$8 -> 1479.8 | F39: =VLOOKUP($A39,'Data Pass Through'!$A:$D,3,FALSE) -> 0.0004 | G39: =E39*F39 -> 0.59192 | H39: 0 | I39: 0 | J39: 0.002923561722 | K39: 0.00296415495
A40: Rural Rate Protection Charge | B40: =B8 -> 1479.8 | C40: =VLOOKUP($A40,'Data Pass Through'!$A:$D,2,FALSE) -> 0.0005 | D40: 0.7399 | E40: 1479.8 | F40: =VLOOKUP($A40,'Data Pass Through'!$A:$D,3,FALSE) -> 0.0005 | G40: 0.7399 | H40: 0 | I40: 0 | J40: 0.003654452153 | K40: 0.003705193688
A41: Standard Supply Service – Administration Charge (if applicable) | B41: 1 | C41: =VLOOKUP($A41,'Data Pass Through'!$A:$D,2,FALSE) -> 0.25 | D41: =B41*C41 -> 0.25 | E41: 1 | F41: =VLOOKUP($A41,'Data Pass Through'!$A:$D,3,FALSE) -> 0.25 | G41: 0.25 | H41: 0 | I41: 0 | J41: 0.001234779076 | K41: 0.001251923803
A42: Sub-Total: Regulatory | D42: =SUM(D38:D41) -> 6.02122 | G42: =SUM(G38:G41) -> 6.02122 | H42: 0 | I42: 0 | J42: 0.02973950587 | K42: 0.03015243457
A43: Debt Retirement Charge (DRC) | B43: =B4 -> 1400 | C43: =VLOOKUP($A43,'Data Pass Through'!$A:$D,2,FALSE) -> 0 | D43: =B43*C43 -> 0 | E43: 1400 | F43: =VLOOKUP($A43,'Data Pass Through'!$A:$D,3,FALSE) -> 0 | G43: =E43*F43 -> 0 | H43: 0 | I43: N/A | J43: 0 | K43: 0
A44: Total Electricty Charge on Two-Tier RPP | D44: =SUM(D14,D27,D28,D29,D35,D42,D43) -> 193.99426 | G44: =SUM(G14,G27,G28,G29,G35,G42,G43) -> 192.82416 | H44: -1.1701 | I44: -0.00603162176 | J44: 0.9523809524
A45: HST | C45: 0.13 | D45: =D44*C45 -> 25.2192538 | F45: =C45 -> 0.13 | G45: =G44*F45 -> 25.0671408 | H45: -0.152113 | I45: -0.00603162176 | J45: 0.1238095238
A46: Total Electricity Charge on Two-Tier RPP (including HST) | D46: =SUM(D44:D45) -> 219.2135138 | G46: =SUM(G44:G45) -> 217.8913008 | H46: -1.322213 | I46: -0.00603162176 | J46: 1.076190476
A47: Ontario Rebate for Electricity Consumers (OREC) | C47: -0.08 | D47: =D44*C47 -> -15.5195408 | F47: =C47 -> -0.08 | G47: =G44*F47 -> -15.4259328 | H47: 0.093608 | I47: 0.00603162176 | J47: -0.07619047619
A48: Total Amount on Two-Tier RPP | D48: =SUM(D46:D47) -> 203.693973 | G48: =SUM(G46:G47) -> 202.465368 | H48: -1.228605 | I48: -0.00603162176 | J48: 1
A49: Total Electricty Charge on TOU (before HST) | D49: =SUM(D18,D27,D28,D30,D35,D42,D43) -> 191.35359 | G49: =SUM(G18,G27,G28,G30,G35,G42,G43) -> 190.18349 | H49: -1.1701 | I49: -0.00611485784 | K49: =G49/$G$53 -> 0.9523809524
A50: HST | C50: 0.13 | D50: =D49*C50 -> 24.8759667 | F50: =C50 -> 0.13 | G50: =G49*F50 -> 24.7238537 | H50: -0.152113 | I50: -0.00611485784 | K50: =G50/$G$53 -> 0.1238095238
A51: Total Electricity Charge on TOU (including HST) | D51: =SUM(D49:D50) -> 216.2295567 | G51: =SUM(G49:G50) -> 214.9073437 | H51: -1.322213 | I51: -0.00611485784 | K51: =G51/$G$53 -> 1.076190476
A52: Ontario Rebate for Electricity Consumers (OREC) | C52: -0.08 | D52: =D49*C52 -> -15.3082872 | F52: =C52 -> -0.08 | G52: =G49*F52 -> -15.2146792 | H52: 0.093608 | I52: 0.00611485784 | K52: =G52/$G$53 -> -0.07619047619
A53: Total Amount on TOU | D53: =SUM(D51:D52) -> 200.9212695 | G53: =SUM(G51:G52) -> 199.6926645 | H53: -1.228605 | I53: -0.00611485784 | K53: =G53/$G$53 -> 1
A54: * Distribution rate protection applies to R1 and R2 customers

Sheet BI_R1_Low
A1: 2020 Bill Impacts (Low Consumption Level) - R1
A3: Rate Class | B3: =RIGHT(A1,LEN(A1)-FIND("- ",A1,1)-1) -> R1
A4: Monthly Consumption (kWh) | B4: =IF(COUNTIF(A1,"*Low*")>0,VLOOKUP(B3,'Data Billing Quantities'!$A:$Z,MATCH("Low kWh",'Data Billing Quantities'!4:4,0),FALSE),IF(COUNTIF(A1,"*Typical*")>0,VLOOKUP(B3,'Data Billing Quantities'!$A:$Z,MATCH("Typical kWh",'Data Billing Quantities'!4:4,0),FALSE),IF(COUNTIF(A1,"*Average*")>0,VLOOKUP(B3,'Data Billing Quantities'!$A:$Z,MATCH("Average kWh",'Data Billing Quantities'!4:4,0),FALSE),IF(COUNTIF(A1,"*High*")>0,VLOOKUP(B3,'Data Billing Quantities'!$A:$Z,MATCH("High kWh",'Data Billing Quantities'!4:4,0),FALSE),"error")))) -> 400
A5: Peak (kW) | B5: =IF(COUNTIF(A1,"*Low*")>0,VLOOKUP(B3,'Data Billing Quantities'!$A:$Z,MATCH("Low kW",'Data Billing Quantities'!4:4,0),FALSE),IF(COUNTIF(A1,"*Typical*")>0,VLOOKUP(B3,'Data Billing Quantities'!$A:$Z,MATCH("Typical kW",'Data Billing Quantities'!4:4,0),FALSE),IF(COUNTIF(A1,"*Average*")>0,VLOOKUP(B3,'Data Billing Quantities'!$A:$Z,MATCH("Average kW",'Data Billing Quantities'!4:4,0),FALSE),IF(COUNTIF(A1,"*High*")>0,VLOOKUP(B3,'Data Billing Quantities'!$A:$Z,MATCH("High kW",'Data Billing Quantities'!4:4,0),FALSE),"error")))) -> 0
A6: Loss factor | B6: =VLOOKUP(B3,'Data Billing Quantities'!A:D,MATCH(A6,'Data Billing Quantities'!4:4,0),FALSE) -> 1.076
A7: Commodity Threshold | B7: =VLOOKUP(B3,'Data Billing Quantities'!A:D,MATCH(A7,'Data Billing Quantities'!4:4,0),FALSE) -> 600
A8: Monthly Consumption (kWh) - Uplifted | B8: =B4*B6 -> 430.4
A9: Charge determinant | B9: =VLOOKUP(B3,'Data Billing Quantities'!A:D,MATCH(A9,'Data Billing Quantities'!4:4,0),FALSE) -> kWh
B11: Volume | C11: Current Rate ($) | D11: Current Charge ($) | E11: Volume | F11: Proposed Rate ($) | G11: Proposed Charge ($) | H11: Change ($) | I11: Change (%) | J11: % of Total Bill on RPP | K11: % of Total Bill on TOU
A12: Energy First Tier | B12: =IF(B4>B7,B7,B4) -> 400 | C12: =VLOOKUP($A12,'Data Pass Through'!$A:$D,2,FALSE) -> 0.077 | D12: =B12*C12 -> 30.8 | E12: =B12 -> 400 | F12: =VLOOKUP($A12,'Data Pass Through'!$A:$D,3,FALSE) -> 0.077 | G12: =E12*F12 -> 30.8 | H12: =G12-D12 -> 0 | I12: =IF(ISERROR(H12/ABS(D12)),"N/A",(H12/ABS(D12))) -> 0 | J12: =G12/$G$48 -> 0.3724326693
A13: Energy Second Tier | B13: =IF(B4>B7,(B4)-B7,0) -> 0 | C13: =VLOOKUP($A13,'Data Pass Through'!$A:$D,2,FALSE) -> 0.089 | D13: =B13*C13 -> 0 | E13: =B13 -> 0 | F13: =VLOOKUP($A13,'Data Pass Through'!$A:$D,3,FALSE) -> 0.089 | G13: =E13*F13 -> 0 | H13: 0 | I13: N/A | J13: =G13/$G$48 -> 0
A14: Sub-Total: Energy (RPP Tiered) | D14: =SUM(D12:D13) -> 30.8 | G14: =SUM(G12:G13) -> 30.8 | H14: 0 | I14: 0 | J14: =G14/$G$48 -> 0.3724326693
A15: TOU-Off Peak | B15: =B$4*VLOOKUP($B$3,'Data Billing Quantities'!$A:$O,MATCH(BI_R1_Low!$A15,'Data Billing Quantities'!$4:$4,0),FALSE) -> 260 | C15: =VLOOKUP($A15,'Data Pass Through'!$A:$D,2,FALSE) -> 0.065 | D15: =B15*C15 -> 16.9 | E15: 260 | F15: =VLOOKUP($A15,'Data Pass Through'!$A:$D,3,FALSE) -> 0.065 | G15: =E15*F15 -> 16.9 | H15: 0 | I15: 0 | K15: =G15/$G$53 -> 0.1985495684
A16: TOU-Mid Peak | B16: =B$4*VLOOKUP($B$3,'Data Billing Quantities'!$A:$O,MATCH(BI_R1_Low!$A16,'Data Billing Quantities'!$4:$4,0),FALSE) -> 68 | C16: =VLOOKUP($A16,'Data Pass Through'!$A:$D,2,FALSE) -> 0.094 | D16: =B16*C16 -> 6.392 | E16: 68 | F16: =VLOOKUP($A16,'Data Pass Through'!$A:$D,3,FALSE) -> 0.094 | G16: =E16*F16 -> 6.392 | H16: 0 | I16: 0 | K16: 0.07509638113
A17: TOU-On Peak | B17: =B$4*VLOOKUP($B$3,'Data Billing Quantities'!$A:$O,MATCH(BI_R1_Low!$A17,'Data Billing Quantities'!$4:$4,0),FALSE) -> 72 | C17: =VLOOKUP($A17,'Data Pass Through'!$A:$D,2,FALSE) -> 0.134 | D17: =B17*C17 -> 9.648 | E17: 72 | F17: =VLOOKUP($A17,'Data Pass Through'!$A:$D,3,FALSE) -> 0.134 | G17: =E17*F17 -> 9.648 | H17: 0 | I17: 0 | K17: 0.1133494814
A18: Sub-Total: Energy (RPP TOU) | D18: =SUM(D15:D17) -> 32.94 | G18: =SUM(G15:G17) -> 32.94 | H18: 0 | I18: 0 | J18: =G18/$G$48 -> 0.3983094846 | K18: 0.3869954309
A19: Service Charge | B19: 1 | C19: =VLOOKUP($B$3,'Data Current Rates'!$A:$BA,MATCH(BI_R1_Low!$A19,CurrentHeader,0),FALSE) -> 38.74 | D19: =B19*C19 -> 38.74 | E19: 1 | F19: =VLOOKUP($B$3,'Data Proposed Rates'!$A:$BA,MATCH(BI_R1_Low!$A19,ProposedHeader,0),FALSE) -> 43.36 | G19: =E19*F19 -> 43.36 | H19: 4.62 | I19: 0.1192565823 | J19: 0.5243078097 | K19: 0.5094147506
A20: Fixed Foregone Revenue Charge | B20: 1 | C20: =VLOOKUP($B$3,'Data Current Rates'!$A:$BA,MATCH(BI_R1_Low!$A20,CurrentHeader,0),FALSE) -> 1.71 | D20: 1.71 | E20: 1 | F20: =VLOOKUP($B$3,'Data Proposed Rates'!$A:$BA,MATCH(BI_R1_Low!$A20,ProposedHeader,0),FALSE) -> 1.69 | G20: 1.69 | H20: -0.02 | I20: -0.01169590643 | J20: 0.02043542893 | K20: 0.01985495684
A21: Fixed Deferral/Variance Account Rider (General) | B21: 1 | C21: =VLOOKUP($B$3,'Data Current Rates'!$A:$BA,MATCH(BI_R1_Low!$A21,CurrentHeader,0),FALSE) -> 0.04 | D21: 0.04 | E21: 1 | F21: =VLOOKUP($B$3,'Data Proposed Rates'!$A:$BA,MATCH(BI_R1_Low!$A21,ProposedHeader,0),FALSE) -> 0.04 | G21: 0.04 | H21: 0 | I21: 0 | J21: 0.0004836787912 | K21: 0.0004699398068
A22: Distribution Volumetric Charge | B22: =IF($B$9="kWh",$B$4,$B$5) -> 400 | C22: =VLOOKUP($B$3,'Data Current Rates'!$A:$BA,MATCH(BI_R1_Low!$A22,CurrentHeader,0),FALSE) -> 0.0222 | D22: 8.88 | E22: 400 | F22: =VLOOKUP($B$3,'Data Proposed Rates'!$A:$BA,MATCH(BI_R1_Low!$A22,ProposedHeader,0),FALSE) -> 0.0181 | G22: 7.24 | H22: -1.64 | I22: -0.1846846847 | J22: 0.08754586121 | K22: 0.08505910503
A23: Volumetric Foregone Revenue Charge | B23: =IF($B$9="kWh",$B$4,$B$5) -> 400 | C23: =VLOOKUP($B$3,'Data Current Rates'!$A:$BA,MATCH(BI_R1_Low!$A23,CurrentHeader,0),FALSE) -> 0.0009 | D23: 0.36 | E23: 400 | F23: =VLOOKUP($B$3,'Data Proposed Rates'!$A:$BA,MATCH(BI_R1_Low!$A23,ProposedHeader,0),FALSE) -> 0.0009 | G23: 0.36 | H23: 0 | I23: 0 | J23: 0.004353109121 | K23: 0.004229458261
A24: Volumetric Deferral/Variance Account Rider (General) | B24: =IF($B$9="kWh",$B$4,$B$5) -> 400 | C24: =VLOOKUP($B$3,'Data Current Rates'!$A:$BA,MATCH(BI_R1_Low!$A24,CurrentHeader,0),FALSE) -> -0.0008 | D24: -0.32 | E24: 400 | F24: =VLOOKUP($B$3,'Data Proposed Rates'!$A:$BA,MATCH(BI_R1_Low!$A24,ProposedHeader,0),FALSE) -> -0.0008 | G24: -0.32 | H24: 0 | I24: 0 | J24: -0.00386943033 | K24: -0.003759518455
A25: Volumetric Deferral/Variance Account Rider (Sub Account CBR) | B25: 400 | C25: =VLOOKUP($B$3,'Data Current Rates'!$A:$BA,MATCH(BI_R1_Low!$A25,CurrentHeader,0),FALSE) -> 0 | D25: 0 | E25: 400 | F25: =VLOOKUP($B$3,'Data Proposed Rates'!$A:$BA,MATCH(BI_R1_Low!$A25,ProposedHeader,0),FALSE) -> 0 | G25: 0 | H25: 0 | I25: N/A | J25: 0 | K25: 0
A26: Fair Hydro Plan - Distribution Rate Protection Savings* | D26: =IF(AND(B3<>"R1",B3<>"R2"),0,IF(VLOOKUP($A26,'Data Pass Through'!$A:$D,2,FALSE)=0,0,IF(SUM(D19:D20,D22:D23)<VLOOKUP($A26,'Data Pass Through'!$A:$D,2,FALSE),0,VLOOKUP($A26,'Data Pass Through'!$A:$D,2,FALSE)-SUM(D19:D20,D22:D23)))) -> -12.83 | G26: =IF(AND(B3<>"R1",B3<>"R2"),0,IF(VLOOKUP($A26,'Data Pass Through'!$A:$D,2,FALSE)=0,0,IF(SUM(G19:G20,G22:G23)<VLOOKUP($A26,'Data Pass Through'!$A:$D,2,FALSE),0,VLOOKUP($A26,'Data Pass Through'!$A:$D,2,FALSE)-SUM(G19:G20,G22:G23)))) -> -15.79 | H26: -2.96 | I26: -0.2307092751 | J26: -0.1909322028 | K26: -0.1855087387
A27: Sub-Total: Distribution (excluding pass through) | D27: =SUM(INDIRECT("D19:D"&ROW()-1)) -> 36.58 | G27: =SUM(INDIRECT("g19:g"&ROW()-1)) -> 36.58 | H27: =G27-D27 -> 0 | I27: 0 | J27: 0.4423242546 | K27: 0.4297599533
A28: Smart Metering Entity Charge | B28: 1 | C28: =VLOOKUP($A28,'Data Pass Through'!$A:$D,2,FALSE) -> 0.57 | D28: =B28*C28 -> 0.57 | E28: 1 | F28: =VLOOKUP($A28,'Data Pass Through'!$A:$D,3,FALSE) -> 0.57 | G28: =E28*F28 -> 0.57 | H28: 0 | I28: 0 | J28: 0.006892422775 | K28: 0.006696642247
A29: Line Losses on Cost of Power (based on two-tier RPP prices) | B29: =B8-B4 -> 30.4 | C29: =IF(B4>B7,C13,C12) -> 0.077 | D29: =B29*C29 -> 2.3408 | E29: 30.4 | F29: =IF(B4>B7,F13,F12) -> 0.077 | G29: =E29*F29 -> 2.3408 | H29: 0 | I29: 0 | J29: 0.02830488286 | K29: 0.0275008775
A30: Line Losses on Cost of Power (based on TOU prices) | B30: =B8-B4 -> 30.4 | C30: =VLOOKUP($B$3,'Data Billing Quantities'!$A:$O,MATCH(BI_R1_Low!$A15,'Data Billing Quantities'!$4:$4,0),FALSE)*C15+VLOOKUP($B$3,'Data Billing Quantities'!$A:$O,MATCH(BI_R1_Low!$A16,'Data Billing Quantities'!$4:$4,0),FALSE)*C16+VLOOKUP($B$3,'Data Billing Quantities'!$A:$O,MATCH(BI_R1_Low!$A17,'Data Billing Quantities'!$4:$4,0),FALSE)*C17 -> 0.08235 | D30: =B30*C30 -> 2.50344 | E30: 30.4 | F30: =VLOOKUP($B$3,'Data Billing Quantities'!$A:$O,MATCH(BI_R1_Low!$A15,'Data Billing Quantities'!$4:$4,0),FALSE)*F15+VLOOKUP($B$3,'Data Billing Quantities'!$A:$O,MATCH(BI_R1_Low!$A16,'Data Billing Quantities'!$4:$4,0),FALSE)*F16+VLOOKUP($B$3,'Data Billing Quantities'!$A:$O,MATCH(BI_R1_Low!$A17,'Data Billing Quantities'!$4:$4,0),FALSE)*F17 -> 0.08235 | G30: =E30*F30 -> 2.50344 | H30: 0 | I30: 0 | J30: 0.03027152083 | K30: 0.02941165275
A31: Sub-Total: Distribution (based on two-tier RPP prices) | D31: =SUM(D27,D28:D29) -> 39.4908 | G31: =SUM(G27,G28:G29) -> 39.4908 | H31: 0 | I31: 0 | J31: 0.4775215602 | K31: 0.4639574731
A32: Sub-Total: Distribution (based on TOU prices) | D32: =SUM(D27,D28,D30) -> 39.65344 | G32: =SUM(G27,G28,G30) -> 39.65344 | H32: 0 | I32: 0 | J32: 0.4794881982 | K32: 0.4658682483
A33: Retail Transmission Rate – Network Service Rate | B33: =B8 -> 430.4 | C33: =VLOOKUP($B$3,'Data Current Rates'!$A:$BA,MATCH(BI_R1_Low!$A33,CurrentHeader,0),FALSE) -> 0.0078 | D33: =B33*C33 -> 3.35712 | E33: 430.4 | F33: =VLOOKUP($B$3,'Data Proposed Rates'!$A:$BA,MATCH(BI_R1_Low!$A33,ProposedHeader,0),FALSE) -> 0.008 | G33: =E33*F33 -> 3.4432 | H33: =G33-D33 -> 0.08608 | I33: 0.02564102564 | J33: 0.04163507035 | K33: 0.04045241857
A34: Retail Transmission Rate – Line and Transformation Connection Service Rate | B34: =B8 -> 430.4 | C34: =VLOOKUP($B$3,'Data Current Rates'!$A:$BA,MATCH(BI_R1_Low!$A34,CurrentHeader,0),FALSE) -> 0.007 | D34: =B34*C34 -> 3.0128 | E34: 430.4 | F34: =VLOOKUP($B$3,'Data Proposed Rates'!$A:$BA,MATCH(BI_R1_Low!$A34,ProposedHeader,0),FALSE) -> 0.0072 | G34: =E34*F34 -> 3.09888 | H34: =G34-D34 -> 0.08608 | I34: 0.02857142857 | J34: 0.03747156331 | K34: 0.03640717671
A35: Sub-Total: Retail Transmission | D35: =SUM(D33:D34) -> 6.36992 | G35: =SUM(G33:G34) -> 6.54208 | H35: =G35-D35 -> 0.17216 | I35: 0.02702702703 | J35: 0.07910663366 | K35: 0.07685959529
A36: Sub-Total: Delivery (based on two-tier RPP prices) | D36: =D31+D35 -> 45.86072 | G36: =G31+G35 -> 46.03288 | H36: =G36-D36 -> 0.17216 | I36: 0.003753975079 | J36: 0.5566281939 | K36: 0.5408170684
A37: Sub-Total: Delivery (based on TOU prices) | D37: =D32+D35 -> 46.02336 | G37: =G32+G35 -> 46.19552 | H37: =G37-D37 -> 0.17216 | I37: 0.003740709066 | J37: 0.5585948319 | K37: 0.5427278436
A38: Wholesale Market Service Rate (WMS) - not including CBR | B38: =B8 -> 430.4 | C38: =VLOOKUP($A38,'Data Pass Through'!$A:$D,2,FALSE) -> 0.003 | D38: =B38*C38 -> 1.2912 | E38: =$B$8 -> 430.4 | F38: =VLOOKUP($A38,'Data Pass Through'!$A:$D,3,FALSE) -> 0.003 | G38: =E38*F38 -> 1.2912 | H38: 0 | I38: 0 | J38: 0.01561315138 | K38: 0.01516965696
A39: Capacity Based Recovery (CBR) - Applicable for Class B Customers | B39: =B8 -> 430.4 | C39: =VLOOKUP($A39,'Data Pass Through'!$A:$D,2,FALSE) -> 0.0004 | D39: =B39*C39 -> 0.17216 | E39: =$B$8 -> 430.4 | F39: =VLOOKUP($A39,'Data Pass Through'!$A:$D,3,FALSE) -> 0.0004 | G39: =E39*F39 -> 0.17216 | H39: 0 | I39: 0 | J39: 0.002081753517 | K39: 0.002022620929
A40: Rural Rate Protection Charge | B40: =B8 -> 430.4 | C40: =VLOOKUP($A40,'Data Pass Through'!$A:$D,2,FALSE) -> 0.0005 | D40: 0.2152 | E40: 430.4 | F40: =VLOOKUP($A40,'Data Pass Through'!$A:$D,3,FALSE) -> 0.0005 | G40: 0.2152 | H40: 0 | I40: 0 | J40: 0.002602191897 | K40: 0.002528276161
A41: Standard Supply Service – Administration Charge (if applicable) | B41: 1 | C41: =VLOOKUP($A41,'Data Pass Through'!$A:$D,2,FALSE) -> 0.25 | D41: =B41*C41 -> 0.25 | E41: 1 | F41: =VLOOKUP($A41,'Data Pass Through'!$A:$D,3,FALSE) -> 0.25 | G41: 0.25 | H41: 0 | I41: 0 | J41: 0.003022992445 | K41: 0.002937123793
A42: Sub-Total: Regulatory | D42: =SUM(D38:D41) -> 1.92856 | G42: =SUM(G38:G41) -> 1.92856 | H42: 0 | I42: 0 | J42: 0.02332008924 | K42: 0.02265767785
A43: Debt Retirement Charge (DRC) | B43: =B4 -> 400 | C43: =VLOOKUP($A43,'Data Pass Through'!$A:$D,2,FALSE) -> 0 | D43: =B43*C43 -> 0 | E43: 400 | F43: =VLOOKUP($A43,'Data Pass Through'!$A:$D,3,FALSE) -> 0 | G43: =E43*F43 -> 0 | H43: 0 | I43: N/A | J43: 0 | K43: 0
A44: Total Electricty Charge on Two-Tier RPP | D44: =SUM(D14,D27,D28,D29,D35,D42,D43) -> 78.58928 | G44: =SUM(G14,G27,G28,G29,G35,G42,G43) -> 78.76144 | H44: 0.17216 | I44: 0.002190629562 | J44: 0.9523809524
A45: HST | C45: 0.13 | D45: =D44*C45 -> 10.2166064 | F45: =C45 -> 0.13 | G45: =G44*F45 -> 10.2389872 | H45: 0.0223808 | I45: 0.002190629562 | J45: 0.1238095238
A46: Total Electricity Charge on Two-Tier RPP (including HST) | D46: =SUM(D44:D45) -> 88.8058864 | G46: =SUM(G44:G45) -> 89.0004272 | H46: 0.1945408 | I46: 0.002190629562 | J46: 1.076190476
A47: Ontario Rebate for Electricity Consumers (OREC) | C47: -0.08 | D47: =D44*C47 -> -6.2871424 | F47: =C47 -> -0.08 | G47: =G44*F47 -> -6.3009152 | H47: -0.0137728 | I47: -0.002190629562 | J47: -0.07619047619
A48: Total Amount on Two-Tier RPP | D48: =SUM(D46:D47) -> 82.518744 | G48: =SUM(G46:G47) -> 82.699512 | H48: 0.180768 | I48: 0.002190629562 | J48: 1
A49: Total Electricty Charge on TOU (before HST) | D49: =SUM(D18,D27,D28,D30,D35,D42,D43) -> 80.89192 | G49: =SUM(G18,G27,G28,G30,G35,G42,G43) -> 81.06408 | H49: 0.17216 | I49: 0.002128271897 | K49: =G49/$G$53 -> 0.9523809524
A50: HST | C50: 0.13 | D50: =D49*C50 -> 10.5159496 | F50: =C50 -> 0.13 | G50: =G49*F50 -> 10.5383304 | H50: 0.0223808 | I50: 0.002128271897 | K50: =G50/$G$53 -> 0.1238095238
A51: Total Electricity Charge on TOU (including HST) | D51: =SUM(D49:D50) -> 91.4078696 | G51: =SUM(G49:G50) -> 91.6024104 | H51: 0.1945408 | I51: 0.002128271897 | K51: =G51/$G$53 -> 1.076190476
A52: Ontario Rebate for Electricity Consumers (OREC) | C52: -0.08 | D52: =D49*C52 -> -6.4713536 | F52: =C52 -> -0.08 | G52: =G49*F52 -> -6.4851264 | H52: -0.0137728 | I52: -0.002128271897 | K52: =G52/$G$53 -> -0.07619047619
A53: Total Amount on TOU | D53: =SUM(D51:D52) -> 84.936516 | G53: =SUM(G51:G52) -> 85.117284 | H53: 0.180768 | I53: 0.002128271897 | K53: =G53/$G$53 -> 1
A54: * Distribution rate protection applies to R1 and R2 customers

Sheet BI_R1_Typical
A1: 2020 Bill Impacts (Typical Consumption Level) - R1
A3: Rate Class | B3: =RIGHT(A1,LEN(A1)-FIND("- ",A1,1)-1) -> R1
A4: Monthly Consumption (kWh) | B4: =IF(COUNTIF(A1,"*Low*")>0,VLOOKUP(B3,'Data Billing Quantities'!$A:$Z,MATCH("Low kWh",'Data Billing Quantities'!4:4,0),FALSE),IF(COUNTIF(A1,"*Typical*")>0,VLOOKUP(B3,'Data Billing Quantities'!$A:$Z,MATCH("Typical kWh",'Data Billing Quantities'!4:4,0),FALSE),IF(COUNTIF(A1,"*Average*")>0,VLOOKUP(B3,'Data Billing Quantities'!$A:$Z,MATCH("Average kWh",'Data Billing Quantities'!4:4,0),FALSE),IF(COUNTIF(A1,"*High*")>0,VLOOKUP(B3,'Data Billing Quantities'!$A:$Z,MATCH("High kWh",'Data Billing Quantities'!4:4,0),FALSE),"error")))) -> 750
A5: Peak (kW) | B5: =IF(COUNTIF(A1,"*Low*")>0,VLOOKUP(B3,'Data Billing Quantities'!$A:$Z,MATCH("Low kW",'Data Billing Quantities'!4:4,0),FALSE),IF(COUNTIF(A1,"*Typical*")>0,VLOOKUP(B3,'Data Billing Quantities'!$A:$Z,MATCH("Typical kW",'Data Billing Quantities'!4:4,0),FALSE),IF(COUNTIF(A1,"*Average*")>0,VLOOKUP(B3,'Data Billing Quantities'!$A:$Z,MATCH("Average kW",'Data Billing Quantities'!4:4,0),FALSE),IF(COUNTIF(A1,"*High*")>0,VLOOKUP(B3,'Data Billing Quantities'!$A:$Z,MATCH("High kW",'Data Billing Quantities'!4:4,0),FALSE),"error")))) -> 0
A6: Loss factor | B6: =VLOOKUP(B3,'Data Billing Quantities'!A:D,MATCH(A6,'Data Billing Quantities'!4:4,0),FALSE) -> 1.076
A7: Commodity Threshold | B7: =VLOOKUP(B3,'Data Billing Quantities'!A:D,MATCH(A7,'Data Billing Quantities'!4:4,0),FALSE) -> 600
A8: Monthly Consumption (kWh) - Uplifted | B8: =B4*B6 -> 807
A9: Charge determinant | B9: =VLOOKUP(B3,'Data Billing Quantities'!A:D,MATCH(A9,'Data Billing Quantities'!4:4,0),FALSE) -> kWh
B11: Volume | C11: Current Rate ($) | D11: Current Charge ($) | E11: Volume | F11: Proposed Rate ($) | G11: Proposed Charge ($) | H11: Change ($) | I11: Change (%) | J11: % of Total Bill on RPP | K11: % of Total Bill on TOU
A12: Energy First Tier | B12: =IF(B4>B7,B7,B4) -> 600 | C12: =VLOOKUP($A12,'Data Pass Through'!$A:$D,2,FALSE) -> 0.077 | D12: =B12*C12 -> 46.2 | E12: =B12 -> 600 | F12: =VLOOKUP($A12,'Data Pass Through'!$A:$D,3,FALSE) -> 0.077 | G12: =E12*F12 -> 46.2 | H12: =G12-D12 -> 0 | I12: =IF(ISERROR(H12/ABS(D12)),"N/A",(H12/ABS(D12))) -> 0 | J12: =G12/$G$48 -> 0.3755653753
A13: Energy Second Tier | B13: =IF(B4>B7,(B4)-B7,0) -> 150 | C13: =VLOOKUP($A13,'Data Pass Through'!$A:$D,2,FALSE) -> 0.089 | D13: =B13*C13 -> 13.35 | E13: =B13 -> 150 | F13: =VLOOKUP($A13,'Data Pass Through'!$A:$D,3,FALSE) -> 0.089 | G13: =E13*F13 -> 13.35 | H13: 0 | I13: 0 | J13: =G13/$G$48 -> 0.108523761
A14: Sub-Total: Energy (RPP Tiered) | D14: =SUM(D12:D13) -> 59.55 | G14: =SUM(G12:G13) -> 59.55 | H14: 0 | I14: 0 | J14: =G14/$G$48 -> 0.4840891363
A15: TOU-Off Peak | B15: =B$4*VLOOKUP($B$3,'Data Billing Quantities'!$A:$O,MATCH(BI_R1_Typical!$A15,'Data Billing Quantities'!$4:$4,0),FALSE) -> 487.5 | C15: =VLOOKUP($A15,'Data Pass Through'!$A:$D,2,FALSE) -> 0.065 | D15: =B15*C15 -> 31.6875 | E15: 487.5 | F15: =VLOOKUP($A15,'Data Pass Through'!$A:$D,3,FALSE) -> 0.065 | G15: =E15*F15 -> 31.6875 | H15: 0 | I15: 0 | K15: =G15/$G$53 -> 0.2536224337
A16: TOU-Mid Peak | B16: =B$4*VLOOKUP($B$3,'Data Billing Quantities'!$A:$O,MATCH(BI_R1_Typical!$A16,'Data Billing Quantities'!$4:$4,0),FALSE) -> 127.5 | C16: =VLOOKUP($A16,'Data Pass Through'!$A:$D,2,FALSE) -> 0.094 | D16: =B16*C16 -> 11.985 | E16: 127.5 | F16: =VLOOKUP($A16,'Data Pass Through'!$A:$D,3,FALSE) -> 0.094 | G16: =E16*F16 -> 11.985 | H16: 0 | I16: 0 | K16: 0.09592630747
A17: TOU-On Peak | B17: =B$4*VLOOKUP($B$3,'Data Billing Quantities'!$A:$O,MATCH(BI_R1_Typical!$A17,'Data Billing Quantities'!$4:$4,0),FALSE) -> 135 | C17: =VLOOKUP($A17,'Data Pass Through'!$A:$D,2,FALSE) -> 0.134 | D17: =B17*C17 -> 18.09 | E17: 135 | F17: =VLOOKUP($A17,'Data Pass Through'!$A:$D,3,FALSE) -> 0.134 | G17: =E17*F17 -> 18.09 | H17: 0 | I17: 0 | K17: 0.1447898959
A18: Sub-Total: Energy (RPP TOU) | D18: =SUM(D15:D17) -> 61.7625 | G18: =SUM(G15:G17) -> 61.7625 | H18: 0 | I18: 0 | J18: =G18/$G$48 -> 0.5020748158 | K18: 0.494338637
A19: Service Charge | B19: 1 | C19: =VLOOKUP($B$3,'Data Current Rates'!$A:$BA,MATCH(BI_R1_Typical!$A19,CurrentHeader,0),FALSE) -> 38.74 | D19: =B19*C19 -> 38.74 | E19: 1 | F19: =VLOOKUP($B$3,'Data Proposed Rates'!$A:$BA,MATCH(BI_R1_Typical!$A19,ProposedHeader,0),FALSE) -> 43.36 | G19: =E19*F19 -> 43.36 | H19: 4.62 | I19: 0.1192565823 | J19: 0.3524786725 | K19: 0.3470475337
A20: Fixed Foregone Revenue Charge | B20: 1 | C20: =VLOOKUP($B$3,'Data Current Rates'!$A:$BA,MATCH(BI_R1_Typical!$A20,CurrentHeader,0),FALSE) -> 1.71 | D20: 1.71 | E20: 1 | F20: =VLOOKUP($B$3,'Data Proposed Rates'!$A:$BA,MATCH(BI_R1_Typical!$A20,ProposedHeader,0),FALSE) -> 1.69 | G20: 1.69 | H20: -0.02 | I20: -0.01169590643 | J20: 0.01373821394 | K20: 0.0135265298
A21: Fixed Deferral/Variance Account Rider (General) | B21: 1 | C21: =VLOOKUP($B$3,'Data Current Rates'!$A:$BA,MATCH(BI_R1_Typical!$A21,CurrentHeader,0),FALSE) -> 0.04 | D21: 0.04 | E21: 1 | F21: =VLOOKUP($B$3,'Data Proposed Rates'!$A:$BA,MATCH(BI_R1_Typical!$A21,ProposedHeader,0),FALSE) -> 0.04 | G21: 0.04 | H21: 0 | I21: 0 | J21: 0.0003251648271 | K21: 0.0003201545514
A22: Distribution Volumetric Charge | B22: =IF($B$9="kWh",$B$4,$B$5) -> 750 | C22: =VLOOKUP($B$3,'Data Current Rates'!$A:$BA,MATCH(BI_R1_Typical!$A22,CurrentHeader,0),FALSE) -> 0.0222 | D22: 16.65 | E22: 750 | F22: =VLOOKUP($B$3,'Data Proposed Rates'!$A:$BA,MATCH(BI_R1_Typical!$A22,ProposedHeader,0),FALSE) -> 0.0181 | G22: 13.575 | H22: -3.075 | I22: -0.1846846847 | J22: 0.1103528132 | K22: 0.1086524509
A23: Volumetric Foregone Revenue Charge | B23: =IF($B$9="kWh",$B$4,$B$5) -> 750 | C23: =VLOOKUP($B$3,'Data Current Rates'!$A:$BA,MATCH(BI_R1_Typical!$A23,CurrentHeader,0),FALSE) -> 0.0009 | D23: 0.675 | E23: 750 | F23: =VLOOKUP($B$3,'Data Proposed Rates'!$A:$BA,MATCH(BI_R1_Typical!$A23,ProposedHeader,0),FALSE) -> 0.0009 | G23: 0.675 | H23: 0 | I23: 0 | J23: 0.005487156457 | K23: 0.005402608055
A24: Volumetric Deferral/Variance Account Rider (General) | B24: =IF($B$9="kWh",$B$4,$B$5) -> 750 | C24: =VLOOKUP($B$3,'Data Current Rates'!$A:$BA,MATCH(BI_R1_Typical!$A24,CurrentHeader,0),FALSE) -> -0.0008 | D24: -0.6 | E24: 750 | F24: =VLOOKUP($B$3,'Data Proposed Rates'!$A:$BA,MATCH(BI_R1_Typical!$A24,ProposedHeader,0),FALSE) -> -0.0008 | G24: -0.6 | H24: 0 | I24: 0 | J24: -0.004877472406 | K24: -0.004802318271
A25: Volumetric Deferral/Variance Account Rider (Sub Account CBR) | B25: 750 | C25: =VLOOKUP($B$3,'Data Current Rates'!$A:$BA,MATCH(BI_R1_Typical!$A25,CurrentHeader,0),FALSE) -> 0 | D25: 0 | E25: 750 | F25: =VLOOKUP($B$3,'Data Proposed Rates'!$A:$BA,MATCH(BI_R1_Typical!$A25,ProposedHeader,0),FALSE) -> 0 | G25: 0 | H25: 0 | I25: N/A | J25: 0 | K25: 0
A26: Fair Hydro Plan - Distribution Rate Protection Savings* | D26: =IF(AND(B3<>"R1",B3<>"R2"),0,IF(VLOOKUP($A26,'Data Pass Through'!$A:$D,2,FALSE)=0,0,IF(SUM(D19:D20,D22:D23)<VLOOKUP($A26,'Data Pass Through'!$A:$D,2,FALSE),0,VLOOKUP($A26,'Data Pass Through'!$A:$D,2,FALSE)-SUM(D19:D20,D22:D23)))) -> -20.915 | G26: =IF(AND(B3<>"R1",B3<>"R2"),0,IF(VLOOKUP($A26,'Data Pass Through'!$A:$D,2,FALSE)=0,0,IF(SUM(G19:G20,G22:G23)<VLOOKUP($A26,'Data Pass Through'!$A:$D,2,FALSE),0,VLOOKUP($A26,'Data Pass Through'!$A:$D,2,FALSE)-SUM(G19:G20,G22:G23)))) -> -22.44 | H26: -1.525 | I26: -0.07291417643 | J26: -0.182417468 | K26: -0.1796067033
A27: Sub-Total: Distribution (excluding pass through) | D27: =SUM(INDIRECT("D19:D"&ROW()-1)) -> 36.3 | G27: =SUM(INDIRECT("g19:g"&ROW()-1)) -> 36.3 | H27: =G27-D27 -> 0 | I27: 0 | J27: 0.2950870806 | K27: 0.2905402554
A28: Smart Metering Entity Charge | B28: 1 | C28: =VLOOKUP($A28,'Data Pass Through'!$A:$D,2,FALSE) -> 0.57 | D28: =B28*C28 -> 0.57 | E28: 1 | F28: =VLOOKUP($A28,'Data Pass Through'!$A:$D,3,FALSE) -> 0.57 | G28: =E28*F28 -> 0.57 | H28: 0 | I28: 0 | J28: 0.004633598786 | K28: 0.004562202358
A29: Line Losses on Cost of Power (based on two-tier RPP prices) | B29: =B8-B4 -> 57 | C29: =IF(B4>B7,C13,C12) -> 0.089 | D29: =B29*C29 -> 5.073 | E29: 57 | F29: =IF(B4>B7,F13,F12) -> 0.089 | G29: =E29*F29 -> 5.073 | H29: 0 | I29: 0 | J29: 0.04123902919 | K29: 0.04060360098
A30: Line Losses on Cost of Power (based on TOU prices) | B30: =B8-B4 -> 57 | C30: =VLOOKUP($B$3,'Data Billing Quantities'!$A:$O,MATCH(BI_R1_Typical!$A15,'Data Billing Quantities'!$4:$4,0),FALSE)*C15+VLOOKUP($B$3,'Data Billing Quantities'!$A:$O,MATCH(BI_R1_Typical!$A16,'Data Billing Quantities'!$4:$4,0),FALSE)*C16+VLOOKUP($B$3,'Data Billing Quantities'!$A:$O,MATCH(BI_R1_Typical!$A17,'Data Billing Quantities'!$4:$4,0),FALSE)*C17 -> 0.08235 | D30: =B30*C30 -> 4.69395 | E30: 57 | F30: =VLOOKUP($B$3,'Data Billing Quantities'!$A:$O,MATCH(BI_R1_Typical!$A15,'Data Billing Quantities'!$4:$4,0),FALSE)*F15+VLOOKUP($B$3,'Data Billing Quantities'!$A:$O,MATCH(BI_R1_Typical!$A16,'Data Billing Quantities'!$4:$4,0),FALSE)*F16+VLOOKUP($B$3,'Data Billing Quantities'!$A:$O,MATCH(BI_R1_Typical!$A17,'Data Billing Quantities'!$4:$4,0),FALSE)*F17 -> 0.08235 | G30: =E30*F30 -> 4.69395 | H30: 0 | I30: 0 | J30: 0.038157686 | K30: 0.03756973641
A31: Sub-Total: Distribution (based on two-tier RPP prices) | D31: =SUM(D27,D28:D29) -> 41.943 | G31: =SUM(G27,G28:G29) -> 41.943 | H31: 0 | I31: 0 | J31: 0.3409597085 | K31: 0.3357060587
A32: Sub-Total: Distribution (based on TOU prices) | D32: =SUM(D27,D28,D30) -> 41.56395 | G32: =SUM(G27,G28,G30) -> 41.56395 | H32: 0 | I32: 0 | J32: 0.3378783653 | K32: 0.3326721942
A33: Retail Transmission Rate – Network Service Rate | B33: =B8 -> 807 | C33: =VLOOKUP($B$3,'Data Current Rates'!$A:$BA,MATCH(BI_R1_Typical!$A33,CurrentHeader,0),FALSE) -> 0.0078 | D33: =B33*C33 -> 6.2946 | E33: 807 | F33: =VLOOKUP($B$3,'Data Proposed Rates'!$A:$BA,MATCH(BI_R1_Typical!$A33,ProposedHeader,0),FALSE) -> 0.008 | G33: =E33*F33 -> 6.456 | H33: =G33-D33 -> 0.1614 | I33: 0.02564102564 | J33: 0.05248160309 | K33: 0.0516729446
A34: Retail Transmission Rate – Line and Transformation Connection Service Rate | B34: =B8 -> 807 | C34: =VLOOKUP($B$3,'Data Current Rates'!$A:$BA,MATCH(BI_R1_Typical!$A34,CurrentHeader,0),FALSE) -> 0.007 | D34: =B34*C34 -> 5.649 | E34: 807 | F34: =VLOOKUP($B$3,'Data Proposed Rates'!$A:$BA,MATCH(BI_R1_Typical!$A34,ProposedHeader,0),FALSE) -> 0.0072 | G34: =E34*F34 -> 5.8104 | H34: =G34-D34 -> 0.1614 | I34: 0.02857142857 | J34: 0.04723344278 | K34: 0.04650565014
A35: Sub-Total: Retail Transmission | D35: =SUM(D33:D34) -> 11.9436 | G35: =SUM(G33:G34) -> 12.2664 | H35: =G35-D35 -> 0.3228 | I35: 0.02702702703 | J35: 0.09971504587 | K35: 0.09817859473
A36: Sub-Total: Delivery (based on two-tier RPP prices) | D36: =D31+D35 -> 53.8866 | G36: =G31+G35 -> 54.2094 | H36: =G36-D36 -> 0.3228 | I36: 0.005990357529 | J36: 0.4406747544 | K36: 0.4338846535
A37: Sub-Total: Delivery (based on TOU prices) | D37: =D32+D35 -> 53.50755 | G37: =G32+G35 -> 53.83035 | H37: =G37-D37 -> 0.3228 | I37: 0.006032793503 | J37: 0.4375934112 | K37: 0.4308507889
A38: Wholesale Market Service Rate (WMS) - not including CBR | B38: =B8 -> 807 | C38: =VLOOKUP($A38,'Data Pass Through'!$A:$D,2,FALSE) -> 0.003 | D38: =B38*C38 -> 2.421 | E38: =$B$8 -> 807 | F38: =VLOOKUP($A38,'Data Pass Through'!$A:$D,3,FALSE) -> 0.003 | G38: =E38*F38 -> 2.421 | H38: 0 | I38: 0 | J38: 0.01968060116 | K38: 0.01937735422
A39: Capacity Based Recovery (CBR) - Applicable for Class B Customers | B39: =B8 -> 807 | C39: =VLOOKUP($A39,'Data Pass Through'!$A:$D,2,FALSE) -> 0.0004 | D39: =B39*C39 -> 0.3228 | E39: =$B$8 -> 807 | F39: =VLOOKUP($A39,'Data Pass Through'!$A:$D,3,FALSE) -> 0.0004 | G39: =E39*F39 -> 0.3228 | H39: 0 | I39: 0 | J39: 0.002624080154 | K39: 0.00258364723
A40: Rural Rate Protection Charge | B40: =B8 -> 807 | C40: =VLOOKUP($A40,'Data Pass Through'!$A:$D,2,FALSE) -> 0.0005 | D40: 0.4035 | E40: 807 | F40: =VLOOKUP($A40,'Data Pass Through'!$A:$D,3,FALSE) -> 0.0005 | G40: 0.4035 | H40: 0 | I40: 0 | J40: 0.003280100193 | K40: 0.003229559037
A41: Standard Supply Service – Administration Charge (if applicable) | B41: 1 | C41: =VLOOKUP($A41,'Data Pass Through'!$A:$D,2,FALSE) -> 0.25 | D41: =B41*C41 -> 0.25 | E41: 1 | F41: =VLOOKUP($A41,'Data Pass Through'!$A:$D,3,FALSE) -> 0.25 | G41: 0.25 | H41: 0 | I41: 0 | J41: 0.002032280169 | K41: 0.002000965946
A42: Sub-Total: Regulatory | D42: =SUM(D38:D41) -> 3.3973 | G42: =SUM(G38:G41) -> 3.3973 | H42: 0 | I42: 0 | J42: 0.02761706167 | K42: 0.02719152644
A43: Debt Retirement Charge (DRC) | B43: =B4 -> 750 | C43: =VLOOKUP($A43,'Data Pass Through'!$A:$D,2,FALSE) -> 0 | D43: =B43*C43 -> 0 | E43: 750 | F43: =VLOOKUP($A43,'Data Pass Through'!$A:$D,3,FALSE) -> 0 | G43: =E43*F43 -> 0 | H43: 0 | I43: N/A | J43: 0 | K43: 0
A44: Total Electricty Charge on Two-Tier RPP | D44: =SUM(D14,D27,D28,D29,D35,D42,D43) -> 116.8339 | G44: =SUM(G14,G27,G28,G29,G35,G42,G43) -> 117.1567 | H44: 0.3228 | I44: 0.002762896728 | J44: 0.9523809524
A45: HST | C45: 0.13 | D45: =D44*C45 -> 15.188407 | F45: =C45 -> 0.13 | G45: =G44*F45 -> 15.230371 | H45: 0.041964 | I45: 0.002762896728 | J45: 0.1238095238
A46: Total Electricity Charge on Two-Tier RPP (including HST) | D46: =SUM(D44:D45) -> 132.022307 | G46: =SUM(G44:G45) -> 132.387071 | H46: 0.364764 | I46: 0.002762896728 | J46: 1.076190476
A47: Ontario Rebate for Electricity Consumers (OREC) | C47: -0.08 | D47: =D44*C47 -> -9.346712 | F47: =C47 -> -0.08 | G47: =G44*F47 -> -9.372536 | H47: -0.025824 | I47: -0.002762896728 | J47: -0.07619047619
A48: Total Amount on Two-Tier RPP | D48: =SUM(D46:D47) -> 122.675595 | G48: =SUM(G46:G47) -> 123.014535 | H48: 0.33894 | I48: 0.002762896728 | J48: 1
A49: Total Electricty Charge on TOU (before HST) | D49: =SUM(D18,D27,D28,D30,D35,D42,D43) -> 118.66735 | G49: =SUM(G18,G27,G28,G30,G35,G42,G43) -> 118.99015 | H49: 0.3228 | I49: 0.002720209055 | K49: =G49/$G$53 -> 0.9523809524
A50: HST | C50: 0.13 | D50: =D49*C50 -> 15.4267555 | F50: =C50 -> 0.13 | G50: =G49*F50 -> 15.4687195 | H50: 0.041964 | I50: 0.002720209055 | K50: =G50/$G$53 -> 0.1238095238
A51: Total Electricity Charge on TOU (including HST) | D51: =SUM(D49:D50) -> 134.0941055 | G51: =SUM(G49:G50) -> 134.4588695 | H51: 0.364764 | I51: 0.002720209055 | K51: =G51/$G$53 -> 1.076190476
A52: Ontario Rebate for Electricity Consumers (OREC) | C52: -0.08 | D52: =D49*C52 -> -9.493388 | F52: =C52 -> -0.08 | G52: =G49*F52 -> -9.519212 | H52: -0.025824 | I52: -0.002720209055 | K52: =G52/$G$53 -> -0.07619047619
A53: Total Amount on TOU | D53: =SUM(D51:D52) -> 124.6007175 | G53: =SUM(G51:G52) -> 124.9396575 | H53: 0.33894 | I53: 0.002720209055 | K53: =G53/$G$53 -> 1
A54: * Distribution rate protection applies to R1 and R2 customers

Sheet BI_R1_Avg
A1: 2020 Bill Impacts (Average Consumption Level) - R1
A3: Rate Class | B3: =RIGHT(A1,LEN(A1)-FIND("- ",A1,1)-1) -> R1
A4: Monthly Consumption (kWh) | B4: =IF(COUNTIF(A1,"*Low*")>0,VLOOKUP(B3,'Data Billing Quantities'!$A:$Z,MATCH("Low kWh",'Data Billing Quantities'!4:4,0),FALSE),IF(COUNTIF(A1,"*Typical*")>0,VLOOKUP(B3,'Data Billing Quantities'!$A:$Z,MATCH("Typical kWh",'Data Billing Quantities'!4:4,0),FALSE),IF(COUNTIF(A1,"*Average*")>0,VLOOKUP(B3,'Data Billing Quantities'!$A:$Z,MATCH("Average kWh",'Data Billing Quantities'!4:4,0),FALSE),IF(COUNTIF(A1,"*High*")>0,VLOOKUP(B3,'Data Billing Quantities'!$A:$Z,MATCH("High kWh",'Data Billing Quantities'!4:4,0),FALSE),"error")))) -> 920
A5: Peak (kW) | B5: =IF(COUNTIF(A1,"*Low*")>0,VLOOKUP(B3,'Data Billing Quantities'!$A:$Z,MATCH("Low kW",'Data Billing Quantities'!4:4,0),FALSE),IF(COUNTIF(A1,"*Typical*")>0,VLOOKUP(B3,'Data Billing Quantities'!$A:$Z,MATCH("Typical kW",'Data Billing Quantities'!4:4,0),FALSE),IF(COUNTIF(A1,"*Average*")>0,VLOOKUP(B3,'Data Billing Quantities'!$A:$Z,MATCH("Average kW",'Data Billing Quantities'!4:4,0),FALSE),IF(COUNTIF(A1,"*High*")>0,VLOOKUP(B3,'Data Billing Quantities'!$A:$Z,MATCH("High kW",'Data Billing Quantities'!4:4,0),FALSE),"error")))) -> 0
A6: Loss factor | B6: =VLOOKUP(B3,'Data Billing Quantities'!A:D,MATCH(A6,'Data Billing Quantities'!4:4,0),FALSE) -> 1.076
A7: Commodity Threshold | B7: =VLOOKUP(B3,'Data Billing Quantities'!A:D,MATCH(A7,'Data Billing Quantities'!4:4,0),FALSE) -> 600
A8: Monthly Consumption (kWh) - Uplifted | B8: =B4*B6 -> 989.92
A9: Charge determinant | B9: =VLOOKUP(B3,'Data Billing Quantities'!A:D,MATCH(A9,'Data Billing Quantities'!4:4,0),FALSE) -> kWh
B11: Volume | C11: Current Rate ($) | D11: Current Charge ($) | E11: Volume | F11: Proposed Rate ($) | G11: Proposed Charge ($) | H11: Change ($) | I11: Change (%) | J11: % of Total Bill on RPP | K11: % of Total Bill on TOU
A12: Energy First Tier | B12: =IF(B4>B7,B7,B4) -> 600 | C12: =VLOOKUP($A12,'Data Pass Through'!$A:$D,2,FALSE) -> 0.077 | D12: =B12*C12 -> 46.2 | E12: =B12 -> 600 | F12: =VLOOKUP($A12,'Data Pass Through'!$A:$D,3,FALSE) -> 0.077 | G12: =E12*F12 -> 46.2 | H12: =G12-D12 -> 0 | I12: =IF(ISERROR(H12/ABS(D12)),"N/A",(H12/ABS(D12))) -> 0 | J12: =G12/$G$48 -> 0.3216507067
A13: Energy Second Tier | B13: =IF(B4>B7,(B4)-B7,0) -> 320 | C13: =VLOOKUP($A13,'Data Pass Through'!$A:$D,2,FALSE) -> 0.089 | D13: =B13*C13 -> 28.48 | E13: =B13 -> 320 | F13: =VLOOKUP($A13,'Data Pass Through'!$A:$D,3,FALSE) -> 0.089 | G13: =E13*F13 -> 28.48 | H13: 0 | I13: 0 | J13: =G13/$G$48 -> 0.1982816478
A14: Sub-Total: Energy (RPP Tiered) | D14: =SUM(D12:D13) -> 74.68 | G14: =SUM(G12:G13) -> 74.68 | H14: 0 | I14: 0 | J14: =G14/$G$48 -> 0.5199323545
A15: TOU-Off Peak | B15: =B$4*VLOOKUP($B$3,'Data Billing Quantities'!$A:$O,MATCH(BI_R1_Avg!$A15,'Data Billing Quantities'!$4:$4,0),FALSE) -> 598 | C15: =VLOOKUP($A15,'Data Pass Through'!$A:$D,2,FALSE) -> 0.065 | D15: =B15*C15 -> 38.87 | E15: 598 | F15: =VLOOKUP($A15,'Data Pass Through'!$A:$D,3,FALSE) -> 0.065 | G15: =E15*F15 -> 38.87 | H15: 0 | I15: 0 | K15: =G15/$G$53 -> 0.2694030621
A16: TOU-Mid Peak | B16: =B$4*VLOOKUP($B$3,'Data Billing Quantities'!$A:$O,MATCH(BI_R1_Avg!$A16,'Data Billing Quantities'!$4:$4,0),FALSE) -> 156.4 | C16: =VLOOKUP($A16,'Data Pass Through'!$A:$D,2,FALSE) -> 0.094 | D16: =B16*C16 -> 14.7016 | E16: 156.4 | F16: =VLOOKUP($A16,'Data Pass Through'!$A:$D,3,FALSE) -> 0.094 | G16: =E16*F16 -> 14.7016 | H16: 0 | I16: 0 | K16: 0.1018949333
A17: TOU-On Peak | B17: =B$4*VLOOKUP($B$3,'Data Billing Quantities'!$A:$O,MATCH(BI_R1_Avg!$A17,'Data Billing Quantities'!$4:$4,0),FALSE) -> 165.6 | C17: =VLOOKUP($A17,'Data Pass Through'!$A:$D,2,FALSE) -> 0.134 | D17: =B17*C17 -> 22.1904 | E17: 165.6 | F17: =VLOOKUP($A17,'Data Pass Through'!$A:$D,3,FALSE) -> 0.134 | G17: =E17*F17 -> 22.1904 | H17: 0 | I17: 0 | K17: 0.1537988605
A18: Sub-Total: Energy (RPP TOU) | D18: =SUM(D15:D17) -> 75.762 | G18: =SUM(G15:G17) -> 75.762 | H18: 0 | I18: 0 | J18: =G18/$G$48 -> 0.5274653862 | K18: 0.525096856
A19: Service Charge | B19: 1 | C19: =VLOOKUP($B$3,'Data Current Rates'!$A:$BA,MATCH(BI_R1_Avg!$A19,CurrentHeader,0),FALSE) -> 38.74 | D19: =B19*C19 -> 38.74 | E19: 1 | F19: =VLOOKUP($B$3,'Data Proposed Rates'!$A:$BA,MATCH(BI_R1_Avg!$A19,ProposedHeader,0),FALSE) -> 43.36 | G19: =E19*F19 -> 43.36 | H19: 4.62 | I19: 0.1192565823 | J19: 0.3018782391 | K19: 0.3005226852
A20: Fixed Foregone Revenue Charge | B20: 1 | C20: =VLOOKUP($B$3,'Data Current Rates'!$A:$BA,MATCH(BI_R1_Avg!$A20,CurrentHeader,0),FALSE) -> 1.71 | D20: 1.71 | E20: 1 | F20: =VLOOKUP($B$3,'Data Proposed Rates'!$A:$BA,MATCH(BI_R1_Avg!$A20,ProposedHeader,0),FALSE) -> 1.69 | G20: 1.69 | H20: -0.02 | I20: -0.01169590643 | J20: 0.0117660107 | K20: 0.01171317661
A21: Fixed Deferral/Variance Account Rider (General) | B21: 1 | C21: =VLOOKUP($B$3,'Data Current Rates'!$A:$BA,MATCH(BI_R1_Avg!$A21,CurrentHeader,0),FALSE) -> 0.04 | D21: 0.04 | E21: 1 | F21: =VLOOKUP($B$3,'Data Proposed Rates'!$A:$BA,MATCH(BI_R1_Avg!$A21,ProposedHeader,0),FALSE) -> 0.04 | G21: 0.04 | H21: 0 | I21: 0 | J21: 0.0002784854604 | K21: 0.0002772349494
A22: Distribution Volumetric Charge | B22: =IF($B$9="kWh",$B$4,$B$5) -> 920 | C22: =VLOOKUP($B$3,'Data Current Rates'!$A:$BA,MATCH(BI_R1_Avg!$A22,CurrentHeader,0),FALSE) -> 0.0222 | D22: 20.424 | E22: 920 | F22: =VLOOKUP($B$3,'Data Proposed Rates'!$A:$BA,MATCH(BI_R1_Avg!$A22,ProposedHeader,0),FALSE) -> 0.0181 | G22: 16.652 | H22: -3.772 | I22: -0.1846846847 | J22: 0.1159334972 | K22: 0.1154129095
A23: Volumetric Foregone Revenue Charge | B23: =IF($B$9="kWh",$B$4,$B$5) -> 920 | C23: =VLOOKUP($B$3,'Data Current Rates'!$A:$BA,MATCH(BI_R1_Avg!$A23,CurrentHeader,0),FALSE) -> 0.0009 | D23: 0.828 | E23: 920 | F23: =VLOOKUP($B$3,'Data Proposed Rates'!$A:$BA,MATCH(BI_R1_Avg!$A23,ProposedHeader,0),FALSE) -> 0.0009 | G23: 0.828 | H23: 0 | I23: 0 | J23: 0.00576464903 | K23: 0.005738763453
A24: Volumetric Deferral/Variance Account Rider (General) | B24: =IF($B$9="kWh",$B$4,$B$5) -> 920 | C24: =VLOOKUP($B$3,'Data Current Rates'!$A:$BA,MATCH(BI_R1_Avg!$A24,CurrentHeader,0),FALSE) -> -0.0008 | D24: -0.736 | E24: 920 | F24: =VLOOKUP($B$3,'Data Proposed Rates'!$A:$BA,MATCH(BI_R1_Avg!$A24,ProposedHeader,0),FALSE) -> -0.0008 | G24: -0.736 | H24: 0 | I24: 0 | J24: -0.005124132471 | K24: -0.00510112307
A25: Volumetric Deferral/Variance Account Rider (Sub Account CBR) | B25: 920 | C25: =VLOOKUP($B$3,'Data Current Rates'!$A:$BA,MATCH(BI_R1_Avg!$A25,CurrentHeader,0),FALSE) -> 0 | D25: 0 | E25: 920 | F25: =VLOOKUP($B$3,'Data Proposed Rates'!$A:$BA,MATCH(BI_R1_Avg!$A25,ProposedHeader,0),FALSE) -> 0 | G25: 0 | H25: 0 | I25: N/A | J25: 0 | K25: 0
A26: Fair Hydro Plan - Distribution Rate Protection Savings* | D26: =IF(AND(B3<>"R1",B3<>"R2"),0,IF(VLOOKUP($A26,'Data Pass Through'!$A:$D,2,FALSE)=0,0,IF(SUM(D19:D20,D22:D23)<VLOOKUP($A26,'Data Pass Through'!$A:$D,2,FALSE),0,VLOOKUP($A26,'Data Pass Through'!$A:$D,2,FALSE)-SUM(D19:D20,D22:D23)))) -> -24.842 | G26: =IF(AND(B3<>"R1",B3<>"R2"),0,IF(VLOOKUP($A26,'Data Pass Through'!$A:$D,2,FALSE)=0,0,IF(SUM(G19:G20,G22:G23)<VLOOKUP($A26,'Data Pass Through'!$A:$D,2,FALSE),0,VLOOKUP($A26,'Data Pass Through'!$A:$D,2,FALSE)-SUM(G19:G20,G22:G23)))) -> -25.67 | H26: -0.828 | I26: -0.03333064971 | J26: -0.1787180442 | K26: -0.1779155288
A27: Sub-Total: Distribution (excluding pass through) | D27: =SUM(INDIRECT("D19:D"&ROW()-1)) -> 36.164 | G27: =SUM(INDIRECT("g19:g"&ROW()-1)) -> 36.164 | H27: =G27-D27 -> 0 | I27: 0 | J27: 0.2517787047 | K27: 0.2506481178
A28: Smart Metering Entity Charge | B28: 1 | C28: =VLOOKUP($A28,'Data Pass Through'!$A:$D,2,FALSE) -> 0.57 | D28: =B28*C28 -> 0.57 | E28: 1 | F28: =VLOOKUP($A28,'Data Pass Through'!$A:$D,3,FALSE) -> 0.57 | G28: =E28*F28 -> 0.57 | H28: 0 | I28: 0 | J28: 0.003968417811 | K28: 0.003950598029
A29: Line Losses on Cost of Power (based on two-tier RPP prices) | B29: =B8-B4 -> 69.92 | C29: =IF(B4>B7,C13,C12) -> 0.089 | D29: =B29*C29 -> 6.22288 | E29: 69.92 | F29: =IF(B4>B7,F13,F12) -> 0.089 | G29: =E29*F29 -> 6.22288 | H29: 0 | I29: 0 | J29: 0.04332454004 | K29: 0.04312999555
A30: Line Losses on Cost of Power (based on TOU prices) | B30: =B8-B4 -> 69.92 | C30: =VLOOKUP($B$3,'Data Billing Quantities'!$A:$O,MATCH(BI_R1_Avg!$A15,'Data Billing Quantities'!$4:$4,0),FALSE)*C15+VLOOKUP($B$3,'Data Billing Quantities'!$A:$O,MATCH(BI_R1_Avg!$A16,'Data Billing Quantities'!$4:$4,0),FALSE)*C16+VLOOKUP($B$3,'Data Billing Quantities'!$A:$O,MATCH(BI_R1_Avg!$A17,'Data Billing Quantities'!$4:$4,0),FALSE)*C17 -> 0.08235 | D30: =B30*C30 -> 5.757912 | E30: 69.92 | F30: =VLOOKUP($B$3,'Data Billing Quantities'!$A:$O,MATCH(BI_R1_Avg!$A15,'Data Billing Quantities'!$4:$4,0),FALSE)*F15+VLOOKUP($B$3,'Data Billing Quantities'!$A:$O,MATCH(BI_R1_Avg!$A16,'Data Billing Quantities'!$4:$4,0),FALSE)*F16+VLOOKUP($B$3,'Data Billing Quantities'!$A:$O,MATCH(BI_R1_Avg!$A17,'Data Billing Quantities'!$4:$4,0),FALSE)*F17 -> 0.08235 | G30: =E30*F30 -> 5.757912 | H30: 0 | I30: 0 | J30: 0.04008736935 | K30: 0.03990736105
A31: Sub-Total: Distribution (based on two-tier RPP prices) | D31: =SUM(D27,D28:D29) -> 42.95688 | G31: =SUM(G27,G28:G29) -> 42.95688 | H31: 0 | I31: 0 | J31: 0.2990716626 | K31: 0.2977287114
A32: Sub-Total: Distribution (based on TOU prices) | D32: =SUM(D27,D28,D30) -> 42.491912 | G32: =SUM(G27,G28,G30) -> 42.491912 | H32: 0 | I32: 0 | J32: 0.2958344919 | K32: 0.2945060769
A33: Retail Transmission Rate – Network Service Rate | B33: =B8 -> 989.92 | C33: =VLOOKUP($B$3,'Data Current Rates'!$A:$BA,MATCH(BI_R1_Avg!$A33,CurrentHeader,0),FALSE) -> 0.0078 | D33: =B33*C33 -> 7.721376 | E33: 989.92 | F33: =VLOOKUP($B$3,'Data Proposed Rates'!$A:$BA,MATCH(BI_R1_Avg!$A33,ProposedHeader,0),FALSE) -> 0.008 | G33: =E33*F33 -> 7.91936 | H33: =G33-D33 -> 0.197984 | I33: 0.02564102564 | J33: 0.05513566539 | K33: 0.05488808423
A34: Retail Transmission Rate – Line and Transformation Connection Service Rate | B34: =B8 -> 989.92 | C34: =VLOOKUP($B$3,'Data Current Rates'!$A:$BA,MATCH(BI_R1_Avg!$A34,CurrentHeader,0),FALSE) -> 0.007 | D34: =B34*C34 -> 6.92944 | E34: 989.92 | F34: =VLOOKUP($B$3,'Data Proposed Rates'!$A:$BA,MATCH(BI_R1_Avg!$A34,ProposedHeader,0),FALSE) -> 0.0072 | G34: =E34*F34 -> 7.127424 | H34: =G34-D34 -> 0.197984 | I34: 0.02857142857 | J34: 0.04962209885 | K34: 0.04939927581
A35: Sub-Total: Retail Transmission | D35: =SUM(D33:D34) -> 14.650816 | G35: =SUM(G33:G34) -> 15.046784 | H35: =G35-D35 -> 0.395968 | I35: 0.02702702703 | J35: 0.1047577642 | K35: 0.10428736
A36: Sub-Total: Delivery (based on two-tier RPP prices) | D36: =D31+D35 -> 57.607696 | G36: =G31+G35 -> 58.003664 | H36: =G36-D36 -> 0.395968 | I36: 0.006873526065 | J36: 0.4038294268 | K36: 0.4020160714
A37: Sub-Total: Delivery (based on TOU prices) | D37: =D32+D35 -> 57.142728 | G37: =G32+G35 -> 57.538696 | H37: =G37-D37 -> 0.395968 | I37: 0.006929455661 | J37: 0.4005922561 | K37: 0.3987934369
A38: Wholesale Market Service Rate (WMS) - not including CBR | B38: =B8 -> 989.92 | C38: =VLOOKUP($A38,'Data Pass Through'!$A:$D,2,FALSE) -> 0.003 | D38: =B38*C38 -> 2.96976 | E38: =$B$8 -> 989.92 | F38: =VLOOKUP($A38,'Data Pass Through'!$A:$D,3,FALSE) -> 0.003 | G38: =E38*F38 -> 2.96976 | H38: 0 | I38: 0 | J38: 0.02067587452 | K38: 0.02058303159
A39: Capacity Based Recovery (CBR) - Applicable for Class B Customers | B39: =B8 -> 989.92 | C39: =VLOOKUP($A39,'Data Pass Through'!$A:$D,2,FALSE) -> 0.0004 | D39: =B39*C39 -> 0.395968 | E39: =$B$8 -> 989.92 | F39: =VLOOKUP($A39,'Data Pass Through'!$A:$D,3,FALSE) -> 0.0004 | G39: =E39*F39 -> 0.395968 | H39: 0 | I39: 0 | J39: 0.002756783269 | K39: 0.002744404211
A40: Rural Rate Protection Charge | B40: =B8 -> 989.92 | C40: =VLOOKUP($A40,'Data Pass Through'!$A:$D,2,FALSE) -> 0.0005 | D40: 0.49496 | E40: 989.92 | F40: =VLOOKUP($A40,'Data Pass Through'!$A:$D,3,FALSE) -> 0.0005 | G40: 0.49496 | H40: 0 | I40: 0 | J40: 0.003445979087 | K40: 0.003430505264
A41: Standard Supply Service – Administration Charge (if applicable) | B41: 1 | C41: =VLOOKUP($A41,'Data Pass Through'!$A:$D,2,FALSE) -> 0.25 | D41: =B41*C41 -> 0.25 | E41: 1 | F41: =VLOOKUP($A41,'Data Pass Through'!$A:$D,3,FALSE) -> 0.25 | G41: 0.25 | H41: 0 | I41: 0 | J41: 0.001740534127 | K41: 0.001732718434
A42: Sub-Total: Regulatory | D42: =SUM(D38:D41) -> 4.110688 | G42: =SUM(G38:G41) -> 4.110688 | H42: 0 | I42: 0 | J42: 0.028619171 | K42: 0.0284906595
A43: Debt Retirement Charge (DRC) | B43: =B4 -> 920 | C43: =VLOOKUP($A43,'Data Pass Through'!$A:$D,2,FALSE) -> 0 | D43: =B43*C43 -> 0 | E43: 920 | F43: =VLOOKUP($A43,'Data Pass Through'!$A:$D,3,FALSE) -> 0 | G43: =E43*F43 -> 0 | H43: 0 | I43: N/A | J43: 0 | K43: 0
A44: Total Electricty Charge on Two-Tier RPP | D44: =SUM(D14,D27,D28,D29,D35,D42,D43) -> 136.398384 | G44: =SUM(G14,G27,G28,G29,G35,G42,G43) -> 136.794352 | H44: 0.395968 | I44: 0.002903025596 | J44: 0.9523809524
A45: HST | C45: 0.13 | D45: =D44*C45 -> 17.73178992 | F45: =C45 -> 0.13 | G45: =G44*F45 -> 17.78326576 | H45: 0.05147584 | I45: 0.002903025596 | J45: 0.1238095238
A46: Total Electricity Charge on Two-Tier RPP (including HST) | D46: =SUM(D44:D45) -> 154.1301739 | G46: =SUM(G44:G45) -> 154.5776178 | H46: 0.44744384 | I46: 0.002903025596 | J46: 1.076190476
A47: Ontario Rebate for Electricity Consumers (OREC) | C47: -0.08 | D47: =D44*C47 -> -10.91187072 | F47: =C47 -> -0.08 | G47: =G44*F47 -> -10.94354816 | H47: -0.03167744 | I47: -0.002903025596 | J47: -0.07619047619
A48: Total Amount on Two-Tier RPP | D48: =SUM(D46:D47) -> 143.2183032 | G48: =SUM(G46:G47) -> 143.6340696 | H48: 0.4157664 | I48: 0.002903025596 | J48: 1
A49: Total Electricty Charge on TOU (before HST) | D49: =SUM(D18,D27,D28,D30,D35,D42,D43) -> 137.015416 | G49: =SUM(G18,G27,G28,G30,G35,G42,G43) -> 137.411384 | H49: 0.395968 | I49: 0.002889952179 | K49: =G49/$G$53 -> 0.9523809524
A50: HST | C50: 0.13 | D50: =D49*C50 -> 17.81200408 | F50: =C50 -> 0.13 | G50: =G49*F50 -> 17.86347992 | H50: 0.05147584 | I50: 0.002889952179 | K50: =G50/$G$53 -> 0.1238095238
A51: Total Electricity Charge on TOU (including HST) | D51: =SUM(D49:D50) -> 154.8274201 | G51: =SUM(G49:G50) -> 155.2748639 | H51: 0.44744384 | I51: 0.002889952179 | K51: =G51/$G$53 -> 1.076190476
A52: Ontario Rebate for Electricity Consumers (OREC) | C52: -0.08 | D52: =D49*C52 -> -10.96123328 | F52: =C52 -> -0.08 | G52: =G49*F52 -> -10.99291072 | H52: -0.03167744 | I52: -0.002889952179 | K52: =G52/$G$53 -> -0.07619047619
A53: Total Amount on TOU | D53: =SUM(D51:D52) -> 143.8661868 | G53: =SUM(G51:G52) -> 144.2819532 | H53: 0.4157664 | I53: 0.002889952179 | K53: =G53/$G$53 -> 1
A54: * Distribution rate protection applies to R1 and R2 customers

Sheet BI_R1_High
A1: 2020 Bill Impacts (High Consumption Level) - R1
A3: Rate Class | B3: =RIGHT(A1,LEN(A1)-FIND("- ",A1,1)-1) -> R1
A4: Monthly Consumption (kWh) | B4: =IF(COUNTIF(A1,"*Low*")>0,VLOOKUP(B3,'Data Billing Quantities'!$A:$Z,MATCH("Low kWh",'Data Billing Quantities'!4:4,0),FALSE),IF(COUNTIF(A1,"*Typical*")>0,VLOOKUP(B3,'Data Billing Quantities'!$A:$Z,MATCH("Typical kWh",'Data Billing Quantities'!4:4,0),FALSE),IF(COUNTIF(A1,"*Average*")>0,VLOOKUP(B3,'Data Billing Quantities'!$A:$Z,MATCH("Average kWh",'Data Billing Quantities'!4:4,0),FALSE),IF(COUNTIF(A1,"*High*")>0,VLOOKUP(B3,'Data Billing Quantities'!$A:$Z,MATCH("High kWh",'Data Billing Quantities'!4:4,0),FALSE),"error")))) -> 1800
A5: Peak (kW) | B5: =IF(COUNTIF(A1,"*Low*")>0,VLOOKUP(B3,'Data Billing Quantities'!$A:$Z,MATCH("Low kW",'Data Billing Quantities'!4:4,0),FALSE),IF(COUNTIF(A1,"*Typical*")>0,VLOOKUP(B3,'Data Billing Quantities'!$A:$Z,MATCH("Typical kW",'Data Billing Quantities'!4:4,0),FALSE),IF(COUNTIF(A1,"*Average*")>0,VLOOKUP(B3,'Data Billing Quantities'!$A:$Z,MATCH("Average kW",'Data Billing Quantities'!4:4,0),FALSE),IF(COUNTIF(A1,"*High*")>0,VLOOKUP(B3,'Data Billing Quantities'!$A:$Z,MATCH("High kW",'Data Billing Quantities'!4:4,0),FALSE),"error")))) -> 0
A6: Loss factor | B6: =VLOOKUP(B3,'Data Billing Quantities'!A:D,MATCH(A6,'Data Billing Quantities'!4:4,0),FALSE) -> 1.076
A7: Commodity Threshold | B7: =VLOOKUP(B3,'Data Billing Quantities'!A:D,MATCH(A7,'Data Billing Quantities'!4:4,0),FALSE) -> 600
A8: Monthly Consumption (kWh) - Uplifted | B8: =B4*B6 -> 1936.8
A9: Charge determinant | B9: =VLOOKUP(B3,'Data Billing Quantities'!A:D,MATCH(A9,'Data Billing Quantities'!4:4,0),FALSE) -> kWh
B11: Volume | C11: Current Rate ($) | D11: Current Charge ($) | E11: Volume | F11: Proposed Rate ($) | G11: Proposed Charge ($) | H11: Change ($) | I11: Change (%) | J11: % of Total Bill on RPP | K11: % of Total Bill on TOU
A12: Energy First Tier | B12: =IF(B4>B7,B7,B4) -> 600 | C12: =VLOOKUP($A12,'Data Pass Through'!$A:$D,2,FALSE) -> 0.077 | D12: =B12*C12 -> 46.2 | E12: =B12 -> 600 | F12: =VLOOKUP($A12,'Data Pass Through'!$A:$D,3,FALSE) -> 0.077 | G12: =E12*F12 -> 46.2 | H12: =G12-D12 -> 0 | I12: =IF(ISERROR(H12/ABS(D12)),"N/A",(H12/ABS(D12))) -> 0 | J12: =G12/$G$48 -> 0.1845265435
A13: Energy Second Tier | B13: =IF(B4>B7,(B4)-B7,0) -> 1200 | C13: =VLOOKUP($A13,'Data Pass Through'!$A:$D,2,FALSE) -> 0.089 | D13: =B13*C13 -> 106.8 | E13: =B13 -> 1200 | F13: =VLOOKUP($A13,'Data Pass Through'!$A:$D,3,FALSE) -> 0.089 | G13: =E13*F13 -> 106.8 | H13: 0 | I13: 0 | J13: =G13/$G$48 -> 0.4265678537
A14: Sub-Total: Energy (RPP Tiered) | D14: =SUM(D12:D13) -> 153 | G14: =SUM(G12:G13) -> 153 | H14: 0 | I14: 0 | J14: =G14/$G$48 -> 0.6110943972
A15: TOU-Off Peak | B15: =B$4*VLOOKUP($B$3,'Data Billing Quantities'!$A:$O,MATCH(BI_R1_High!$A15,'Data Billing Quantities'!$4:$4,0),FALSE) -> 1170 | C15: =VLOOKUP($A15,'Data Pass Through'!$A:$D,2,FALSE) -> 0.065 | D15: =B15*C15 -> 76.05 | E15: 1170 | F15: =VLOOKUP($A15,'Data Pass Through'!$A:$D,3,FALSE) -> 0.065 | G15: =E15*F15 -> 76.05 | H15: 0 | I15: 0 | K15: =G15/$G$53 -> 0.3111615833
A16: TOU-Mid Peak | B16: =B$4*VLOOKUP($B$3,'Data Billing Quantities'!$A:$O,MATCH(BI_R1_High!$A16,'Data Billing Quantities'!$4:$4,0),FALSE) -> 306 | C16: =VLOOKUP($A16,'Data Pass Through'!$A:$D,2,FALSE) -> 0.094 | D16: =B16*C16 -> 28.764 | E16: 306 | F16: =VLOOKUP($A16,'Data Pass Through'!$A:$D,3,FALSE) -> 0.094 | G16: =E16*F16 -> 28.764 | H16: 0 | I16: 0 | K16: 0.1176890438
A17: TOU-On Peak | B17: =B$4*VLOOKUP($B$3,'Data Billing Quantities'!$A:$O,MATCH(BI_R1_High!$A17,'Data Billing Quantities'!$4:$4,0),FALSE) -> 324 | C17: =VLOOKUP($A17,'Data Pass Through'!$A:$D,2,FALSE) -> 0.134 | D17: =B17*C17 -> 43.416 | E17: 324 | F17: =VLOOKUP($A17,'Data Pass Through'!$A:$D,3,FALSE) -> 0.134 | G17: =E17*F17 -> 43.416 | H17: 0 | I17: 0 | K17: 0.1776382814
A18: Sub-Total: Energy (RPP TOU) | D18: =SUM(D15:D17) -> 148.23 | G18: =SUM(G15:G17) -> 148.23 | H18: 0 | I18: 0 | J18: =G18/$G$48 -> 0.5920426307 | K18: 0.6064889084
A19: Service Charge | B19: 1 | C19: =VLOOKUP($B$3,'Data Current Rates'!$A:$BA,MATCH(BI_R1_High!$A19,CurrentHeader,0),FALSE) -> 38.74 | D19: =B19*C19 -> 38.74 | E19: 1 | F19: =VLOOKUP($B$3,'Data Proposed Rates'!$A:$BA,MATCH(BI_R1_High!$A19,ProposedHeader,0),FALSE) -> 43.36 | G19: =E19*F19 -> 43.36 | H19: 4.62 | I19: 0.1192565823 | J19: 0.1731833534 | K19: 0.1774091552
A20: Fixed Foregone Revenue Charge | B20: 1 | C20: =VLOOKUP($B$3,'Data Current Rates'!$A:$BA,MATCH(BI_R1_High!$A20,CurrentHeader,0),FALSE) -> 1.71 | D20: 1.71 | E20: 1 | F20: =VLOOKUP($B$3,'Data Proposed Rates'!$A:$BA,MATCH(BI_R1_High!$A20,ProposedHeader,0),FALSE) -> 1.69 | G20: 1.69 | H20: -0.02 | I20: -0.01169590643 | J20: 0.006749996937 | K20: 0.00691470185
A21: Fixed Deferral/Variance Account Rider (General) | B21: 1 | C21: =VLOOKUP($B$3,'Data Current Rates'!$A:$BA,MATCH(BI_R1_High!$A21,CurrentHeader,0),FALSE) -> 0.04 | D21: 0.04 | E21: 1 | F21: =VLOOKUP($B$3,'Data Proposed Rates'!$A:$BA,MATCH(BI_R1_High!$A21,ProposedHeader,0),FALSE) -> 0.04 | G21: 0.04 | H21: 0 | I21: 0 | J21: 0.0001597632411 | K21: 0.0001636615822
A22: Distribution Volumetric Charge | B22: =IF($B$9="kWh",$B$4,$B$5) -> 1800 | C22: =VLOOKUP($B$3,'Data Current Rates'!$A:$BA,MATCH(BI_R1_High!$A22,CurrentHeader,0),FALSE) -> 0.0222 | D22: 39.96 | E22: 1800 | F22: =VLOOKUP($B$3,'Data Proposed Rates'!$A:$BA,MATCH(BI_R1_High!$A22,ProposedHeader,0),FALSE) -> 0.0181 | G22: 32.58 | H22: -7.38 | I22: -0.1846846847 | J22: 0.1301271599 | K22: 0.1333023587
A23: Volumetric Foregone Revenue Charge | B23: =IF($B$9="kWh",$B$4,$B$5) -> 1800 | C23: =VLOOKUP($B$3,'Data Current Rates'!$A:$BA,MATCH(BI_R1_High!$A23,CurrentHeader,0),FALSE) -> 0.0009 | D23: 1.62 | E23: 1800 | F23: =VLOOKUP($B$3,'Data Proposed Rates'!$A:$BA,MATCH(BI_R1_High!$A23,ProposedHeader,0),FALSE) -> 0.0009 | G23: 1.62 | H23: 0 | I23: 0 | J23: 0.006470411265 | K23: 0.006628294081
A24: Volumetric Deferral/Variance Account Rider (General) | B24: =IF($B$9="kWh",$B$4,$B$5) -> 1800 | C24: =VLOOKUP($B$3,'Data Current Rates'!$A:$BA,MATCH(BI_R1_High!$A24,CurrentHeader,0),FALSE) -> -0.0008 | D24: -1.44 | E24: 1800 | F24: =VLOOKUP($B$3,'Data Proposed Rates'!$A:$BA,MATCH(BI_R1_High!$A24,ProposedHeader,0),FALSE) -> -0.0008 | G24: -1.44 | H24: 0 | I24: 0 | J24: -0.00575147668 | K24: -0.005891816961
A25: Volumetric Deferral/Variance Account Rider (Sub Account CBR) | B25: 1800 | C25: =VLOOKUP($B$3,'Data Current Rates'!$A:$BA,MATCH(BI_R1_High!$A25,CurrentHeader,0),FALSE) -> 0 | D25: 0 | E25: 1800 | F25: =VLOOKUP($B$3,'Data Proposed Rates'!$A:$BA,MATCH(BI_R1_High!$A25,ProposedHeader,0),FALSE) -> 0 | G25: 0 | H25: 0 | I25: N/A | J25: 0 | K25: 0
A26: Fair Hydro Plan - Distribution Rate Protection Savings* | D26: =IF(AND(B3<>"R1",B3<>"R2"),0,IF(VLOOKUP($A26,'Data Pass Through'!$A:$D,2,FALSE)=0,0,IF(SUM(D19:D20,D22:D23)<VLOOKUP($A26,'Data Pass Through'!$A:$D,2,FALSE),0,VLOOKUP($A26,'Data Pass Through'!$A:$D,2,FALSE)-SUM(D19:D20,D22:D23)))) -> -45.17 | G26: =IF(AND(B3<>"R1",B3<>"R2"),0,IF(VLOOKUP($A26,'Data Pass Through'!$A:$D,2,FALSE)=0,0,IF(SUM(G19:G20,G22:G23)<VLOOKUP($A26,'Data Pass Through'!$A:$D,2,FALSE),0,VLOOKUP($A26,'Data Pass Through'!$A:$D,2,FALSE)-SUM(G19:G20,G22:G23)))) -> -42.39 | H26: 2.78 | I26: 0.06154527341 | J26: -0.1693090948 | K26: -0.1734403618
A27: Sub-Total: Distribution (excluding pass through) | D27: =SUM(INDIRECT("D19:D"&ROW()-1)) -> 35.46 | G27: =SUM(INDIRECT("g19:g"&ROW()-1)) -> 35.46 | H27: =G27-D27 -> 0 | I27: 0 | J27: 0.1416301132 | K27: 0.1450859927
A28: Smart Metering Entity Charge | B28: 1 | C28: =VLOOKUP($A28,'Data Pass Through'!$A:$D,2,FALSE) -> 0.57 | D28: =B28*C28 -> 0.57 | E28: 1 | F28: =VLOOKUP($A28,'Data Pass Through'!$A:$D,3,FALSE) -> 0.57 | G28: =E28*F28 -> 0.57 | H28: 0 | I28: 0 | J28: 0.002276626186 | K28: 0.002332177547
A29: Line Losses on Cost of Power (based on two-tier RPP prices) | B29: =B8-B4 -> 136.8 | C29: =IF(B4>B7,C13,C12) -> 0.089 | D29: =B29*C29 -> 12.1752 | E29: 136.8 | F29: =IF(B4>B7,F13,F12) -> 0.089 | G29: =E29*F29 -> 12.1752 | H29: 0 | I29: 0 | J29: 0.04862873533 | K29: 0.04981531241
A30: Line Losses on Cost of Power (based on TOU prices) | B30: =B8-B4 -> 136.8 | C30: =VLOOKUP($B$3,'Data Billing Quantities'!$A:$O,MATCH(BI_R1_High!$A15,'Data Billing Quantities'!$4:$4,0),FALSE)*C15+VLOOKUP($B$3,'Data Billing Quantities'!$A:$O,MATCH(BI_R1_High!$A16,'Data Billing Quantities'!$4:$4,0),FALSE)*C16+VLOOKUP($B$3,'Data Billing Quantities'!$A:$O,MATCH(BI_R1_High!$A17,'Data Billing Quantities'!$4:$4,0),FALSE)*C17 -> 0.08235 | D30: =B30*C30 -> 11.26548 | E30: 136.8 | F30: =VLOOKUP($B$3,'Data Billing Quantities'!$A:$O,MATCH(BI_R1_High!$A15,'Data Billing Quantities'!$4:$4,0),FALSE)*F15+VLOOKUP($B$3,'Data Billing Quantities'!$A:$O,MATCH(BI_R1_High!$A16,'Data Billing Quantities'!$4:$4,0),FALSE)*F16+VLOOKUP($B$3,'Data Billing Quantities'!$A:$O,MATCH(BI_R1_High!$A17,'Data Billing Quantities'!$4:$4,0),FALSE)*F17 -> 0.08235 | G30: =E30*F30 -> 11.26548 | H30: 0 | I30: 0 | J30: 0.04499523993 | K30: 0.04609315704
A31: Sub-Total: Distribution (based on two-tier RPP prices) | D31: =SUM(D27,D28:D29) -> 48.2052 | G31: =SUM(G27,G28:G29) -> 48.2052 | H31: 0 | I31: 0 | J31: 0.1925354747 | K31: 0.1972334826
A32: Sub-Total: Distribution (based on TOU prices) | D32: =SUM(D27,D28,D30) -> 47.29548 | G32: =SUM(G27,G28,G30) -> 47.29548 | H32: 0 | I32: 0 | J32: 0.1889019794 | K32: 0.1935113273
A33: Retail Transmission Rate – Network Service Rate | B33: =B8 -> 1936.8 | C33: =VLOOKUP($B$3,'Data Current Rates'!$A:$BA,MATCH(BI_R1_High!$A33,CurrentHeader,0),FALSE) -> 0.0078 | D33: =B33*C33 -> 15.10704 | E33: 1936.8 | F33: =VLOOKUP($B$3,'Data Proposed Rates'!$A:$BA,MATCH(BI_R1_High!$A33,ProposedHeader,0),FALSE) -> 0.008 | G33: =E33*F33 -> 15.4944 | H33: =G33-D33 -> 0.38736 | I33: 0.02564102564 | J33: 0.06188588907 | K33: 0.0633959505
A34: Retail Transmission Rate – Line and Transformation Connection Service Rate | B34: =B8 -> 1936.8 | C34: =VLOOKUP($B$3,'Data Current Rates'!$A:$BA,MATCH(BI_R1_High!$A34,CurrentHeader,0),FALSE) -> 0.007 | D34: =B34*C34 -> 13.5576 | E34: 1936.8 | F34: =VLOOKUP($B$3,'Data Proposed Rates'!$A:$BA,MATCH(BI_R1_High!$A34,ProposedHeader,0),FALSE) -> 0.0072 | G34: =E34*F34 -> 13.94496 | H34: =G34-D34 -> 0.38736 | I34: 0.02857142857 | J34: 0.05569730017 | K34: 0.05705635545
A35: Sub-Total: Retail Transmission | D35: =SUM(D33:D34) -> 28.66464 | G35: =SUM(G33:G34) -> 29.43936 | H35: =G35-D35 -> 0.77472 | I35: 0.02702702703 | J35: 0.1175831892 | K35: 0.120452306
A36: Sub-Total: Delivery (based on two-tier RPP prices) | D36: =D31+D35 -> 76.86984 | G36: =G31+G35 -> 77.64456 | H36: =G36-D36 -> 0.77472 | I36: 0.01007833501 | J36: 0.310118664 | K36: 0.3176857886
A37: Sub-Total: Delivery (based on TOU prices) | D37: =D32+D35 -> 75.96012 | G37: =G32+G35 -> 76.73484 | H37: =G37-D37 -> 0.77472 | I37: 0.01019903602 | J37: 0.3064851686 | K37: 0.3139636332
A38: Wholesale Market Service Rate (WMS) - not including CBR | B38: =B8 -> 1936.8 | C38: =VLOOKUP($A38,'Data Pass Through'!$A:$D,2,FALSE) -> 0.003 | D38: =B38*C38 -> 5.8104 | E38: =$B$8 -> 1936.8 | F38: =VLOOKUP($A38,'Data Pass Through'!$A:$D,3,FALSE) -> 0.003 | G38: =E38*F38 -> 5.8104 | H38: 0 | I38: 0 | J38: 0.0232072084 | K38: 0.02377348144
A39: Capacity Based Recovery (CBR) - Applicable for Class B Customers | B39: =B8 -> 1936.8 | C39: =VLOOKUP($A39,'Data Pass Through'!$A:$D,2,FALSE) -> 0.0004 | D39: =B39*C39 -> 0.77472 | E39: =$B$8 -> 1936.8 | F39: =VLOOKUP($A39,'Data Pass Through'!$A:$D,3,FALSE) -> 0.0004 | G39: =E39*F39 -> 0.77472 | H39: 0 | I39: 0 | J39: 0.003094294454 | K39: 0.003169797525
A40: Rural Rate Protection Charge | B40: =B8 -> 1936.8 | C40: =VLOOKUP($A40,'Data Pass Through'!$A:$D,2,FALSE) -> 0.0005 | D40: 0.9684 | E40: 1936.8 | F40: =VLOOKUP($A40,'Data Pass Through'!$A:$D,3,FALSE) -> 0.0005 | G40: 0.9684 | H40: 0 | I40: 0 | J40: 0.003867868067 | K40: 0.003962246906
A41: Standard Supply Service – Administration Charge (if applicable) | B41: 1 | C41: =VLOOKUP($A41,'Data Pass Through'!$A:$D,2,FALSE) -> 0.25 | D41: =B41*C41 -> 0.25 | E41: 1 | F41: =VLOOKUP($A41,'Data Pass Through'!$A:$D,3,FALSE) -> 0.25 | G41: 0.25 | H41: 0 | I41: 0 | J41: 0.0009985202569 | K41: 0.001022884889
A42: Sub-Total: Regulatory | D42: =SUM(D38:D41) -> 7.80352 | G42: =SUM(G38:G41) -> 7.80352 | H42: 0 | I42: 0 | J42: 0.03116789118 | K42: 0.03192841076
A43: Debt Retirement Charge (DRC) | B43: =B4 -> 1800 | C43: =VLOOKUP($A43,'Data Pass Through'!$A:$D,2,FALSE) -> 0 | D43: =B43*C43 -> 0 | E43: 1800 | F43: =VLOOKUP($A43,'Data Pass Through'!$A:$D,3,FALSE) -> 0 | G43: =E43*F43 -> 0 | H43: 0 | I43: N/A | J43: 0 | K43: 0
A44: Total Electricty Charge on Two-Tier RPP | D44: =SUM(D14,D27,D28,D29,D35,D42,D43) -> 237.67336 | G44: =SUM(G14,G27,G28,G29,G35,G42,G43) -> 238.44808 | H44: 0.77472 | I44: 0.003259599645 | J44: 0.9523809524
A45: HST | C45: 0.13 | D45: =D44*C45 -> 30.8975368 | F45: =C45 -> 0.13 | G45: =G44*F45 -> 30.9982504 | H45: 0.1007136 | I45: 0.003259599645 | J45: 0.1238095238
A46: Total Electricity Charge on Two-Tier RPP (including HST) | D46: =SUM(D44:D45) -> 268.5708968 | G46: =SUM(G44:G45) -> 269.4463304 | H46: 0.8754336 | I46: 0.003259599645 | J46: 1.076190476
A47: Ontario Rebate for Electricity Consumers (OREC) | C47: -0.08 | D47: =D44*C47 -> -19.0138688 | F47: =C47 -> -0.08 | G47: =G44*F47 -> -19.0758464 | H47: -0.0619776 | I47: -0.003259599645 | J47: -0.07619047619
A48: Total Amount on Two-Tier RPP | D48: =SUM(D46:D47) -> 249.557028 | G48: =SUM(G46:G47) -> 250.370484 | H48: 0.813456 | I48: 0.003259599645 | J48: 1
A49: Total Electricty Charge on TOU (before HST) | D49: =SUM(D18,D27,D28,D30,D35,D42,D43) -> 231.99364 | G49: =SUM(G18,G27,G28,G30,G35,G42,G43) -> 232.76836 | H49: 0.77472 | I49: 0.003339401891 | K49: =G49/$G$53 -> 0.9523809524
A50: HST | C50: 0.13 | D50: =D49*C50 -> 30.1591732 | F50: =C50 -> 0.13 | G50: =G49*F50 -> 30.2598868 | H50: 0.1007136 | I50: 0.003339401891 | K50: =G50/$G$53 -> 0.1238095238
A51: Total Electricity Charge on TOU (including HST) | D51: =SUM(D49:D50) -> 262.1528132 | G51: =SUM(G49:G50) -> 263.0282468 | H51: 0.8754336 | I51: 0.00333940189 | K51: =G51/$G$53 -> 1.076190476
A52: Ontario Rebate for Electricity Consumers (OREC) | C52: -0.08 | D52: =D49*C52 -> -18.5594912 | F52: =C52 -> -0.08 | G52: =G49*F52 -> -18.6214688 | H52: -0.0619776 | I52: -0.003339401891 | K52: =G52/$G$53 -> -0.07619047619
A53: Total Amount on TOU | D53: =SUM(D51:D52) -> 243.593322 | G53: =SUM(G51:G52) -> 244.406778 | H53: 0.813456 | I53: 0.00333940189 | K53: =G53/$G$53 -> 1
A54: * Distribution rate protection applies to R1 and R2 customers

Sheet BI_R2_Low
A1: 2020 Bill Impacts (Low Consumption Level) - R2
A3: Rate Class | B3: =RIGHT(A1,LEN(A1)-FIND("- ",A1,1)-1) -> R2
A4: Monthly Consumption (kWh) | B4: =IF(COUNTIF(A1,"*Low*")>0,VLOOKUP(B3,'Data Billing Quantities'!$A:$Z,MATCH("Low kWh",'Data Billing Quantities'!4:4,0),FALSE),IF(COUNTIF(A1,"*Typical*")>0,VLOOKUP(B3,'Data Billing Quantities'!$A:$Z,MATCH("Typical kWh",'Data Billing Quantities'!4:4,0),FALSE),IF(COUNTIF(A1,"*Average*")>0,VLOOKUP(B3,'Data Billing Quantities'!$A:$Z,MATCH("Average kWh",'Data Billing Quantities'!4:4,0),FALSE),IF(COUNTIF(A1,"*High*")>0,VLOOKUP(B3,'Data Billing Quantities'!$A:$Z,MATCH("High kWh",'Data Billing Quantities'!4:4,0),FALSE),"error")))) -> 450
A5: Peak (kW) | B5: =IF(COUNTIF(A1,"*Low*")>0,VLOOKUP(B3,'Data Billing Quantities'!$A:$Z,MATCH("Low kW",'Data Billing Quantities'!4:4,0),FALSE),IF(COUNTIF(A1,"*Typical*")>0,VLOOKUP(B3,'Data Billing Quantities'!$A:$Z,MATCH("Typical kW",'Data Billing Quantities'!4:4,0),FALSE),IF(COUNTIF(A1,"*Average*")>0,VLOOKUP(B3,'Data Billing Quantities'!$A:$Z,MATCH("Average kW",'Data Billing Quantities'!4:4,0),FALSE),IF(COUNTIF(A1,"*High*")>0,VLOOKUP(B3,'Data Billing Quantities'!$A:$Z,MATCH("High kW",'Data Billing Quantities'!4:4,0),FALSE),"error")))) -> 0
A6: Loss factor | B6: =VLOOKUP(B3,'Data Billing Quantities'!A:D,MATCH(A6,'Data Billing Quantities'!4:4,0),FALSE) -> 1.105
A7: Commodity Threshold | B7: =VLOOKUP(B3,'Data Billing Quantities'!A:D,MATCH(A7,'Data Billing Quantities'!4:4,0),FALSE) -> 600
A8: Monthly Consumption (kWh) - Uplifted | B8: =B4*B6 -> 497.25
A9: Charge determinant | B9: =VLOOKUP(B3,'Data Billing Quantities'!A:D,MATCH(A9,'Data Billing Quantities'!4:4,0),FALSE) -> kWh
B11: Volume | C11: Current Rate ($) | D11: Current Charge ($) | E11: Volume | F11: Proposed Rate ($) | G11: Proposed Charge ($) | H11: Change ($) | I11: Change (%) | J11: % of Total Bill on RPP | K11: % of Total Bill on TOU
A12: Energy First Tier | B12: =IF(B4>B7,B7,B4) -> 450 | C12: =VLOOKUP($A12,'Data Pass Through'!$A:$D,2,FALSE) -> 0.077 | D12: =B12*C12 -> 34.65 | E12: =B12 -> 450 | F12: =VLOOKUP($A12,'Data Pass Through'!$A:$D,3,FALSE) -> 0.077 | G12: =E12*F12 -> 34.65 | H12: =G12-D12 -> 0 | I12: =IF(ISERROR(H12/ABS(D12)),"N/A",(H12/ABS(D12))) -> 0 | J12: =G12/$G$48 -> 0.390170194
A13: Energy Second Tier | B13: =IF(B4>B7,(B4)-B7,0) -> 0 | C13: =VLOOKUP($A13,'Data Pass Through'!$A:$D,2,FALSE) -> 0.089 | D13: =B13*C13 -> 0 | E13: =B13 -> 0 | F13: =VLOOKUP($A13,'Data Pass Through'!$A:$D,3,FALSE) -> 0.089 | G13: =E13*F13 -> 0 | H13: 0 | I13: N/A | J13: =G13/$G$48 -> 0
A14: Sub-Total: Energy (RPP Tiered) | D14: =SUM(D12:D13) -> 34.65 | G14: =SUM(G12:G13) -> 34.65 | H14: 0 | I14: 0 | J14: =G14/$G$48 -> 0.390170194
A15: TOU-Off Peak | B15: =B$4*VLOOKUP($B$3,'Data Billing Quantities'!$A:$O,MATCH(BI_R2_Low!$A15,'Data Billing Quantities'!$4:$4,0),FALSE) -> 292.5 | C15: =VLOOKUP($A15,'Data Pass Through'!$A:$D,2,FALSE) -> 0.065 | D15: =B15*C15 -> 19.0125 | E15: 292.5 | F15: =VLOOKUP($A15,'Data Pass Through'!$A:$D,3,FALSE) -> 0.065 | G15: =E15*F15 -> 19.0125 | H15: 0 | I15: 0 | K15: =G15/$G$53 -> 0.2075584561
A16: TOU-Mid Peak | B16: =B$4*VLOOKUP($B$3,'Data Billing Quantities'!$A:$O,MATCH(BI_R2_Low!$A16,'Data Billing Quantities'!$4:$4,0),FALSE) -> 76.5 | C16: =VLOOKUP($A16,'Data Pass Through'!$A:$D,2,FALSE) -> 0.094 | D16: =B16*C16 -> 7.191 | E16: 76.5 | F16: =VLOOKUP($A16,'Data Pass Through'!$A:$D,3,FALSE) -> 0.094 | G16: =E16*F16 -> 7.191 | H16: 0 | I16: 0 | K16: 0.07850376636
A17: TOU-On Peak | B17: =B$4*VLOOKUP($B$3,'Data Billing Quantities'!$A:$O,MATCH(BI_R2_Low!$A17,'Data Billing Quantities'!$4:$4,0),FALSE) -> 81 | C17: =VLOOKUP($A17,'Data Pass Through'!$A:$D,2,FALSE) -> 0.134 | D17: =B17*C17 -> 10.854 | E17: 81 | F17: =VLOOKUP($A17,'Data Pass Through'!$A:$D,3,FALSE) -> 0.134 | G17: =E17*F17 -> 10.854 | H17: 0 | I17: 0 | K17: 0.1184925435
A18: Sub-Total: Energy (RPP TOU) | D18: =SUM(D15:D17) -> 37.0575 | G18: =SUM(G15:G17) -> 37.0575 | H18: 0 | I18: 0 | J18: =G18/$G$48 -> 0.4172794218 | K18: 0.4045547659
A19: Service Charge | B19: 1 | C19: =VLOOKUP($B$3,'Data Current Rates'!$A:$BA,MATCH(BI_R2_Low!$A19,CurrentHeader,0),FALSE) -> 31.35 | D19: =B19*C19 -> 31.35 | E19: 1 | F19: =VLOOKUP($B$3,'Data Proposed Rates'!$A:$BA,MATCH(BI_R2_Low!$A19,ProposedHeader,0),FALSE) -> 41.19 | G19: =E19*F19 -> 41.19 | H19: 9.84 | I19: 0.3138755981 | J19: 0.4638127068 | K19: 0.4496690497
A20: Fixed Foregone Revenue Charge | B20: 1 | C20: =VLOOKUP($B$3,'Data Current Rates'!$A:$BA,MATCH(BI_R2_Low!$A20,CurrentHeader,0),FALSE) -> 4.37 | D20: 4.37 | E20: 1 | F20: =VLOOKUP($B$3,'Data Proposed Rates'!$A:$BA,MATCH(BI_R2_Low!$A20,ProposedHeader,0),FALSE) -> 4.35 | G20: 4.35 | H20: -0.02 | I20: -0.004576659039 | J20: 0.04898240531 | K20: 0.04748871974
A21: Fixed Deferral/Variance Account Rider (General) | B21: 1 | C21: =VLOOKUP($B$3,'Data Current Rates'!$A:$BA,MATCH(BI_R2_Low!$A21,CurrentHeader,0),FALSE) -> -0.03 | D21: -0.03 | E21: 1 | F21: =VLOOKUP($B$3,'Data Proposed Rates'!$A:$BA,MATCH(BI_R2_Low!$A21,ProposedHeader,0),FALSE) -> -0.03 | G21: -0.03 | H21: 0 | I21: 0 | J21: -0.0003378096918 | K21: -0.000327508412
A22: Distribution Volumetric Charge | B22: =IF($B$9="kWh",$B$4,$B$5) -> 450 | C22: =VLOOKUP($B$3,'Data Current Rates'!$A:$BA,MATCH(BI_R2_Low!$A22,CurrentHeader,0),FALSE) -> 0.0356 | D22: 16.02 | E22: 450 | F22: =VLOOKUP($B$3,'Data Proposed Rates'!$A:$BA,MATCH(BI_R2_Low!$A22,ProposedHeader,0),FALSE) -> 0.0291 | G22: 13.095 | H22: -2.925 | I22: -0.1825842697 | J22: 0.1474539305 | K22: 0.1429574218
A23: Volumetric Foregone Revenue Charge | B23: =IF($B$9="kWh",$B$4,$B$5) -> 450 | C23: =VLOOKUP($B$3,'Data Current Rates'!$A:$BA,MATCH(BI_R2_Low!$A23,CurrentHeader,0),FALSE) -> 0.0011 | D23: 0.495 | E23: 450 | F23: =VLOOKUP($B$3,'Data Proposed Rates'!$A:$BA,MATCH(BI_R2_Low!$A23,ProposedHeader,0),FALSE) -> 0.0011 | G23: 0.495 | H23: 0 | I23: 0 | J23: 0.005573859914 | K23: 0.005403888798
A24: Volumetric Deferral/Variance Account Rider (General) | B24: =IF($B$9="kWh",$B$4,$B$5) -> 450 | C24: =VLOOKUP($B$3,'Data Current Rates'!$A:$BA,MATCH(BI_R2_Low!$A24,CurrentHeader,0),FALSE) -> -0.0008 | D24: -0.36 | E24: 450 | F24: =VLOOKUP($B$3,'Data Proposed Rates'!$A:$BA,MATCH(BI_R2_Low!$A24,ProposedHeader,0),FALSE) -> -0.0008 | G24: -0.36 | H24: 0 | I24: 0 | J24: -0.004053716301 | K24: -0.003930100944
A25: Volumetric Deferral/Variance Account Rider (Sub Account CBR) | B25: 450 | C25: =VLOOKUP($B$3,'Data Current Rates'!$A:$BA,MATCH(BI_R2_Low!$A25,CurrentHeader,0),FALSE) -> 0 | D25: 0 | E25: 450 | F25: =VLOOKUP($B$3,'Data Proposed Rates'!$A:$BA,MATCH(BI_R2_Low!$A25,ProposedHeader,0),FALSE) -> 0 | G25: 0 | H25: 0 | I25: N/A | J25: 0 | K25: 0
A26: Fair Hydro Plan - Distribution Rate Protection Savings* | D26: =IF(AND(B3<>"R1",B3<>"R2"),0,IF(VLOOKUP($A26,'Data Pass Through'!$A:$D,2,FALSE)=0,0,IF(SUM(D19:D20,D22:D23)<VLOOKUP($A26,'Data Pass Through'!$A:$D,2,FALSE),0,VLOOKUP($A26,'Data Pass Through'!$A:$D,2,FALSE)-SUM(D19:D20,D22:D23)))) -> -15.375 | G26: =IF(AND(B3<>"R1",B3<>"R2"),0,IF(VLOOKUP($A26,'Data Pass Through'!$A:$D,2,FALSE)=0,0,IF(SUM(G19:G20,G22:G23)<VLOOKUP($A26,'Data Pass Through'!$A:$D,2,FALSE),0,VLOOKUP($A26,'Data Pass Through'!$A:$D,2,FALSE)-SUM(G19:G20,G22:G23)))) -> -22.27 | H26: -6.895 | I26: -0.4484552846 | J26: -0.2507673945 | K26: -0.2431204112
A27: Sub-Total: Distribution (excluding pass through) | D27: =SUM(INDIRECT("D19:D"&ROW()-1)) -> 36.47 | G27: =SUM(INDIRECT("g19:g"&ROW()-1)) -> 36.47 | H27: =G27-D27 -> 0 | I27: 0 | J27: 0.410663982 | K27: 0.3981410595
A28: Smart Metering Entity Charge | B28: 1 | C28: =VLOOKUP($A28,'Data Pass Through'!$A:$D,2,FALSE) -> 0.57 | D28: =B28*C28 -> 0.57 | E28: 1 | F28: =VLOOKUP($A28,'Data Pass Through'!$A:$D,3,FALSE) -> 0.57 | G28: =E28*F28 -> 0.57 | H28: 0 | I28: 0 | J28: 0.006418384144 | K28: 0.006222659828
A29: Line Losses on Cost of Power (based on two-tier RPP prices) | B29: =B8-B4 -> 47.25 | C29: =IF(B4>B7,C13,C12) -> 0.077 | D29: =B29*C29 -> 3.63825 | E29: 47.25 | F29: =IF(B4>B7,F13,F12) -> 0.077 | G29: =E29*F29 -> 3.63825 | H29: 0 | I29: 0 | J29: 0.04096787037 | K29: 0.03971858267
A30: Line Losses on Cost of Power (based on TOU prices) | B30: =B8-B4 -> 47.25 | C30: =VLOOKUP($B$3,'Data Billing Quantities'!$A:$O,MATCH(BI_R2_Low!$A15,'Data Billing Quantities'!$4:$4,0),FALSE)*C15+VLOOKUP($B$3,'Data Billing Quantities'!$A:$O,MATCH(BI_R2_Low!$A16,'Data Billing Quantities'!$4:$4,0),FALSE)*C16+VLOOKUP($B$3,'Data Billing Quantities'!$A:$O,MATCH(BI_R2_Low!$A17,'Data Billing Quantities'!$4:$4,0),FALSE)*C17 -> 0.08235 | D30: =B30*C30 -> 3.8910375 | E30: 47.25 | F30: =VLOOKUP($B$3,'Data Billing Quantities'!$A:$O,MATCH(BI_R2_Low!$A15,'Data Billing Quantities'!$4:$4,0),FALSE)*F15+VLOOKUP($B$3,'Data Billing Quantities'!$A:$O,MATCH(BI_R2_Low!$A16,'Data Billing Quantities'!$4:$4,0),FALSE)*F16+VLOOKUP($B$3,'Data Billing Quantities'!$A:$O,MATCH(BI_R2_Low!$A17,'Data Billing Quantities'!$4:$4,0),FALSE)*F17 -> 0.08235 | G30: =E30*F30 -> 3.8910375 | H30: 0 | I30: 0 | J30: 0.04381433929 | K30: 0.04247825042
A31: Sub-Total: Distribution (based on two-tier RPP prices) | D31: =SUM(D27,D28:D29) -> 40.67825 | G31: =SUM(G27,G28:G29) -> 40.67825 | H31: 0 | I31: 0 | J31: 0.4580502365 | K31: 0.444082302
A32: Sub-Total: Distribution (based on TOU prices) | D32: =SUM(D27,D28,D30) -> 40.9310375 | G32: =SUM(G27,G28,G30) -> 40.9310375 | H32: 0 | I32: 0 | J32: 0.4608967054 | K32: 0.4468419698
A33: Retail Transmission Rate – Network Service Rate | B33: =B8 -> 497.25 | C33: =VLOOKUP($B$3,'Data Current Rates'!$A:$BA,MATCH(BI_R2_Low!$A33,CurrentHeader,0),FALSE) -> 0.0073 | D33: =B33*C33 -> 3.629925 | E33: 497.25 | F33: =VLOOKUP($B$3,'Data Proposed Rates'!$A:$BA,MATCH(BI_R2_Low!$A33,ProposedHeader,0),FALSE) -> 0.0075 | G33: =E33*F33 -> 3.729375 | H33: =G33-D33 -> 0.09945 | I33: 0.02739726027 | J33: 0.04199396731 | K33: 0.04071338947
A34: Retail Transmission Rate – Line and Transformation Connection Service Rate | B34: =B8 -> 497.25 | C34: =VLOOKUP($B$3,'Data Current Rates'!$A:$BA,MATCH(BI_R2_Low!$A34,CurrentHeader,0),FALSE) -> 0.0066 | D34: =B34*C34 -> 3.28185 | E34: 497.25 | F34: =VLOOKUP($B$3,'Data Proposed Rates'!$A:$BA,MATCH(BI_R2_Low!$A34,ProposedHeader,0),FALSE) -> 0.0067 | G34: =E34*F34 -> 3.331575 | H34: =G34-D34 -> 0.049725 | I34: 0.01515151515 | J34: 0.0375146108 | K34: 0.03637062792
A35: Sub-Total: Retail Transmission | D35: =SUM(D33:D34) -> 6.911775 | G35: =SUM(G33:G34) -> 7.06095 | H35: =G35-D35 -> 0.149175 | I35: 0.02158273381 | J35: 0.07950857811 | K35: 0.07708401739
A36: Sub-Total: Delivery (based on two-tier RPP prices) | D36: =D31+D35 -> 47.590025 | G36: =G31+G35 -> 47.7392 | H36: =G36-D36 -> 0.149175 | I36: 0.003134585451 | J36: 0.5375588146 | K36: 0.5211663194
A37: Sub-Total: Delivery (based on TOU prices) | D37: =D32+D35 -> 47.8428125 | G37: =G32+G35 -> 47.9919875 | H37: =G37-D37 -> 0.149175 | I37: 0.003118023214 | J37: 0.5404052835 | K37: 0.5239259872
A38: Wholesale Market Service Rate (WMS) - not including CBR | B38: =B8 -> 497.25 | C38: =VLOOKUP($A38,'Data Pass Through'!$A:$D,2,FALSE) -> 0.003 | D38: =B38*C38 -> 1.49175 | E38: =$B$8 -> 497.25 | F38: =VLOOKUP($A38,'Data Pass Through'!$A:$D,3,FALSE) -> 0.003 | G38: =E38*F38 -> 1.49175 | H38: 0 | I38: 0 | J38: 0.01679758692 | K38: 0.01628535579
A39: Capacity Based Recovery (CBR) - Applicable for Class B Customers | B39: =B8 -> 497.25 | C39: =VLOOKUP($A39,'Data Pass Through'!$A:$D,2,FALSE) -> 0.0004 | D39: =B39*C39 -> 0.1989 | E39: =$B$8 -> 497.25 | F39: =VLOOKUP($A39,'Data Pass Through'!$A:$D,3,FALSE) -> 0.0004 | G39: =E39*F39 -> 0.1989 | H39: 0 | I39: 0 | J39: 0.002239678257 | K39: 0.002171380772
A40: Rural Rate Protection Charge | B40: =B8 -> 497.25 | C40: =VLOOKUP($A40,'Data Pass Through'!$A:$D,2,FALSE) -> 0.0005 | D40: 0.248625 | E40: 497.25 | F40: =VLOOKUP($A40,'Data Pass Through'!$A:$D,3,FALSE) -> 0.0005 | G40: 0.248625 | H40: 0 | I40: 0 | J40: 0.002799597821 | K40: 0.002714225964
A41: Standard Supply Service – Administration Charge (if applicable) | B41: 1 | C41: =VLOOKUP($A41,'Data Pass Through'!$A:$D,2,FALSE) -> 0.25 | D41: =B41*C41 -> 0.25 | E41: 1 | F41: =VLOOKUP($A41,'Data Pass Through'!$A:$D,3,FALSE) -> 0.25 | G41: 0.25 | H41: 0 | I41: 0 | J41: 0.002815080765 | K41: 0.002729236767
A42: Sub-Total: Regulatory | D42: =SUM(D38:D41) -> 2.189275 | G42: =SUM(G38:G41) -> 2.189275 | H42: 0 | I42: 0 | J42: 0.02465194377 | K42: 0.02390019929
A43: Debt Retirement Charge (DRC) | B43: =B4 -> 450 | C43: =VLOOKUP($A43,'Data Pass Through'!$A:$D,2,FALSE) -> 0 | D43: =B43*C43 -> 0 | E43: 450 | F43: =VLOOKUP($A43,'Data Pass Through'!$A:$D,3,FALSE) -> 0 | G43: =E43*F43 -> 0 | H43: 0 | I43: N/A | J43: 0 | K43: 0
A44: Total Electricty Charge on Two-Tier RPP | D44: =SUM(D14,D27,D28,D29,D35,D42,D43) -> 84.4293 | G44: =SUM(G14,G27,G28,G29,G35,G42,G43) -> 84.578475 | H44: 0.149175 | I44: 0.001766862926 | J44: 0.9523809524
A45: HST | C45: 0.13 | D45: =D44*C45 -> 10.975809 | F45: =C45 -> 0.13 | G45: =G44*F45 -> 10.99520175 | H45: 0.01939275 | I45: 0.001766862926 | J45: 0.1238095238
A46: Total Electricity Charge on Two-Tier RPP (including HST) | D46: =SUM(D44:D45) -> 95.405109 | G46: =SUM(G44:G45) -> 95.57367675 | H46: 0.16856775 | I46: 0.001766862926 | J46: 1.076190476
A47: Ontario Rebate for Electricity Consumers (OREC) | C47: -0.08 | D47: =D44*C47 -> -6.754344 | F47: =C47 -> -0.08 | G47: =G44*F47 -> -6.766278 | H47: -0.011934 | I47: -0.001766862926 | J47: -0.07619047619
A48: Total Amount on Two-Tier RPP | D48: =SUM(D46:D47) -> 88.650765 | G48: =SUM(G46:G47) -> 88.80739875 | H48: 0.15663375 | I48: 0.001766862926 | J48: 1
A49: Total Electricty Charge on TOU (before HST) | D49: =SUM(D18,D27,D28,D30,D35,D42,D43) -> 87.0895875 | G49: =SUM(G18,G27,G28,G30,G35,G42,G43) -> 87.2387625 | H49: 0.149175 | I49: 0.001712891337 | K49: =G49/$G$53 -> 0.9523809524
A50: HST | C50: 0.13 | D50: =D49*C50 -> 11.32164638 | F50: =C50 -> 0.13 | G50: =G49*F50 -> 11.34103912 | H50: 0.01939275 | I50: 0.001712891337 | K50: =G50/$G$53 -> 0.1238095238
A51: Total Electricity Charge on TOU (including HST) | D51: =SUM(D49:D50) -> 98.41123387 | G51: =SUM(G49:G50) -> 98.57980162 | H51: 0.16856775 | I51: 0.001712891337 | K51: =G51/$G$53 -> 1.076190476
A52: Ontario Rebate for Electricity Consumers (OREC) | C52: -0.08 | D52: =D49*C52 -> -6.967167 | F52: =C52 -> -0.08 | G52: =G49*F52 -> -6.979101 | H52: -0.011934 | I52: -0.001712891337 | K52: =G52/$G$53 -> -0.07619047619
A53: Total Amount on TOU | D53: =SUM(D51:D52) -> 91.44406687 | G53: =SUM(G51:G52) -> 91.60070062 | H53: 0.15663375 | I53: 0.001712891337 | K53: =G53/$G$53 -> 1
A54: * Distribution rate protection applies to R1 and R2 customers

Sheet BI_R2_Typical
A1: 2020 Bill Impacts (Typical Consumption Level) - R2
A3: Rate Class | B3: =RIGHT(A1,LEN(A1)-FIND("- ",A1,1)-1) -> R2
A4: Monthly Consumption (kWh) | B4: =IF(COUNTIF(A1,"*Low*")>0,VLOOKUP(B3,'Data Billing Quantities'!$A:$Z,MATCH("Low kWh",'Data Billing Quantities'!4:4,0),FALSE),IF(COUNTIF(A1,"*Typical*")>0,VLOOKUP(B3,'Data Billing Quantities'!$A:$Z,MATCH("Typical kWh",'Data Billing Quantities'!4:4,0),FALSE),IF(COUNTIF(A1,"*Average*")>0,VLOOKUP(B3,'Data Billing Quantities'!$A:$Z,MATCH("Average kWh",'Data Billing Quantities'!4:4,0),FALSE),IF(COUNTIF(A1,"*High*")>0,VLOOKUP(B3,'Data Billing Quantities'!$A:$Z,MATCH("High kWh",'Data Billing Quantities'!4:4,0),FALSE),"error")))) -> 750
A5: Peak (kW) | B5: =IF(COUNTIF(A1,"*Low*")>0,VLOOKUP(B3,'Data Billing Quantities'!$A:$Z,MATCH("Low kW",'Data Billing Quantities'!4:4,0),FALSE),IF(COUNTIF(A1,"*Typical*")>0,VLOOKUP(B3,'Data Billing Quantities'!$A:$Z,MATCH("Typical kW",'Data Billing Quantities'!4:4,0),FALSE),IF(COUNTIF(A1,"*Average*")>0,VLOOKUP(B3,'Data Billing Quantities'!$A:$Z,MATCH("Average kW",'Data Billing Quantities'!4:4,0),FALSE),IF(COUNTIF(A1,"*High*")>0,VLOOKUP(B3,'Data Billing Quantities'!$A:$Z,MATCH("High kW",'Data Billing Quantities'!4:4,0),FALSE),"error")))) -> 0
A6: Loss factor | B6: =VLOOKUP(B3,'Data Billing Quantities'!A:D,MATCH(A6,'Data Billing Quantities'!4:4,0),FALSE) -> 1.105
A7: Commodity Threshold | B7: =VLOOKUP(B3,'Data Billing Quantities'!A:D,MATCH(A7,'Data Billing Quantities'!4:4,0),FALSE) -> 600
A8: Monthly Consumption (kWh) - Uplifted | B8: =B4*B6 -> 828.75
A9: Charge determinant | B9: =VLOOKUP(B3,'Data Billing Quantities'!A:D,MATCH(A9,'Data Billing Quantities'!4:4,0),FALSE) -> kWh
B11: Volume | C11: Current Rate ($) | D11: Current Charge ($) | E11: Volume | F11: Proposed Rate ($) | G11: Proposed Charge ($) | H11: Change ($) | I11: Change (%) | J11: % of Total Bill on RPP | K11: % of Total Bill on TOU
A12: Energy First Tier | B12: =IF(B4>B7,B7,B4) -> 600 | C12: =VLOOKUP($A12,'Data Pass Through'!$A:$D,2,FALSE) -> 0.077 | D12: =B12*C12 -> 46.2 | E12: =B12 -> 600 | F12: =VLOOKUP($A12,'Data Pass Through'!$A:$D,3,FALSE) -> 0.077 | G12: =E12*F12 -> 46.2 | H12: =G12-D12 -> 0 | I12: =IF(ISERROR(H12/ABS(D12)),"N/A",(H12/ABS(D12))) -> 0 | J12: =G12/$G$48 -> 0.3709663991
A13: Energy Second Tier | B13: =IF(B4>B7,(B4)-B7,0) -> 150 | C13: =VLOOKUP($A13,'Data Pass Through'!$A:$D,2,FALSE) -> 0.089 | D13: =B13*C13 -> 13.35 | E13: =B13 -> 150 | F13: =VLOOKUP($A13,'Data Pass Through'!$A:$D,3,FALSE) -> 0.089 | G13: =E13*F13 -> 13.35 | H13: 0 | I13: 0 | J13: =G13/$G$48 -> 0.1071948361
A14: Sub-Total: Energy (RPP Tiered) | D14: =SUM(D12:D13) -> 59.55 | G14: =SUM(G12:G13) -> 59.55 | H14: 0 | I14: 0 | J14: =G14/$G$48 -> 0.4781612352
A15: TOU-Off Peak | B15: =B$4*VLOOKUP($B$3,'Data Billing Quantities'!$A:$O,MATCH(BI_R2_Typical!$A15,'Data Billing Quantities'!$4:$4,0),FALSE) -> 487.5 | C15: =VLOOKUP($A15,'Data Pass Through'!$A:$D,2,FALSE) -> 0.065 | D15: =B15*C15 -> 31.6875 | E15: 487.5 | F15: =VLOOKUP($A15,'Data Pass Through'!$A:$D,3,FALSE) -> 0.065 | G15: =E15*F15 -> 31.6875 | H15: 0 | I15: 0 | K15: =G15/$G$53 -> 0.2508652439
A16: TOU-Mid Peak | B16: =B$4*VLOOKUP($B$3,'Data Billing Quantities'!$A:$O,MATCH(BI_R2_Typical!$A16,'Data Billing Quantities'!$4:$4,0),FALSE) -> 127.5 | C16: =VLOOKUP($A16,'Data Pass Through'!$A:$D,2,FALSE) -> 0.094 | D16: =B16*C16 -> 11.985 | E16: 127.5 | F16: =VLOOKUP($A16,'Data Pass Through'!$A:$D,3,FALSE) -> 0.094 | G16: =E16*F16 -> 11.985 | H16: 0 | I16: 0 | K16: 0.09488346975
A17: TOU-On Peak | B17: =B$4*VLOOKUP($B$3,'Data Billing Quantities'!$A:$O,MATCH(BI_R2_Typical!$A17,'Data Billing Quantities'!$4:$4,0),FALSE) -> 135 | C17: =VLOOKUP($A17,'Data Pass Through'!$A:$D,2,FALSE) -> 0.134 | D17: =B17*C17 -> 18.09 | E17: 135 | F17: =VLOOKUP($A17,'Data Pass Through'!$A:$D,3,FALSE) -> 0.134 | G17: =E17*F17 -> 18.09 | H17: 0 | I17: 0 | K17: 0.1432158505
A18: Sub-Total: Energy (RPP TOU) | D18: =SUM(D15:D17) -> 61.7625 | G18: =SUM(G15:G17) -> 61.7625 | H18: 0 | I18: 0 | J18: =G18/$G$48 -> 0.4959266715 | K18: 0.4889645641
A19: Service Charge | B19: 1 | C19: =VLOOKUP($B$3,'Data Current Rates'!$A:$BA,MATCH(BI_R2_Typical!$A19,CurrentHeader,0),FALSE) -> 31.35 | D19: =B19*C19 -> 31.35 | E19: 1 | F19: =VLOOKUP($B$3,'Data Proposed Rates'!$A:$BA,MATCH(BI_R2_Typical!$A19,ProposedHeader,0),FALSE) -> 41.19 | G19: =E19*F19 -> 41.19 | H19: 9.84 | I19: 0.3138755981 | J19: 0.3307382246 | K19: 0.3260951288
A20: Fixed Foregone Revenue Charge | B20: 1 | C20: =VLOOKUP($B$3,'Data Current Rates'!$A:$BA,MATCH(BI_R2_Typical!$A20,CurrentHeader,0),FALSE) -> 4.37 | D20: 4.37 | E20: 1 | F20: =VLOOKUP($B$3,'Data Proposed Rates'!$A:$BA,MATCH(BI_R2_Typical!$A20,ProposedHeader,0),FALSE) -> 4.35 | G20: 4.35 | H20: -0.02 | I20: -0.004576659039 | J20: 0.03492865446 | K20: 0.03443830567
A21: Fixed Deferral/Variance Account Rider (General) | B21: 1 | C21: =VLOOKUP($B$3,'Data Current Rates'!$A:$BA,MATCH(BI_R2_Typical!$A21,CurrentHeader,0),FALSE) -> -0.03 | D21: -0.03 | E21: 1 | F21: =VLOOKUP($B$3,'Data Proposed Rates'!$A:$BA,MATCH(BI_R2_Typical!$A21,ProposedHeader,0),FALSE) -> -0.03 | G21: -0.03 | H21: 0 | I21: 0 | J21: -0.0002408872721 | K21: -0.0002375055563
A22: Distribution Volumetric Charge | B22: =IF($B$9="kWh",$B$4,$B$5) -> 750 | C22: =VLOOKUP($B$3,'Data Current Rates'!$A:$BA,MATCH(BI_R2_Typical!$A22,CurrentHeader,0),FALSE) -> 0.0356 | D22: 26.7 | E22: 750 | F22: =VLOOKUP($B$3,'Data Proposed Rates'!$A:$BA,MATCH(BI_R2_Typical!$A22,ProposedHeader,0),FALSE) -> 0.0291 | G22: 21.825 | H22: -4.875 | I22: -0.1825842697 | J22: 0.1752454905 | K22: 0.1727852922
A23: Volumetric Foregone Revenue Charge | B23: =IF($B$9="kWh",$B$4,$B$5) -> 750 | C23: =VLOOKUP($B$3,'Data Current Rates'!$A:$BA,MATCH(BI_R2_Typical!$A23,CurrentHeader,0),FALSE) -> 0.0011 | D23: 0.825 | E23: 750 | F23: =VLOOKUP($B$3,'Data Proposed Rates'!$A:$BA,MATCH(BI_R2_Typical!$A23,ProposedHeader,0),FALSE) -> 0.0011 | G23: 0.825 | H23: 0 | I23: 0 | J23: 0.006624399984 | K23: 0.006531402799
A24: Volumetric Deferral/Variance Account Rider (General) | B24: =IF($B$9="kWh",$B$4,$B$5) -> 750 | C24: =VLOOKUP($B$3,'Data Current Rates'!$A:$BA,MATCH(BI_R2_Typical!$A24,CurrentHeader,0),FALSE) -> -0.0008 | D24: -0.6 | E24: 750 | F24: =VLOOKUP($B$3,'Data Proposed Rates'!$A:$BA,MATCH(BI_R2_Typical!$A24,ProposedHeader,0),FALSE) -> -0.0008 | G24: -0.6 | H24: 0 | I24: 0 | J24: -0.004817745443 | K24: -0.004750111127
A25: Volumetric Deferral/Variance Account Rider (Sub Account CBR) | B25: 750 | C25: =VLOOKUP($B$3,'Data Current Rates'!$A:$BA,MATCH(BI_R2_Typical!$A25,CurrentHeader,0),FALSE) -> 0 | D25: 0 | E25: 750 | F25: =VLOOKUP($B$3,'Data Proposed Rates'!$A:$BA,MATCH(BI_R2_Typical!$A25,ProposedHeader,0),FALSE) -> 0 | G25: 0 | H25: 0 | I25: N/A | J25: 0 | K25: 0
A26: Fair Hydro Plan - Distribution Rate Protection Savings* | D26: =IF(AND(B3<>"R1",B3<>"R2"),0,IF(VLOOKUP($A26,'Data Pass Through'!$A:$D,2,FALSE)=0,0,IF(SUM(D19:D20,D22:D23)<VLOOKUP($A26,'Data Pass Through'!$A:$D,2,FALSE),0,VLOOKUP($A26,'Data Pass Through'!$A:$D,2,FALSE)-SUM(D19:D20,D22:D23)))) -> -26.385 | G26: =IF(AND(B3<>"R1",B3<>"R2"),0,IF(VLOOKUP($A26,'Data Pass Through'!$A:$D,2,FALSE)=0,0,IF(SUM(G19:G20,G22:G23)<VLOOKUP($A26,'Data Pass Through'!$A:$D,2,FALSE),0,VLOOKUP($A26,'Data Pass Through'!$A:$D,2,FALSE)-SUM(G19:G20,G22:G23)))) -> -31.33 | H26: -4.945 | I26: -0.187417093 | J26: -0.2515666079 | K26: -0.2480349693
A27: Sub-Total: Distribution (excluding pass through) | D27: =SUM(INDIRECT("D19:D"&ROW()-1)) -> 36.23 | G27: =SUM(INDIRECT("g19:g"&ROW()-1)) -> 36.23 | H27: =G27-D27 -> 0 | I27: 0 | J27: 0.290911529 | K27: 0.2868275435
A28: Smart Metering Entity Charge | B28: 1 | C28: =VLOOKUP($A28,'Data Pass Through'!$A:$D,2,FALSE) -> 0.57 | D28: =B28*C28 -> 0.57 | E28: 1 | F28: =VLOOKUP($A28,'Data Pass Through'!$A:$D,3,FALSE) -> 0.57 | G28: =E28*F28 -> 0.57 | H28: 0 | I28: 0 | J28: 0.004576858171 | K28: 0.00451260557
A29: Line Losses on Cost of Power (based on two-tier RPP prices) | B29: =B8-B4 -> 78.75 | C29: =IF(B4>B7,C13,C12) -> 0.089 | D29: =B29*C29 -> 7.00875 | E29: 78.75 | F29: =IF(B4>B7,F13,F12) -> 0.089 | G29: =E29*F29 -> 7.00875 | H29: 0 | I29: 0 | J29: 0.05627728895 | K29: 0.0554872356
A30: Line Losses on Cost of Power (based on TOU prices) | B30: =B8-B4 -> 78.75 | C30: =VLOOKUP($B$3,'Data Billing Quantities'!$A:$O,MATCH(BI_R2_Typical!$A15,'Data Billing Quantities'!$4:$4,0),FALSE)*C15+VLOOKUP($B$3,'Data Billing Quantities'!$A:$O,MATCH(BI_R2_Typical!$A16,'Data Billing Quantities'!$4:$4,0),FALSE)*C16+VLOOKUP($B$3,'Data Billing Quantities'!$A:$O,MATCH(BI_R2_Typical!$A17,'Data Billing Quantities'!$4:$4,0),FALSE)*C17 -> 0.08235 | D30: =B30*C30 -> 6.4850625 | E30: 78.75 | F30: =VLOOKUP($B$3,'Data Billing Quantities'!$A:$O,MATCH(BI_R2_Typical!$A15,'Data Billing Quantities'!$4:$4,0),FALSE)*F15+VLOOKUP($B$3,'Data Billing Quantities'!$A:$O,MATCH(BI_R2_Typical!$A16,'Data Billing Quantities'!$4:$4,0),FALSE)*F16+VLOOKUP($B$3,'Data Billing Quantities'!$A:$O,MATCH(BI_R2_Typical!$A17,'Data Billing Quantities'!$4:$4,0),FALSE)*F17 -> 0.08235 | G30: =E30*F30 -> 6.4850625 | H30: 0 | I30: 0 | J30: 0.05207230051 | K30: 0.05134127923
A31: Sub-Total: Distribution (based on two-tier RPP prices) | D31: =SUM(D27,D28:D29) -> 43.80875 | G31: =SUM(G27,G28:G29) -> 43.80875 | H31: 0 | I31: 0 | J31: 0.3517656761 | K31: 0.3468273847
A32: Sub-Total: Distribution (based on TOU prices) | D32: =SUM(D27,D28,D30) -> 43.2850625 | G32: =SUM(G27,G28,G30) -> 43.2850625 | H32: 0 | I32: 0 | J32: 0.3475606877 | K32: 0.3426814283
A33: Retail Transmission Rate – Network Service Rate | B33: =B8 -> 828.75 | C33: =VLOOKUP($B$3,'Data Current Rates'!$A:$BA,MATCH(BI_R2_Typical!$A33,CurrentHeader,0),FALSE) -> 0.0073 | D33: =B33*C33 -> 6.049875 | E33: 828.75 | F33: =VLOOKUP($B$3,'Data Proposed Rates'!$A:$BA,MATCH(BI_R2_Typical!$A33,ProposedHeader,0),FALSE) -> 0.0075 | G33: =E33*F33 -> 6.215625 | H33: =G33-D33 -> 0.16575 | I33: 0.02739726027 | J33: 0.0499088317 | K33: 0.04920818245
A34: Retail Transmission Rate – Line and Transformation Connection Service Rate | B34: =B8 -> 828.75 | C34: =VLOOKUP($B$3,'Data Current Rates'!$A:$BA,MATCH(BI_R2_Typical!$A34,CurrentHeader,0),FALSE) -> 0.0066 | D34: =B34*C34 -> 5.46975 | E34: 828.75 | F34: =VLOOKUP($B$3,'Data Proposed Rates'!$A:$BA,MATCH(BI_R2_Typical!$A34,ProposedHeader,0),FALSE) -> 0.0067 | G34: =E34*F34 -> 5.552625 | H34: =G34-D34 -> 0.082875 | I34: 0.01515151515 | J34: 0.04458522298 | K34: 0.04395930966
A35: Sub-Total: Retail Transmission | D35: =SUM(D33:D34) -> 11.519625 | G35: =SUM(G33:G34) -> 11.76825 | H35: =G35-D35 -> 0.248625 | I35: 0.02158273381 | J35: 0.09449405468 | K35: 0.09316749211
A36: Sub-Total: Delivery (based on two-tier RPP prices) | D36: =D31+D35 -> 55.328375 | G36: =G31+G35 -> 55.577 | H36: =G36-D36 -> 0.248625 | I36: 0.004493625558 | J36: 0.4462597308 | K36: 0.4399948768
A37: Sub-Total: Delivery (based on TOU prices) | D37: =D32+D35 -> 54.8046875 | G37: =G32+G35 -> 55.0533125 | H37: =G37-D37 -> 0.248625 | I37: 0.004536564505 | J37: 0.4420547423 | K37: 0.4358489204
A38: Wholesale Market Service Rate (WMS) - not including CBR | B38: =B8 -> 828.75 | C38: =VLOOKUP($A38,'Data Pass Through'!$A:$D,2,FALSE) -> 0.003 | D38: =B38*C38 -> 2.48625 | E38: =$B$8 -> 828.75 | F38: =VLOOKUP($A38,'Data Pass Through'!$A:$D,3,FALSE) -> 0.003 | G38: =E38*F38 -> 2.48625 | H38: 0 | I38: 0 | J38: 0.01996353268 | K38: 0.01968327298
A39: Capacity Based Recovery (CBR) - Applicable for Class B Customers | B39: =B8 -> 828.75 | C39: =VLOOKUP($A39,'Data Pass Through'!$A:$D,2,FALSE) -> 0.0004 | D39: =B39*C39 -> 0.3315 | E39: =$B$8 -> 828.75 | F39: =VLOOKUP($A39,'Data Pass Through'!$A:$D,3,FALSE) -> 0.0004 | G39: =E39*F39 -> 0.3315 | H39: 0 | I39: 0 | J39: 0.002661804357 | K39: 0.002624436397
A40: Rural Rate Protection Charge | B40: =B8 -> 828.75 | C40: =VLOOKUP($A40,'Data Pass Through'!$A:$D,2,FALSE) -> 0.0005 | D40: 0.414375 | E40: 828.75 | F40: =VLOOKUP($A40,'Data Pass Through'!$A:$D,3,FALSE) -> 0.0005 | G40: 0.414375 | H40: 0 | I40: 0 | J40: 0.003327255446 | K40: 0.003280545497
A41: Standard Supply Service – Administration Charge (if applicable) | B41: 1 | C41: =VLOOKUP($A41,'Data Pass Through'!$A:$D,2,FALSE) -> 0.25 | D41: =B41*C41 -> 0.25 | E41: 1 | F41: =VLOOKUP($A41,'Data Pass Through'!$A:$D,3,FALSE) -> 0.25 | G41: 0.25 | H41: 0 | I41: 0 | J41: 0.002007393934 | K41: 0.001979212969
A42: Sub-Total: Regulatory | D42: =SUM(D38:D41) -> 3.482125 | G42: =SUM(G38:G41) -> 3.482125 | H42: 0 | I42: 0 | J42: 0.02795998642 | K42: 0.02756746784
A43: Debt Retirement Charge (DRC) | B43: =B4 -> 750 | C43: =VLOOKUP($A43,'Data Pass Through'!$A:$D,2,FALSE) -> 0 | D43: =B43*C43 -> 0 | E43: 750 | F43: =VLOOKUP($A43,'Data Pass Through'!$A:$D,3,FALSE) -> 0 | G43: =E43*F43 -> 0 | H43: 0 | I43: N/A | J43: 0 | K43: 0
A44: Total Electricty Charge on Two-Tier RPP | D44: =SUM(D14,D27,D28,D29,D35,D42,D43) -> 118.3605 | G44: =SUM(G14,G27,G28,G29,G35,G42,G43) -> 118.609125 | H44: 0.248625 | I44: 0.002100574094 | J44: 0.9523809524
A45: HST | C45: 0.13 | D45: =D44*C45 -> 15.386865 | F45: =C45 -> 0.13 | G45: =G44*F45 -> 15.41918625 | H45: 0.03232125 | I45: 0.002100574094 | J45: 0.1238095238
A46: Total Electricity Charge on Two-Tier RPP (including HST) | D46: =SUM(D44:D45) -> 133.747365 | G46: =SUM(G44:G45) -> 134.0283113 | H46: 0.28094625 | I46: 0.002100574094 | J46: 1.076190476
A47: Ontario Rebate for Electricity Consumers (OREC) | C47: -0.08 | D47: =D44*C47 -> -9.46884 | F47: =C47 -> -0.08 | G47: =G44*F47 -> -9.48873 | H47: -0.01989 | I47: -0.002100574094 | J47: -0.07619047619
A48: Total Amount on Two-Tier RPP | D48: =SUM(D46:D47) -> 124.278525 | G48: =SUM(G46:G47) -> 124.5395812 | H48: 0.26105625 | I48: 0.002100574094 | J48: 1
A49: Total Electricty Charge on TOU (before HST) | D49: =SUM(D18,D27,D28,D30,D35,D42,D43) -> 120.0493125 | G49: =SUM(G18,G27,G28,G30,G35,G42,G43) -> 120.2979375 | H49: 0.248625 | I49: 0.002071023939 | K49: =G49/$G$53 -> 0.9523809524
A50: HST | C50: 0.13 | D50: =D49*C50 -> 15.60641063 | F50: =C50 -> 0.13 | G50: =G49*F50 -> 15.63873187 | H50: 0.03232125 | I50: 0.002071023939 | K50: =G50/$G$53 -> 0.1238095238
A51: Total Electricity Charge on TOU (including HST) | D51: =SUM(D49:D50) -> 135.6557231 | G51: =SUM(G49:G50) -> 135.9366694 | H51: 0.28094625 | I51: 0.002071023939 | K51: =G51/$G$53 -> 1.076190476
A52: Ontario Rebate for Electricity Consumers (OREC) | C52: -0.08 | D52: =D49*C52 -> -9.603945 | F52: =C52 -> -0.08 | G52: =G49*F52 -> -9.623835 | H52: -0.01989 | I52: -0.002071023939 | K52: =G52/$G$53 -> -0.07619047619
A53: Total Amount on TOU | D53: =SUM(D51:D52) -> 126.0517781 | G53: =SUM(G51:G52) -> 126.3128344 | H53: 0.26105625 | I53: 0.002071023939 | K53: =G53/$G$53 -> 1
A54: * Distribution rate protection applies to R1 and R2 customers

Sheet BI_R2_Avg
A1: 2020 Bill Impacts (Average Consumption Level) - R2
A3: Rate Class | B3: =RIGHT(A1,LEN(A1)-FIND("- ",A1,1)-1) -> R2
A4: Monthly Consumption (kWh) | B4: =IF(COUNTIF(A1,"*Low*")>0,VLOOKUP(B3,'Data Billing Quantities'!$A:$Z,MATCH("Low kWh",'Data Billing Quantities'!4:4,0),FALSE),IF(COUNTIF(A1,"*Typical*")>0,VLOOKUP(B3,'Data Billing Quantities'!$A:$Z,MATCH("Typical kWh",'Data Billing Quantities'!4:4,0),FALSE),IF(COUNTIF(A1,"*Average*")>0,VLOOKUP(B3,'Data Billing Quantities'!$A:$Z,MATCH("Average kWh",'Data Billing Quantities'!4:4,0),FALSE),IF(COUNTIF(A1,"*High*")>0,VLOOKUP(B3,'Data Billing Quantities'!$A:$Z,MATCH("High kWh",'Data Billing Quantities'!4:4,0),FALSE),"error")))) -> 1152
A5: Peak (kW) | B5: =IF(COUNTIF(A1,"*Low*")>0,VLOOKUP(B3,'Data Billing Quantities'!$A:$Z,MATCH("Low kW",'Data Billing Quantities'!4:4,0),FALSE),IF(COUNTIF(A1,"*Typical*")>0,VLOOKUP(B3,'Data Billing Quantities'!$A:$Z,MATCH("Typical kW",'Data Billing Quantities'!4:4,0),FALSE),IF(COUNTIF(A1,"*Average*")>0,VLOOKUP(B3,'Data Billing Quantities'!$A:$Z,MATCH("Average kW",'Data Billing Quantities'!4:4,0),FALSE),IF(COUNTIF(A1,"*High*")>0,VLOOKUP(B3,'Data Billing Quantities'!$A:$Z,MATCH("High kW",'Data Billing Quantities'!4:4,0),FALSE),"error")))) -> 0
A6: Loss factor | B6: =VLOOKUP(B3,'Data Billing Quantities'!A:D,MATCH(A6,'Data Billing Quantities'!4:4,0),FALSE) -> 1.105
A7: Commodity Threshold | B7: =VLOOKUP(B3,'Data Billing Quantities'!A:D,MATCH(A7,'Data Billing Quantities'!4:4,0),FALSE) -> 600
A8: Monthly Consumption (kWh) - Uplifted | B8: =B4*B6 -> 1272.96
A9: Charge determinant | B9: =VLOOKUP(B3,'Data Billing Quantities'!A:D,MATCH(A9,'Data Billing Quantities'!4:4,0),FALSE) -> kWh
B11: Volume | C11: Current Rate ($) | D11: Current Charge ($) | E11: Volume | F11: Proposed Rate ($) | G11: Proposed Charge ($) | H11: Change ($) | I11: Change (%) | J11: % of Total Bill on RPP | K11: % of Total Bill on TOU
A12: Energy First Tier | B12: =IF(B4>B7,B7,B4) -> 600 | C12: =VLOOKUP($A12,'Data Pass Through'!$A:$D,2,FALSE) -> 0.077 | D12: =B12*C12 -> 46.2 | E12: =B12 -> 600 | F12: =VLOOKUP($A12,'Data Pass Through'!$A:$D,3,FALSE) -> 0.077 | G12: =E12*F12 -> 46.2 | H12: =G12-D12 -> 0 | I12: =IF(ISERROR(H12/ABS(D12)),"N/A",(H12/ABS(D12))) -> 0 | J12: =G12/$G$48 -> 0.2652801102
A13: Energy Second Tier | B13: =IF(B4>B7,(B4)-B7,0) -> 552 | C13: =VLOOKUP($A13,'Data Pass Through'!$A:$D,2,FALSE) -> 0.089 | D13: =B13*C13 -> 49.128 | E13: =B13 -> 552 | F13: =VLOOKUP($A13,'Data Pass Through'!$A:$D,3,FALSE) -> 0.089 | G13: =E13*F13 -> 49.128 | H13: 0 | I13: 0 | J13: =G13/$G$48 -> 0.2820926679
A14: Sub-Total: Energy (RPP Tiered) | D14: =SUM(D12:D13) -> 95.328 | G14: =SUM(G12:G13) -> 95.328 | H14: 0 | I14: 0 | J14: =G14/$G$48 -> 0.5473727781
A15: TOU-Off Peak | B15: =B$4*VLOOKUP($B$3,'Data Billing Quantities'!$A:$O,MATCH(BI_R2_Avg!$A15,'Data Billing Quantities'!$4:$4,0),FALSE) -> 748.8 | C15: =VLOOKUP($A15,'Data Pass Through'!$A:$D,2,FALSE) -> 0.065 | D15: =B15*C15 -> 48.672 | E15: 748.8 | F15: =VLOOKUP($A15,'Data Pass Through'!$A:$D,3,FALSE) -> 0.065 | G15: =E15*F15 -> 48.672 | H15: 0 | I15: 0 | K15: =G15/$G$53 -> 0.2816225106
A16: TOU-Mid Peak | B16: =B$4*VLOOKUP($B$3,'Data Billing Quantities'!$A:$O,MATCH(BI_R2_Avg!$A16,'Data Billing Quantities'!$4:$4,0),FALSE) -> 195.84 | C16: =VLOOKUP($A16,'Data Pass Through'!$A:$D,2,FALSE) -> 0.094 | D16: =B16*C16 -> 18.40896 | E16: 195.84 | F16: =VLOOKUP($A16,'Data Pass Through'!$A:$D,3,FALSE) -> 0.094 | G16: =E16*F16 -> 18.40896 | H16: 0 | I16: 0 | K16: 0.1065166324
A17: TOU-On Peak | B17: =B$4*VLOOKUP($B$3,'Data Billing Quantities'!$A:$O,MATCH(BI_R2_Avg!$A17,'Data Billing Quantities'!$4:$4,0),FALSE) -> 207.36 | C17: =VLOOKUP($A17,'Data Pass Through'!$A:$D,2,FALSE) -> 0.134 | D17: =B17*C17 -> 27.78624 | E17: 207.36 | F17: =VLOOKUP($A17,'Data Pass Through'!$A:$D,3,FALSE) -> 0.134 | G17: =E17*F17 -> 27.78624 | H17: 0 | I17: 0 | K17: 0.1607747919
A18: Sub-Total: Energy (RPP TOU) | D18: =SUM(D15:D17) -> 94.8672 | G18: =SUM(G15:G17) -> 94.8672 | H18: 0 | I18: 0 | J18: =G18/$G$48 -> 0.5447268674 | K18: 0.5489139349
A19: Service Charge | B19: 1 | C19: =VLOOKUP($B$3,'Data Current Rates'!$A:$BA,MATCH(BI_R2_Avg!$A19,CurrentHeader,0),FALSE) -> 31.35 | D19: =B19*C19 -> 31.35 | E19: 1 | F19: =VLOOKUP($B$3,'Data Proposed Rates'!$A:$BA,MATCH(BI_R2_Avg!$A19,ProposedHeader,0),FALSE) -> 41.19 | G19: =E19*F19 -> 41.19 | H19: 9.84 | I19: 0.3138755981 | J19: 0.2365127217 | K19: 0.2383306873
A20: Fixed Foregone Revenue Charge | B20: 1 | C20: =VLOOKUP($B$3,'Data Current Rates'!$A:$BA,MATCH(BI_R2_Avg!$A20,CurrentHeader,0),FALSE) -> 4.37 | D20: 4.37 | E20: 1 | F20: =VLOOKUP($B$3,'Data Proposed Rates'!$A:$BA,MATCH(BI_R2_Avg!$A20,ProposedHeader,0),FALSE) -> 4.35 | G20: 4.35 | H20: -0.02 | I20: -0.004576659039 | J20: 0.02497767272 | K20: 0.02516966472
A21: Fixed Deferral/Variance Account Rider (General) | B21: 1 | C21: =VLOOKUP($B$3,'Data Current Rates'!$A:$BA,MATCH(BI_R2_Avg!$A21,CurrentHeader,0),FALSE) -> -0.03 | D21: -0.03 | E21: 1 | F21: =VLOOKUP($B$3,'Data Proposed Rates'!$A:$BA,MATCH(BI_R2_Avg!$A21,ProposedHeader,0),FALSE) -> -0.03 | G21: -0.03 | H21: 0 | I21: 0 | J21: -0.0001722598118 | K21: -0.0001735838946
A22: Distribution Volumetric Charge | B22: =IF($B$9="kWh",$B$4,$B$5) -> 1152 | C22: =VLOOKUP($B$3,'Data Current Rates'!$A:$BA,MATCH(BI_R2_Avg!$A22,CurrentHeader,0),FALSE) -> 0.0356 | D22: 41.0112 | E22: 1152 | F22: =VLOOKUP($B$3,'Data Proposed Rates'!$A:$BA,MATCH(BI_R2_Avg!$A22,ProposedHeader,0),FALSE) -> 0.0291 | G22: 33.5232 | H22: -7.488 | I22: -0.1825842697 | J22: 0.1924900041 | K22: 0.1939695872
A23: Volumetric Foregone Revenue Charge | B23: =IF($B$9="kWh",$B$4,$B$5) -> 1152 | C23: =VLOOKUP($B$3,'Data Current Rates'!$A:$BA,MATCH(BI_R2_Avg!$A23,CurrentHeader,0),FALSE) -> 0.0011 | D23: 1.2672 | E23: 1152 | F23: =VLOOKUP($B$3,'Data Proposed Rates'!$A:$BA,MATCH(BI_R2_Avg!$A23,ProposedHeader,0),FALSE) -> 0.0011 | G23: 1.2672 | H23: 0 | I23: 0 | J23: 0.007276254452 | K23: 0.007332183708
A24: Volumetric Deferral/Variance Account Rider (General) | B24: =IF($B$9="kWh",$B$4,$B$5) -> 1152 | C24: =VLOOKUP($B$3,'Data Current Rates'!$A:$BA,MATCH(BI_R2_Avg!$A24,CurrentHeader,0),FALSE) -> -0.0008 | D24: -0.9216 | E24: 1152 | F24: =VLOOKUP($B$3,'Data Proposed Rates'!$A:$BA,MATCH(BI_R2_Avg!$A24,ProposedHeader,0),FALSE) -> -0.0008 | G24: -0.9216 | H24: 0 | I24: 0 | J24: -0.00529182142 | K24: -0.005332497242
A25: Volumetric Deferral/Variance Account Rider (Sub Account CBR) | B25: 1152 | C25: =VLOOKUP($B$3,'Data Current Rates'!$A:$BA,MATCH(BI_R2_Avg!$A25,CurrentHeader,0),FALSE) -> 0 | D25: 0 | E25: 1152 | F25: =VLOOKUP($B$3,'Data Proposed Rates'!$A:$BA,MATCH(BI_R2_Avg!$A25,ProposedHeader,0),FALSE) -> 0 | G25: 0 | H25: 0 | I25: N/A | J25: 0 | K25: 0
A26: Fair Hydro Plan - Distribution Rate Protection Savings* | D26: =IF(AND(B3<>"R1",B3<>"R2"),0,IF(VLOOKUP($A26,'Data Pass Through'!$A:$D,2,FALSE)=0,0,IF(SUM(D19:D20,D22:D23)<VLOOKUP($A26,'Data Pass Through'!$A:$D,2,FALSE),0,VLOOKUP($A26,'Data Pass Through'!$A:$D,2,FALSE)-SUM(D19:D20,D22:D23)))) -> -41.1384 | G26: =IF(AND(B3<>"R1",B3<>"R2"),0,IF(VLOOKUP($A26,'Data Pass Through'!$A:$D,2,FALSE)=0,0,IF(SUM(G19:G20,G22:G23)<VLOOKUP($A26,'Data Pass Through'!$A:$D,2,FALSE),0,VLOOKUP($A26,'Data Pass Through'!$A:$D,2,FALSE)-SUM(G19:G20,G22:G23)))) -> -43.4704 | H26: -2.332 | I26: -0.05668669661 | J26: -0.2496067642 | K26: -0.2515253777
A27: Sub-Total: Distribution (excluding pass through) | D27: =SUM(INDIRECT("D19:D"&ROW()-1)) -> 35.9084 | G27: =SUM(INDIRECT("g19:g"&ROW()-1)) -> 35.9084 | H27: =G27-D27 -> 0 | I27: 0 | J27: 0.2061858076 | K27: 0.207770664
A28: Smart Metering Entity Charge | B28: 1 | C28: =VLOOKUP($A28,'Data Pass Through'!$A:$D,2,FALSE) -> 0.57 | D28: =B28*C28 -> 0.57 | E28: 1 | F28: =VLOOKUP($A28,'Data Pass Through'!$A:$D,3,FALSE) -> 0.57 | G28: =E28*F28 -> 0.57 | H28: 0 | I28: 0 | J28: 0.003272936425 | K28: 0.003298093997
A29: Line Losses on Cost of Power (based on two-tier RPP prices) | B29: =B8-B4 -> 120.96 | C29: =IF(B4>B7,C13,C12) -> 0.089 | D29: =B29*C29 -> 10.76544 | E29: 120.96 | F29: =IF(B4>B7,F13,F12) -> 0.089 | G29: =E29*F29 -> 10.76544 | H29: 0 | I29: 0 | J29: 0.06181508896 | K29: 0.06229023341
A30: Line Losses on Cost of Power (based on TOU prices) | B30: =B8-B4 -> 120.96 | C30: =VLOOKUP($B$3,'Data Billing Quantities'!$A:$O,MATCH(BI_R2_Avg!$A15,'Data Billing Quantities'!$4:$4,0),FALSE)*C15+VLOOKUP($B$3,'Data Billing Quantities'!$A:$O,MATCH(BI_R2_Avg!$A16,'Data Billing Quantities'!$4:$4,0),FALSE)*C16+VLOOKUP($B$3,'Data Billing Quantities'!$A:$O,MATCH(BI_R2_Avg!$A17,'Data Billing Quantities'!$4:$4,0),FALSE)*C17 -> 0.08235 | D30: =B30*C30 -> 9.961056 | E30: 120.96 | F30: =VLOOKUP($B$3,'Data Billing Quantities'!$A:$O,MATCH(BI_R2_Avg!$A15,'Data Billing Quantities'!$4:$4,0),FALSE)*F15+VLOOKUP($B$3,'Data Billing Quantities'!$A:$O,MATCH(BI_R2_Avg!$A16,'Data Billing Quantities'!$4:$4,0),FALSE)*F16+VLOOKUP($B$3,'Data Billing Quantities'!$A:$O,MATCH(BI_R2_Avg!$A17,'Data Billing Quantities'!$4:$4,0),FALSE)*F17 -> 0.08235 | G30: =E30*F30 -> 9.961056 | H30: 0 | I30: 0 | J30: 0.05719632108 | K30: 0.05763596316
A31: Sub-Total: Distribution (based on two-tier RPP prices) | D31: =SUM(D27,D28:D29) -> 47.24384 | G31: =SUM(G27,G28:G29) -> 47.24384 | H31: 0 | I31: 0 | J31: 0.271273833 | K31: 0.2733589914
A32: Sub-Total: Distribution (based on TOU prices) | D32: =SUM(D27,D28,D30) -> 46.439456 | G32: =SUM(G27,G28,G30) -> 46.439456 | H32: 0 | I32: 0 | J32: 0.2666550651 | K32: 0.2687047212
A33: Retail Transmission Rate – Network Service Rate | B33: =B8 -> 1272.96 | C33: =VLOOKUP($B$3,'Data Current Rates'!$A:$BA,MATCH(BI_R2_Avg!$A33,CurrentHeader,0),FALSE) -> 0.0073 | D33: =B33*C33 -> 9.292608 | E33: 1272.96 | F33: =VLOOKUP($B$3,'Data Proposed Rates'!$A:$BA,MATCH(BI_R2_Avg!$A33,ProposedHeader,0),FALSE) -> 0.0075 | G33: =E33*F33 -> 9.5472 | H33: =G33-D33 -> 0.254592 | I33: 0.02739726027 | J33: 0.05481996252 | K33: 0.05524133862
A34: Retail Transmission Rate – Line and Transformation Connection Service Rate | B34: =B8 -> 1272.96 | C34: =VLOOKUP($B$3,'Data Current Rates'!$A:$BA,MATCH(BI_R2_Avg!$A34,CurrentHeader,0),FALSE) -> 0.0066 | D34: =B34*C34 -> 8.401536 | E34: 1272.96 | F34: =VLOOKUP($B$3,'Data Proposed Rates'!$A:$BA,MATCH(BI_R2_Avg!$A34,ProposedHeader,0),FALSE) -> 0.0067 | G34: =E34*F34 -> 8.528832 | H34: =G34-D34 -> 0.127296 | I34: 0.01515151515 | J34: 0.04897249985 | K34: 0.04934892917
A35: Sub-Total: Retail Transmission | D35: =SUM(D33:D34) -> 17.694144 | G35: =SUM(G33:G34) -> 18.076032 | H35: =G35-D35 -> 0.381888 | I35: 0.02158273381 | J35: 0.1037924624 | K35: 0.1045902678
A36: Sub-Total: Delivery (based on two-tier RPP prices) | D36: =D31+D35 -> 64.937984 | G36: =G31+G35 -> 65.319872 | H36: =G36-D36 -> 0.381888 | I36: 0.005880810836 | J36: 0.3750662953 | K36: 0.3779492592
A37: Sub-Total: Delivery (based on TOU prices) | D37: =D32+D35 -> 64.1336 | G37: =G32+G35 -> 64.515488 | H37: =G37-D37 -> 0.381888 | I37: 0.005954569835 | J37: 0.3704475275 | K37: 0.373294989
A38: Wholesale Market Service Rate (WMS) - not including CBR | B38: =B8 -> 1272.96 | C38: =VLOOKUP($A38,'Data Pass Through'!$A:$D,2,FALSE) -> 0.003 | D38: =B38*C38 -> 3.81888 | E38: =$B$8 -> 1272.96 | F38: =VLOOKUP($A38,'Data Pass Through'!$A:$D,3,FALSE) -> 0.003 | G38: =E38*F38 -> 3.81888 | H38: 0 | I38: 0 | J38: 0.02192798501 | K38: 0.02209653545
A39: Capacity Based Recovery (CBR) - Applicable for Class B Customers | B39: =B8 -> 1272.96 | C39: =VLOOKUP($A39,'Data Pass Through'!$A:$D,2,FALSE) -> 0.0004 | D39: =B39*C39 -> 0.509184 | E39: =$B$8 -> 1272.96 | F39: =VLOOKUP($A39,'Data Pass Through'!$A:$D,3,FALSE) -> 0.0004 | G39: =E39*F39 -> 0.509184 | H39: 0 | I39: 0 | J39: 0.002923731334 | K39: 0.002946204726
A40: Rural Rate Protection Charge | B40: =B8 -> 1272.96 | C40: =VLOOKUP($A40,'Data Pass Through'!$A:$D,2,FALSE) -> 0.0005 | D40: 0.63648 | E40: 1272.96 | F40: =VLOOKUP($A40,'Data Pass Through'!$A:$D,3,FALSE) -> 0.0005 | G40: 0.63648 | H40: 0 | I40: 0 | J40: 0.003654664168 | K40: 0.003682755908
A41: Standard Supply Service – Administration Charge (if applicable) | B41: 1 | C41: =VLOOKUP($A41,'Data Pass Through'!$A:$D,2,FALSE) -> 0.25 | D41: =B41*C41 -> 0.25 | E41: 1 | F41: =VLOOKUP($A41,'Data Pass Through'!$A:$D,3,FALSE) -> 0.25 | G41: 0.25 | H41: 0 | I41: 0 | J41: 0.001435498432 | K41: 0.001446532455
A42: Sub-Total: Regulatory | D42: =SUM(D38:D41) -> 5.214544 | G42: =SUM(G38:G41) -> 5.214544 | H42: 0 | I42: 0 | J42: 0.02994187894 | K42: 0.03017202854
A43: Debt Retirement Charge (DRC) | B43: =B4 -> 1152 | C43: =VLOOKUP($A43,'Data Pass Through'!$A:$D,2,FALSE) -> 0 | D43: =B43*C43 -> 0 | E43: 1152 | F43: =VLOOKUP($A43,'Data Pass Through'!$A:$D,3,FALSE) -> 0 | G43: =E43*F43 -> 0 | H43: 0 | I43: N/A | J43: 0 | K43: 0
A44: Total Electricty Charge on Two-Tier RPP | D44: =SUM(D14,D27,D28,D29,D35,D42,D43) -> 165.480528 | G44: =SUM(G14,G27,G28,G29,G35,G42,G43) -> 165.862416 | H44: 0.381888 | I44: 0.002307751882 | J44: 0.9523809524
A45: HST | C45: 0.13 | D45: =D44*C45 -> 21.51246864 | F45: =C45 -> 0.13 | G45: =G44*F45 -> 21.56211408 | H45: 0.04964544 | I45: 0.002307751882 | J45: 0.1238095238
A46: Total Electricity Charge on Two-Tier RPP (including HST) | D46: =SUM(D44:D45) -> 186.9929966 | G46: =SUM(G44:G45) -> 187.4245301 | H46: 0.43153344 | I46: 0.002307751882 | J46: 1.076190476
A47: Ontario Rebate for Electricity Consumers (OREC) | C47: -0.08 | D47: =D44*C47 -> -13.23844224 | F47: =C47 -> -0.08 | G47: =G44*F47 -> -13.26899328 | H47: -0.03055104 | I47: -0.002307751882 | J47: -0.07619047619
A48: Total Amount on Two-Tier RPP | D48: =SUM(D46:D47) -> 173.7545544 | G48: =SUM(G46:G47) -> 174.1555368 | H48: 0.4009824 | I48: 0.002307751882 | J48: 1
A49: Total Electricty Charge on TOU (before HST) | D49: =SUM(D18,D27,D28,D30,D35,D42,D43) -> 164.215344 | G49: =SUM(G18,G27,G28,G30,G35,G42,G43) -> 164.597232 | H49: 0.381888 | I49: 0.002325531772 | K49: =G49/$G$53 -> 0.9523809524
A50: HST | C50: 0.13 | D50: =D49*C50 -> 21.34799472 | F50: =C50 -> 0.13 | G50: =G49*F50 -> 21.39764016 | H50: 0.04964544 | I50: 0.002325531772 | K50: =G50/$G$53 -> 0.1238095238
A51: Total Electricity Charge on TOU (including HST) | D51: =SUM(D49:D50) -> 185.5633387 | G51: =SUM(G49:G50) -> 185.9948722 | H51: 0.43153344 | I51: 0.002325531772 | K51: =G51/$G$53 -> 1.076190476
A52: Ontario Rebate for Electricity Consumers (OREC) | C52: -0.08 | D52: =D49*C52 -> -13.13722752 | F52: =C52 -> -0.08 | G52: =G49*F52 -> -13.16777856 | H52: -0.03055104 | I52: -0.002325531772 | K52: =G52/$G$53 -> -0.07619047619
A53: Total Amount on TOU | D53: =SUM(D51:D52) -> 172.4261112 | G53: =SUM(G51:G52) -> 172.8270936 | H53: 0.4009824 | I53: 0.002325531772 | K53: =G53/$G$53 -> 1
A54: * Distribution rate protection applies to R1 and R2 customers

Sheet BI_R2_High
A1: 2020 Bill Impacts (High Consumption Level) - R2
A3: Rate Class | B3: =RIGHT(A1,LEN(A1)-FIND("- ",A1,1)-1) -> R2
A4: Monthly Consumption (kWh) | B4: =IF(COUNTIF(A1,"*Low*")>0,VLOOKUP(B3,'Data Billing Quantities'!$A:$Z,MATCH("Low kWh",'Data Billing Quantities'!4:4,0),FALSE),IF(COUNTIF(A1,"*Typical*")>0,VLOOKUP(B3,'Data Billing Quantities'!$A:$Z,MATCH("Typical kWh",'Data Billing Quantities'!4:4,0),FALSE),IF(COUNTIF(A1,"*Average*")>0,VLOOKUP(B3,'Data Billing Quantities'!$A:$Z,MATCH("Average kWh",'Data Billing Quantities'!4:4,0),FALSE),IF(COUNTIF(A1,"*High*")>0,VLOOKUP(B3,'Data Billing Quantities'!$A:$Z,MATCH("High kWh",'Data Billing Quantities'!4:4,0),FALSE),"error")))) -> 2300
A5: Peak (kW) | B5: =IF(COUNTIF(A1,"*Low*")>0,VLOOKUP(B3,'Data Billing Quantities'!$A:$Z,MATCH("Low kW",'Data Billing Quantities'!4:4,0),FALSE),IF(COUNTIF(A1,"*Typical*")>0,VLOOKUP(B3,'Data Billing Quantities'!$A:$Z,MATCH("Typical kW",'Data Billing Quantities'!4:4,0),FALSE),IF(COUNTIF(A1,"*Average*")>0,VLOOKUP(B3,'Data Billing Quantities'!$A:$Z,MATCH("Average kW",'Data Billing Quantities'!4:4,0),FALSE),IF(COUNTIF(A1,"*High*")>0,VLOOKUP(B3,'Data Billing Quantities'!$A:$Z,MATCH("High kW",'Data Billing Quantities'!4:4,0),FALSE),"error")))) -> 0
A6: Loss factor | B6: =VLOOKUP(B3,'Data Billing Quantities'!A:D,MATCH(A6,'Data Billing Quantities'!4:4,0),FALSE) -> 1.105
A7: Commodity Threshold | B7: =VLOOKUP(B3,'Data Billing Quantities'!A:D,MATCH(A7,'Data Billing Quantities'!4:4,0),FALSE) -> 600
A8: Monthly Consumption (kWh) - Uplifted | B8: =B4*B6 -> 2541.5
A9: Charge determinant | B9: =VLOOKUP(B3,'Data Billing Quantities'!A:D,MATCH(A9,'Data Billing Quantities'!4:4,0),FALSE) -> kWh
B11: Volume | C11: Current Rate ($) | D11: Current Charge ($) | E11: Volume | F11: Proposed Rate ($) | G11: Proposed Charge ($) | H11: Change ($) | I11: Change (%) | J11: % of Total Bill on RPP | K11: % of Total Bill on TOU
A12: Energy First Tier | B12: =IF(B4>B7,B7,B4) -> 600 | C12: =VLOOKUP($A12,'Data Pass Through'!$A:$D,2,FALSE) -> 0.077 | D12: =B12*C12 -> 46.2 | E12: =B12 -> 600 | F12: =VLOOKUP($A12,'Data Pass Through'!$A:$D,3,FALSE) -> 0.077 | G12: =E12*F12 -> 46.2 | H12: =G12-D12 -> 0 | I12: =IF(ISERROR(H12/ABS(D12)),"N/A",(H12/ABS(D12))) -> 0 | J12: =G12/$G$48 -> 0.1462743345
A13: Energy Second Tier | B13: =IF(B4>B7,(B4)-B7,0) -> 1700 | C13: =VLOOKUP($A13,'Data Pass Through'!$A:$D,2,FALSE) -> 0.089 | D13: =B13*C13 -> 151.3 | E13: =B13 -> 1700 | F13: =VLOOKUP($A13,'Data Pass Through'!$A:$D,3,FALSE) -> 0.089 | G13: =E13*F13 -> 151.3 | H13: 0 | I13: 0 | J13: =G13/$G$48 -> 0.479032615
A14: Sub-Total: Energy (RPP Tiered) | D14: =SUM(D12:D13) -> 197.5 | G14: =SUM(G12:G13) -> 197.5 | H14: 0 | I14: 0 | J14: =G14/$G$48 -> 0.6253069495
A15: TOU-Off Peak | B15: =B$4*VLOOKUP($B$3,'Data Billing Quantities'!$A:$O,MATCH(BI_R2_High!$A15,'Data Billing Quantities'!$4:$4,0),FALSE) -> 1495 | C15: =VLOOKUP($A15,'Data Pass Through'!$A:$D,2,FALSE) -> 0.065 | D15: =B15*C15 -> 97.175 | E15: 1495 | F15: =VLOOKUP($A15,'Data Pass Through'!$A:$D,3,FALSE) -> 0.065 | G15: =E15*F15 -> 97.175 | H15: 0 | I15: 0 | K15: =G15/$G$53 -> 0.3179197894
A16: TOU-Mid Peak | B16: =B$4*VLOOKUP($B$3,'Data Billing Quantities'!$A:$O,MATCH(BI_R2_High!$A16,'Data Billing Quantities'!$4:$4,0),FALSE) -> 391 | C16: =VLOOKUP($A16,'Data Pass Through'!$A:$D,2,FALSE) -> 0.094 | D16: =B16*C16 -> 36.754 | E16: 391 | F16: =VLOOKUP($A16,'Data Pass Through'!$A:$D,3,FALSE) -> 0.094 | G16: =E16*F16 -> 36.754 | H16: 0 | I16: 0 | K16: 0.1202451653
A17: TOU-On Peak | B17: =B$4*VLOOKUP($B$3,'Data Billing Quantities'!$A:$O,MATCH(BI_R2_High!$A17,'Data Billing Quantities'!$4:$4,0),FALSE) -> 414 | C17: =VLOOKUP($A17,'Data Pass Through'!$A:$D,2,FALSE) -> 0.134 | D17: =B17*C17 -> 55.476 | E17: 414 | F17: =VLOOKUP($A17,'Data Pass Through'!$A:$D,3,FALSE) -> 0.134 | G17: =E17*F17 -> 55.476 | H17: 0 | I17: 0 | K17: 0.1814964573
A18: Sub-Total: Energy (RPP TOU) | D18: =SUM(D15:D17) -> 189.405 | G18: =SUM(G15:G17) -> 189.405 | H18: 0 | I18: 0 | J18: =G18/$G$48 -> 0.5996772799 | K18: 0.619661412
A19: Service Charge | B19: 1 | C19: =VLOOKUP($B$3,'Data Current Rates'!$A:$BA,MATCH(BI_R2_High!$A19,CurrentHeader,0),FALSE) -> 31.35 | D19: =B19*C19 -> 31.35 | E19: 1 | F19: =VLOOKUP($B$3,'Data Proposed Rates'!$A:$BA,MATCH(BI_R2_High!$A19,ProposedHeader,0),FALSE) -> 41.19 | G19: =E19*F19 -> 41.19 | H19: 9.84 | I19: 0.3138755981 | J19: 0.1304121177 | K19: 0.1347580769
A20: Fixed Foregone Revenue Charge | B20: 1 | C20: =VLOOKUP($B$3,'Data Current Rates'!$A:$BA,MATCH(BI_R2_High!$A20,CurrentHeader,0),FALSE) -> 4.37 | D20: 4.37 | E20: 1 | F20: =VLOOKUP($B$3,'Data Proposed Rates'!$A:$BA,MATCH(BI_R2_High!$A20,ProposedHeader,0),FALSE) -> 4.35 | G20: 4.35 | H20: -0.02 | I20: -0.004576659039 | J20: 0.01377258345 | K20: 0.01423155219
A21: Fixed Deferral/Variance Account Rider (General) | B21: 1 | C21: =VLOOKUP($B$3,'Data Current Rates'!$A:$BA,MATCH(BI_R2_High!$A21,CurrentHeader,0),FALSE) -> -0.03 | D21: -0.03 | E21: 1 | F21: =VLOOKUP($B$3,'Data Proposed Rates'!$A:$BA,MATCH(BI_R2_High!$A21,ProposedHeader,0),FALSE) -> -0.03 | G21: -0.03 | H21: 0 | I21: 0 | J21: -9.498333411e-05 | K21: -9.814863578e-05
A22: Distribution Volumetric Charge | B22: =IF($B$9="kWh",$B$4,$B$5) -> 2300 | C22: =VLOOKUP($B$3,'Data Current Rates'!$A:$BA,MATCH(BI_R2_High!$A22,CurrentHeader,0),FALSE) -> 0.0356 | D22: 81.88 | E22: 2300 | F22: =VLOOKUP($B$3,'Data Proposed Rates'!$A:$BA,MATCH(BI_R2_High!$A22,ProposedHeader,0),FALSE) -> 0.0291 | G22: 66.93 | H22: -14.95 | I22: -0.1825842697 | J22: 0.2119078184 | K22: 0.2189696064
A23: Volumetric Foregone Revenue Charge | B23: =IF($B$9="kWh",$B$4,$B$5) -> 2300 | C23: =VLOOKUP($B$3,'Data Current Rates'!$A:$BA,MATCH(BI_R2_High!$A23,CurrentHeader,0),FALSE) -> 0.0011 | D23: 2.53 | E23: 2300 | F23: =VLOOKUP($B$3,'Data Proposed Rates'!$A:$BA,MATCH(BI_R2_High!$A23,ProposedHeader,0),FALSE) -> 0.0011 | G23: 2.53 | H23: 0 | I23: 0 | J23: 0.008010261176 | K23: 0.008277201617
A24: Volumetric Deferral/Variance Account Rider (General) | B24: =IF($B$9="kWh",$B$4,$B$5) -> 2300 | C24: =VLOOKUP($B$3,'Data Current Rates'!$A:$BA,MATCH(BI_R2_High!$A24,CurrentHeader,0),FALSE) -> -0.0008 | D24: -1.84 | E24: 2300 | F24: =VLOOKUP($B$3,'Data Proposed Rates'!$A:$BA,MATCH(BI_R2_High!$A24,ProposedHeader,0),FALSE) -> -0.0008 | G24: -1.84 | H24: 0 | I24: 0 | J24: -0.005825644492 | K24: -0.006019782994
A25: Volumetric Deferral/Variance Account Rider (Sub Account CBR) | B25: 2300 | C25: =VLOOKUP($B$3,'Data Current Rates'!$A:$BA,MATCH(BI_R2_High!$A25,CurrentHeader,0),FALSE) -> 0 | D25: 0 | E25: 2300 | F25: =VLOOKUP($B$3,'Data Proposed Rates'!$A:$BA,MATCH(BI_R2_High!$A25,ProposedHeader,0),FALSE) -> 0 | G25: 0 | H25: 0 | I25: N/A | J25: 0 | K25: 0
A26: Fair Hydro Plan - Distribution Rate Protection Savings* | D26: =IF(AND(B3<>"R1",B3<>"R2"),0,IF(VLOOKUP($A26,'Data Pass Through'!$A:$D,2,FALSE)=0,0,IF(SUM(D19:D20,D22:D23)<VLOOKUP($A26,'Data Pass Through'!$A:$D,2,FALSE),0,VLOOKUP($A26,'Data Pass Through'!$A:$D,2,FALSE)-SUM(D19:D20,D22:D23)))) -> -83.27 | G26: =IF(AND(B3<>"R1",B3<>"R2"),0,IF(VLOOKUP($A26,'Data Pass Through'!$A:$D,2,FALSE)=0,0,IF(SUM(G19:G20,G22:G23)<VLOOKUP($A26,'Data Pass Through'!$A:$D,2,FALSE),0,VLOOKUP($A26,'Data Pass Through'!$A:$D,2,FALSE)-SUM(G19:G20,G22:G23)))) -> -78.14 | H26: 5.13 | I26: 0.06160682118 | J26: -0.2473999242 | K26: -0.25564448
A27: Sub-Total: Distribution (excluding pass through) | D27: =SUM(INDIRECT("D19:D"&ROW()-1)) -> 34.99 | G27: =SUM(INDIRECT("g19:g"&ROW()-1)) -> 34.99 | H27: =G27-D27 -> 0 | I27: 0 | J27: 0.1107822287 | K27: 0.1144740255
A28: Smart Metering Entity Charge | B28: 1 | C28: =VLOOKUP($A28,'Data Pass Through'!$A:$D,2,FALSE) -> 0.57 | D28: =B28*C28 -> 0.57 | E28: 1 | F28: =VLOOKUP($A28,'Data Pass Through'!$A:$D,3,FALSE) -> 0.57 | G28: =E28*F28 -> 0.57 | H28: 0 | I28: 0 | J28: 0.001804683348 | K28: 0.00186482408
A29: Line Losses on Cost of Power (based on two-tier RPP prices) | B29: =B8-B4 -> 241.5 | C29: =IF(B4>B7,C13,C12) -> 0.089 | D29: =B29*C29 -> 21.4935 | E29: 241.5 | F29: =IF(B4>B7,F13,F12) -> 0.089 | G29: =E29*F29 -> 21.4935 | H29: 0 | I29: 0 | J29: 0.06805080972 | K29: 0.0703185901
A30: Line Losses on Cost of Power (based on TOU prices) | B30: =B8-B4 -> 241.5 | C30: =VLOOKUP($B$3,'Data Billing Quantities'!$A:$O,MATCH(BI_R2_High!$A15,'Data Billing Quantities'!$4:$4,0),FALSE)*C15+VLOOKUP($B$3,'Data Billing Quantities'!$A:$O,MATCH(BI_R2_High!$A16,'Data Billing Quantities'!$4:$4,0),FALSE)*C16+VLOOKUP($B$3,'Data Billing Quantities'!$A:$O,MATCH(BI_R2_High!$A17,'Data Billing Quantities'!$4:$4,0),FALSE)*C17 -> 0.08235 | D30: =B30*C30 -> 19.887525 | E30: 241.5 | F30: =VLOOKUP($B$3,'Data Billing Quantities'!$A:$O,MATCH(BI_R2_High!$A15,'Data Billing Quantities'!$4:$4,0),FALSE)*F15+VLOOKUP($B$3,'Data Billing Quantities'!$A:$O,MATCH(BI_R2_High!$A16,'Data Billing Quantities'!$4:$4,0),FALSE)*F16+VLOOKUP($B$3,'Data Billing Quantities'!$A:$O,MATCH(BI_R2_High!$A17,'Data Billing Quantities'!$4:$4,0),FALSE)*F17 -> 0.08235 | G30: =E30*F30 -> 19.887525 | H30: 0 | I30: 0 | J30: 0.06296611439 | K30: 0.06506444826
A31: Sub-Total: Distribution (based on two-tier RPP prices) | D31: =SUM(D27,D28:D29) -> 57.0535 | G31: =SUM(G27,G28:G29) -> 57.0535 | H31: 0 | I31: 0 | J31: 0.1806377217 | K31: 0.1866574397
A32: Sub-Total: Distribution (based on TOU prices) | D32: =SUM(D27,D28,D30) -> 55.447525 | G32: =SUM(G27,G28,G30) -> 55.447525 | H32: 0 | I32: 0 | J32: 0.1755530264 | K32: 0.1814032979
A33: Retail Transmission Rate – Network Service Rate | B33: =B8 -> 2541.5 | C33: =VLOOKUP($B$3,'Data Current Rates'!$A:$BA,MATCH(BI_R2_High!$A33,CurrentHeader,0),FALSE) -> 0.0073 | D33: =B33*C33 -> 18.55295 | E33: 2541.5 | F33: =VLOOKUP($B$3,'Data Proposed Rates'!$A:$BA,MATCH(BI_R2_High!$A33,ProposedHeader,0),FALSE) -> 0.0075 | G33: =E33*F33 -> 19.06125 | H33: =G33-D33 -> 0.5083 | I33: 0.02739726027 | J33: 0.06035003591 | K33: 0.06236118946
A34: Retail Transmission Rate – Line and Transformation Connection Service Rate | B34: =B8 -> 2541.5 | C34: =VLOOKUP($B$3,'Data Current Rates'!$A:$BA,MATCH(BI_R2_High!$A34,CurrentHeader,0),FALSE) -> 0.0066 | D34: =B34*C34 -> 16.7739 | E34: 2541.5 | F34: =VLOOKUP($B$3,'Data Proposed Rates'!$A:$BA,MATCH(BI_R2_High!$A34,ProposedHeader,0),FALSE) -> 0.0067 | G34: =E34*F34 -> 17.02805 | H34: =G34-D34 -> 0.25415 | I34: 0.01515151515 | J34: 0.05391269874 | K34: 0.05570932925
A35: Sub-Total: Retail Transmission | D35: =SUM(D33:D34) -> 35.32685 | G35: =SUM(G33:G34) -> 36.0893 | H35: =G35-D35 -> 0.76245 | I35: 0.02158273381 | J35: 0.1142627347 | K35: 0.1180705187
A36: Sub-Total: Delivery (based on two-tier RPP prices) | D36: =D31+D35 -> 92.38035 | G36: =G31+G35 -> 93.1428 | H36: =G36-D36 -> 0.76245 | I36: 0.008253378559 | J36: 0.2949004564 | K36: 0.3047279584
A37: Sub-Total: Delivery (based on TOU prices) | D37: =D32+D35 -> 90.774375 | G37: =G32+G35 -> 91.536825 | H37: =G37-D37 -> 0.76245 | I37: 0.008399396856 | J37: 0.2898157611 | K37: 0.2994738166
A38: Wholesale Market Service Rate (WMS) - not including CBR | B38: =B8 -> 2541.5 | C38: =VLOOKUP($A38,'Data Pass Through'!$A:$D,2,FALSE) -> 0.003 | D38: =B38*C38 -> 7.6245 | E38: =$B$8 -> 2541.5 | F38: =VLOOKUP($A38,'Data Pass Through'!$A:$D,3,FALSE) -> 0.003 | G38: =E38*F38 -> 7.6245 | H38: 0 | I38: 0 | J38: 0.02414001436 | K38: 0.02494447578
A39: Capacity Based Recovery (CBR) - Applicable for Class B Customers | B39: =B8 -> 2541.5 | C39: =VLOOKUP($A39,'Data Pass Through'!$A:$D,2,FALSE) -> 0.0004 | D39: =B39*C39 -> 1.0166 | E39: =$B$8 -> 2541.5 | F39: =VLOOKUP($A39,'Data Pass Through'!$A:$D,3,FALSE) -> 0.0004 | G39: =E39*F39 -> 1.0166 | H39: 0 | I39: 0 | J39: 0.003218668582 | K39: 0.003325930104
A40: Rural Rate Protection Charge | B40: =B8 -> 2541.5 | C40: =VLOOKUP($A40,'Data Pass Through'!$A:$D,2,FALSE) -> 0.0005 | D40: 1.27075 | E40: 2541.5 | F40: =VLOOKUP($A40,'Data Pass Through'!$A:$D,3,FALSE) -> 0.0005 | G40: 1.27075 | H40: 0 | I40: 0 | J40: 0.004023335727 | K40: 0.004157412631
A41: Standard Supply Service – Administration Charge (if applicable) | B41: 1 | C41: =VLOOKUP($A41,'Data Pass Through'!$A:$D,2,FALSE) -> 0.25 | D41: =B41*C41 -> 0.25 | E41: 1 | F41: =VLOOKUP($A41,'Data Pass Through'!$A:$D,3,FALSE) -> 0.25 | G41: 0.25 | H41: 0 | I41: 0 | J41: 0.0007915277842 | K41: 0.0008179052982
A42: Sub-Total: Regulatory | D42: =SUM(D38:D41) -> 10.16185 | G42: =SUM(G38:G41) -> 10.16185 | H42: 0 | I42: 0 | J42: 0.03217354646 | K42: 0.03324572382
A43: Debt Retirement Charge (DRC) | B43: =B4 -> 2300 | C43: =VLOOKUP($A43,'Data Pass Through'!$A:$D,2,FALSE) -> 0 | D43: =B43*C43 -> 0 | E43: 2300 | F43: =VLOOKUP($A43,'Data Pass Through'!$A:$D,3,FALSE) -> 0 | G43: =E43*F43 -> 0 | H43: 0 | I43: N/A | J43: 0 | K43: 0
A44: Total Electricty Charge on Two-Tier RPP | D44: =SUM(D14,D27,D28,D29,D35,D42,D43) -> 300.0422 | G44: =SUM(G14,G27,G28,G29,G35,G42,G43) -> 300.80465 | H44: 0.76245 | I44: 0.002541142546 | J44: 0.9523809524
A45: HST | C45: 0.13 | D45: =D44*C45 -> 39.005486 | F45: =C45 -> 0.13 | G45: =G44*F45 -> 39.1046045 | H45: 0.0991185 | I45: 0.002541142546 | J45: 0.1238095238
A46: Total Electricity Charge on Two-Tier RPP (including HST) | D46: =SUM(D44:D45) -> 339.047686 | G46: =SUM(G44:G45) -> 339.9092545 | H46: 0.8615685 | I46: 0.002541142546 | J46: 1.076190476
A47: Ontario Rebate for Electricity Consumers (OREC) | C47: -0.08 | D47: =D44*C47 -> -24.003376 | F47: =C47 -> -0.08 | G47: =G44*F47 -> -24.064372 | H47: -0.060996 | I47: -0.002541142546 | J47: -0.07619047619
A48: Total Amount on Two-Tier RPP | D48: =SUM(D46:D47) -> 315.04431 | G48: =SUM(G46:G47) -> 315.8448825 | H48: 0.8005725 | I48: 0.002541142546 | J48: 1
A49: Total Electricty Charge on TOU (before HST) | D49: =SUM(D18,D27,D28,D30,D35,D42,D43) -> 290.341225 | G49: =SUM(G18,G27,G28,G30,G35,G42,G43) -> 291.103675 | H49: 0.76245 | I49: 0.002626048023 | K49: =G49/$G$53 -> 0.9523809524
A50: HST | C50: 0.13 | D50: =D49*C50 -> 37.74435925 | F50: =C50 -> 0.13 | G50: =G49*F50 -> 37.84347775 | H50: 0.0991185 | I50: 0.002626048023 | K50: =G50/$G$53 -> 0.1238095238
A51: Total Electricity Charge on TOU (including HST) | D51: =SUM(D49:D50) -> 328.0855843 | G51: =SUM(G49:G50) -> 328.9471527 | H51: 0.8615685 | I51: 0.002626048023 | K51: =G51/$G$53 -> 1.076190476
A52: Ontario Rebate for Electricity Consumers (OREC) | C52: -0.08 | D52: =D49*C52 -> -23.227298 | F52: =C52 -> -0.08 | G52: =G49*F52 -> -23.288294 | H52: -0.060996 | I52: -0.002626048023 | K52: =G52/$G$53 -> -0.07619047619
A53: Total Amount on TOU | D53: =SUM(D51:D52) -> 304.8582862 | G53: =SUM(G51:G52) -> 305.6588587 | H53: 0.8005725 | I53: 0.002626048023 | K53: =G53/$G$53 -> 1
A54: * Distribution rate protection applies to R1 and R2 customers

Sheet BI_Seas_Low
A1: 2020 Bill Impacts (Low Consumption Level) - Seasonal
A3: Rate Class | B3: =RIGHT(A1,LEN(A1)-FIND("- ",A1,1)-1) -> Seasonal
